Workbook

Sheet __snloffice (hidden)
A1: 允䅁䉁䅑䅁䍁䅁䅁䅁䩁䅁䅁杄䅁䑁䅉䅍硁䑁䅧兕硁䅁䅁兂䅁䅁䄴䅁祁䑁䅁免㑁䙁䅅杍䅁䅁䅣䅁佁䅁䅁杍睁䑁䅅䅏剂䑁䅍䅁䥁䅁䅁杄䅁䑁䅉䅍硁䑁䅧兕ぁ䅁䅁䅁䅁䅁䅷䅁祁䑁䅁免㕁䙁䅫䅁乁䅁䅁李䅁䕁䅅杤湂䍁䅁睒桂䡁䅍䅉䑂䡁䅕督あ䝁䄸兢求䡁䅉督杁䍁䅧兙橂䡁䅑兤桂䝁䅷克䅁䅁䅑䅁捁䅁䅁睑療䝁䄰䅣桂䝁䄴入杁䕁䄴兙瑂䝁䅕䅉䅁䉁䅅䅁歁䅁䅁兓畂䡁䅍䅤灂䡁䅑兤あ䝁䅫睢畂䍁䅁杔桂䝁䄰党杁䅁䅁权䅁䥁䄴䅁偂䡁䅁䅤灂䝁䄸杢穂䑁䅯睑ㅂ䡁䅉杣㥁䙁䅉党睂䝁䄸杣あ䝁䅕䅚杁䝁䅍兤祂䡁䅉党畂䝁䅍入獁䕁䄰兙湂䑁䄰兔䩂䡁䅍䅤桂䝁䄴䅚桂䡁䅉䅚獁䕁䅍睢畂䡁䅙兔求䡁䅑䅡療䝁䅑児乂䕁䅫杣求䝁䅍睢瑂䝁䄰党畂䝁䅑党歂䅁䅁杁䅁䍁䅧䅁偂䡁䅉兡湂䝁䅫杢桂䝁䅷䅢㕂䍁䅁杕求䡁䅁睢祂䡁䅑党歂䅁䅁允䅁䑁䅷䅁兂䡁䅉党浂䝁䅕杣祂䝁䅕䅚杁䙁䅍䅤療䝁䅍睡杁䕁䅫督穂䡁䅕党歂䍁䅁䅋歁䑁䅁䅍睁䍁䅫䅁偁䅁䅁杕䅁䙁䅉党睂䝁䄸杣あ䝁䅕䅚杁䕁䄴党あ䍁䅁睔睂䝁䅕杣桂䡁䅑兡畂䝁䅣䅉䩂䝁䄴睙療䝁䄰党杁䍁䅧杕求䡁䅁睢祂䡁䅑党歂䍁䅫䅁䑁䅁䅁杋䅁䙁䅍杔䵂䍁䅁兓畂䡁䅍䅤灂䡁䅑兤あ䝁䅫睢畂䍁䅁睓求䡁䅫䅉䅁䅁䅳䅁䝁䅁䅁睕偂䅁䅁睅䅁䑁䅧䅁啂䝁䄸䅤桂䝁䅷䅉䵂䝁䄸杢湂䍁䄰䅤求䡁䅉兢杁䕁䅑党楂䡁䅑䅉潁䍁䅑䅍睁䑁䅁克䅁䉁䅁䅁䍂䅁䅁䅖療䡁䅑兙獂䍁䅁䅕祂䝁䄸䅣祂䝁䅫党あ䝁䅅杣㕂䍁䅁睑桂䡁䅁兡あ䝁䅅䅢杁䍁䅧䅊睁䑁䅁䅍灁䅁䅁杄䅁䑁䅉䅁啂䝁䄸䅤桂䝁䅷䅉卂䝁䅕杤求䝁䄴兤求䍁䅁䅋卂䝁䅕䅣療䡁䅉䅤求䝁䅑克䅁䅁䅙䅁㡁䅁䅁兖獂䡁䅑兡瑂䝁䅅䅤求䍁䅁䅕桂䡁䅉党畂䡁䅑䅉䑂䝁䄸兢睂䝁䅅杢㕂䍁䅁杔桂䝁䄰党杁䅁䅁䅄䅁䍁䅙䅁瑂䝁䅅杣牂䝁䅕䅤穂䍁䄴䅣祂䝁䅫睙求䝁䅍䅢療䡁䅍党䅁䉁䅉䅁䅁䅁䅁

Sheet 1.1 Recommended Cap Structure
A1: =Input!G28 -> Atmos Energy Corporation
A2: Recommended Capital Structure and Cost Rates
A3: for Ratemaking Purposes
B7: Type Of Capital | D7: Ratios (1) | F7: Cost Rate | H7: Weighted Cost Rate
B9: Long-Term Debt | D9: =Input!F13 -> 0.4277 | F9: =Input!F16 -> 0.04 | G9: (1) | H9: =ROUND(F9*D9,4) -> 0.0171
B10: Short-Term Debt | D10: =Input!F15 -> 0.0018 | F10: =Input!F17 -> 0.2517 | G10: (1) | H10: =ROUND(F10*D10,4) -> 0.0005
B11: Common Equity | D11: =Input!F14 -> 0.5705 | F11: ='1.2 Summary of CE Models'!E25 -> 0.1035 | G11: (2) | H11: =ROUND(F11*D11,4) -> 0.059
B13: Total | D13: =SUM(D9:D11) -> 1 | H13: =SUM(H9:H11) -> 0.0766
A16: Notes:
A18: (1) | B18: Company-provided.
A19: (2) | B19: From page 2 of this Attachment.

Sheet 1.2 Summary of CE Models
A1: =Input!G28 -> Atmos Energy Corporation
A2: Brief Summary of Common Equity Cost Rate
A5: Line No. | C5: Principal Methods | E5: =Input!I31 -> Proxy Group of Six Water Companies
A7: 1. | C7: Discounted Cash Flow Model (DCF) (1) | E7: =IFERROR('1.3 DCF Summary'!Y21,"NA")/100 -> 0.0908 | H7: =AVERAGE(E7:E13) -> 0.10515
H8: =MEDIAN(E7:E13) -> 0.10925
A9: 2. | C9: Risk Premium Model (RPM) (2) | E9: =IFERROR('1.10 RPM Summary'!D10,"NA")/100 -> 0.1113 | H9: =AVERAGE(H7:H8) -> 0.1072
A11: 3. | C11: Capital Asset Pricing Model (CAPM) (3) | E11: =IFERROR('1.22 CAPM'!V20,"NA")/100 -> 0.1072
A13: 4. | C13: Market Models Applied to Comparable Risk, Non-Price Regulated Companies (4) | E13: =IFERROR('1.27 CEM Summary'!E19,"NA")/100 -> 0.1113
A15: 5. | C15: Indicated Common Equity Cost Rate before Adjustment for Unique Risk | E15: =_xlfn.CONCAT(TEXT(G15,"0.00%")," - ",TEXT(H15,"0.00%")) -> 9.08% - 11.13% | G15: =MIN(E7:E13) -> 0.0908 | H15: =MAX(E7:E13) -> 0.1113
A17: 6. | C17: Business Risk Adjustment (5) | E17: 0.002
A19: 7. | C19: Credit Risk Adjustment (6) | E19: =-'Market Data'!I4/100 -> -0.001
A21: 8. | C21: Flotation Cost Adjustment (7) | E21: ='1.35 Equity Contributions'!M28/100 -> 0.0002207436039
A23: 9. | C23: Indicated Common Equity Cost Rate after Adjustment | E23: =_xlfn.CONCAT(TEXT(G23,"0.00%")," - ",TEXT(H23,"0.00%")) -> 9.20% - 11.25% | G23: =G15+SUM(E17:E21) -> 0.0920207436 | H23: =H15+SUM(E17:E21) -> 0.1125207436
A25: 10. | C25: Recommended Common Equity Cost Rate | E25: 0.1035 | G25: =AVERAGE(G23:H23) -> 0.1022707436
A28: Notes: | B28: (1) | C28: From page 3 of this Attachment.
B29: (2) | C29: From page 10 of this Attachment.
B30: (3) | C30: From page 22 of this Attachment.
B31: (4) | C31: From page 27 of this Attachment.
B32: (5) | C32: Business risk adjustment to reflect Atmos Energy's unique risk compared to the Utility Proxy Group as detailed in Mr. D'Ascendis' direct testimony.
B33: (6) | C33: Company-specific risk adjustment to reflect Atmos Energy's lower risk due to a higher long-term issuer rating relative to the proxy group as detailed in Mr. D'Ascendis' direct testimony.
B34: (7) | C34: From page 34 of this Attachment.

Sheet 1.3 DCF Summary
B1: =Input!G28 -> Atmos Energy Corporation
B2: Indicated Common Equity Cost Rate Using the Discounted Cash Flow Model for the
B3: =Input!I31 -> Proxy Group of Six Water Companies
D6: [1] | G6: [2] | J6: [3] | M6: [4] | P6: [5] | S6: [6] | V6: [7] | Y6: [8]
B8: =B3 -> Proxy Group of Six Water Companies | D8: Average Dividend Yield (1) | G8: Value Line Projected Five Year Growth in EPS (2) | J8: Zack's Five Year Projected Growth Rate in EPS | M8: Yahoo! Finance Projected Five Year Growth in EPS | P8: Bloomberg Projected Five Year Growth in EPS | S8: Average Projected Five Year Growth in EPS (3) | V8: Adjusted Dividend Yield (4) | Y8: Indicated Common Equity Cost Rate (5)
A10: =Input!A2 -> AWR | B10: =IFERROR(VLOOKUP($A10,'Proxy Data Lookup'!$A:$L,2,FALSE),"NA") -> American States Water Company | D10: =IFERROR(HLOOKUP(CONCATENATE($A10," US Equity"),'Proxy Prices'!$B$5:$G$71,67,FALSE)*100,"NA") -> 1.74 | E10: % | G10: =IFERROR(VLOOKUP($A10,'Proxy Data Lookup'!$A:$L,5,FALSE)*100,"NA") -> 6.5 | H10: % | J10: =IFERROR(VLOOKUP($A10,'Proxy Data Lookup'!$A:$L,3,FALSE)*100,"NA") -> NA | K10: % | M10: =IFERROR(VLOOKUP($A10,'Proxy Data Lookup'!$A:$L,4,FALSE)*100,"NA") -> 5.2 | N10: % | P10: =IFERROR(VLOOKUP($A10,'Proxy Data Lookup'!$A:$L,6,FALSE)*100,"NA") -> 6 | Q10: % | S10: =IFERROR(ROUND(AVERAGE(G10,J10,M10,P10),2),"NA") -> 5.9 | T10: % | V10: =IFERROR(D10*(1+(0.5*(S10/100))),"NA") -> 1.79133 | W10: % | Y10: =IFERROR(V10 + S10,"NA") -> 7.69133 | Z10: %
A11: =Input!A3 -> AWK | B11: =IFERROR(VLOOKUP($A11,'Proxy Data Lookup'!$A:$L,2,FALSE),"NA") -> American Water Works Company, Inc. | D11: =IFERROR(HLOOKUP(CONCATENATE($A11," US Equity"),'Proxy Prices'!$B$5:$G$71,67,FALSE)*100,"NA") -> 1.6 | G11: =IFERROR(VLOOKUP($A11,'Proxy Data Lookup'!$A:$L,5,FALSE)*100,"NA") -> 8.5 | J11: =IFERROR(VLOOKUP($A11,'Proxy Data Lookup'!$A:$L,3,FALSE)*100,"NA") -> 8.1 | M11: =IFERROR(VLOOKUP($A11,'Proxy Data Lookup'!$A:$L,4,FALSE)*100,"NA") -> 8.6 | P11: =IFERROR(VLOOKUP($A11,'Proxy Data Lookup'!$A:$L,6,FALSE)*100,"NA") -> 8.515 | S11: 8.43 | V11: 1.66744 | Y11: =IFERROR(V11 + S11,"NA") -> 10.09744
A12: =Input!A4 -> CWT | B12: =IFERROR(VLOOKUP($A12,'Proxy Data Lookup'!$A:$L,2,FALSE),"NA") -> California Water Service Group | D12: =IFERROR(HLOOKUP(CONCATENATE($A12," US Equity"),'Proxy Prices'!$B$5:$G$71,67,FALSE)*100,"NA") -> 1.62 | G12: =IFERROR(VLOOKUP($A12,'Proxy Data Lookup'!$A:$L,5,FALSE)*100,"NA") -> 6.5 | J12: =IFERROR(VLOOKUP($A12,'Proxy Data Lookup'!$A:$L,3,FALSE)*100,"NA") -> NA | M12: =IFERROR(VLOOKUP($A12,'Proxy Data Lookup'!$A:$L,4,FALSE)*100,"NA") -> 11.7 | P12: =IFERROR(VLOOKUP($A12,'Proxy Data Lookup'!$A:$L,6,FALSE)*100,"NA") -> 4 | S12: 7.4 | V12: 1.67994 | Y12: =IFERROR(V12 + S12,"NA") -> 9.07994
A13: =Input!A5 -> MSEX | B13: =IFERROR(VLOOKUP($A13,'Proxy Data Lookup'!$A:$L,2,FALSE),"NA") -> Middlesex Water Company | D13: =IFERROR(HLOOKUP(CONCATENATE($A13," US Equity"),'Proxy Prices'!$B$5:$G$71,67,FALSE)*100,"NA") -> 1.36 | G13: =IFERROR(VLOOKUP($A13,'Proxy Data Lookup'!$A:$L,5,FALSE)*100,"NA") -> 4.5 | J13: =IFERROR(VLOOKUP($A13,'Proxy Data Lookup'!$A:$L,3,FALSE)*100,"NA") -> NA | M13: =IFERROR(VLOOKUP($A13,'Proxy Data Lookup'!$A:$L,4,FALSE)*100,"NA") -> 2.7 | P13: =IFERROR(VLOOKUP($A13,'Proxy Data Lookup'!$A:$L,6,FALSE)*100,"NA") -> NA | S13: 3.6 | V13: 1.38448 | Y13: NMF
A14: =Input!A6 -> SJW | B14: =IFERROR(VLOOKUP($A14,'Proxy Data Lookup'!$A:$L,2,FALSE),"NA") -> SJW Group | D14: =IFERROR(HLOOKUP(CONCATENATE($A14," US Equity"),'Proxy Prices'!$B$5:$G$71,67,FALSE)*100,"NA") -> 2.14 | G14: =IFERROR(VLOOKUP($A14,'Proxy Data Lookup'!$A:$L,5,FALSE)*100,"NA") -> 13 | J14: =IFERROR(VLOOKUP($A14,'Proxy Data Lookup'!$A:$L,3,FALSE)*100,"NA") -> NA | M14: =IFERROR(VLOOKUP($A14,'Proxy Data Lookup'!$A:$L,4,FALSE)*100,"NA") -> 7 | P14: =IFERROR(VLOOKUP($A14,'Proxy Data Lookup'!$A:$L,6,FALSE)*100,"NA") -> 7 | S14: 9 | V14: 2.2363 | Y14: =IFERROR(V14 + S14,"NA") -> 11.2363
A15: =Input!A7 -> YORW | B15: =IFERROR(VLOOKUP($A15,'Proxy Data Lookup'!$A:$L,2,FALSE),"NA") -> The York Water Company | D15: =IFERROR(HLOOKUP(CONCATENATE($A15," US Equity"),'Proxy Prices'!$B$5:$G$71,67,FALSE)*100,"NA") -> 1.53 | G15: =IFERROR(VLOOKUP($A15,'Proxy Data Lookup'!$A:$L,5,FALSE)*100,"NA") -> 6.5 | J15: =IFERROR(VLOOKUP($A15,'Proxy Data Lookup'!$A:$L,3,FALSE)*100,"NA") -> NA | M15: =IFERROR(VLOOKUP($A15,'Proxy Data Lookup'!$A:$L,4,FALSE)*100,"NA") -> 4.9 | P15: =IFERROR(VLOOKUP($A15,'Proxy Data Lookup'!$A:$L,6,FALSE)*100,"NA") -> NA | S15: 5.7 | V15: 1.573605 | Y15: =IFERROR(V15 + S15,"NA") -> 7.273605
V17: Average | Y17: =ROUND(AVERAGE(Y10:Y15),2) -> 9.08 | Z17: % | AA17: =AVERAGE(Y10:Y15) -> 9.075723
AA18: =_xlfn.STDEV.P(Y10:Y15) -> 1.474868784
V19: Median | Y19: =ROUND(MEDIAN(Y10:Y15),2) -> 9.08 | Z19: % | AA19: =AA17+AA18 -> 10.55059178
AA20: =AA17-AA18 -> 7.600854216
V21: Average of Mean and Median | Y21: =ROUND(AVERAGE(Y17:Y19),2) -> 9.08 | Z21: %
E23: NA= Not Available
D25: Notes:
E26: (1) | F26: =CONCATENATE("Indicated dividend at ",TEXT(Input!E2,"mm/dd/yyyy")," divided by the average closing price of the last 60 trading days ending ",TEXT(Input!E2,"mm/dd/yyyy")," for each company.") -> Indicated dividend at 05/28/2021 divided by the average closing price of the last 60 trading days ending 05/28/2021 for each company.
E27: (2) | F27: From pages 4 through 9 of this Attachment.
E28: (3) | F28: Average of columns 2 through 5 excluding negative growth rates.
E29: (4) | F29: =CONCATENATE("This reflects a growth rate component equal to one-half the conclusion of growth rate (from column 6) x column 1 to reflect the periodic payment of dividends (Gordon Model) as opposed to the continuous payment. Thus, for ",B10,", ",TEXT(D10,"#0.00"),"% x (1+( 1/2 x ",TEXT(S10,"#0.00"),"%) ) = ",TEXT(V10,"#0.00"),"%.") -> This reflects a growth rate component equal to one-half the conclusion of growth rate (from column 6) x column 1 to reflect the periodic payment of dividends (Gordon Model) as opposed to the continuous payment. Thus, for American States Water Company, 1.74% x (1+( 1/2 x 5.90%) ) = 1.79%.
E30: (5) | F30: Column 6 + column 7.
B32: Source of Information: | E32: Value Line Investment Survey
E33: =CONCATENATE("www.zacks.com Downloaded on ",TEXT(Input!E2,"mm/dd/yyyy")) -> www.zacks.com Downloaded on 05/28/2021
E34: =CONCATENATE("www.yahoo.com Downloaded on ",TEXT(Input!E2,"mm/dd/yyyy")) -> www.yahoo.com Downloaded on 05/28/2021
E35: Bloomberg Professional Services

Sheet 1.10 RPM Summary
A1: =Input!G28 -> Atmos Energy Corporation
A2: Summary of Risk Premium Models for the
A3: =Input!I31 -> Proxy Group of Six Water Companies
D5: =A3 -> Proxy Group of Six Water Companies
A6: Predictive Risk Premium Model (PRPM) (1) | D6: =IFERROR('1.11 Ind. PRPM Results'!P21*100,"NA") -> 11.84 | E6: %
A8: Risk Premium Using an Adjusted Total Market Approach (2) | D8: =IFERROR('1.12 Risk Premium Summary'!G28,"NA") -> 10.41 | E8: %
C10: Average | D10: =IFERROR(ROUND(AVERAGE(D6:D8),2),"NA") -> 11.13 | E10: %
A12: Notes:
A13: (1) | B13: From page 11 of this Attachment.
A14: (2) | B14: From page 12 of this Attachment.

Sheet 1.11 Ind. PRPM Results
B1: =Input!G28 -> Atmos Energy Corporation
B2: Indicated ROE
B3: Derived by the Predictive Risk Premium Model (1)
D6: [1] | F6: [2] | H6: [3] | J6: [4] | L6: [5] | N6: [6] | P6: [7]
B8: =Input!I31 -> Proxy Group of Six Water Companies | D8: LT Average Predicted Variance | F8: Spot Predicted Variance | H8: Recommended Variance | J8: GARCH Coefficient | L8: Predicted Risk Premium (2) | N8: Risk-Free Rate (3) | P8: Indicated ROE (4)
A10: =Input!A2 -> AWR | B10: =VLOOKUP($A10,'Proxy Data Lookup'!$A:$B,2,FALSE) -> American States Water Company | D10: =_xlfn.XLOOKUP($A10,'PRPM WP1'!$B$1:$G$1,'PRPM WP1'!$B$1151:$G$1151) -> 0.00376452781 | F10: =_xlfn.XLOOKUP($A10,'PRPM WP1'!$B$1:$G$1,'PRPM WP1'!$B$1153:$G$1153) -> 0.003357440529 | H10: =AVERAGE(D10:F10) -> 0.003560984169 | J10: =_xlfn.XLOOKUP($A10,'PRPM WP1'!$B$1:$G$1,'PRPM WP1'!$B$1155:$G$1155) -> 1.874092 | L10: =ROUND((1+(H10*J10))^12-1,4) -> 0.0831 | N10: ='MRP WP1'!F$37/100 -> 0.0288 | P10: =N10 + L10 -> 0.1119
A11: =Input!A3 -> AWK | B11: =VLOOKUP($A11,'Proxy Data Lookup'!$A:$B,2,FALSE) -> American Water Works Company, Inc. | D11: =_xlfn.XLOOKUP($A11,'PRPM WP1'!$B$1:$G$1,'PRPM WP1'!$B$1151:$G$1151) -> 0.00228655741 | F11: =_xlfn.XLOOKUP($A11,'PRPM WP1'!$B$1:$G$1,'PRPM WP1'!$B$1153:$G$1153) -> 0.001679187533 | H11: =AVERAGE(D11:F11) -> 0.001982872471 | J11: =_xlfn.XLOOKUP($A11,'PRPM WP1'!$B$1:$G$1,'PRPM WP1'!$B$1155:$G$1155) -> 5.897493 | L11: 0.1497 | N11: ='MRP WP1'!F$37/100 -> 0.0288 | P11: NMF
A12: =Input!A4 -> CWT | B12: =VLOOKUP($A12,'Proxy Data Lookup'!$A:$B,2,FALSE) -> California Water Service Group | D12: =_xlfn.XLOOKUP($A12,'PRPM WP1'!$B$1:$G$1,'PRPM WP1'!$B$1151:$G$1151) -> 0.003163912671 | F12: =_xlfn.XLOOKUP($A12,'PRPM WP1'!$B$1:$G$1,'PRPM WP1'!$B$1153:$G$1153) -> 0.00269067604 | H12: 0.002927294356 | J12: =_xlfn.XLOOKUP($A12,'PRPM WP1'!$B$1:$G$1,'PRPM WP1'!$B$1155:$G$1155) -> 2.032309 | L12: 0.0738 | N12: ='MRP WP1'!F$37/100 -> 0.0288 | P12: =N12 + L12 -> 0.1026
A13: =Input!A5 -> MSEX | B13: =VLOOKUP($A13,'Proxy Data Lookup'!$A:$B,2,FALSE) -> Middlesex Water Company | D13: =_xlfn.XLOOKUP($A13,'PRPM WP1'!$B$1:$G$1,'PRPM WP1'!$B$1151:$G$1151) -> 0.00306938411 | F13: =_xlfn.XLOOKUP($A13,'PRPM WP1'!$B$1:$G$1,'PRPM WP1'!$B$1153:$G$1153) -> 0.005868717226 | H13: 0.004469050668 | J13: =_xlfn.XLOOKUP($A13,'PRPM WP1'!$B$1:$G$1,'PRPM WP1'!$B$1155:$G$1155) -> 2.221459 | L13: 0.1259 | N13: ='MRP WP1'!F$37/100 -> 0.0288 | P13: =N13 + L13 -> 0.1547
A14: =Input!A6 -> SJW | B14: =VLOOKUP($A14,'Proxy Data Lookup'!$A:$B,2,FALSE) -> SJW Group | D14: =_xlfn.XLOOKUP($A14,'PRPM WP1'!$B$1:$G$1,'PRPM WP1'!$B$1151:$G$1151) -> 0.004121154351 | F14: =_xlfn.XLOOKUP($A14,'PRPM WP1'!$B$1:$G$1,'PRPM WP1'!$B$1153:$G$1153) -> 0.003489197623 | H14: 0.003805175987 | J14: =_xlfn.XLOOKUP($A14,'PRPM WP1'!$B$1:$G$1,'PRPM WP1'!$B$1155:$G$1155) -> 1.538269 | L14: 0.0725 | N14: ='MRP WP1'!F$37/100 -> 0.0288 | P14: =N14 + L14 -> 0.1013
A15: =Input!A7 -> YORW | B15: =VLOOKUP($A15,'Proxy Data Lookup'!$A:$B,2,FALSE) -> The York Water Company | D15: =_xlfn.XLOOKUP($A15,'PRPM WP1'!$B$1:$G$1,'PRPM WP1'!$B$1151:$G$1151) -> 0.004508838324 | F15: =_xlfn.XLOOKUP($A15,'PRPM WP1'!$B$1:$G$1,'PRPM WP1'!$B$1153:$G$1153) -> 0.004300372701 | H15: 0.004404605512 | J15: =_xlfn.XLOOKUP($A15,'PRPM WP1'!$B$1:$G$1,'PRPM WP1'!$B$1155:$G$1155) -> 2.233231 | L15: 0.1246 | N15: ='MRP WP1'!F$37/100 -> 0.0288 | P15: =N15 + L15 -> 0.1534
N17: Average | P17: =ROUND(AVERAGE(P10:P15),4) -> 0.1248
N19: Median | P19: =ROUND(MEDIAN(P10:P15),4) -> 0.1119
N21: Average of Mean and Median | P21: =ROUND(AVERAGE(P17:P19),4) -> 0.1184
D23: NMF = Not Meaningful Figure
B25: Notes:
B26: (1) | D26: The Predictive Risk Premium Model uses historical data to generate a predicted variance and a GARCH coefficient. The historical data used are the equity risk premiums for the first available trading month as reported by Bloomberg Professional Service.
B27: (2) | D27: (1+(Column [3] * Column [4])^12) - 1.
B28: (3) | D28: From note 2 on page 23 of this Attachment.
B29: (4) | D29: Column [5] + Column [6].

Sheet 1.12 Risk Premium Summary
A1: =Input!G28 -> Atmos Energy Corporation
A2: Indicated Common Equity Cost Rate
A3: Through Use of a Risk Premium Model
A4: Using an Adjusted Total Market Approach
A6: Line No. | G6: =Input!I31 -> Proxy Group of Six Water Companies
A9: 1. | C9: Prospective Yield on Aaa Rated
C10: Corporate Bonds (1) | G10: ='MRP WP1'!$M$37 -> 3.56 | H10: %
A12: 2. | C12: Adjustment to Reflect Yield Spread
C13: Between Aaa Rated Corporate
C14: Bonds and A2 Rated Public
C15: Utility Bonds | G15: ='1.13 Moody''s Bond Yields'!I20 -> 0.39 | H15: (2)
A17: 3. | C17: Adjusted Prospective Yield on A2 Rated
C18: Public Utility Bonds | G18: =SUM(G10:G15) -> 3.95 | H18: %
A20: 4. | C20: Adjustment to Reflect Bond
C21: Rating Difference of Proxy Group | G21: =ROUND((1/6)*'1.13 Moody''s Bond Yields'!I23,2) -> 0.04 | H21: (3)
A23: 5. | C23: Adjusted Prospective Bond Yield | G23: =SUM(G18:G21) -> 3.99 | H23: %
A25: 6. | C25: Equity Risk Premium (4) | G25: ='1.16 ERP Determination'!E19 -> 6.42
A27: 7. | C27: Risk Premium Derived Common
C28: Equity Cost Rate | G28: =SUM(G23:G25) -> 10.41 | H28: %
A31: Notes: | B31: (1) | C31: Consensus forecast of Moody's Aaa Rated Corporate bonds from Blue Chip Financial Forecasts (see pages 19 and 20 of this Attachment).
B32: (2) | C32: =CONCATENATE("The average yield spread of A2 rated public utility bonds over Aaa rated corporate bonds of ",TEXT('1.13 Moody''s Bond Yields'!I20,"#0.00"),"% from page 13 of this Attachment.") -> The average yield spread of A2 rated public utility bonds over Aaa rated corporate bonds of 0.39% from page 13 of this Attachment.
B33: (3) | C33: =CONCATENATE("Adjustment to reflect the A2/A3 Moody's LT issuer rating of the Utility Proxy Group as shown on page 14 of this Attachment. The ",G21,"% upward adjustment is derived by taking 1/6 of the spread between A2/A3 and Baa2 Public Utility Bonds (1/6 * ",'1.13 Moody''s Bond Yields'!I23,"% = ",TEXT('1.12 Risk Premium Summary'!G21,"#0.00"),"%) as derived from page 13 of this Attachment.") -> Adjustment to reflect the A2/A3 Moody's LT issuer rating of the Utility Proxy Group as shown on page 14 of this Attachment. The 0.04% upward adjustment is derived by taking 1/6 of the spread between A2/A3 and Baa2 Public Utility Bonds (1/6 * 0.26% = 0.04%) as derived from page 13 of this Attachment.
B34: (4) | C34: From page 16 of this Attachment.

Sheet 1.13 Moody's Bond Yields
A1: =Input!G28 -> Atmos Energy Corporation
A2: Interest Rates and Bond Spreads for
A3: Moody's Corporate and Public Utility Bonds
A5: Selected Bond Yields
C7: [1] | F7: [2] | I7: [3]
C9: Aaa Rated Corporate Bond | F9: A2 Rated Public Utility Bond | I9: Baa2 Rated Public Utility Bond
A11: ='Market Data'!B1 -> 2021-05-28 | C11: ='Market Data'!B5 -> 2.96 | D11: % | F11: ='Market Data'!B3 -> 3.33 | G11: % | I11: ='Market Data'!B4 -> 3.58 | J11: %
A12: ='Market Data'!C1 -> 2021-04-30 | C12: ='Market Data'!C5 -> 2.9 | F12: ='Market Data'!C3 -> 3.3 | I12: ='Market Data'!C4 -> 3.57
A13: ='Market Data'!D1 -> 2021-03-31 | C13: ='Market Data'!D5 -> 3.04 | F13: ='Market Data'!D3 -> 3.44 | I13: ='Market Data'!D4 -> 3.72
A15: Average | C15: =ROUND(AVERAGE(C11:C13),2) -> 2.97 | D15: % | F15: =ROUND(AVERAGE(F11:F13),2) -> 3.36 | G15: % | I15: =ROUND(AVERAGE(I11:I13),2) -> 3.62 | J15: %
A17: Selected Bond Spreads
A19: A2 Rated Public Utility Bonds Over Aaa Rated Corporate Bonds:
I20: =F15-C15 -> 0.39 | J20: % (1)
A22: Baa2 Rated Public Utility Bonds Over A2 Rated Public Utility Bonds:
I23: =ROUND(I15-F15,2) -> 0.26 | J23: % (2)
A25: Notes:
A26: (1) | B26: Column [2] - Column [1].
A27: (2) | B27: Column [3] - Column [2].
A29: Source of Information:
A30: Bloomberg Professional Service

Sheet 1.14 Bond Ratings
B1: =Input!G28 -> Atmos Energy Corporation
B2: Comparison of Long-Term Issuer Ratings for
B3: ='1.12 Risk Premium Summary'!G6 -> Proxy Group of Six Water Companies
E6: Moody's | I6: Standard & Poor's
E7: Long-Term Issuer Rating | I7: Long-Term Issuer Rating
E8: =TEXT(Input!E2,"mmmm yyyy") -> May 2021 | I8: =E8 -> May 2021
B11: =B3 -> Proxy Group of Six Water Companies | E11: Long-Term Issuer Rating | G11: Numerical Weighting (1) | I11: =E11 -> Long-Term Issuer Rating | K11: Numerical Weighting (1)
A13: =Input!A2 -> AWR | B13: American States Water Company (2) | E13: ='Proxy Data Lookup'!P3 -> A2 | G13: =IFERROR(VLOOKUP('1.14 Bond Ratings'!E13,'1.15 MOODY_S&P numbericl'!B:D, 3,FALSE), " - -") -> 6 | I13: ='Proxy Data Lookup'!O3 -> A+ | K13: =IFERROR(VLOOKUP('1.14 Bond Ratings'!I13,'1.15 MOODY_S&P numbericl'!F:H, 3,FALSE), "- -") -> 5
A14: =Input!A3 -> AWK | B14: American Water Works Company, Inc. (3) | E14: ='Proxy Data Lookup'!P4 -> A3 | G14: =IFERROR(VLOOKUP('1.14 Bond Ratings'!E14,'1.15 MOODY_S&P numbericl'!B:D, 3,FALSE), " - -") -> 7 | I14: ='Proxy Data Lookup'!O4 -> A | K14: =IFERROR(VLOOKUP('1.14 Bond Ratings'!I14,'1.15 MOODY_S&P numbericl'!F:H, 3,FALSE), "- -") -> 6
A15: =Input!A4 -> CWT | B15: California Water Service Group | E15: ='Proxy Data Lookup'!P5 -> NR | G15: =IFERROR(VLOOKUP('1.14 Bond Ratings'!E15,'1.15 MOODY_S&P numbericl'!B:D, 3,FALSE), " - -") -> - - | I15: ='Proxy Data Lookup'!O5 -> A+ | K15: =IFERROR(VLOOKUP('1.14 Bond Ratings'!I15,'1.15 MOODY_S&P numbericl'!F:H, 3,FALSE), "- -") -> 5
A16: =Input!A5 -> MSEX | B16: Middlesex Water Company | E16: ='Proxy Data Lookup'!P6 -> NR | G16: =IFERROR(VLOOKUP('1.14 Bond Ratings'!E16,'1.15 MOODY_S&P numbericl'!B:D, 3,FALSE), " - -") -> - - | I16: ='Proxy Data Lookup'!O6 -> A | K16: =IFERROR(VLOOKUP('1.14 Bond Ratings'!I16,'1.15 MOODY_S&P numbericl'!F:H, 3,FALSE), "- -") -> 6
A17: =Input!A6 -> SJW | B17: SJW Group (4) | E17: ='Proxy Data Lookup'!P7 -> NR | G17: =IFERROR(VLOOKUP('1.14 Bond Ratings'!E17,'1.15 MOODY_S&P numbericl'!B:D, 3,FALSE), " - -") -> - - | I17: ='Proxy Data Lookup'!O7 -> A/A- | K17: 6.5
A18: =Input!A7 -> YORW | B18: The York Water Company | E18: ='Proxy Data Lookup'!P8 -> NR | G18: =IFERROR(VLOOKUP('1.14 Bond Ratings'!E18,'1.15 MOODY_S&P numbericl'!B:D, 3,FALSE), " - -") -> - - | I18: ='Proxy Data Lookup'!O8 -> A- | K18: =IFERROR(VLOOKUP('1.14 Bond Ratings'!I18,'1.15 MOODY_S&P numbericl'!F:H, 3,FALSE), "- -") -> 7
C20: Average | E20: A2/A3 | G20: =ROUND(AVERAGE(G13:G19),1) -> 6.5 | I20: =INDEX('1.15 MOODY_S&P numbericl'!F:F,MATCH(ROUND(K20,0),'1.15 MOODY_S&P numbericl'!H:H,0)) -> A | K20: =ROUND(AVERAGE(K12:K19),1) -> 5.9
B23: Notes:
B24: (1) | C24: From page 15 of this Attachment.
B25: (2) | C25: Ratings that of Golden State Water Company.
B26: (3) | C26: Ratings that of New Jersey and Pennsylvania American Water Companies.
B27: (4) | C27: Ratings that of San Jose Water Company and The Connecticut Water Company.
C29: Source Information: | E29: Moody's Investors Service
E30: Standard & Poor's Global Utilities Rating Service

Sheet 1.15 MOODY_S&P numbericl
B1: Numerical Assignment for
B2: Moody's and Standard & Poor's Bond Ratings
B4: Moody's Bond Rating | D4: Numerical Bond Weighting | F4: Standard & Poor's Bond Rating | H4: =D4 -> Numerical Bond Weighting
B6: Aaa | D6: 1 | F6: AAA | H6: =IF(D6="","",D6) -> 1
H7: =IF(D7="","",D7) -> 
B8: Aa1 | D8: 2 | F8: AA+ | H8: 2
B9: Aa2 | D9: 3 | F9: AA | H9: 3
B10: Aa3 | D10: 4 | F10: AA- | H10: 4
B12: A1 | D12: 5 | F12: A+ | H12: 5
B13: A2 | D13: 6 | F13: A | H13: 6
B14: A3 | D14: 7 | F14: A- | H14: 7
B16: Baa1 | D16: 8 | F16: BBB+ | H16: 8
B17: Baa2 | D17: 9 | F17: BBB | H17: 9
B18: Baa3 | D18: 10 | F18: BBB- | H18: 10
B20: Ba1 | D20: 11 | F20: BB+ | H20: 11
B21: Ba2 | D21: 12 | F21: BB | H21: 12
B22: Ba3 | D22: 13 | F22: BB- | H22: 13
B24: B1 | D24: 14 | F24: B+ | H24: 14
B25: B2 | D25: 15 | F25: B | H25: 15
B26: B3 | D26: 16 | F26: B- | H26: 16

Sheet 1.16 ERP Determination
A1: =Input!G28 -> Atmos Energy Corporation
A2: Judgment of Equity Risk Premium for the
A3: =E5 -> Proxy Group of Six Water Companies
A5: Line No. | E5: ='1.14 Bond Ratings'!B3 -> Proxy Group of Six Water Companies
A8: 1. | C8: Calculated equity risk
C9: premium based on the
C10: total market using
C11: the beta approach (1) | E11: ='1.17-1.18 Beta Adjusted ERP'!F27 -> 6.99 | F11: %
A13: 2. | C13: Mean equity risk premium
C14: based on a study
C15: using the holding period
C16: returns of public utilities
C17: with A2 rated bonds (2) | E17: ='1.21 S&P RPM Study Returns'!E19 -> 5.84
A19: 3. | C19: Average equity risk premium | E19: =ROUND(AVERAGE(E11:E17),2) -> 6.42 | F19: %
A22: Notes: | B22: (1) | C22: From page 17 of this Attachment.
B23: (2) | C23: From page 21 of this Attachment.

Sheet 1.17-1.18 Beta Adjusted ERP
A1: =Input!G28 -> Atmos Energy Corporation
A2: Derivation of Equity Risk Premium Based on the Total Market Approach
A3: Using the Beta for the
A4: ='1.16 ERP Determination'!E5 -> Proxy Group of Six Water Companies
A7: Line No. | C7: ='1.31 CEM RPM ERP'!C7 -> Equity Risk Premium Measure | F7: =A4 -> Proxy Group of Six Water Companies
B9: Ibbotson-Based Equity Risk Premiums:
A11: 1. | C11: Ibbotson Equity Risk Premium (1) | F11: =('Market Data'!B11-'Market Data'!B12)*100 -> 5.92 | G11: %
A13: 2. | C13: Regression on Ibbotson Risk Premium Data (2) | F13: ='MRP ERP WP'!AK42*100 -> 8.692961584
A15: 3. | C15: Ibbotson Equity Risk Premium based on PRPM (3) | F15: ='PRPM WP1'!J1161*100 -> 9.020182923
A17: 4. | C17: Equity Risk Premium Based on Value Line Summary and Index (4) | F17: ='MRP WP1'!$M$22*100-'MRP WP1'!$M$37 -> 4.6
A19: 5. | C19: Equity Risk Premium Based on Value Line S&P 500 Companies (5) | F19: =('MRP WP3'!H504*100)-'MRP WP1'!M37 -> 10.76198133
A21: 6. | C21: Equity Risk Premium Based on Bloomberg S&P 500 Companies (6) | F21: ='MRP WP2'!Q504*100-'MRP WP1'!M37 -> 12.77579407
A23: 7. | C23: Conclusion of Equity Risk Premium | F23: =ROUND(AVERAGE(F11:F21),2) -> 8.63 | G23: %
A25: 8. | C25: Adjusted Beta (7) | F25: ='1.22 CAPM'!H20 -> 0.81
A27: 9. | C27: Forecasted Equity Risk Premium | F27: =ROUND(F23*F25,2) -> 6.99 | G27: %
A29: Notes provided on page 18 of this Attachment.
B31: Notes:
B32: (1) | C32: =CONCATENATE("Based on the arithmetic mean historical monthly returns on large company common stocks from Ibbotson® SBBI® ",2021," Yearbook minus the arithmetic mean monthly yield of Moody's average Aaa and Aa2 corporate bonds from 1928-2020.") -> Based on the arithmetic mean historical monthly returns on large company common stocks from Ibbotson® SBBI® 2021 Yearbook minus the arithmetic mean monthly yield of Moody's average Aaa and Aa2 corporate bonds from 1928-2020.
B33: (2) | C33: This equity risk premium is based on a regression of the monthly equity risk premiums of large company common stocks relative to Moody's average Aaa and Aa2 rated corporate bond yields from 1928-2020 referenced in note 1 above.
B34: (3) | C34: The Ibbotson equity risk premium based on the PRPM is derived by applying the PRPM to the monthly risk premiums between Ibbotson large company common stock monthly returns and average Aaa and Aa2 corporate monthly bond yields, from January 1928 through May 2021.
B35: (4) | C35: The equity risk premium based on the Value Line Summary and Index is derived by subtracting the average consensus forecast of Aaa corporate bonds of 3.56% (from page 12 of this Attachment) from the projected 3-5 year total annual market return of 8.16% (described fully in note 1 on page 23 of this Attachment).
B36: (5) | C36: Using data from Value Line for the S&P 500, an expected total return of 14.32% was derived based upon expected dividend yields and long-term earnings growth estimates as a proxy for capital appreciation. Subtracting the average consensus forecast of Aaa corporate bonds of 3.56% results in an expected equity risk premium of 10.76%.
B37: (6) | C37: Using data from the Bloomberg Professional Service for the S&P 500, an expected total return of 16.34% was derived based upon expected dividend yields and long-term earnings growth estimates as a proxy for capital appreciation. Subtracting the average consensus forecast of Aaa corporate bonds of 3.56% results in an expected equity risk premium of 12.78%.
B38: (7) | C38: Average of mean and median beta from page 22 of this Attachment.
B40: Sources of Information:
C41: Stocks, Bonds, Bills, and Inflation - 2021 SBBI Yearbook, John Wiley & Sons, Inc.
C42: Industrial Manual and Mergent Bond Record Monthly Update.
C43: Value Line Summary and Index
C44: =CONCATENATE("Blue Chip Financial Forecasts, ",Input!I25) -> Blue Chip Financial Forecasts, June 1, 2021
C45: Bloomberg Professional Service

Sheet 1.21 S&P RPM Study Returns
A1: =Input!G28 -> Atmos Energy Corporation
A2: Derivation of Mean Equity Risk Premium Based Studies
A3: Using Holding Period Returns and
A4: Projected Market Appreciation of the S&P Utility Index
A5: Line No. | E5: Implied Equity Risk Premium
B7: Equity Risk Premium based on S&P Utility Index Holding Period Returns (1):
A9: 1. | C9: Historical Equity Risk Premium | E9: =('Market Data'!B13-'Market Data'!B14)*100 -> 4.16 | F9: %
A11: 2. | C11: Regression of Historical Equity Risk Premium (2) | E11: ='MRP ERP WP'!AU42*100 -> 6.374061759
A13: 3. | C13: Forecasted Equity Risk Premium Based on PRPM (3) | E13: ='PRPM WP1'!I1161*100 -> 5.405131641
A15: 4. | C15: Forecasted Equity Risk Premium based on Projected Total Return on the S&P Utilities Index (Value Line Data) (4) | E15: =ROUND(('ERP WP 2'!H32*100)-'1.12 Risk Premium Summary'!G18,2) -> 7.45
A17: 5. | C17: Forecasted Equity Risk Premium based on Projected Total Return on the S&P Utilities Index (Bloomberg Data) (5) | E17: =ROUND('ERP WP1'!O31*100-'1.12 Risk Premium Summary'!G18,2) -> 5.82
A19: 6. | C19: Average Equity Risk Premium (6) | E19: =ROUND(AVERAGE(E9:E17),2) -> 5.84 | F19: %
A22: Notes: | B22: (1) | C22: Based on S&P Public Utility Index monthly total returns and Moody's Public Utility Bond average monthly yields from 1928-2020. Holding period returns are calculated based upon income received (dividends and interest) plus the relative change in the market value of a security over a one-year holding period.
B23: (2) | C23: This equity risk premium is based on a regression of the monthly equity risk premiums of the S&P Utility Index relative to Moody's A2 rated public utility bond yields from 1928 - 2020 referenced in note 1 above.
B24: (3) | C24: The Predictive Risk Premium Model (PRPM) is applied to the risk premium of the monthly total returns of the S&P Utility Index and the monthly yields on Moody's A2 rated public utility bonds from January 1928 - May 2021.
B25: (4) | C25: Using data from Value Line for the S&P Utilities Index, an expected return of 11.40% was derived based on expected dividend yields and long-term growth estimates as a proxy for market appreciation. Subtracting the expected A2 rated public utility bond yield of 3.95%, calculated on line 3 of page 12 of this Attachment results in an equity risk premium of 7.45%. (11.40% - 3.95% = 7.45%)
B26: (5) | C26: Using data from Bloomberg Professional Service for the S&P Utilities Index, an expected return of 9.77% was derived based on expected dividend yields and long-term growth estimates as a proxy for market appreciation. Subtracting the expected A2 rated public utility bond yield of 3.95%, calculated on line 3 of page 12 of this Attachment results in an equity risk premium of 5.82%. (9.77% - 3.95% = 5.82%)
B27: (6) | C27: Average of lines 1 through 5.

Sheet 1.22 CAPM
B1: =Input!G28 -> Atmos Energy Corporation
B2: Indicated Common Equity Cost Rate Through Use
B3: of the Traditional Capital Asset Pricing Model (CAPM) and Empirical Capital Asset Pricing Model (ECAPM)
D5: [1] | F5: [2] | H5: [3] | J5: [4] | M5: [5] | P5: [6] | S5: [7] | V5: [8]
B7: ='1.17-1.18 Beta Adjusted ERP'!F7 -> Proxy Group of Six Water Companies | D7: Value Line Adjusted Beta | F7: Bloomberg Adjusted Beta | H7: Average Beta | J7: Market Risk Premium (1) | M7: Risk-Free Rate (2) | P7: Traditional CAPM Cost Rate | S7: ECAPM Cost Rate | V7: Indicated Common Equity Cost Rate (3)
A9: =IFERROR(Input!A2, "NA") -> AWR | B9: =IFERROR(VLOOKUP(A9,'Proxy Data Lookup'!$A:$L,2,FALSE),"NA") -> American States Water Company | D9: ='MRP WP1'!C71 -> 0.65 | F9: ='Proxy Data Lookup'!H3 -> 0.6027562618 | H9: =IFERROR(ROUND(AVERAGE(D9:F9),2),"NA") -> 0.63 | J9: ='MRP WP1'!$H$64 -> 9.459655442 | K9: % | M9: ='MRP WP1'!$F$37 -> 2.88 | N9: % | P9: =IFERROR((H9*J9) + M9,"NA") -> 8.839582929 | Q9: % | S9: =IFERROR((0.75*(H9*J9))+(0.25*J9)+M9,"NA") -> 9.714601057 | T9: % | V9: =IFERROR(ROUND(AVERAGE(P9:S9),2),"NA") -> 9.28 | W9: %
A10: =IFERROR(Input!A3, "NA") -> AWK | B10: =IFERROR(VLOOKUP(A10,'Proxy Data Lookup'!$A:$L,2,FALSE),"NA") -> American Water Works Company, Inc. | D10: ='MRP WP1'!C72 -> 0.85 | F10: ='Proxy Data Lookup'!H4 -> 1.046223521 | H10: 0.95 | J10: ='MRP WP1'!$H$64 -> 9.459655442 | M10: ='MRP WP1'!$F$37 -> 2.88 | P10: 11.86667267 | S10: 11.98491836 | V10: 11.93
A11: =IFERROR(Input!A4, "NA") -> CWT | B11: =IFERROR(VLOOKUP(A11,'Proxy Data Lookup'!$A:$L,2,FALSE),"NA") -> California Water Service Group | D11: ='MRP WP1'!C73 -> 0.65 | F11: ='Proxy Data Lookup'!H5 -> 0.6352627277 | H11: 0.64 | J11: ='MRP WP1'!$H$64 -> 9.459655442 | M11: ='MRP WP1'!$F$37 -> 2.88 | P11: 8.934179483 | S11: 9.785548473 | V11: 9.36
A12: =IFERROR(Input!A5, "NA") -> MSEX | B12: =IFERROR(VLOOKUP(A12,'Proxy Data Lookup'!$A:$L,2,FALSE),"NA") -> Middlesex Water Company | D12: ='MRP WP1'!C74 -> 0.7 | F12: ='Proxy Data Lookup'!H6 -> 0.7968770862 | H12: 0.75 | J12: ='MRP WP1'!$H$64 -> 9.459655442 | M12: ='MRP WP1'!$F$37 -> 2.88 | P12: 9.974741582 | S12: 10.56597005 | V12: 10.27
A13: =IFERROR(Input!A6, "NA") -> SJW | B13: =IFERROR(VLOOKUP(A13,'Proxy Data Lookup'!$A:$L,2,FALSE),"NA") -> SJW Group | D13: ='MRP WP1'!C75 -> 0.85 | F13: ='Proxy Data Lookup'!H7 -> 0.960263133 | H13: 0.91 | J13: ='MRP WP1'!$H$64 -> 9.459655442 | M13: ='MRP WP1'!$F$37 -> 2.88 | P13: 11.48828645 | S13: 11.7011287 | V13: 11.59
A14: =IFERROR(Input!A7, "NA") -> YORW | B14: =IFERROR(VLOOKUP(A14,'Proxy Data Lookup'!$A:$L,2,FALSE),"NA") -> The York Water Company | D14: ='MRP WP1'!C76 -> 0.8 | F14: ='Proxy Data Lookup'!H8 -> 0.950838685 | H14: 0.88 | J14: ='MRP WP1'!$H$64 -> 9.459655442 | M14: ='MRP WP1'!$F$37 -> 2.88 | P14: 11.20449679 | S14: 11.48828645 | V14: 11.35
B16: Mean | H16: =IFERROR(ROUND(AVERAGE(H9:H15),2),"NA") -> 0.79 | P16: =IFERROR(ROUND(AVERAGE(P9:P14),2),"NA") -> 10.38 | Q16: % | S16: =IFERROR(ROUND(AVERAGE(S9:S14),2),"NA") -> 10.87 | T16: % | V16: =IFERROR(ROUND(AVERAGE(V9:V14),2),"NA") -> 10.63 | W16: %
B18: Median | H18: =IFERROR(ROUND(MEDIAN(H9:H14),2),"NA") -> 0.82 | P18: =IFERROR(ROUND(MEDIAN(P9:P14),2),"NA") -> 10.59 | Q18: % | S18: =IFERROR(ROUND(MEDIAN(S9:S14),2),"NA") -> 11.03 | T18: % | V18: =IFERROR(ROUND(MEDIAN(V9:V14),2),"NA") -> 10.81 | W18: %
B20: Average of Mean and Median | H20: =IFERROR(ROUND(AVERAGE(H16:H18),2),"NA") -> 0.81 | P20: =IFERROR(ROUND(AVERAGE(P16:P18),2),"NA") -> 10.49 | S20: =IFERROR(ROUND(AVERAGE(S16:S18),2),"NA") -> 10.95 | V20: =IFERROR(ROUND(AVERAGE(V16:V18),2),"NA") -> 10.72 | W20: %
B23: Notes on page 23 of this Attachment.

Sheet 1.23 CAPM Notes
A1: =Input!G28 -> Atmos Energy Corporation
A2: Notes to Accompany the Application of the CAPM and ECAPM
A4: Notes:
A5: (1) | B5: The market risk premium (MRP) is derived by using six different measures from three sources: Ibbotson, Value Line, and Bloomberg as illustrated below:
B7: Historical Data MRP Estimates:
B9: =CONCATENATE("Measure 1: Ibbotson Arithmetic Mean MRP ",MID(Input!E20,FIND("(",Input!E20),11)) -> Measure 1: Ibbotson Arithmetic Mean MRP (1926-2020)
B11: =CONCATENATE("Arithmetic Mean Monthly Returns for Large Stocks ",MID(Input!E20,FIND("1",Input!E20),9),":") -> Arithmetic Mean Monthly Returns for Large Stocks 1926-2020: | N11: ='MRP WP1'!H49 -> 12.2 | O11: %
B12: Arithmetic Mean Income Returns on Long-Term Government Bonds: | N12: ='MRP WP1'!H51 -> 5.05
B13: MRP based on Ibbotson Historical Data: | N13: =N11-N12 -> 7.15 | O13: %
B15: Measure 2: Application of a Regression Analysis to Ibbotson Historical Data
B16: (1926-2020) | N16: ='MRP ERP WP'!AA42*100 -> 9.391468339 | O16: %
B18: Measure 3: Application of the PRPM to Ibbotson Historical Data:
B19: =CONCATENATE("(January 1926 - ",Input!G25,")") -> (January 1926 - May 2021) | N19: ='MRP WP1'!H46 -> 10.04067024 | O19: %
B21: Value Line MRP Estimates:
B23: =CONCATENATE("Measure 4: Value Line Projected MRP (Thirteen weeks ending ",TEXT('MRP WP1'!B7,"mmmm dd, yyyy)")) -> Measure 4: Value Line Projected MRP (Thirteen weeks ending May 28, 2021)
B25: Total projected return on the market 3-5 years hence*: | N25: ='MRP WP1'!M22*100 -> 8.16 | O25: %
B26: Projected Risk-Free Rate (see note 2): | N26: ='MRP WP1'!F37 -> 2.88
B27: MRP based on Value Line Summary & Index: | N27: =N25-N26 -> 5.28 | O27: %
C28: *Forecasted 3-5 year capital appreciation plus expected dividend yield
B30: Measure 5: Value Line Projected Return on the Market based on the S&P 500
B32: Total return on the Market based on the S&P 500: | N32: ='MRP WP3'!H504*100 -> 14.32198133 | O32: %
B33: Projected Risk-Free Rate (see note 2): | N33: =N54 -> 2.88
B34: MRP based on Value Line data | N34: =IFERROR(N32-N33,"NA") -> 11.44198133 | O34: %
B36: Measure 6: Bloomberg Projected MRP
B38: Total return on the Market based on the S&P 500: | N38: ='MRP WP2'!Q504*100 -> 16.33579407 | O38: %
B39: Projected Risk-Free Rate (see note 2): | N39: ='MRP WP1'!F37 -> 2.88
L40: MRP based on Bloomberg data | N40: =IFERROR(N38-N39,"NA") -> 13.45579407 | O40: %
L42: Average of Value Line, Ibbotson, and Bloomberg MRP: | N42: =AVERAGE(N13,N16,N19,N27,N34,N40) -> 9.459985663 | O42: %
A44: (2) | B44: For reasons explained in the direct testimony, the appropriate risk-free rate for cost of capital purposes is the average forecast of 30 year Treasury Bonds per the consensus of nearly 50 economists reported in Blue Chip Financial Forecasts. (See pages 19 and 20 of this Attachment.) The projection of the risk-free rate is illustrated below:
J46: ='MRP WP1'!B28 -> Second Quarter 2021 | N46: ='MRP WP1'!F28 -> 2.4 | O46: %
J47: ='MRP WP1'!B29 -> Third Quarter 2021 | N47: ='MRP WP1'!F29 -> 2.5
J48: ='MRP WP1'!B30 -> Fourth Quarter 2021 | N48: ='MRP WP1'!F30 -> 2.6
J49: ='MRP WP1'!B31 -> First Quarter 2022 | N49: ='MRP WP1'!F31 -> 2.6
J50: ='MRP WP1'!B32 -> Second Quarter 2022 | N50: ='MRP WP1'!F32 -> 2.7
J51: ='MRP WP1'!B33 -> Third Quarter 2022 | N51: ='MRP WP1'!F33 -> 2.8
J52: ='MRP WP1'!B34 -> 2023-2027 | N52: ='MRP WP1'!F34 -> 3.5
J53: ='MRP WP1'!B35 -> 2028-2032 | N53: ='MRP WP1'!F35 -> 3.9
N54: =ROUND(AVERAGE(N46:N53),2) -> 2.88 | O54: %
A55: (3) | B55: Average of Column 6 and Column 7.
A57: Sources of Information:
B58: Value Line Summary and Index
B59: ='1.17-1.18 Beta Adjusted ERP'!C44 -> Blue Chip Financial Forecasts, June 1, 2021
B60: ='1.17-1.18 Beta Adjusted ERP'!C41 -> Stocks, Bonds, Bills, and Inflation - 2021 SBBI Yearbook, John Wiley & Sons, Inc.
B61: Bloomberg Professional Services

Sheet 1.25 Comp Earnings Criteria
C1: =Input!G28 -> Atmos Energy Corporation
C2: Basis of Selection of Comparable Risk
C3: Domestic Non-Price Regulated Companies
A4: TICKER
E5: [1] | G5: [2] | I5: [3] | K5: [4]
A6: SYMBOL
C7: ='1.22 CAPM'!B7 -> Proxy Group of Six Water Companies | E7: Value Line Adjusted Beta | G7: Unadjusted Beta | I7: Residual Standard Error of the Regression | K7: Standard Deviation of Beta | M7: Standard Deviation of Y | O7: R FACTOR | Q7: R2.
A9: =Input!A2 -> AWR | C9: =VLOOKUP(A9,'Proxy Data Lookup'!$A:$L,2,FALSE) -> American States Water Company | E9: ='Proxy Data Lookup'!G3 -> 0.65 | G9: ='Proxy Data Lookup'!I3 -> 0.41 | I9: ='Proxy Data Lookup'!L3 -> 2.5967 | K9: ='Proxy Data Lookup'!N3 -> 0.0648 | M9: ='Proxy Data Lookup'!M3 -> 2.7858 | O9: ='Proxy Data Lookup'!K3 -> 0.3668 | Q9: =O9^2 -> 0.13454224
A10: =Input!A3 -> AWK | C10: =VLOOKUP(A10,'Proxy Data Lookup'!$A:$L,2,FALSE) -> American Water Works Company, Inc. | E10: ='Proxy Data Lookup'!G4 -> 0.85 | G10: ='Proxy Data Lookup'!I4 -> 0.75 | I10: ='Proxy Data Lookup'!L4 -> 3.1587 | K10: ='Proxy Data Lookup'!N4 -> 0.0788 | M10: ='Proxy Data Lookup'!M4 -> 3.6608 | O10: ='Proxy Data Lookup'!K4 -> 0.5083 | Q10: 0.25836889
A11: =Input!A4 -> CWT | C11: =VLOOKUP(A11,'Proxy Data Lookup'!$A:$L,2,FALSE) -> California Water Service Group | E11: ='Proxy Data Lookup'!G5 -> 0.65 | G11: ='Proxy Data Lookup'!I5 -> 0.45 | I11: ='Proxy Data Lookup'!L5 -> 3.1469 | K11: ='Proxy Data Lookup'!N5 -> 0.0785 | M11: ='Proxy Data Lookup'!M5 -> 3.3348 | O11: ='Proxy Data Lookup'!K5 -> 0.336 | Q11: 0.112896
A12: =Input!A5 -> MSEX | C12: =VLOOKUP(A12,'Proxy Data Lookup'!$A:$L,2,FALSE) -> Middlesex Water Company | E12: ='Proxy Data Lookup'!G6 -> 0.7 | G12: ='Proxy Data Lookup'!I6 -> 0.54 | I12: ='Proxy Data Lookup'!L6 -> 3.4491 | K12: ='Proxy Data Lookup'!N6 -> 0.0861 | M12: ='Proxy Data Lookup'!M6 -> 3.699 | O12: ='Proxy Data Lookup'!K6 -> 0.366 | Q12: 0.133956
A13: =Input!A6 -> SJW | C13: =VLOOKUP(A13,'Proxy Data Lookup'!$A:$L,2,FALSE) -> SJW Group | E13: ='Proxy Data Lookup'!G7 -> 0.85 | G13: ='Proxy Data Lookup'!I7 -> 0.7 | I13: ='Proxy Data Lookup'!L7 -> 3.564 | K13: ='Proxy Data Lookup'!N7 -> 0.0889 | M13: ='Proxy Data Lookup'!M7 -> 3.9627 | O13: ='Proxy Data Lookup'!K7 -> 0.4407 | Q13: 0.19421649
A14: =Input!A7 -> YORW | C14: =VLOOKUP(A14,'Proxy Data Lookup'!$A:$L,2,FALSE) -> The York Water Company | E14: ='Proxy Data Lookup'!G8 -> 0.8 | G14: ='Proxy Data Lookup'!I8 -> 0.69 | I14: ='Proxy Data Lookup'!L8 -> 3.6408 | K14: ='Proxy Data Lookup'!N8 -> 0.0908 | M14: ='Proxy Data Lookup'!M8 -> 4.0158 | O14: ='Proxy Data Lookup'!K8 -> 0.4257 | Q14: 0.18122049
C16: Average | E16: =AVERAGE(E9:E14) -> 0.75 | G16: =AVERAGE(G9:G14) -> 0.59 | I16: =AVERAGE(I9:I14) -> 3.259366667 | K16: =AVERAGE(K9:K14) -> 0.08131666667 | M16: =AVERAGE(M9:M14) -> 3.576483333 | O16: =AVERAGE(O9:O14) -> 0.40725 | Q16: =AVERAGE(Q9:Q14) -> 0.1692000183
C19: Beta Range (+/- 2 std. Devs. of Beta) | E19: =G16-E20 -> 0.43 | G19: =G16+E20 -> 0.75
C20: 2 std. Devs. of Beta | E20: =ROUND((K16*2),2) -> 0.16
C22: Residual Std. Err. Range (+/- 2 std.
C23: Devs. of the Residual Std. Err.) | E23: =I16-E27 -> 2.972966667 | G23: =I16+E27 -> 3.545766667
C25: Std. dev. of the Res. Std. Err. | E25: =ROUND((I16/22.7596),4) -> 0.1432
C27: 2 std. devs. of the Res. Std. Err. | E27: =ROUND((2*E25),4) -> 0.2864
C30: Source of Information: | E30: Value Line Proprietary Database, March 2021

Sheet 1.26 Proxy Group Equivalent
C1: =Input!G28 -> Atmos Energy Corporation
C2: Proxy Group of Non-Price Regulated Companies
C3: Comparable in Total Risk to the
C4: ='1.25 Comp Earnings Criteria'!C7 -> Proxy Group of Six Water Companies
E6: [1] | G6: [2] | I6: [3] | K6: [4]
A8: Ticker | C8: =Input!I32 -> Proxy Group of Twenty-Three Non-Price Regulated Companies | E8: VL Adjusted Beta | G8: Unadjusted Beta | I8: Residual Standard Error of the Regression | K8: Standard Deviation of Beta | M8: Standard Deviation of Y | O8: R Factor | Q8: R2
A10: =Input!C2 -> ADBE | C10: =VLOOKUP($A10,'CEM Data Lookup'!$A:$N,2,FALSE) -> Adobe Inc. | E10: =VLOOKUP($A10,'CEM Data Lookup'!$A:$N,7,FALSE) -> 0.75 | G10: =VLOOKUP($A10,'CEM Data Lookup'!$A:$N,9,FALSE) -> 0.61 | I10: =VLOOKUP($A10,'CEM Data Lookup'!$A:$N,12,FALSE) -> 3.2593 | K10: =VLOOKUP($A10,'CEM Data Lookup'!$A:$N,14,FALSE) -> 0.0813 | M10: =VLOOKUP($A10,'CEM Data Lookup'!$A:$N,13,FALSE) -> 3.5922 | O10: =VLOOKUP($A10,'CEM Data Lookup'!$A:$N,11,FALSE) -> 0.4242 | Q10: =O10 ^ 2 -> 0.17994564
A11: =Input!C3 -> BCPC | C11: =VLOOKUP($A11,'CEM Data Lookup'!$A:$N,2,FALSE) -> Balchem Corp. | E11: =VLOOKUP($A11,'CEM Data Lookup'!$A:$N,7,FALSE) -> 0.7 | G11: =VLOOKUP($A11,'CEM Data Lookup'!$A:$N,9,FALSE) -> 0.54 | I11: =VLOOKUP($A11,'CEM Data Lookup'!$A:$N,12,FALSE) -> 3.5216 | K11: =VLOOKUP($A11,'CEM Data Lookup'!$A:$N,14,FALSE) -> 0.0879 | M11: =VLOOKUP($A11,'CEM Data Lookup'!$A:$N,13,FALSE) -> 3.7601 | O11: =VLOOKUP($A11,'CEM Data Lookup'!$A:$N,11,FALSE) -> 0.3553 | Q11: =O11 ^ 2 -> 0.12623809
A12: =Input!C4 -> BIO | C12: =VLOOKUP($A12,'CEM Data Lookup'!$A:$N,2,FALSE) -> Bio-Rad Labs. 'A' | E12: =VLOOKUP($A12,'CEM Data Lookup'!$A:$N,7,FALSE) -> 0.75 | G12: =VLOOKUP($A12,'CEM Data Lookup'!$A:$N,9,FALSE) -> 0.58 | I12: =VLOOKUP($A12,'CEM Data Lookup'!$A:$N,12,FALSE) -> 3.2201 | K12: =VLOOKUP($A12,'CEM Data Lookup'!$A:$N,14,FALSE) -> 0.0804 | M12: =VLOOKUP($A12,'CEM Data Lookup'!$A:$N,13,FALSE) -> 3.5267 | O12: =VLOOKUP($A12,'CEM Data Lookup'!$A:$N,11,FALSE) -> 0.4118 | Q12: 0.16957924
A13: =Input!C5 -> CHRW | C13: =VLOOKUP($A13,'CEM Data Lookup'!$A:$N,2,FALSE) -> C.H. Robinson | E13: =VLOOKUP($A13,'CEM Data Lookup'!$A:$N,7,FALSE) -> 0.7 | G13: =VLOOKUP($A13,'CEM Data Lookup'!$A:$N,9,FALSE) -> 0.49 | I13: =VLOOKUP($A13,'CEM Data Lookup'!$A:$N,12,FALSE) -> 2.982 | K13: =VLOOKUP($A13,'CEM Data Lookup'!$A:$N,14,FALSE) -> 0.0744 | M13: =VLOOKUP($A13,'CEM Data Lookup'!$A:$N,13,FALSE) -> 3.2195 | O13: =VLOOKUP($A13,'CEM Data Lookup'!$A:$N,11,FALSE) -> 0.3813 | Q13: 0.14538969
A14: =Input!C6 -> CSGS | C14: =VLOOKUP($A14,'CEM Data Lookup'!$A:$N,2,FALSE) -> CSG Systems Int'l | E14: =VLOOKUP($A14,'CEM Data Lookup'!$A:$N,7,FALSE) -> 0.75 | G14: =VLOOKUP($A14,'CEM Data Lookup'!$A:$N,9,FALSE) -> 0.6 | I14: =VLOOKUP($A14,'CEM Data Lookup'!$A:$N,12,FALSE) -> 3.1995 | K14: =VLOOKUP($A14,'CEM Data Lookup'!$A:$N,14,FALSE) -> 0.0798 | M14: =VLOOKUP($A14,'CEM Data Lookup'!$A:$N,13,FALSE) -> 3.529 | O14: =VLOOKUP($A14,'CEM Data Lookup'!$A:$N,11,FALSE) -> 0.4257 | Q14: 0.18122049
A15: =Input!C7 -> CTXS | C15: =VLOOKUP($A15,'CEM Data Lookup'!$A:$N,2,FALSE) -> Citrix Sys. | E15: =VLOOKUP($A15,'CEM Data Lookup'!$A:$N,7,FALSE) -> 0.7 | G15: =VLOOKUP($A15,'CEM Data Lookup'!$A:$N,9,FALSE) -> 0.47 | I15: =VLOOKUP($A15,'CEM Data Lookup'!$A:$N,12,FALSE) -> 3.484 | K15: =VLOOKUP($A15,'CEM Data Lookup'!$A:$N,14,FALSE) -> 0.0869 | M15: =VLOOKUP($A15,'CEM Data Lookup'!$A:$N,13,FALSE) -> 3.6716 | O15: =VLOOKUP($A15,'CEM Data Lookup'!$A:$N,11,FALSE) -> 0.321 | Q15: 0.103041
A16: =Input!C8 -> DG | C16: =VLOOKUP($A16,'CEM Data Lookup'!$A:$N,2,FALSE) -> Dollar General | E16: =VLOOKUP($A16,'CEM Data Lookup'!$A:$N,7,FALSE) -> 0.65 | G16: =VLOOKUP($A16,'CEM Data Lookup'!$A:$N,9,FALSE) -> 0.46 | I16: =VLOOKUP($A16,'CEM Data Lookup'!$A:$N,12,FALSE) -> 3.1921 | K16: =VLOOKUP($A16,'CEM Data Lookup'!$A:$N,14,FALSE) -> 0.0797 | M16: =VLOOKUP($A16,'CEM Data Lookup'!$A:$N,13,FALSE) -> 3.389 | O16: =VLOOKUP($A16,'CEM Data Lookup'!$A:$N,11,FALSE) -> 0.341 | Q16: 0.116281
A17: =Input!C9 -> EBF | C17: =VLOOKUP($A17,'CEM Data Lookup'!$A:$N,2,FALSE) -> Ennis, Inc. | E17: =VLOOKUP($A17,'CEM Data Lookup'!$A:$N,7,FALSE) -> 0.8 | G17: =VLOOKUP($A17,'CEM Data Lookup'!$A:$N,9,FALSE) -> 0.66 | I17: =VLOOKUP($A17,'CEM Data Lookup'!$A:$N,12,FALSE) -> 3.341 | K17: =VLOOKUP($A17,'CEM Data Lookup'!$A:$N,14,FALSE) -> 0.0834 | M17: =VLOOKUP($A17,'CEM Data Lookup'!$A:$N,13,FALSE) -> 3.7145 | O17: =VLOOKUP($A17,'CEM Data Lookup'!$A:$N,11,FALSE) -> 0.4406 | Q17: 0.19412836
A18: =Input!C10 -> HTLD | C18: =VLOOKUP($A18,'CEM Data Lookup'!$A:$N,2,FALSE) -> Heartland Express | E18: =VLOOKUP($A18,'CEM Data Lookup'!$A:$N,7,FALSE) -> 0.7 | G18: =VLOOKUP($A18,'CEM Data Lookup'!$A:$N,9,FALSE) -> 0.54 | I18: =VLOOKUP($A18,'CEM Data Lookup'!$A:$N,12,FALSE) -> 3.0069 | K18: =VLOOKUP($A18,'CEM Data Lookup'!$A:$N,14,FALSE) -> 0.075 | M18: =VLOOKUP($A18,'CEM Data Lookup'!$A:$N,13,FALSE) -> 3.2903 | O18: =VLOOKUP($A18,'CEM Data Lookup'!$A:$N,11,FALSE) -> 0.41 | Q18: 0.1681
A19: =Input!C11 -> KEYS | C19: =VLOOKUP($A19,'CEM Data Lookup'!$A:$N,2,FALSE) -> Keysight Technologie | E19: =VLOOKUP($A19,'CEM Data Lookup'!$A:$N,7,FALSE) -> 0.85 | G19: =VLOOKUP($A19,'CEM Data Lookup'!$A:$N,9,FALSE) -> 0.73 | I19: =VLOOKUP($A19,'CEM Data Lookup'!$A:$N,12,FALSE) -> 3.5026 | K19: =VLOOKUP($A19,'CEM Data Lookup'!$A:$N,14,FALSE) -> 0.0874 | M19: =VLOOKUP($A19,'CEM Data Lookup'!$A:$N,13,FALSE) -> 3.9384 | O19: =VLOOKUP($A19,'CEM Data Lookup'!$A:$N,11,FALSE) -> 0.4605 | Q19: 0.21206025
A20: =Input!C12 -> LANC | C20: =VLOOKUP($A20,'CEM Data Lookup'!$A:$N,2,FALSE) -> Lancaster Colony | E20: =VLOOKUP($A20,'CEM Data Lookup'!$A:$N,7,FALSE) -> 0.7 | G20: =VLOOKUP($A20,'CEM Data Lookup'!$A:$N,9,FALSE) -> 0.5 | I20: =VLOOKUP($A20,'CEM Data Lookup'!$A:$N,12,FALSE) -> 3.0103 | K20: =VLOOKUP($A20,'CEM Data Lookup'!$A:$N,14,FALSE) -> 0.0751 | M20: =VLOOKUP($A20,'CEM Data Lookup'!$A:$N,13,FALSE) -> 3.257 | O20: =VLOOKUP($A20,'CEM Data Lookup'!$A:$N,11,FALSE) -> 0.3861 | Q20: 0.14907321
A21: =Input!C13 -> LLY | C21: =VLOOKUP($A21,'CEM Data Lookup'!$A:$N,2,FALSE) -> Lilly (Eli) | E21: =VLOOKUP($A21,'CEM Data Lookup'!$A:$N,7,FALSE) -> 0.75 | G21: =VLOOKUP($A21,'CEM Data Lookup'!$A:$N,9,FALSE) -> 0.59 | I21: =VLOOKUP($A21,'CEM Data Lookup'!$A:$N,12,FALSE) -> 3.0669 | K21: =VLOOKUP($A21,'CEM Data Lookup'!$A:$N,14,FALSE) -> 0.0765 | M21: =VLOOKUP($A21,'CEM Data Lookup'!$A:$N,13,FALSE) -> 3.3989 | O21: =VLOOKUP($A21,'CEM Data Lookup'!$A:$N,11,FALSE) -> 0.4347 | Q21: 0.18896409
A22: =Input!C14 -> MNST | C22: =VLOOKUP($A22,'CEM Data Lookup'!$A:$N,2,FALSE) -> Monster Beverage | E22: =VLOOKUP($A22,'CEM Data Lookup'!$A:$N,7,FALSE) -> 0.85 | G22: =VLOOKUP($A22,'CEM Data Lookup'!$A:$N,9,FALSE) -> 0.75 | I22: =VLOOKUP($A22,'CEM Data Lookup'!$A:$N,12,FALSE) -> 3.3101 | K22: =VLOOKUP($A22,'CEM Data Lookup'!$A:$N,14,FALSE) -> 0.0826 | M22: =VLOOKUP($A22,'CEM Data Lookup'!$A:$N,13,FALSE) -> 3.7923 | O22: =VLOOKUP($A22,'CEM Data Lookup'!$A:$N,11,FALSE) -> 0.491 | Q22: 0.241081
A23: =Input!C15 -> POOL | C23: =VLOOKUP($A23,'CEM Data Lookup'!$A:$N,2,FALSE) -> Pool Corp. | E23: =VLOOKUP($A23,'CEM Data Lookup'!$A:$N,7,FALSE) -> 0.85 | G23: =VLOOKUP($A23,'CEM Data Lookup'!$A:$N,9,FALSE) -> 0.75 | I23: =VLOOKUP($A23,'CEM Data Lookup'!$A:$N,12,FALSE) -> 3.2001 | K23: =VLOOKUP($A23,'CEM Data Lookup'!$A:$N,14,FALSE) -> 0.0799 | M23: =VLOOKUP($A23,'CEM Data Lookup'!$A:$N,13,FALSE) -> 3.6964 | O23: =VLOOKUP($A23,'CEM Data Lookup'!$A:$N,11,FALSE) -> 0.5034 | Q23: 0.25341156
A24: =Input!C16 -> RLI | C24: =VLOOKUP($A24,'CEM Data Lookup'!$A:$N,2,FALSE) -> RLI Corp. | E24: =VLOOKUP($A24,'CEM Data Lookup'!$A:$N,7,FALSE) -> 0.8 | G24: =VLOOKUP($A24,'CEM Data Lookup'!$A:$N,9,FALSE) -> 0.64 | I24: =VLOOKUP($A24,'CEM Data Lookup'!$A:$N,12,FALSE) -> 2.9883 | K24: =VLOOKUP($A24,'CEM Data Lookup'!$A:$N,14,FALSE) -> 0.0746 | M24: =VLOOKUP($A24,'CEM Data Lookup'!$A:$N,13,FALSE) -> 3.3825 | O24: =VLOOKUP($A24,'CEM Data Lookup'!$A:$N,11,FALSE) -> 0.4717 | Q24: 0.22250089
A25: =Input!C17 -> SJM | C25: =VLOOKUP($A25,'CEM Data Lookup'!$A:$N,2,FALSE) -> Smucker (J.M.) | E25: =VLOOKUP($A25,'CEM Data Lookup'!$A:$N,7,FALSE) -> 0.65 | G25: =VLOOKUP($A25,'CEM Data Lookup'!$A:$N,9,FALSE) -> 0.45 | I25: =VLOOKUP($A25,'CEM Data Lookup'!$A:$N,12,FALSE) -> 3.0463 | K25: =VLOOKUP($A25,'CEM Data Lookup'!$A:$N,14,FALSE) -> 0.076 | M25: =VLOOKUP($A25,'CEM Data Lookup'!$A:$N,13,FALSE) -> 3.2421 | O25: =VLOOKUP($A25,'CEM Data Lookup'!$A:$N,11,FALSE) -> 0.3472 | Q25: 0.12054784
A26: =Input!C18 -> SNDR | C26: =VLOOKUP($A26,'CEM Data Lookup'!$A:$N,2,FALSE) -> Schneider National | E26: =VLOOKUP($A26,'CEM Data Lookup'!$A:$N,7,FALSE) -> 0.8 | G26: =VLOOKUP($A26,'CEM Data Lookup'!$A:$N,9,FALSE) -> 0.65 | I26: =VLOOKUP($A26,'CEM Data Lookup'!$A:$N,12,FALSE) -> 3.4534 | K26: =VLOOKUP($A26,'CEM Data Lookup'!$A:$N,14,FALSE) -> 0.0894 | M26: =VLOOKUP($A26,'CEM Data Lookup'!$A:$N,13,FALSE) -> 3.8841 | O26: =VLOOKUP($A26,'CEM Data Lookup'!$A:$N,11,FALSE) -> 0.4621 | Q26: 0.21353641
A27: =Input!C19 -> TECH | C27: =VLOOKUP($A27,'CEM Data Lookup'!$A:$N,2,FALSE) -> Bio-Techne Corp. | E27: =VLOOKUP($A27,'CEM Data Lookup'!$A:$N,7,FALSE) -> 0.8 | G27: =VLOOKUP($A27,'CEM Data Lookup'!$A:$N,9,FALSE) -> 0.67 | I27: =VLOOKUP($A27,'CEM Data Lookup'!$A:$N,12,FALSE) -> 3.2475 | K27: =VLOOKUP($A27,'CEM Data Lookup'!$A:$N,14,FALSE) -> 0.081 | M27: =VLOOKUP($A27,'CEM Data Lookup'!$A:$N,13,FALSE) -> 3.6485 | O27: =VLOOKUP($A27,'CEM Data Lookup'!$A:$N,11,FALSE) -> 0.4592 | Q27: 0.21086464
A28: =Input!C20 -> TYL | C28: =VLOOKUP($A28,'CEM Data Lookup'!$A:$N,2,FALSE) -> Tyler Technologies | E28: =VLOOKUP($A28,'CEM Data Lookup'!$A:$N,7,FALSE) -> 0.75 | G28: =VLOOKUP($A28,'CEM Data Lookup'!$A:$N,9,FALSE) -> 0.56 | I28: =VLOOKUP($A28,'CEM Data Lookup'!$A:$N,12,FALSE) -> 3.235 | K28: =VLOOKUP($A28,'CEM Data Lookup'!$A:$N,14,FALSE) -> 0.0807 | M28: =VLOOKUP($A28,'CEM Data Lookup'!$A:$N,13,FALSE) -> 3.5221 | O28: =VLOOKUP($A28,'CEM Data Lookup'!$A:$N,11,FALSE) -> 0.3996 | Q28: 0.15968016
A29: =Input!C21 -> UPS | C29: =VLOOKUP($A29,'CEM Data Lookup'!$A:$N,2,FALSE) -> United Parcel Serv. | E29: =VLOOKUP($A29,'CEM Data Lookup'!$A:$N,7,FALSE) -> 0.8 | G29: =VLOOKUP($A29,'CEM Data Lookup'!$A:$N,9,FALSE) -> 0.63 | I29: =VLOOKUP($A29,'CEM Data Lookup'!$A:$N,12,FALSE) -> 3.0112 | K29: =VLOOKUP($A29,'CEM Data Lookup'!$A:$N,14,FALSE) -> 0.0751 | M29: =VLOOKUP($A29,'CEM Data Lookup'!$A:$N,13,FALSE) -> 3.3863 | O29: =VLOOKUP($A29,'CEM Data Lookup'!$A:$N,11,FALSE) -> 0.4608 | Q29: 0.21233664
A30: =Input!C22 -> WBA | C30: =VLOOKUP($A30,'CEM Data Lookup'!$A:$N,2,FALSE) -> Walgreens Boots | E30: =VLOOKUP($A30,'CEM Data Lookup'!$A:$N,7,FALSE) -> 0.85 | G30: =VLOOKUP($A30,'CEM Data Lookup'!$A:$N,9,FALSE) -> 0.71 | I30: =VLOOKUP($A30,'CEM Data Lookup'!$A:$N,12,FALSE) -> 3.4851 | K30: =VLOOKUP($A30,'CEM Data Lookup'!$A:$N,14,FALSE) -> 0.087 | M30: =VLOOKUP($A30,'CEM Data Lookup'!$A:$N,13,FALSE) -> 3.9033 | O30: =VLOOKUP($A30,'CEM Data Lookup'!$A:$N,11,FALSE) -> 0.4537 | Q30: =O30 ^ 2 -> 0.20584369
A31: =Input!C23 -> WERN | C31: =VLOOKUP($A31,'CEM Data Lookup'!$A:$N,2,FALSE) -> Werner Enterprises | E31: =VLOOKUP($A31,'CEM Data Lookup'!$A:$N,7,FALSE) -> 0.75 | G31: =VLOOKUP($A31,'CEM Data Lookup'!$A:$N,9,FALSE) -> 0.58 | I31: =VLOOKUP($A31,'CEM Data Lookup'!$A:$N,12,FALSE) -> 3.3887 | K31: =VLOOKUP($A31,'CEM Data Lookup'!$A:$N,14,FALSE) -> 0.0846 | M31: =VLOOKUP($A31,'CEM Data Lookup'!$A:$N,13,FALSE) -> 3.6755 | O31: =VLOOKUP($A31,'CEM Data Lookup'!$A:$N,11,FALSE) -> 0.3915 | Q31: =O31 ^ 2 -> 0.15327225
A32: =Input!C24 -> WST | C32: =VLOOKUP($A32,'CEM Data Lookup'!$A:$N,2,FALSE) -> West Pharmac. Svcs. | E32: =VLOOKUP($A32,'CEM Data Lookup'!$A:$N,7,FALSE) -> 0.85 | G32: =VLOOKUP($A32,'CEM Data Lookup'!$A:$N,9,FALSE) -> 0.7 | I32: =VLOOKUP($A32,'CEM Data Lookup'!$A:$N,12,FALSE) -> 3.1887 | K32: =VLOOKUP($A32,'CEM Data Lookup'!$A:$N,14,FALSE) -> 0.0796 | M32: =VLOOKUP($A32,'CEM Data Lookup'!$A:$N,13,FALSE) -> 3.6301 | O32: =VLOOKUP($A32,'CEM Data Lookup'!$A:$N,11,FALSE) -> 0.4811 | Q32: =O32 ^ 2 -> 0.23145721
A34: =COUNTA(A9:A32) -> 23 | C34: Average | E34: =ROUND(AVERAGE(E10:E32),2) -> 0.76 | G34: =ROUND(AVERAGE(G10:G32),2) -> 0.6 | I34: =ROUND(AVERAGE(I10:I32),4) -> 3.2322 | K34: =ROUND(AVERAGE(K10:K32),4) -> 0.0808 | M34: =ROUND(AVERAGE(M10:M32),2) -> 3.57 | O34: =ROUND(AVERAGE(O10:O32),2) -> 0.42 | Q34: =ROUND(AVERAGE(Q10:Q32),2) -> 0.18
C36: =C4 -> Proxy Group of Six Water Companies | E36: ='1.25 Comp Earnings Criteria'!E16 -> 0.75 | G36: ='1.25 Comp Earnings Criteria'!G16 -> 0.59 | I36: ='1.25 Comp Earnings Criteria'!I16 -> 3.259366667 | K36: ='1.25 Comp Earnings Criteria'!K16 -> 0.08131666667 | M36: ='1.25 Comp Earnings Criteria'!M16 -> 3.576483333 | O36: ='1.25 Comp Earnings Criteria'!O16 -> 0.40725 | Q36: ='1.25 Comp Earnings Criteria'!Q16 -> 0.1692000183
C39: ='1.25 Comp Earnings Criteria'!C30 -> Source of Information: | E39: ='1.25 Comp Earnings Criteria'!E30 -> Value Line Proprietary Database, March 2021

Sheet 1.27 CEM Summary
A1: =Input!G28 -> Atmos Energy Corporation
A2: Summary of Cost of Equity Models Applied to
A3: ='1.26 Proxy Group Equivalent'!C8 -> Proxy Group of Twenty-Three Non-Price Regulated Companies
A4: Comparable in Total Risk to the
A5: ='1.26 Proxy Group Equivalent'!C4 -> Proxy Group of Six Water Companies
B7: Principal Methods | E7: =A3 -> Proxy Group of Twenty-Three Non-Price Regulated Companies
B9: Discounted Cash Flow Model (DCF) (1) | E9: ='1.28 CEM DCF'!Y38 -> 12.43 | F9: %
B11: Risk Premium Model (RPM) (2) | E11: ='1.29 CEM RPM Summary'!H21 -> 10.99
B13: Capital Asset Pricing Model (CAPM) (3) | E13: ='1.32 CEM CAPM Backup'!V37 -> 10.4
D15: Mean | E15: =ROUND(AVERAGE(E9:E13),2) -> 11.27 | F15: %
D17: Median | E17: =ROUND(MEDIAN(E9:E13),2) -> 10.99 | F17: %
D19: Average of Mean and Median | E19: =ROUND(AVERAGE(E15:E17),2) -> 11.13 | F19: %
A21: Notes:
A22: (1) | B22: From page 28 of this Attachment.
A23: (2) | B23: From page 29 of this Attachment.
A24: (3) | B24: From page 32 of this Attachment.

Sheet 1.28 CEM DCF
B1: =Input!G28 -> Atmos Energy Corporation
B2: DCF Results for the Proxy Group of Non-Price-Regulated Companies Comparable in Total Risk to the
B3: ='1.27 CEM Summary'!A5 -> Proxy Group of Six Water Companies
D5: [1] | G5: [2] | J5: [3] | M5: [4] | P5: [5] | S5: [6] | V5: [7] | Y5: [8]
B7: ='1.27 CEM Summary'!A3 -> Proxy Group of Twenty-Three Non-Price Regulated Companies | D7: Average Dividend Yield | G7: Value Line Projected Five Year Growth in EPS | J7: Zack's Five Year Projected Growth Rate in EPS | M7: Yahoo! Finance Projected Five Year Growth in EPS | P7: Bloomberg Projected Five Year Growth in EPS | S7: Average Projected Five Year Growth Rate in EPS | V7: Adjusted Dividend Yield | Y7: Indicated Common Equity Cost Rate (1)
A9: =Input!C2 -> ADBE | B9: =VLOOKUP($A9,'CEM Data Lookup'!$A:$N,2,FALSE) -> Adobe Inc. | D9: ='CEM PricesDivs'!B$69 -> 0 | E9: % | G9: =IFERROR(VLOOKUP($A9,'CEM Data Lookup'!$A:$N,5,FALSE)*100,"NA") -> 14.5 | H9: % | J9: =IFERROR(VLOOKUP($A9,'CEM Data Lookup'!$A:$N,3,FALSE)*100,"NA") -> 18.3 | K9: % | M9: =IFERROR(VLOOKUP($A9,'CEM Data Lookup'!$A:$N,4,FALSE)*100,"NA") -> 17.5 | N9: % | P9: =IFERROR(VLOOKUP($A9,'CEM Data Lookup'!$A:$N,6,FALSE)*100,"NA") -> 17.897 | Q9: % | S9: =IFERROR(ROUND(AVERAGE(G9,J9,M9,P9),2),"NA") -> 17.05 | T9: % | V9: =IFERROR(ROUND((D9*(1+(0.5*(S9/100)))),2),"NA") -> 0 | W9: % | Y9: =IFERROR(IF(OR(VALUE(V9)=0,VALUE(S9)=0),"NA",V9+S9),"NA") -> NA | Z9: %
A10: =Input!C3 -> BCPC | B10: =VLOOKUP($A10,'CEM Data Lookup'!$A:$N,2,FALSE) -> Balchem Corp. | D10: ='CEM PricesDivs'!C$69 -> 0.46 | G10: =IFERROR(VLOOKUP($A10,'CEM Data Lookup'!$A:$N,5,FALSE)*100,"NA") -> 16.5 | J10: =IFERROR(VLOOKUP($A10,'CEM Data Lookup'!$A:$N,3,FALSE)*100,"NA") -> NA | M10: =IFERROR(VLOOKUP($A10,'CEM Data Lookup'!$A:$N,4,FALSE)*100,"NA") -> 24 | P10: =IFERROR(VLOOKUP($A10,'CEM Data Lookup'!$A:$N,6,FALSE)*100,"NA") -> 8.267 | S10: =IFERROR(ROUND(AVERAGE(G10,J10,M10,P10),2),"NA") -> 16.26 | V10: 0.5 | Y10: 16.76
A11: =Input!C4 -> BIO | B11: =VLOOKUP($A11,'CEM Data Lookup'!$A:$N,2,FALSE) -> Bio-Rad Labs. 'A' | D11: ='CEM PricesDivs'!D$69 -> 0 | G11: =IFERROR(VLOOKUP($A11,'CEM Data Lookup'!$A:$N,5,FALSE)*100,"NA") -> 11.5 | J11: =IFERROR(VLOOKUP($A11,'CEM Data Lookup'!$A:$N,3,FALSE)*100,"NA") -> NA | M11: =IFERROR(VLOOKUP($A11,'CEM Data Lookup'!$A:$N,4,FALSE)*100,"NA") -> 17.8 | P11: =IFERROR(VLOOKUP($A11,'CEM Data Lookup'!$A:$N,6,FALSE)*100,"NA") -> 11.45 | S11: =IFERROR(ROUND(AVERAGE(G11,J11,M11,P11),2),"NA") -> 13.58 | V11: 0 | Y11: NA
A12: =Input!C5 -> CHRW | B12: =VLOOKUP($A12,'CEM Data Lookup'!$A:$N,2,FALSE) -> C.H. Robinson | D12: ='CEM PricesDivs'!E$69 -> 2.1 | G12: =IFERROR(VLOOKUP($A12,'CEM Data Lookup'!$A:$N,5,FALSE)*100,"NA") -> 8 | J12: =IFERROR(VLOOKUP($A12,'CEM Data Lookup'!$A:$N,3,FALSE)*100,"NA") -> 9 | M12: =IFERROR(VLOOKUP($A12,'CEM Data Lookup'!$A:$N,4,FALSE)*100,"NA") -> 11.4 | P12: =IFERROR(VLOOKUP($A12,'CEM Data Lookup'!$A:$N,6,FALSE)*100,"NA") -> 12.575 | S12: =IFERROR(ROUND(AVERAGE(G12,J12,M12,P12),2),"NA") -> 10.24 | V12: 2.21 | Y12: 12.45
A13: =Input!C6 -> CSGS | B13: =VLOOKUP($A13,'CEM Data Lookup'!$A:$N,2,FALSE) -> CSG Systems Int'l | D13: ='CEM PricesDivs'!F$69 -> 2.16 | G13: =IFERROR(VLOOKUP($A13,'CEM Data Lookup'!$A:$N,5,FALSE)*100,"NA") -> 11 | J13: =IFERROR(VLOOKUP($A13,'CEM Data Lookup'!$A:$N,3,FALSE)*100,"NA") -> NA | M13: =IFERROR(VLOOKUP($A13,'CEM Data Lookup'!$A:$N,4,FALSE)*100,"NA") -> -5 | P13: =IFERROR(VLOOKUP($A13,'CEM Data Lookup'!$A:$N,6,FALSE)*100,"NA") -> 8 | S13: =IFERROR(ROUND(AVERAGE(G13,J13,P13),2),"NA") -> 9.5 | V13: 2.26 | Y13: 11.76
A14: =Input!C7 -> CTXS | B14: =VLOOKUP($A14,'CEM Data Lookup'!$A:$N,2,FALSE) -> Citrix Sys. | D14: ='CEM PricesDivs'!G$69 -> 1.13 | G14: =IFERROR(VLOOKUP($A14,'CEM Data Lookup'!$A:$N,5,FALSE)*100,"NA") -> 9 | J14: =IFERROR(VLOOKUP($A14,'CEM Data Lookup'!$A:$N,3,FALSE)*100,"NA") -> 12.9 | M14: =IFERROR(VLOOKUP($A14,'CEM Data Lookup'!$A:$N,4,FALSE)*100,"NA") -> 11.2 | P14: =IFERROR(VLOOKUP($A14,'CEM Data Lookup'!$A:$N,6,FALSE)*100,"NA") -> 8.2 | S14: =IFERROR(ROUND(AVERAGE(G14,J14,M14,P14),2),"NA") -> 10.33 | V14: 1.19 | Y14: 11.52
A15: =Input!C8 -> DG | B15: =VLOOKUP($A15,'CEM Data Lookup'!$A:$N,2,FALSE) -> Dollar General | D15: ='CEM PricesDivs'!H$69 -> 0.82 | G15: =IFERROR(VLOOKUP($A15,'CEM Data Lookup'!$A:$N,5,FALSE)*100,"NA") -> 10.5 | J15: =IFERROR(VLOOKUP($A15,'CEM Data Lookup'!$A:$N,3,FALSE)*100,"NA") -> 12.1 | M15: =IFERROR(VLOOKUP($A15,'CEM Data Lookup'!$A:$N,4,FALSE)*100,"NA") -> 8.3 | P15: =IFERROR(VLOOKUP($A15,'CEM Data Lookup'!$A:$N,6,FALSE)*100,"NA") -> 10.818 | S15: 10.43 | V15: 0.86 | Y15: 11.29
A16: =Input!C9 -> EBF | B16: =VLOOKUP($A16,'CEM Data Lookup'!$A:$N,2,FALSE) -> Ennis, Inc. | D16: ='CEM PricesDivs'!I$69 -> 4.75 | G16: =IFERROR(VLOOKUP($A16,'CEM Data Lookup'!$A:$N,5,FALSE)*100,"NA") -> 3 | J16: =IFERROR(VLOOKUP($A16,'CEM Data Lookup'!$A:$N,3,FALSE)*100,"NA") -> NA | M16: =IFERROR(VLOOKUP($A16,'CEM Data Lookup'!$A:$N,4,FALSE)*100,"NA") -> 5 | P16: =IFERROR(VLOOKUP($A16,'CEM Data Lookup'!$A:$N,6,FALSE)*100,"NA") -> NA | S16: 4 | V16: 4.85 | Y16: 8.85
A17: =Input!C10 -> HTLD | B17: =VLOOKUP($A17,'CEM Data Lookup'!$A:$N,2,FALSE) -> Heartland Express | D17: ='CEM PricesDivs'!J$69 -> 0.42 | G17: =IFERROR(VLOOKUP($A17,'CEM Data Lookup'!$A:$N,5,FALSE)*100,"NA") -> 9.5 | J17: =IFERROR(VLOOKUP($A17,'CEM Data Lookup'!$A:$N,3,FALSE)*100,"NA") -> NA | M17: =IFERROR(VLOOKUP($A17,'CEM Data Lookup'!$A:$N,4,FALSE)*100,"NA") -> 13.3 | P17: =IFERROR(VLOOKUP($A17,'CEM Data Lookup'!$A:$N,6,FALSE)*100,"NA") -> NA | S17: 11.4 | V17: 0.44 | Y17: 11.84
A18: =Input!C11 -> KEYS | B18: =VLOOKUP($A18,'CEM Data Lookup'!$A:$N,2,FALSE) -> Keysight Technologie | D18: ='CEM PricesDivs'!K$69 -> 0 | G18: =IFERROR(VLOOKUP($A18,'CEM Data Lookup'!$A:$N,5,FALSE)*100,"NA") -> 17 | J18: =IFERROR(VLOOKUP($A18,'CEM Data Lookup'!$A:$N,3,FALSE)*100,"NA") -> 11 | M18: =IFERROR(VLOOKUP($A18,'CEM Data Lookup'!$A:$N,4,FALSE)*100,"NA") -> 13.26 | P18: =IFERROR(VLOOKUP($A18,'CEM Data Lookup'!$A:$N,6,FALSE)*100,"NA") -> 10.96 | S18: 13.06 | V18: 0 | Y18: NA
A19: =Input!C12 -> LANC | B19: =VLOOKUP($A19,'CEM Data Lookup'!$A:$N,2,FALSE) -> Lancaster Colony | D19: ='CEM PricesDivs'!L$69 -> 1.63 | G19: =IFERROR(VLOOKUP($A19,'CEM Data Lookup'!$A:$N,5,FALSE)*100,"NA") -> 6.5 | J19: =IFERROR(VLOOKUP($A19,'CEM Data Lookup'!$A:$N,3,FALSE)*100,"NA") -> NA | M19: =IFERROR(VLOOKUP($A19,'CEM Data Lookup'!$A:$N,4,FALSE)*100,"NA") -> 3 | P19: =IFERROR(VLOOKUP($A19,'CEM Data Lookup'!$A:$N,6,FALSE)*100,"NA") -> NA | S19: 4.75 | V19: 1.67 | Y19: 6.42
A20: =Input!C13 -> LLY | B20: =VLOOKUP($A20,'CEM Data Lookup'!$A:$N,2,FALSE) -> Lilly (Eli) | D20: ='CEM PricesDivs'!M$69 -> 1.78 | G20: =IFERROR(VLOOKUP($A20,'CEM Data Lookup'!$A:$N,5,FALSE)*100,"NA") -> 9 | J20: =IFERROR(VLOOKUP($A20,'CEM Data Lookup'!$A:$N,3,FALSE)*100,"NA") -> 14.1 | M20: =IFERROR(VLOOKUP($A20,'CEM Data Lookup'!$A:$N,4,FALSE)*100,"NA") -> 12.67 | P20: =IFERROR(VLOOKUP($A20,'CEM Data Lookup'!$A:$N,6,FALSE)*100,"NA") -> 13.628 | S20: 12.35 | V20: 1.89 | Y20: 14.24
A21: =Input!C14 -> MNST | B21: =VLOOKUP($A21,'CEM Data Lookup'!$A:$N,2,FALSE) -> Monster Beverage | D21: ='CEM PricesDivs'!N$69 -> 0 | G21: =IFERROR(VLOOKUP($A21,'CEM Data Lookup'!$A:$N,5,FALSE)*100,"NA") -> 11.5 | J21: =IFERROR(VLOOKUP($A21,'CEM Data Lookup'!$A:$N,3,FALSE)*100,"NA") -> 13.3 | M21: =IFERROR(VLOOKUP($A21,'CEM Data Lookup'!$A:$N,4,FALSE)*100,"NA") -> 14.86 | P21: =IFERROR(VLOOKUP($A21,'CEM Data Lookup'!$A:$N,6,FALSE)*100,"NA") -> 10.31 | S21: 12.49 | V21: 0 | Y21: NA
A22: =Input!C15 -> POOL | B22: =VLOOKUP($A22,'CEM Data Lookup'!$A:$N,2,FALSE) -> Pool Corp. | D22: ='CEM PricesDivs'!O$69 -> 0.83 | G22: =IFERROR(VLOOKUP($A22,'CEM Data Lookup'!$A:$N,5,FALSE)*100,"NA") -> 15 | J22: =IFERROR(VLOOKUP($A22,'CEM Data Lookup'!$A:$N,3,FALSE)*100,"NA") -> NA | M22: =IFERROR(VLOOKUP($A22,'CEM Data Lookup'!$A:$N,4,FALSE)*100,"NA") -> 17 | P22: =IFERROR(VLOOKUP($A22,'CEM Data Lookup'!$A:$N,6,FALSE)*100,"NA") -> NA | S22: 16 | V22: 0.9 | Y22: 16.9
A23: =Input!C16 -> RLI | B23: =VLOOKUP($A23,'CEM Data Lookup'!$A:$N,2,FALSE) -> RLI Corp. | D23: ='CEM PricesDivs'!P$69 -> 0.89 | G23: =IFERROR(VLOOKUP($A23,'CEM Data Lookup'!$A:$N,5,FALSE)*100,"NA") -> 12.5 | J23: =IFERROR(VLOOKUP($A23,'CEM Data Lookup'!$A:$N,3,FALSE)*100,"NA") -> NA | M23: =IFERROR(VLOOKUP($A23,'CEM Data Lookup'!$A:$N,4,FALSE)*100,"NA") -> 9.8 | P23: =IFERROR(VLOOKUP($A23,'CEM Data Lookup'!$A:$N,6,FALSE)*100,"NA") -> NA | S23: 11.15 | V23: 0.94 | Y23: 12.09
A24: =Input!C17 -> SJM | B24: =VLOOKUP($A24,'CEM Data Lookup'!$A:$N,2,FALSE) -> Smucker (J.M.) | D24: ='CEM PricesDivs'!Q$69 -> 2.77 | G24: =IFERROR(VLOOKUP($A24,'CEM Data Lookup'!$A:$N,5,FALSE)*100,"NA") -> 4 | J24: =IFERROR(VLOOKUP($A24,'CEM Data Lookup'!$A:$N,3,FALSE)*100,"NA") -> 1.6 | M24: =IFERROR(VLOOKUP($A24,'CEM Data Lookup'!$A:$N,4,FALSE)*100,"NA") -> -0.42 | P24: =IFERROR(VLOOKUP($A24,'CEM Data Lookup'!$A:$N,6,FALSE)*100,"NA") -> 1.275 | S24: =IFERROR(ROUND(AVERAGE(G24,J24,P24),2),"NA") -> 2.29 | V24: 2.8 | Y24: 5.09
A25: =Input!C18 -> SNDR | B25: =VLOOKUP($A25,'CEM Data Lookup'!$A:$N,2,FALSE) -> Schneider National | D25: ='CEM PricesDivs'!R$69 -> 1.12 | G25: =IFERROR(VLOOKUP($A25,'CEM Data Lookup'!$A:$N,5,FALSE)*100,"NA") -> 10 | J25: =IFERROR(VLOOKUP($A25,'CEM Data Lookup'!$A:$N,3,FALSE)*100,"NA") -> 14 | M25: =IFERROR(VLOOKUP($A25,'CEM Data Lookup'!$A:$N,4,FALSE)*100,"NA") -> 15.43 | P25: =IFERROR(VLOOKUP($A25,'CEM Data Lookup'!$A:$N,6,FALSE)*100,"NA") -> 18.48 | S25: =IFERROR(ROUND(AVERAGE(G25,J25,M25,P25),2),"NA") -> 14.48 | V25: 1.2 | Y25: 15.68
A26: =Input!C19 -> TECH | B26: =VLOOKUP($A26,'CEM Data Lookup'!$A:$N,2,FALSE) -> Bio-Techne Corp. | D26: ='CEM PricesDivs'!S$69 -> 0.32 | G26: =IFERROR(VLOOKUP($A26,'CEM Data Lookup'!$A:$N,5,FALSE)*100,"NA") -> 12.5 | J26: =IFERROR(VLOOKUP($A26,'CEM Data Lookup'!$A:$N,3,FALSE)*100,"NA") -> 14 | M26: =IFERROR(VLOOKUP($A26,'CEM Data Lookup'!$A:$N,4,FALSE)*100,"NA") -> 15 | P26: =IFERROR(VLOOKUP($A26,'CEM Data Lookup'!$A:$N,6,FALSE)*100,"NA") -> 19.025 | S26: 15.13 | V26: 0.34 | Y26: 15.47
A27: =Input!C20 -> TYL | B27: =VLOOKUP($A27,'CEM Data Lookup'!$A:$N,2,FALSE) -> Tyler Technologies | D27: ='CEM PricesDivs'!T$69 -> 0 | G27: =IFERROR(VLOOKUP($A27,'CEM Data Lookup'!$A:$N,5,FALSE)*100,"NA") -> 8 | J27: =IFERROR(VLOOKUP($A27,'CEM Data Lookup'!$A:$N,3,FALSE)*100,"NA") -> NA | M27: =IFERROR(VLOOKUP($A27,'CEM Data Lookup'!$A:$N,4,FALSE)*100,"NA") -> 10 | P27: =IFERROR(VLOOKUP($A27,'CEM Data Lookup'!$A:$N,6,FALSE)*100,"NA") -> 20.15 | S27: 12.72 | V27: 0 | Y27: NA
A28: =Input!C21 -> UPS | B28: =VLOOKUP($A28,'CEM Data Lookup'!$A:$N,2,FALSE) -> United Parcel Serv. | D28: ='CEM PricesDivs'!U$69 -> 2.19 | G28: =IFERROR(VLOOKUP($A28,'CEM Data Lookup'!$A:$N,5,FALSE)*100,"NA") -> 10.5 | J28: =IFERROR(VLOOKUP($A28,'CEM Data Lookup'!$A:$N,3,FALSE)*100,"NA") -> 8.7 | M28: =IFERROR(VLOOKUP($A28,'CEM Data Lookup'!$A:$N,4,FALSE)*100,"NA") -> 12.4 | P28: =IFERROR(VLOOKUP($A28,'CEM Data Lookup'!$A:$N,6,FALSE)*100,"NA") -> 10.274 | S28: 10.47 | V28: 2.3 | Y28: 12.77
A29: =Input!C22 -> WBA | B29: =VLOOKUP($A29,'CEM Data Lookup'!$A:$N,2,FALSE) -> Walgreens Boots | D29: ='CEM PricesDivs'!V$69 -> 3.5 | G29: =IFERROR(VLOOKUP($A29,'CEM Data Lookup'!$A:$N,5,FALSE)*100,"NA") -> 6 | J29: =IFERROR(VLOOKUP($A29,'CEM Data Lookup'!$A:$N,3,FALSE)*100,"NA") -> 6.8 | M29: =IFERROR(VLOOKUP($A29,'CEM Data Lookup'!$A:$N,4,FALSE)*100,"NA") -> 3.63 | P29: =IFERROR(VLOOKUP($A29,'CEM Data Lookup'!$A:$N,6,FALSE)*100,"NA") -> 4.74 | S29: 5.29 | V29: 3.59 | Y29: =IFERROR(IF(OR(VALUE(V29)=0,VALUE(S29)=0),"NA",V29+S29),"NA") -> 8.88
A30: =Input!C23 -> WERN | B30: =VLOOKUP($A30,'CEM Data Lookup'!$A:$N,2,FALSE) -> Werner Enterprises | D30: ='CEM PricesDivs'!W$69 -> 1.02 | G30: =IFERROR(VLOOKUP($A30,'CEM Data Lookup'!$A:$N,5,FALSE)*100,"NA") -> 9.5 | J30: =IFERROR(VLOOKUP($A30,'CEM Data Lookup'!$A:$N,3,FALSE)*100,"NA") -> 11.1 | M30: =IFERROR(VLOOKUP($A30,'CEM Data Lookup'!$A:$N,4,FALSE)*100,"NA") -> 12.54 | P30: =IFERROR(VLOOKUP($A30,'CEM Data Lookup'!$A:$N,6,FALSE)*100,"NA") -> 13.06 | S30: 11.55 | V30: 1.08 | Y30: =IFERROR(IF(OR(VALUE(V30)=0,VALUE(S30)=0),"NA",V30+S30),"NA") -> 12.63
A31: =Input!C24 -> WST | B31: =VLOOKUP($A31,'CEM Data Lookup'!$A:$N,2,FALSE) -> West Pharmac. Svcs. | D31: ='CEM PricesDivs'!X$69 -> 0.22 | G31: =IFERROR(VLOOKUP($A31,'CEM Data Lookup'!$A:$N,5,FALSE)*100,"NA") -> 17 | J31: =IFERROR(VLOOKUP($A31,'CEM Data Lookup'!$A:$N,3,FALSE)*100,"NA") -> 25.8 | M31: =IFERROR(VLOOKUP($A31,'CEM Data Lookup'!$A:$N,4,FALSE)*100,"NA") -> 25.8 | P31: =IFERROR(VLOOKUP($A31,'CEM Data Lookup'!$A:$N,6,FALSE)*100,"NA") -> 18.545 | S31: 21.79 | V31: 0.24 | Y31: =IFERROR(IF(OR(VALUE(V31)=0,VALUE(S31)=0),"NA",V31+S31),"NA") -> 22.03
V34: Mean | Y34: =ROUND(AVERAGE(Y9:Y31),2) -> 12.59 | Z34: %
V36: Median | Y36: =ROUND(MEDIAN(Y9:Y31),2) -> 12.27 | Z36: %
V38: Average of Mean and Median | Y38: =ROUND(AVERAGE(Y34:Y36),2) -> 12.43 | Z38: %
C39: NA= Not Available
C40: NMF= Not Meaningful Figure
C42: (1) | D42: The application of the DCF model to the domestic, non-price regulated comparable risk companies is identical to the application of the DCF to the utility proxy group. The dividend yield is derived by using the 60 day average price and the spot indicated dividend as of May 28, 2021. The dividend yield is then adjusted by 1/2 the average projected growth rate in EPS, which is calculated by averaging the 5 year projected growth in EPS provided by Value Line, Bloomberg, www.zacks.com, and www.yahoo.com (excluding any negative growth rates) and then adding that growth rate to the adjusted dividend yield.
B44: Source of Information: | C44: Value Line Investment Survey
C45: =CONCATENATE("www.zacks.com Downloaded on ",TEXT(Input!E2,"mm/dd/yyyy")) -> www.zacks.com Downloaded on 05/28/2021
C46: =CONCATENATE("www.yahoo.com Downloaded on ",TEXT(Input!E2,"mm/dd/yyyy")) -> www.yahoo.com Downloaded on 05/28/2021
C47: Bloomberg Professional Services

Sheet 1.29 CEM RPM Summary
A1: =Input!G28 -> Atmos Energy Corporation
A2: Indicated Common Equity Cost Rate
A3: Through Use of a Risk Premium Model
A4: Using an Adjusted Total Market Approach
A6: Line No. | H6: ='1.28 CEM DCF'!B7 -> Proxy Group of Twenty-Three Non-Price Regulated Companies
A9: 1. | C9: Prospective Yield on Baa2 Rated
C10: Corporate Bonds (1) | H10: =$H$34 -> 4.46 | I10: %
A12: 2. | C12: Adjustment to Reflect Proxy Group
C13: Bond Rating (2) | H13: =-H44 -> -0.12
A15: 3. | C15: Prospective Bond Yield Applicable to
C16: the Non-Price Regulated Proxy Group | H16: =SUM(H10:H13) -> 4.34
A18: 4. | C18: Equity Risk Premium (3) | H18: ='1.31 CEM RPM ERP'!F28 -> 6.65
A20: 5. | C20: Risk Premium Derived Common
C21: Equity Cost Rate | H21: =SUM(H16:H18) -> 10.99 | I21: %
A23: Notes: | B23: (1) | C23: =CONCATENATE("Average forecast of Baa2 corporate bonds based upon the consensus of nearly 50 economists reported in Blue Chip Financial Forecasts dated ",TEXT(Input!I25,"[$-409]mmmm d, yyyy;@")," (see pages 19 and 20 of this Attachment). The estimates are detailed below.") -> Average forecast of Baa2 corporate bonds based upon the consensus of nearly 50 economists reported in Blue Chip Financial Forecasts dated June 1, 2021 (see pages 19 and 20 of this Attachment). The estimates are detailed below.
D25: ='MRP WP1'!B28 -> Second Quarter 2021 | H25: ='MRP WP1'!O28 -> 3.8 | I25: %
D26: ='MRP WP1'!B29 -> Third Quarter 2021 | H26: ='MRP WP1'!O29 -> 4
D27: ='MRP WP1'!B30 -> Fourth Quarter 2021 | H27: ='MRP WP1'!O30 -> 4.1
D28: ='MRP WP1'!B31 -> First Quarter 2022 | H28: ='MRP WP1'!O31 -> 4.2
D29: ='MRP WP1'!B32 -> Second Quarter 2022 | H29: ='MRP WP1'!O32 -> 4.2
D30: ='MRP WP1'!B33 -> Third Quarter 2022 | H30: ='MRP WP1'!O33 -> 4.3
D31: ='MRP WP1'!B34 -> 2023-2027 | H31: ='MRP WP1'!O34 -> 5.3
D32: ='MRP WP1'!B35 -> 2028-2032 | H32: ='MRP WP1'!O35 -> 5.8
D34: Average | H34: =ROUND(AVERAGE(H25:H32),2) -> 4.46 | I34: %
B36: (2) | C36: =CONCATENATE("To reflect the ", IFERROR('1.30 CEM RPM Bond Ratings'!D$38,"NA"), " average rating of the Non-Price Regulated Proxy Group, the prosepctive yield on Baa2 corporate bonds must be adjusted downward by 1/3 of the spread between A2 and Baa2 corporate bond yields as shown below:") -> To reflect the Baa1 average rating of the Non-Price Regulated Proxy Group, the prosepctive yield on Baa2 corporate bonds must be adjusted downward by 1/3 of the spread between A2 and Baa2 corporate bond yields as shown below:
D38: A2 Corp. Bond Yield | F38: Baa2 Corp. Bond Yield | H38: Spread
C39: ='Market Data'!B1 -> 2021-05-28 | D39: ='Market Data'!B7 -> 3.27 | E39: % | F39: ='Market Data'!B8 -> 3.62 | G39: % | H39: =F39-D39 -> 0.35 | I39: %
C40: ='Market Data'!C1 -> 2021-04-30 | D40: ='Market Data'!C7 -> 3.24 | F40: ='Market Data'!C8 -> 3.6 | H40: =F40-D40 -> 0.36
C41: ='Market Data'!D1 -> 2021-03-31 | D41: ='Market Data'!D7 -> 3.37 | F41: ='Market Data'!D8 -> 3.74 | H41: =F41-D41 -> 0.37
F42: Average yield spread | H42: =AVERAGE(H39:H41) -> 0.36 | I42: %
F44: 1/3 of spread | H44: =ROUND(H42/3,2) -> 0.12 | I44: %
B46: (3) | C46: From page 31 of this Attachment.

Sheet 1.30 CEM RPM Bond Ratings
B1: =Input!G28 -> Atmos Energy Corporation
B2: Comparison of Long-Term Issuer Ratings for the
B3: =CONCATENATE('1.29 CEM RPM Summary'!H6," of Comparable risk to the") -> Proxy Group of Twenty-Three Non-Price Regulated Companies of Comparable risk to the
B4: ='1.28 CEM DCF'!B3 -> Proxy Group of Six Water Companies
D7: Moody's | H7: Standard & Poor's
D8: Long-Term Issuer Rating | H8: =D8 -> Long-Term Issuer Rating
D9: =TEXT(Input!E2, "mmmm yyyy") -> May 2021 | H9: =D9 -> May 2021
B12: ='1.29 CEM RPM Summary'!H6 -> Proxy Group of Twenty-Three Non-Price Regulated Companies | D12: Long-Term Issuer Rating | F12: Numerical Weighting (1) | H12: =D12 -> Long-Term Issuer Rating | J12: Numerical Weighting (1)
A14: =Input!C2 -> ADBE | B14: =VLOOKUP($A14,'CEM Data Lookup'!$A:$N,2,FALSE) -> Adobe Inc. | D14: ='CEM Data Lookup'!O3 -> A2 | F14: =IFERROR(VLOOKUP('1.30 CEM RPM Bond Ratings'!D14,'1.15 MOODY_S&P numbericl'!B:D,3,FALSE),"--") -> 6 | H14: ='CEM Data Lookup'!P3 -> A | J14: =IFERROR(VLOOKUP(H14,'1.15 MOODY_S&P numbericl'!F:H,3,FALSE),"--") -> 6
A15: =Input!C3 -> BCPC | B15: =VLOOKUP($A15,'CEM Data Lookup'!$A:$N,2,FALSE) -> Balchem Corp. | D15: ='CEM Data Lookup'!O4 -> NA | F15: =IFERROR(VLOOKUP('1.30 CEM RPM Bond Ratings'!D15,'1.15 MOODY_S&P numbericl'!B:D,3,FALSE),"--") -> -- | H15: ='CEM Data Lookup'!P4 -> NA | J15: =IFERROR(VLOOKUP(H15,'1.15 MOODY_S&P numbericl'!F:H,3,FALSE),"--") -> --
A16: =Input!C4 -> BIO | B16: =VLOOKUP($A16,'CEM Data Lookup'!$A:$N,2,FALSE) -> Bio-Rad Labs. 'A' | D16: ='CEM Data Lookup'!O5 -> Baa2 | F16: =IFERROR(VLOOKUP('1.30 CEM RPM Bond Ratings'!D16,'1.15 MOODY_S&P numbericl'!B:D,3,FALSE),"--") -> 9 | H16: ='CEM Data Lookup'!P5 -> BBB | J16: =IFERROR(VLOOKUP(H16,'1.15 MOODY_S&P numbericl'!F:H,3,FALSE),"--") -> 9
A17: =Input!C5 -> CHRW | B17: =VLOOKUP($A17,'CEM Data Lookup'!$A:$N,2,FALSE) -> C.H. Robinson | D17: ='CEM Data Lookup'!O6 -> Baa2 | F17: =IFERROR(VLOOKUP('1.30 CEM RPM Bond Ratings'!D17,'1.15 MOODY_S&P numbericl'!B:D,3,FALSE),"--") -> 9 | H17: ='CEM Data Lookup'!P6 -> BBB+ | J17: =IFERROR(VLOOKUP(H17,'1.15 MOODY_S&P numbericl'!F:H,3,FALSE),"--") -> 8
A18: =Input!C6 -> CSGS | B18: =VLOOKUP($A18,'CEM Data Lookup'!$A:$N,2,FALSE) -> CSG Systems Int'l | D18: ='CEM Data Lookup'!O7 -> NA | F18: =IFERROR(VLOOKUP('1.30 CEM RPM Bond Ratings'!D18,'1.15 MOODY_S&P numbericl'!B:D,3,FALSE),"--") -> -- | H18: ='CEM Data Lookup'!P7 -> BB+ | J18: =IFERROR(VLOOKUP(H18,'1.15 MOODY_S&P numbericl'!F:H,3,FALSE),"--") -> 11
A19: =Input!C7 -> CTXS | B19: =VLOOKUP($A19,'CEM Data Lookup'!$A:$N,2,FALSE) -> Citrix Sys. | D19: ='CEM Data Lookup'!O8 -> Baa3 | F19: =IFERROR(VLOOKUP('1.30 CEM RPM Bond Ratings'!D19,'1.15 MOODY_S&P numbericl'!B:D,3,FALSE),"--") -> 10 | H19: ='CEM Data Lookup'!P8 -> BBB | J19: =IFERROR(VLOOKUP(H19,'1.15 MOODY_S&P numbericl'!F:H,3,FALSE),"--") -> 9
A20: =Input!C8 -> DG | B20: =VLOOKUP($A20,'CEM Data Lookup'!$A:$N,2,FALSE) -> Dollar General | D20: ='CEM Data Lookup'!O9 -> Baa2 | F20: =IFERROR(VLOOKUP('1.30 CEM RPM Bond Ratings'!D20,'1.15 MOODY_S&P numbericl'!B:D,3,FALSE),"--") -> 9 | H20: ='CEM Data Lookup'!P9 -> BBB | J20: =IFERROR(VLOOKUP(H20,'1.15 MOODY_S&P numbericl'!F:H,3,FALSE),"--") -> 9
A21: =Input!C9 -> EBF | B21: =VLOOKUP($A21,'CEM Data Lookup'!$A:$N,2,FALSE) -> Ennis, Inc. | D21: ='CEM Data Lookup'!O10 -> NA | F21: =IFERROR(VLOOKUP('1.30 CEM RPM Bond Ratings'!D21,'1.15 MOODY_S&P numbericl'!B:D,3,FALSE),"--") -> -- | H21: ='CEM Data Lookup'!P10 -> NA | J21: =IFERROR(VLOOKUP(H21,'1.15 MOODY_S&P numbericl'!F:H,3,FALSE),"--") -> --
A22: =Input!C10 -> HTLD | B22: =VLOOKUP($A22,'CEM Data Lookup'!$A:$N,2,FALSE) -> Heartland Express | D22: ='CEM Data Lookup'!O11 -> NA | F22: =IFERROR(VLOOKUP('1.30 CEM RPM Bond Ratings'!D22,'1.15 MOODY_S&P numbericl'!B:D,3,FALSE),"--") -> -- | H22: ='CEM Data Lookup'!P11 -> NA | J22: =IFERROR(VLOOKUP(H22,'1.15 MOODY_S&P numbericl'!F:H,3,FALSE),"--") -> --
A23: =Input!C11 -> KEYS | B23: =VLOOKUP($A23,'CEM Data Lookup'!$A:$N,2,FALSE) -> Keysight Technologie | D23: ='CEM Data Lookup'!O12 -> Baa2 | F23: =IFERROR(VLOOKUP('1.30 CEM RPM Bond Ratings'!D23,'1.15 MOODY_S&P numbericl'!B:D,3,FALSE),"--") -> 9 | H23: ='CEM Data Lookup'!P12 -> BBB | J23: =IFERROR(VLOOKUP(H23,'1.15 MOODY_S&P numbericl'!F:H,3,FALSE),"--") -> 9
A24: =Input!C12 -> LANC | B24: =VLOOKUP($A24,'CEM Data Lookup'!$A:$N,2,FALSE) -> Lancaster Colony | D24: ='CEM Data Lookup'!O13 -> NA | F24: =IFERROR(VLOOKUP('1.30 CEM RPM Bond Ratings'!D24,'1.15 MOODY_S&P numbericl'!B:D,3,FALSE),"--") -> -- | H24: ='CEM Data Lookup'!P13 -> NA | J24: =IFERROR(VLOOKUP(H24,'1.15 MOODY_S&P numbericl'!F:H,3,FALSE),"--") -> --
A25: =Input!C13 -> LLY | B25: =VLOOKUP($A25,'CEM Data Lookup'!$A:$N,2,FALSE) -> Lilly (Eli) | D25: ='CEM Data Lookup'!O14 -> A2 | F25: =IFERROR(VLOOKUP('1.30 CEM RPM Bond Ratings'!D25,'1.15 MOODY_S&P numbericl'!B:D,3,FALSE),"--") -> 6 | H25: ='CEM Data Lookup'!P14 -> A+ | J25: =IFERROR(VLOOKUP(H25,'1.15 MOODY_S&P numbericl'!F:H,3,FALSE),"--") -> 5
A26: =Input!C14 -> MNST | B26: =VLOOKUP($A26,'CEM Data Lookup'!$A:$N,2,FALSE) -> Monster Beverage | D26: ='CEM Data Lookup'!O15 -> NA | F26: =IFERROR(VLOOKUP('1.30 CEM RPM Bond Ratings'!D26,'1.15 MOODY_S&P numbericl'!B:D,3,FALSE),"--") -> -- | H26: ='CEM Data Lookup'!P15 -> NA | J26: =IFERROR(VLOOKUP(H26,'1.15 MOODY_S&P numbericl'!F:H,3,FALSE),"--") -> --
A27: =Input!C15 -> POOL | B27: =VLOOKUP($A27,'CEM Data Lookup'!$A:$N,2,FALSE) -> Pool Corp. | D27: ='CEM Data Lookup'!O16 -> NA | F27: =IFERROR(VLOOKUP('1.30 CEM RPM Bond Ratings'!D27,'1.15 MOODY_S&P numbericl'!B:D,3,FALSE),"--") -> -- | H27: ='CEM Data Lookup'!P16 -> NA | J27: =IFERROR(VLOOKUP(H27,'1.15 MOODY_S&P numbericl'!F:H,3,FALSE),"--") -> --
A28: =Input!C16 -> RLI | B28: =VLOOKUP($A28,'CEM Data Lookup'!$A:$N,2,FALSE) -> RLI Corp. | D28: ='CEM Data Lookup'!O17 -> Baa2 | F28: =IFERROR(VLOOKUP('1.30 CEM RPM Bond Ratings'!D28,'1.15 MOODY_S&P numbericl'!B:D,3,FALSE),"--") -> 9 | H28: ='CEM Data Lookup'!P17 -> BBB | J28: =IFERROR(VLOOKUP(H28,'1.15 MOODY_S&P numbericl'!F:H,3,FALSE),"--") -> 9
A29: =Input!C17 -> SJM | B29: =VLOOKUP($A29,'CEM Data Lookup'!$A:$N,2,FALSE) -> Smucker (J.M.) | D29: ='CEM Data Lookup'!O18 -> Baa2 | F29: =IFERROR(VLOOKUP('1.30 CEM RPM Bond Ratings'!D29,'1.15 MOODY_S&P numbericl'!B:D,3,FALSE),"--") -> 9 | H29: ='CEM Data Lookup'!P18 -> BBB | J29: =IFERROR(VLOOKUP(H29,'1.15 MOODY_S&P numbericl'!F:H,3,FALSE),"--") -> 9
A30: =Input!C18 -> SNDR | B30: =VLOOKUP($A30,'CEM Data Lookup'!$A:$N,2,FALSE) -> Schneider National | D30: ='CEM Data Lookup'!O19 -> NA | F30: =IFERROR(VLOOKUP('1.30 CEM RPM Bond Ratings'!D30,'1.15 MOODY_S&P numbericl'!B:D,3,FALSE),"--") -> -- | H30: ='CEM Data Lookup'!P19 -> NA | J30: =IFERROR(VLOOKUP(H30,'1.15 MOODY_S&P numbericl'!F:H,3,FALSE),"--") -> --
A31: =Input!C19 -> TECH | B31: =VLOOKUP($A31,'CEM Data Lookup'!$A:$N,2,FALSE) -> Bio-Techne Corp. | D31: ='CEM Data Lookup'!O20 -> NA | F31: =IFERROR(VLOOKUP('1.30 CEM RPM Bond Ratings'!D31,'1.15 MOODY_S&P numbericl'!B:D,3,FALSE),"--") -> -- | H31: ='CEM Data Lookup'!P20 -> NA | J31: =IFERROR(VLOOKUP(H31,'1.15 MOODY_S&P numbericl'!F:H,3,FALSE),"--") -> --
A32: =Input!C20 -> TYL | B32: =VLOOKUP($A32,'CEM Data Lookup'!$A:$N,2,FALSE) -> Tyler Technologies | D32: ='CEM Data Lookup'!O21 -> NA | F32: =IFERROR(VLOOKUP('1.30 CEM RPM Bond Ratings'!D32,'1.15 MOODY_S&P numbericl'!B:D,3,FALSE),"--") -> -- | H32: ='CEM Data Lookup'!P21 -> NA | J32: =IFERROR(VLOOKUP(H32,'1.15 MOODY_S&P numbericl'!F:H,3,FALSE),"--") -> --
A33: =Input!C21 -> UPS | B33: =VLOOKUP($A33,'CEM Data Lookup'!$A:$N,2,FALSE) -> United Parcel Serv. | D33: ='CEM Data Lookup'!O22 -> A2 | F33: =IFERROR(VLOOKUP('1.30 CEM RPM Bond Ratings'!D33,'1.15 MOODY_S&P numbericl'!B:D,3,FALSE),"--") -> 6 | H33: ='CEM Data Lookup'!P22 -> A- | J33: =IFERROR(VLOOKUP(H33,'1.15 MOODY_S&P numbericl'!F:H,3,FALSE),"--") -> 7
A34: =Input!C22 -> WBA | B34: =VLOOKUP($A34,'CEM Data Lookup'!$A:$N,2,FALSE) -> Walgreens Boots | D34: ='CEM Data Lookup'!O23 -> Baa2 | F34: =IFERROR(VLOOKUP('1.30 CEM RPM Bond Ratings'!D34,'1.15 MOODY_S&P numbericl'!B:D,3,FALSE),"--") -> 9 | H34: ='CEM Data Lookup'!P23 -> BBB | J34: =IFERROR(VLOOKUP(H34,'1.15 MOODY_S&P numbericl'!F:H,3,FALSE),"--") -> 9
A35: =Input!C23 -> WERN | B35: =VLOOKUP($A35,'CEM Data Lookup'!$A:$N,2,FALSE) -> Werner Enterprises | D35: ='CEM Data Lookup'!O24 -> NA | F35: =IFERROR(VLOOKUP('1.30 CEM RPM Bond Ratings'!D35,'1.15 MOODY_S&P numbericl'!B:D,3,FALSE),"--") -> -- | H35: ='CEM Data Lookup'!P24 -> NA | J35: =IFERROR(VLOOKUP(H35,'1.15 MOODY_S&P numbericl'!F:H,3,FALSE),"--") -> --
A36: =Input!C24 -> WST | B36: =VLOOKUP($A36,'CEM Data Lookup'!$A:$N,2,FALSE) -> West Pharmac. Svcs. | D36: ='CEM Data Lookup'!O25 -> NA | F36: =IFERROR(VLOOKUP('1.30 CEM RPM Bond Ratings'!D36,'1.15 MOODY_S&P numbericl'!B:D,3,FALSE),"--") -> -- | H36: ='CEM Data Lookup'!P25 -> NA | J36: =IFERROR(VLOOKUP(H36,'1.15 MOODY_S&P numbericl'!F:H,3,FALSE),"--") -> --
B38: Average | D38: Baa1 | F38: =ROUND(AVERAGE(F13:F36),1) -> 8.3 | H38: BBB+ | J38: =ROUND(AVERAGE(J13:J36),1) -> 8.3
B41: Notes:
B42: (1) | C42: From page 15 of this Attachment.
B44: Source of Information:
B45: Bloomberg Professional Services

Sheet 1.31 CEM RPM ERP
A1: =Input!G28 -> Atmos Energy Corporation
A2: Derivation of Equity Risk Premium Based on the Total Market Approach
A3: Using the Beta for
A4: ='1.30 CEM RPM Bond Ratings'!B3 -> Proxy Group of Twenty-Three Non-Price Regulated Companies of Comparable risk to the
A5: ='1.30 CEM RPM Bond Ratings'!B4 -> Proxy Group of Six Water Companies
A7: Line No. | C7: Equity Risk Premium Measure | F7: ='1.30 CEM RPM Bond Ratings'!B12 -> Proxy Group of Twenty-Three Non-Price Regulated Companies
B10: Ibbotson-Based Equity Risk Premiums:
A12: 1. | C12: Ibbotson Equity Risk Premium (1) | F12: ='1.17-1.18 Beta Adjusted ERP'!F11 -> 5.92 | G12: %
A14: 2. | C14: Regression on Ibbotson Risk Premium Data (2) | F14: ='MRP ERP WP'!$AK$42*100 -> 8.692961584
A16: 3. | C16: Ibbotson Equity Risk Premium based on PRPM (3) | F16: ='1.17-1.18 Beta Adjusted ERP'!F15 -> 9.020182923
A18: 4. | C18: Equity Risk Premium Based on Value Line Summary and Index (4) | F18: ='MRP WP1'!$M$22*100-'MRP WP1'!$M$37 -> 4.6
A20: 5 | C20: Equity Risk Premium Based on Value Line S&P 500 Companies (5) | F20: ='1.17-1.18 Beta Adjusted ERP'!F19 -> 10.76198133
A22: 6. | C22: Equity Risk Premium Based on Bloomberg S&P 500 Companies (6) | F22: ='1.17-1.18 Beta Adjusted ERP'!F21 -> 12.77579407
A24: 7. | C24: Conclusion of Equity Risk Premium | F24: =ROUND(AVERAGE(F12,F14,F16,F18,F20,F22),2) -> 8.63 | G24: %
A26: 8. | C26: Adjusted Beta (7) | F26: ='1.32 CEM CAPM Backup'!H37 -> 0.77
A28: 9. | C28: Forecasted Equity Risk Premium | F28: =ROUND(F24*F26,2) -> 6.65 | G28: %
A30: Notes:
B31: (1) | C31: From note 1 of page 18 of this Attachment.
B32: (2) | C32: From note 2 of page 18 of this Attachment.
B33: (3) | C33: From note 3 of page 18 of this Attachment.
B34: (4) | C34: From note 4 of page 18 of this Attachment.
B35: (5) | C35: From note 5 of page 18 of this Attachment.
B36: (6) | C36: From note 6 of page 18 of this Attachment.
B37: (7) | C37: Average of mean and median beta from page 32 of this Attachment.
B39: Sources of Information:
C40: ='1.23 CAPM Notes'!B60 -> Stocks, Bonds, Bills, and Inflation - 2021 SBBI Yearbook, John Wiley & Sons, Inc.
C41: Value Line Summary and Index
C42: ='1.23 CAPM Notes'!B59 -> Blue Chip Financial Forecasts, June 1, 2021
C43: Bloomberg Professional Services

Sheet 1.32 CEM CAPM Backup
B1: =Input!G28 -> Atmos Energy Corporation
B2: Traditional CAPM and ECAPM Results for the Proxy Group of Non-Price-Regulated Companies Comparable in Total Risk to the
B3: ='1.31 CEM RPM ERP'!A5 -> Proxy Group of Six Water Companies
D5: [1] | F5: [2] | H5: [3] | J5: [4] | M5: [5] | P5: [6] | S5: [7] | V5: [8]
B7: ='1.31 CEM RPM ERP'!F7 -> Proxy Group of Twenty-Three Non-Price Regulated Companies | D7: Value Line Adjusted Beta | F7: Bloomberg Beta | H7: Average Beta | J7: Market Risk Premium (1) | M7: Risk-Free Rate (2) | P7: Traditional CAPM Cost Rate | S7: ECAPM Cost Rate | V7: Indicated Common Equity Cost Rate (3)
A9: =Input!C2 -> ADBE | B9: =VLOOKUP($A9,'CEM Data Lookup'!$A:$N,2,FALSE) -> Adobe Inc. | D9: ='MRP WP1'!E71 -> 0.75 | F9: ='CEM Data Lookup'!H3 -> 0.867236197 | H9: =ROUND(AVERAGE(D9:F9),2) -> 0.81 | J9: ='MRP WP1'!H$64 -> 9.459655442 | K9: % | M9: ='MRP WP1'!F$37 -> 2.88 | N9: % | P9: =(H9*J9)+M9 -> 10.54232091 | Q9: % | S9: =ROUND((0.75*(H9*J9))+((0.25*J9))+M9,4) -> 10.9917 | T9: % | V9: =ROUND(AVERAGE(P9,S9),2) -> 10.77 | W9: %
A10: =Input!C3 -> BCPC | B10: =VLOOKUP($A10,'CEM Data Lookup'!$A:$N,2,FALSE) -> Balchem Corp. | D10: ='MRP WP1'!E72 -> 0.75 | F10: ='CEM Data Lookup'!H4 -> 0.7168008685 | H10: 0.73 | J10: ='MRP WP1'!H$64 -> 9.459655442 | M10: ='MRP WP1'!F$37 -> 2.88 | P10: 9.785548473 | S10: 10.4241 | V10: =ROUND(AVERAGE(P10,S10),2) -> 10.1
A11: =Input!C4 -> BIO | B11: =VLOOKUP($A11,'CEM Data Lookup'!$A:$N,2,FALSE) -> Bio-Rad Labs. 'A' | D11: ='MRP WP1'!E73 -> 0.75 | F11: ='CEM Data Lookup'!H5 -> 0.6923027039 | H11: 0.72 | J11: ='MRP WP1'!H$64 -> 9.459655442 | M11: ='MRP WP1'!F$37 -> 2.88 | P11: 9.690951918 | S11: 10.3531 | V11: =ROUND(AVERAGE(P11,S11),2) -> 10.02
A12: =Input!C5 -> CHRW | B12: =VLOOKUP($A12,'CEM Data Lookup'!$A:$N,2,FALSE) -> C.H. Robinson | D12: ='MRP WP1'!E74 -> 0.7 | F12: ='CEM Data Lookup'!H6 -> 0.6534754634 | H12: 0.68 | J12: ='MRP WP1'!H$64 -> 9.459655442 | M12: ='MRP WP1'!F$37 -> 2.88 | P12: 9.312565701 | S12: 10.0693 | V12: =ROUND(AVERAGE(P12,S12),2) -> 9.69
A13: =Input!C6 -> CSGS | B13: =VLOOKUP($A13,'CEM Data Lookup'!$A:$N,2,FALSE) -> CSG Systems Int'l | D13: ='MRP WP1'!E75 -> 0.75 | F13: ='CEM Data Lookup'!H7 -> 0.9166264534 | H13: 0.83 | J13: ='MRP WP1'!H$64 -> 9.459655442 | M13: ='MRP WP1'!F$37 -> 2.88 | P13: 10.73151402 | S13: 11.1335 | V13: =ROUND(AVERAGE(P13,S13),2) -> 10.93
A14: =Input!C7 -> CTXS | B14: =VLOOKUP($A14,'CEM Data Lookup'!$A:$N,2,FALSE) -> Citrix Sys. | D14: ='MRP WP1'!E76 -> 0.7 | F14: ='CEM Data Lookup'!H8 -> 0.6123815179 | H14: 0.66 | J14: ='MRP WP1'!H$64 -> 9.459655442 | M14: ='MRP WP1'!F$37 -> 2.88 | P14: 9.123372592 | S14: 9.9274 | V14: 9.53
A15: =Input!C8 -> DG | B15: =VLOOKUP($A15,'CEM Data Lookup'!$A:$N,2,FALSE) -> Dollar General | D15: ='MRP WP1'!E77 -> 0.65 | F15: ='CEM Data Lookup'!H9 -> 0.689235568 | H15: 0.67 | J15: ='MRP WP1'!H$64 -> 9.459655442 | M15: ='MRP WP1'!F$37 -> 2.88 | P15: 9.217969146 | S15: =ROUND((0.75*(H15*J15))+((0.25*J15))+M15,4) -> 9.9984 | V15: 9.61
A16: =Input!C9 -> EBF | B16: =VLOOKUP($A16,'CEM Data Lookup'!$A:$N,2,FALSE) -> Ennis, Inc. | D16: ='MRP WP1'!E78 -> 0.8 | F16: ='CEM Data Lookup'!H10 -> 0.8104057908 | H16: =ROUND(AVERAGE(D16:F16),2) -> 0.81 | J16: ='MRP WP1'!H$64 -> 9.459655442 | M16: ='MRP WP1'!F$37 -> 2.88 | P16: =(H16*J16)+M16 -> 10.54232091 | S16: 10.9917 | V16: 10.77
A17: =Input!C10 -> HTLD | B17: =VLOOKUP($A17,'CEM Data Lookup'!$A:$N,2,FALSE) -> Heartland Express | D17: ='MRP WP1'!E79 -> 0.75 | F17: ='CEM Data Lookup'!H11 -> 0.7562380433 | H17: 0.75 | J17: ='MRP WP1'!H$64 -> 9.459655442 | M17: ='MRP WP1'!F$37 -> 2.88 | P17: 9.974741582 | S17: 10.566 | V17: 10.27
A18: =Input!C11 -> KEYS | B18: =VLOOKUP($A18,'CEM Data Lookup'!$A:$N,2,FALSE) -> Keysight Technologie | D18: ='MRP WP1'!E80 -> 0.85 | F18: ='CEM Data Lookup'!H12 -> 0.7807682157 | H18: 0.82 | J18: ='MRP WP1'!H$64 -> 9.459655442 | M18: ='MRP WP1'!F$37 -> 2.88 | P18: 10.63691746 | S18: 11.0626 | V18: 10.85
A19: =Input!C12 -> LANC | B19: =VLOOKUP($A19,'CEM Data Lookup'!$A:$N,2,FALSE) -> Lancaster Colony | D19: ='MRP WP1'!E81 -> 0.7 | F19: ='CEM Data Lookup'!H13 -> 0.7138239145 | H19: 0.71 | J19: ='MRP WP1'!H$64 -> 9.459655442 | M19: ='MRP WP1'!F$37 -> 2.88 | P19: 9.596355364 | S19: 10.2822 | V19: 9.94
A20: =Input!C13 -> LLY | B20: =VLOOKUP($A20,'CEM Data Lookup'!$A:$N,2,FALSE) -> Lilly (Eli) | D20: ='MRP WP1'!E82 -> 0.75 | F20: ='CEM Data Lookup'!H14 -> 0.7262842655 | H20: 0.74 | J20: ='MRP WP1'!H$64 -> 9.459655442 | M20: ='MRP WP1'!F$37 -> 2.88 | P20: 9.880145027 | S20: 10.495 | V20: 10.19
A21: =Input!C14 -> MNST | B21: =VLOOKUP($A21,'CEM Data Lookup'!$A:$N,2,FALSE) -> Monster Beverage | D21: ='MRP WP1'!E83 -> 0.85 | F21: ='CEM Data Lookup'!H15 -> 0.9928922057 | H21: 0.92 | J21: ='MRP WP1'!H$64 -> 9.459655442 | M21: ='MRP WP1'!F$37 -> 2.88 | P21: 11.58288301 | S21: 11.7721 | V21: 11.68
A22: =Input!C15 -> POOL | B22: =VLOOKUP($A22,'CEM Data Lookup'!$A:$N,2,FALSE) -> Pool Corp. | D22: ='MRP WP1'!E84 -> 0.85 | F22: ='CEM Data Lookup'!H16 -> 0.9463635087 | H22: 0.9 | J22: ='MRP WP1'!H$64 -> 9.459655442 | M22: ='MRP WP1'!F$37 -> 2.88 | P22: 11.3936899 | S22: 11.6302 | V22: 11.51
A23: =Input!C16 -> RLI | B23: =VLOOKUP($A23,'CEM Data Lookup'!$A:$N,2,FALSE) -> RLI Corp. | D23: ='MRP WP1'!E85 -> 0.8 | F23: ='CEM Data Lookup'!H17 -> 0.9000255466 | H23: 0.85 | J23: ='MRP WP1'!H$64 -> 9.459655442 | M23: ='MRP WP1'!F$37 -> 2.88 | P23: 10.92070713 | S23: 11.2754 | V23: 11.1
A24: =Input!C17 -> SJM | B24: =VLOOKUP($A24,'CEM Data Lookup'!$A:$N,2,FALSE) -> Smucker (J.M.) | D24: ='MRP WP1'!E86 -> 0.65 | F24: ='CEM Data Lookup'!H18 -> 0.5082988143 | H24: 0.58 | J24: ='MRP WP1'!H$64 -> 9.459655442 | M24: ='MRP WP1'!F$37 -> 2.88 | P24: 8.366600157 | S24: 9.3599 | V24: 8.86
A25: =Input!C18 -> SNDR | B25: =VLOOKUP($A25,'CEM Data Lookup'!$A:$N,2,FALSE) -> Schneider National | D25: ='MRP WP1'!E87 -> 0.8 | F25: ='CEM Data Lookup'!H19 -> 0.7037460208 | H25: 0.75 | J25: ='MRP WP1'!H$64 -> 9.459655442 | M25: ='MRP WP1'!F$37 -> 2.88 | P25: 9.974741582 | S25: 10.566 | V25: 10.27
A26: =Input!C19 -> TECH | B26: =VLOOKUP($A26,'CEM Data Lookup'!$A:$N,2,FALSE) -> Bio-Techne Corp. | D26: ='MRP WP1'!E88 -> 0.8 | F26: ='CEM Data Lookup'!H20 -> 0.9288383126 | H26: 0.86 | J26: ='MRP WP1'!H$64 -> 9.459655442 | M26: ='MRP WP1'!F$37 -> 2.88 | P26: 11.01530368 | S26: 11.3464 | V26: 11.18
A27: =Input!C20 -> TYL | B27: =VLOOKUP($A27,'CEM Data Lookup'!$A:$N,2,FALSE) -> Tyler Technologies | D27: ='MRP WP1'!E89 -> 0.75 | F27: ='CEM Data Lookup'!H21 -> 0.7495535016 | H27: 0.75 | J27: ='MRP WP1'!H$64 -> 9.459655442 | M27: ='MRP WP1'!F$37 -> 2.88 | P27: 9.974741582 | S27: 10.566 | V27: 10.27
A28: =Input!C21 -> UPS | B28: =VLOOKUP($A28,'CEM Data Lookup'!$A:$N,2,FALSE) -> United Parcel Serv. | D28: ='MRP WP1'!E90 -> 0.8 | F28: ='CEM Data Lookup'!H22 -> 0.8462782502 | H28: 0.82 | J28: ='MRP WP1'!H$64 -> 9.459655442 | M28: ='MRP WP1'!F$37 -> 2.88 | P28: 10.63691746 | S28: 11.0626 | V28: 10.85
A29: =Input!C22 -> WBA | B29: =VLOOKUP($A29,'CEM Data Lookup'!$A:$N,2,FALSE) -> Walgreens Boots | D29: ='MRP WP1'!E91 -> 0.85 | F29: ='CEM Data Lookup'!H23 -> 0.7955988646 | H29: =ROUND(AVERAGE(D29:F29),2) -> 0.82 | J29: ='MRP WP1'!H$64 -> 9.459655442 | M29: ='MRP WP1'!F$37 -> 2.88 | P29: =(H29*J29)+M29 -> 10.63691746 | S29: =ROUND((0.75*(H29*J29))+((0.25*J29))+M29,4) -> 11.0626 | V29: =ROUND(AVERAGE(P29,S29),2) -> 10.85
A30: =Input!C23 -> WERN | B30: =VLOOKUP($A30,'CEM Data Lookup'!$A:$N,2,FALSE) -> Werner Enterprises | D30: ='MRP WP1'!E92 -> 0.75 | F30: ='CEM Data Lookup'!H24 -> 0.7680497766 | H30: =ROUND(AVERAGE(D30:F30),2) -> 0.76 | J30: ='MRP WP1'!H$64 -> 9.459655442 | M30: ='MRP WP1'!F$37 -> 2.88 | P30: =(H30*J30)+M30 -> 10.06933814 | S30: =ROUND((0.75*(H30*J30))+((0.25*J30))+M30,4) -> 10.6369 | V30: =ROUND(AVERAGE(P30,S30),2) -> 10.35
A31: =Input!C24 -> WST | B31: =VLOOKUP($A31,'CEM Data Lookup'!$A:$N,2,FALSE) -> West Pharmac. Svcs. | D31: ='MRP WP1'!E93 -> 0.8 | F31: ='CEM Data Lookup'!H25 -> 0.7505637407 | H31: =ROUND(AVERAGE(D31:F31),2) -> 0.78 | J31: ='MRP WP1'!H$64 -> 9.459655442 | M31: ='MRP WP1'!F$37 -> 2.88 | P31: =(H31*J31)+M31 -> 10.25853124 | S31: =ROUND((0.75*(H31*J31))+((0.25*J31))+M31,4) -> 10.7788 | V31: =ROUND(AVERAGE(P31,S31),2) -> 10.52
B33: Mean | H33: =ROUND(AVERAGE(H9:H31),2) -> 0.77 | P33: =ROUND(AVERAGE(P9:P31),2) -> 10.17 | Q33: % | S33: =ROUND(AVERAGE(S9:S31),2) -> 10.71 | T33: % | V33: =ROUND(AVERAGE(V9:V31),2) -> 10.44 | W33: %
B35: Median | H35: =ROUND(MEDIAN(H9:H31),2) -> 0.76 | P35: =ROUND(MEDIAN(P9:P31),2) -> 10.07 | Q35: % | S35: =ROUND(MEDIAN(S9:S31),2) -> 10.64 | T35: % | V35: =ROUND(MEDIAN(V9:V31),2) -> 10.35 | W35: %
B37: Average of Mean and Median | H37: =ROUND(AVERAGE(H33:H35),2) -> 0.77 | P37: =ROUND(AVERAGE(P33:P35),2) -> 10.12 | Q37: % | S37: =ROUND(AVERAGE(S33:S35),2) -> 10.68 | T37: % | V37: =ROUND(AVERAGE(V33:V35),2) -> 10.4 | W37: %
C39: Notes:
C40: (1) | D40: From note 1 of page 23 of this Attachment.
C41: (2) | D41: From note 2 of page 23 of this Attachment.
C42: (3) | D42: Average of CAPM and ECAPM cost rates.

Sheet 1.33 Risk Adjustment
C1: =Input!G28 -> Atmos Energy Corporation
C2: Derivation of Investment Risk Adjustment Based upon
C3: Ibbotson Associates' Size Premia for the Decile Portfolios of the NYSE/AMEX/NASDAQ
E5: [1] | I5: [2] | K5: [3] | M5: [4]
M6: Spread from Applicable Size Premium (4)
E7: Market Capitalization on May 28, 2021 (1) | I7: Applicable Decile of the NYSE/AMEX/ NASDAQ (2)
K8: Applicable Size Premium (3)
A10: Line No.
E11: ( millions ) | G11: (times larger)
A13: 1. | C13: ='1.34 Market Cap'!B11 -> Atmos Energy Corporation | E13: ='1.34 Market Cap'!P13 -> 1300.973289 | I13: 7 | K13: =VLOOKUP(I13,$G$22:$M$31,7,FALSE) -> 0.0154
A15: 2. | C15: =Input!I31 -> Proxy Group of Six Water Companies | E15: ='1.34 Market Cap'!P23 -> 6315.591 | G15: =ROUND(E15/E13,1) -> 4.9 | H15: x | I15: 4 | K15: =M25 -> 0.0075 | M15: =K13-K15 -> 0.0079
G17: [A] | I17: [B] | K17: [C] | M17: [D]
G19: Decile | I19: Market Capitalization of Smallest Company | K19: Market Capitalization of Largest Company | M19: Size Premium (Return in Excess of CAPM)*
I20: ( millions ) | K20: ( millions )
E22: Largest | G22: 1 | I22: 29025.803 | K22: 1966078.882 | M22: -0.0022
G23: 2 | I23: 13178.743 | K23: 28808.073 | M23: 0.0049
G24: 3 | I24: 6743.361 | K24: 13177.828 | M24: 0.0071
G25: 4 | I25: 3861.858 | K25: 6710.676 | M25: 0.0075
G26: 5 | I26: 2445.693 | K26: 3836.536 | M26: 0.0109
G27: 6 | I27: 1591.865 | K27: 2444.745 | M27: 0.0137
G28: 7 | I28: 911.586 | K28: 1591.765 | M28: 0.0154
G29: 8 | I29: 451.955 | K29: 911.103 | M29: 0.0146
G30: 9 | I30: 190.019 | K30: 451.8 | M30: 0.0229
E31: Smallest | G31: 10 | I31: 2.194 | K31: 189.831 | M31: 0.0501
H32: *From Duff & Phelps Cost of Capital Navigator,
I33: CRSP Size Premia as of 12/31/2020
C34: Notes:
D35: (1) | E35: From page 34 of this Attachment.
D36: (2) | E36: Gleaned from Columns [B] and [C] on the bottom of this page. The appropriate decile (Column [A]) corresponds to the market capitalization of the proxy group, which is found in Column [1].
D37: (3) | E37: Corresponding risk premium to the decile is provided in Column [D] on the bottom of this page.
D38: (4) | E38: =CONCATENATE("Line No. 1 Column [3] – Line No. 2 Column [3]. For example, the ",TEXT((M15*100),"#0.00"),"% in Column [4], Line No. 2 is derived as follows ",TEXT((M15*100),"#0.00"),"% = ",K13*100,"% - ",TEXT((K15*100),"#0.00"),"%.") -> Line No. 1 Column [3] – Line No. 2 Column [3]. For example, the 0.79% in Column [4], Line No. 2 is derived as follows 0.79% = 1.54% - 0.75%.

Sheet 1.34 Market Cap
B1: =Input!G28 -> Atmos Energy Corporation
B2: =CONCATENATE("Market Capitalization of ",B1," and the") -> Market Capitalization of Atmos Energy Corporation and the
B3: ='1.32 CEM CAPM Backup'!B3 -> Proxy Group of Six Water Companies
F6: [1] | H6: [2] | J6: [3] | L6: [4] | N6: [5] | P6: [6]
B8: Company | D8: Exchange | F8: =CONCATENATE("Common Stock Shares Outstanding at Fiscal Year End ",YEAR(Input!G49)) -> Common Stock Shares Outstanding at Fiscal Year End 2020 | H8: Book Value per Share at Fiscal Year End 2020 (1) | J8: =CONCATENATE("Total Common Equity at Fiscal Year End ",YEAR(Input!G49)) -> Total Common Equity at Fiscal Year End 2020 | L8: =CONCATENATE("Closing Stock Market Price on ",TEXT(Input!E2,"mmmm dd, yyyy")) -> Closing Stock Market Price on May 28, 2021 | N8: =CONCATENATE("Market-to-Book Ratio on ",TEXT(Input!E2,"mmmm dd, yyyy")," (2)") -> Market-to-Book Ratio on May 28, 2021 (2) | P8: =CONCATENATE("Market Capitalization on ",TEXT(Input!E2,"mmmm dd, yyyy")," (3)") -> Market Capitalization on May 28, 2021 (3)
F9: ( millions ) | J9: ( millions ) | P9: ( millions )
B11: =Input!G28 -> Atmos Energy Corporation | F11: NA | H11: NA | J11: =(Input!G43/1000000)*Input!F14 -> 340.0348377 | K11: (4) | L11: NA
B13: =CONCATENATE("Based upon ",B15) -> Based upon Proxy Group of Six Water Companies | N13: =N23 -> 382.6 | O13: (5) | P13: =IFERROR((N13/100)*J11,"NA") -> 1300.973289 | Q13: (6)
B15: =Input!I31 -> Proxy Group of Six Water Companies
A16: =Input!A2 -> AWR | B16: =IFERROR(VLOOKUP($A16,'Proxy Data Lookup'!$A:$P,2,FALSE),"NA") -> American States Water Company | D16: =Input!B2 -> NYSE | F16: ='3. AWR'!C$15/1000000 -> 36.889103 | H16: =IFERROR(ROUND(J16/F16,3),"NA") -> 17.395 | J16: ='3. AWR'!C$16/1000000 -> 641.673 | L16: ='Proxy Prices'!B$6 -> 79.37 | N16: =IFERROR(ROUND(L16/H16*100,1),"NA") -> 456.3 | O16: % | P16: =IFERROR(ROUND(F16*L16,3),"NA") -> 2927.888
A17: =Input!A3 -> AWK | B17: =IFERROR(VLOOKUP($A17,'Proxy Data Lookup'!$A:$P,2,FALSE),"NA") -> American Water Works Company, Inc. | D17: =Input!B3 -> NYSE | F17: ='3. AWK'!C$15/1000000 -> 181.298492 | H17: 35.599 | J17: ='3. AWK'!C$16/1000000 -> 6454 | L17: ='Proxy Prices'!C$6 -> 155.02 | N17: 435.5 | P17: 28104.892
A18: =Input!A4 -> CWT | B18: =IFERROR(VLOOKUP($A18,'Proxy Data Lookup'!$A:$P,2,FALSE),"NA") -> California Water Service Group | D18: =Input!B4 -> NYSE | F18: ='3. CWT'!C$15/1000000 -> 50.333655 | H18: 18.305 | J18: ='3. CWT'!C$16/1000000 -> 921.344 | L18: ='Proxy Prices'!D$6 -> 56.84 | N18: 310.5 | P18: 2860.965
A19: =Input!A5 -> MSEX | B19: =IFERROR(VLOOKUP($A19,'Proxy Data Lookup'!$A:$P,2,FALSE),"NA") -> Middlesex Water Company | D19: =Input!B5 -> NASDAQ | F19: ='3. MSEX'!C$15/1000000 -> 17.473 | H19: 19.814 | J19: ='3. MSEX'!C$16/1000000 -> 346.208 | L19: ='Proxy Prices'!E$6 -> 85.96 | N19: 433.8 | P19: 1501.979
A20: =Input!A6 -> SJW | B20: =IFERROR(VLOOKUP($A20,'Proxy Data Lookup'!$A:$P,2,FALSE),"NA") -> SJW Group | D20: =Input!B6 -> NYSE | F20: ='3. SJW'!C$15/1000000 -> 28.556605 | H20: 32.117 | J20: ='3. SJW'!C$16/1000000 -> 917.16 | L20: ='Proxy Prices'!F$6 -> 64.45 | N20: 200.7 | P20: 1840.473
A21: =Input!A7 -> YORW | B21: =IFERROR(VLOOKUP($A21,'Proxy Data Lookup'!$A:$P,2,FALSE),"NA") -> The York Water Company | D21: =Input!B7 -> NASDAQ | F21: ='3. YORW'!C$15/1000000 -> 13.060817 | H21: 10.968 | J21: ='3. YORW'!C$16/1000000 -> 143.252 | L21: ='Proxy Prices'!G$6 -> 50.33 | N21: 458.9 | P21: 657.351
B23: Average | F23: =ROUND(AVERAGE(F16:F22),3) -> 54.602 | H23: =ROUND(AVERAGE(H16:H22),3) -> 22.366 | J23: =ROUND(AVERAGE(J16:J22),3) -> 1570.606 | L23: =ROUND(AVERAGE(L15:L22),3) -> 81.995 | N23: =ROUND(AVERAGE(N16:N21),1) -> 382.6 | O23: % | P23: =ROUND(AVERAGE(P15:P22),3) -> 6315.591
C25: NA= Not Available
D27: Notes: | E27: (1) | F27: Column 3 / Column 1.
E28: (2) | F28: Column 4 / Column 2.
E29: (3) | F29: Column 1 * Column 4.
E30: (4) | F30: Requested rate base multiplied by requested equity ratio.
E31: (5) | F31: =CONCATENATE("The market-to-book ratio of ",Input!G28," on ",TEXT(Input!E2,"mmmm dd, yyyy")," is assumed to be equal to the market-to-book ratio of ",'1.34 Market Cap'!B3," on ",TEXT(Input!E2,"mmmm dd, yyyy")," as appropriate.") -> The market-to-book ratio of Atmos Energy Corporation on May 28, 2021 is assumed to be equal to the market-to-book ratio of Proxy Group of Six Water Companies on May 28, 2021 as appropriate.
E32: (6) | F32: Column [3] multiplied by Column [5].
B35: Source of Information: | C35: =CONCATENATE(YEAR(Input!G49)," Annual Forms 10K") -> 2020 Annual Forms 10K
C36: Bloomberg Financial Services

Sheet 1.35 Equity Contributions
A1: =[82]Input!G28 -> Atmos Energy Corporation
A2: Derivation of the Flotation Cost Adjustment to the Cost of Common Equity
A5: Equity Issuances and Flotation Costs for FY 2019, 2018, 2017, and 2016
E8: [Column 1] | G8: [Column 2] | I8: [Column 3] | K8: [Column 4] | M8: [Column 5] | O8: [Column 6] | Q8: [Column 7]
A10: Fiscal Year | C10: Transaction (1) | E10: Shares Issued | G10: Average Offering Price per Share (2) | I10: Net Proceeds per Share (3) | K10: Gross Equity Issue before Costs | M10: Total Net Proceeds | O10: Total Flotation Costs (4) | Q10: Flotation Cost Percentage (5)
A12: 2019 | C12: At the Market Equity Offering | E12: 5390836 | G12: =K12/E12 -> 92.74999277 | I12: =M12/E12 -> 91.65554285 | K12: 500000000 | M12: 494100000 | O12: =K12-M12 -> 5900000 | Q12: =(K12-M12)/K12 -> 0.0118
A14: 2018 | C14: At the Market Equity Offering | E14: 4558404 | G14: =K14/E14 -> 87.75001075 | I14: =M14/E14 -> 86.67507312 | K14: 400000000 | M14: 395100000 | O14: =K14-M14 -> 4900000 | Q14: =(K14-M14)/K14 -> 0.01225
A16: 2017 | C16: At the Market Equity Offering | E16: 1303494 | G16: =K16/E16 -> 76.71688554 | I16: =M16/E16 -> 75.79628291 | K16: 100000000 | M16: 98800000 | O16: =K16-M16 -> 1200000 | Q16: =(K16-M16)/K16 -> 0.012
A18: 2016 | C18: At the Market Equity Offering | E18: 1360756 | G18: =K18/E18 -> 73.48856077 | I18: =M18/E18 -> 72.45972092 | K18: 100000000 | M18: 98600000 | O18: =K18-M18 -> 1400000 | Q18: =(K18-M18)/K18 -> 0.014
K21: =SUM(K12:K19) -> 1100000000 | M21: =SUM(M12:M19) -> 1086600000 | O21: =SUM(O11:O19) -> 13400000 | Q21: =(K21-M21)/K21 -> 0.01218181818
A23: Flotation Cost Adjustment
C25: [Column 8] | E25: [Column 9] | G25: [Column 10] | I25: [Column 11] | K25: [Column 12] | M25: [Column 13]
C27: Average Dividend Yield | E27: Average Projected EPS Growth Rate | G27: Adjusted Dividend Yield | I27: Average DCF Cost Rate Unadjusted for Flotation (6) | K27: DCF Cost Rate Adjusted for Flotation (7) | M27: Flotation Cost Adjustment (8)
A28: =Input!I31 -> Proxy Group of Six Water Companies | C28: =ROUND(AVERAGE('1.3 DCF Summary'!D10:D12,'1.3 DCF Summary'!D14:D15),2) -> 1.73 | D28: % | E28: =ROUND(AVERAGE('1.3 DCF Summary'!S10:S12,'1.3 DCF Summary'!S14:S15),2) -> 7.29 | F28: % | G28: =ROUND(C28*(1+(0.5*(E28/100))),2) -> 1.79 | H28: % | I28: =G28+E28 -> 9.08 | J28: % | K28: =(G28/(1-$Q$21))+E28 -> 9.10207436 | L28: % | M28: =K28-I28 -> 0.02207436039 | N28: %
A30: Notes:
A31: (1) | B31: Company Provided.
A32: (2) | B32: Column 4 / Column 1.
A33: (3) | B33: Column 5 / Column 1.
A34: (4) | B34: Column 4 - Column 5.
A35: (5) | B35: Column 6 / Column 4.
A36: (6) | B36: Using the average growth rate from page 3 of this Attachment.
A37: (7) | B37: (Column 10 / (1 - Column 7)) + Column 9
A38: (8) | B38: Column 12 - Column 11.
A40: Source of Information: Company SEC filings

Sheet Input
A1: Utility Proxy Group | B1: Proxy Company - Exchange | C1: CEM Proxy Group | E1: Growth Rate Input Date
A2: AWR | B2: NYSE | C2: ADBE | E2: 2021-05-28
A3: AWK | B3: NYSE | C3: BCPC
A4: CWT | B4: NYSE | C4: BIO | E4: User Computer Title
A5: MSEX | B5: NASDAQ | C5: CHRW
A6: SJW | B6: NYSE | C6: CSGS
A7: YORW | B7: NASDAQ | C7: CTXS | E7: Recommended Common Equity Cost Rate
C8: DG
C9: EBF
C10: HTLD | E10: DATA INPUTS
C11: KEYS
C12: LANC | E12: Capital Structure | G12: Source:
C13: LLY | E13: Debt % | F13: 0.4277
C14: MNST | E14: Equity % | F14: 0.5705
C15: POOL | E15: Short-Term Debt % | F15: 0.0018
C16: RLI | E16: Long-Term Debt Cost (%) | F16: 0.04
C17: SJM | E17: Short-Term Debt Cost (%) | F17: 0.2517
C18: SNDR
C19: TECH
C20: TYL | E20: SBBI (1926-2020) | G20: Notes:
C21: UPS | E21: SBBI Common Stocks Total Return (%) | F21: 12.2 | G21: Update annually from Stocks, Bonds, Bills, and Inflation - Ibbotson® SBBI® Market Report
C22: WBA | E22: SBBI Long-Term Gov't Bonds Income (%) | F22: 5.05 | G22: Update annually from Stocks, Bonds, Bills, and Inflation - Ibbotson® SBBI® Market Report
C23: WERN
C24: WST | E24: VL Appr Potential Week Ending: | G24: PRPM Date ("Month Year") | I24: Blue Chip Update Date ("Month Day, Year")
E25: 2021-05-28 | G25: May 2021 | I25: June 1, 2021
E27: S&P Utilties Index Companies | G27: Company Name | I27: Abbreviated
E28: AEE | G28: Atmos Energy Corporation | I28: USI
E29: AEP
E30: AES | G30: Regulatory Jurisdiction
E31: ATO | G31: Kentucky Public Service Commission | I31: Proxy Group of Six Water Companies
E32: AWK | I32: Proxy Group of Twenty-Three Non-Price Regulated Companies
E33: CMS | G33: Industry ("Natural Gas", "Water", "Electric")
E34: CNP | G34: Natural Gas
E35: D | H35: - If Data not available, input NA
E36: DTE | G36: Common Stock Shares Outstanding at Fiscal Year End
E37: DUK | G37: NA
E38: ED
E39: EIX | G39: Book Value per Share at Fiscal Year End
E40: ES | G40: NA
E41: ETR
E42: EVRG | G42: Rate Base
E43: EXC | G43: 596029514
E44: FE
E45: LNT | G45: Closing Stock Market Price
E46: NEE | G46: NA
E47: NI
E48: NRG | G48: Date of Annual Report Filing ("'Month Day, Year")
E49: PEG | G49: September 30, 2020
E50: PNW
E51: PPL | G51: Business Risk Adjustment
E52: SO | G52: NA
E53: SRE
E54: WEC
E55: XEL
C56: =COUNTA(C2:C29) -> 23

Sheet Market Data
A1: Bond Index - Date | B1: 2021-05-28 | C1: 2021-04-30 | D1: 2021-03-31
A2: MOODUAA Index | B2: 3.17 | C2: 3.13 | D2: 3.27 | E2: =B3-B2 -> 0.16 | F2: =C3-C2 -> 0.17 | G2: 0.17 | H2: =AVERAGE(E2:G2) -> 0.1666666667 | I2: =H2/3 -> 0.05555555556
A3: MOODUA Index | B3: 3.33 | C3: 3.3 | D3: 3.44 | E3: =B4-B3 -> 0.25 | F3: =C4-C3 -> 0.27 | G3: =D4-D3 -> 0.28 | H3: =AVERAGE(E3:G3) -> 0.2666666667 | I3: =H3/6 -> 0.04444444444
A4: MOODUBAA Index | B4: 3.58 | C4: 3.57 | D4: 3.72 | I4: =ROUND(I3+I2,2) -> 0.1
A5: MOODCAAA Index | B5: 2.96 | C5: 2.9 | D5: 3.04
A6: MOODCAA Index | B6: 3.07 | C6: 3.03 | D6: 3.17
A7: MOODCA Index | B7: 3.27 | C7: 3.24 | D7: 3.37
A8: MOODCBAA Index | B8: 3.62 | C8: 3.6 | D8: 3.74
A10: Historical Risk Premium Data
A11: Arithmetic Mean of Monthly Returns on Large Company Common Stocks (1928 - 2020) | B11: 0.1194
A12: Arithmetic Mean of Moody's Aaa and Aa Corporate Bond Yields (1928 - 2020) | B12: 0.0602
A13: Arithmetic Mean Holding Period Returns on the S&P Utility Index (1928 - 2020) | B13: 0.1065
A14: Arithmetic Mean on Moody's A Rated Public Utility Bond Yields (1928 - 2020) | B14: 0.0649

Sheet Proxy Data Lookup
C1: EPS Growth Rates | G1: Beta | J1: Annual Div. | K1: Value Line Beta Calculation | O1: Bond Ratings
A2: Ticker | B2: Company Name | C2: Zacks | D2: Yahoo | E2: Value Line | F2: Bloomberg | G2: Value Line | H2: Bloomberg | I2: Unadjusted | K2: R Factor | L2: Std. Error | M2: Std. Dev Y | N2: Std. Dev Beta | O2: S&P | P2: Moody's
A3: =Input!A2 -> AWR | B3: American States Water Company | C3: NA | D3: 0.052 | E3: 0.065 | F3: 0.06 | G3: 0.65 | H3: 0.6027562618 | I3: 0.41 | J3: 1.34 | K3: 0.3668 | L3: 2.5967 | M3: 2.7858 | N3: 0.0648 | O3: A+ | P3: A2 | R3: Golden State Water Company (A+, A2)
A4: =Input!A3 -> AWK | B4: American Water Works Company, Inc. | C4: 0.081 | D4: 0.086 | E4: 0.085 | F4: 0.08515 | G4: 0.85 | H4: 1.046223521 | I4: 0.75 | J4: 2.41 | K4: 0.5083 | L4: 3.1587 | M4: 3.6608 | N4: 0.0788 | O4: A | P4: A3 | R4: New Jersey American Water Co. (A, A3), PA American Water Co (A, A3)
A5: =Input!A4 -> CWT | B5: California Water Service Group | C5: NA | D5: 0.117 | E5: 0.065 | F5: 0.04 | G5: 0.65 | H5: 0.6352627277 | I5: 0.45 | J5: 0.92 | K5: 0.336 | L5: 3.1469 | M5: 3.3348 | N5: 0.0785 | O5: A+ | P5: NR
A6: =Input!A5 -> MSEX | B6: Middlesex Water Company | C6: NA | D6: 0.027 | E6: 0.045 | F6: NA | G6: 0.7 | H6: 0.7968770862 | I6: 0.54 | J6: 1.09 | K6: 0.366 | L6: 3.4491 | M6: 3.699 | N6: 0.0861 | O6: A | P6: NR
A7: =Input!A6 -> SJW | B7: SJW Group | C7: NA | D7: 0.07 | E7: 0.13 | F7: 0.07 | G7: 0.85 | H7: 0.960263133 | I7: 0.7 | J7: 1.36 | K7: 0.4407 | L7: 3.564 | M7: 3.9627 | N7: 0.0889 | O7: A/A- | P7: NR | R7: San Jose Water (A) Connecticut Water Co. (A-)
A8: =Input!A7 -> YORW | B8: The York Water Company | C8: NA | D8: 0.049 | E8: 0.065 | F8: NA | G8: 0.8 | H8: 0.950838685 | I8: 0.69 | J8: 0.7496 | K8: 0.4257 | L8: 3.6408 | M8: 4.0158 | N8: 0.0908 | O8: A- | P8: NR
R9: SJW | S9: A | T9: =VLOOKUP(S9,'1.15 MOODY_S&P numbericl'!F6:H26,3,FALSE) -> 6
R10: Conn. Water | S10: A- | T10: =VLOOKUP(S10,'1.15 MOODY_S&P numbericl'!F7:H27,3,FALSE) -> 7
T11: =AVERAGE(T9:T10) -> 6.5

Sheet Proxy Price Data
B1: PX_LAST | C1: AWR US Equity | D1: AWK US Equity | E1: CWT US Equity | F1: MSEX US Equity | G1: SJW US Equity | H1: YORW US Equity
A2: 1 | B2: 2021-05-28 | C2: 79.37 | D2: 155.02 | E2: 56.84 | F2: 85.96 | G2: 64.45 | H2: 50.33
A3: =A2+1 -> 2 | B3: 2021-05-27 | C3: 79.3 | D3: 153.42 | E3: 56.72 | F3: 84.9 | G3: 64.45 | H3: 50.25
A4: =A3+1 -> 3 | B4: 2021-05-26 | C4: 80.37 | D4: 154.97 | E4: 57.68 | F4: 84.89 | G4: 65.32 | H4: 50.62
A5: 4 | B5: 2021-05-25 | C5: 78.99 | D5: 154.92 | E5: 56.68 | F5: 84.8 | G5: 63.4 | H5: 49.44
A6: 5 | B6: 2021-05-24 | C6: 79.17 | D6: 154.84 | E6: 56.94 | F6: 80.86 | G6: 64.38 | H6: 49.53
A7: 6 | B7: 2021-05-21 | C7: 78.64 | D7: 155.12 | E7: 56.45 | F7: 80.52 | G7: 64.18 | H7: 49.19
A8: 7 | B8: 2021-05-20 | C8: 78.31 | D8: 154.42 | E8: 56.01 | F8: 80.67 | G8: 63.46 | H8: 48.53
A9: 8 | B9: 2021-05-19 | C9: 76.91 | D9: 152.07 | E9: 55.6 | F9: 80.82 | G9: 62.91 | H9: 48.04
A10: 9 | B10: 2021-05-18 | C10: 76.66 | D10: 151.09 | E10: 55.67 | F10: 80.65 | G10: 63.32 | H10: 48.1
A11: 10 | B11: 2021-05-17 | C11: 77.48 | D11: 150.85 | E11: 56.29 | F11: 80.62 | G11: 63.16 | H11: 48.07
A12: 11 | B12: 2021-05-14 | C12: 78.47 | D12: 152.83 | E12: 56.64 | F12: 79.73 | G12: 62.93 | H12: 48.59
A13: 12 | B13: 2021-05-13 | C13: 78.81 | D13: 152 | E13: 56.7 | F13: 79.03 | G13: 62.85 | H13: 48.48
A14: 13 | B14: 2021-05-12 | C14: 76.97 | D14: 149.59 | E14: 55.26 | F14: 77.58 | G14: 61.08 | H14: 46.74
A15: 14 | B15: 2021-05-11 | C15: 78.65 | D15: 153.7 | E15: 57.16 | F15: 80.59 | G15: 63.48 | H15: 48.54
A16: 15 | B16: 2021-05-10 | C16: 78.93 | D16: 156 | E16: 57.67 | F16: 81.07 | G16: 62.63 | H16: 48.55
A17: 16 | B17: 2021-05-07 | C17: 79.5 | D17: 152.77 | E17: 57.83 | F17: 80.67 | G17: 63.71 | H17: 49.01
A18: 17 | B18: 2021-05-06 | C18: 79.9 | D18: 153.2 | E18: 57.92 | F18: 79.93 | G18: 64.3 | H18: 48.8
A19: 18 | B19: 2021-05-05 | C19: 78.97 | D19: 153.06 | E19: 57.78 | F19: 79.84 | G19: 63.35 | H19: 48.86
A20: =A19+1 -> 19 | B20: 2021-05-04 | C20: 79.97 | D20: 155.29 | E20: 58.89 | F20: 80.72 | G20: 64.66 | H20: 49.81
A21: 20 | B21: 2021-05-03 | C21: 79.28 | D21: 155.5 | E21: 59 | F21: 82.14 | G21: 65.57 | H21: 51.4
A22: 21 | B22: 2021-04-30 | C22: 79.19 | D22: 155.99 | E22: 58.75 | F22: 82.02 | G22: 65.55 | H22: 51.64
A23: 22 | B23: 2021-04-29 | C23: 78.93 | D23: 154.44 | E23: 58.47 | F23: 81.64 | G23: 64.88 | H23: 50.84
A24: 23 | B24: 2021-04-28 | C24: 78.48 | D24: 154.34 | E24: 59.32 | F24: 81.18 | G24: 65.79 | H24: 49.77
A25: 24 | B25: 2021-04-27 | C25: 78.74 | D25: 155.1 | E25: 58.89 | F25: 81.7 | G25: 65.9 | H25: 49.79
A26: 25 | B26: 2021-04-26 | C26: 80.42 | D26: 157.71 | E26: 60.36 | F26: 83.17 | G26: 67.36 | H26: 50.57
A27: 26 | B27: 2021-04-23 | C27: 82.38 | D27: 159.36 | E27: 61.18 | F27: 84.37 | G27: 68.34 | H27: 51.58
A28: 27 | B28: 2021-04-22 | C28: 81.62 | D28: 161.43 | E28: 61.35 | F28: 84.17 | G28: 68.64 | H28: 51.4
A29: 28 | B29: 2021-04-21 | C29: 81.82 | D29: 161 | E29: 61.22 | F29: 83.77 | G29: 67.93 | H29: 51.33
A30: 29 | B30: 2021-04-20 | C30: 81.08 | D30: 161.31 | E30: 60.44 | F30: 83.4 | G30: 68.6 | H30: 51.29
A31: 30 | B31: 2021-04-19 | C31: 80.11 | D31: 158.72 | E31: 59.33 | F31: 82.37 | G31: 67.66 | H31: 50.92
A32: 31 | B32: 2021-04-16 | C32: 80.71 | D32: 160.12 | E32: 60.31 | F32: 82.93 | G32: 67.82 | H32: 51.97
A33: 32 | B33: 2021-04-15 | C33: 80.59 | D33: 159.16 | E33: 60.55 | F33: 82.18 | G33: 67.7 | H33: 51.48
A34: 33 | B34: 2021-04-14 | C34: 79.28 | D34: 157.13 | E34: 59.3 | F34: 81.39 | G34: 66.81 | H34: 50.71
A35: 34 | B35: 2021-04-13 | C35: 78.68 | D35: 155.41 | E35: 58.83 | F35: 81.87 | G35: 65.35 | H35: 50.11
A36: =A35+1 -> 35 | B36: 2021-04-12 | C36: 78.18 | D36: 152.25 | E36: 58.32 | F36: 81.27 | G36: 65.09 | H36: 49.99
A37: 36 | B37: 2021-04-09 | C37: 77.1 | D37: 151.68 | E37: 57.5 | F37: 79.72 | G37: 63.97 | H37: 48.57
A38: 37 | B38: 2021-04-08 | C38: 77.05 | D38: 151.69 | E38: 57.3 | F38: 79.23 | G38: 64.32 | H38: 48.64
A39: 38 | B39: 2021-04-07 | C39: 76.85 | D39: 152.93 | E39: 57.49 | F39: 78.64 | G39: 63.73 | H39: 48.59
A40: 39 | B40: 2021-04-06 | C40: 77.25 | D40: 152.8 | E40: 57.86 | F40: 79.79 | G40: 64.31 | H40: 49.38
A41: 40 | B41: 2021-04-05 | C41: 76.25 | D41: 152.03 | E41: 57.17 | F41: 79.79 | G41: 64 | H41: 49.95
A42: 41 | B42: 2021-04-01 | C42: 75.89 | D42: 150.59 | E42: 56.21 | F42: 79.14 | G42: 62.6 | H42: 48.91
A43: 42 | B43: 2021-03-31 | C43: 75.62 | D43: 149.92 | E43: 56.34 | F43: 79.02 | G43: 62.99 | H43: 48.97
A44: 43 | B44: 2021-03-30 | C44: 75.23 | D44: 146.85 | E44: 55.73 | F44: 78.24 | G44: 62.5 | H44: 48
A45: 44 | B45: 2021-03-29 | C45: 75.91 | D45: 147.91 | E45: 56.17 | F45: 80.66 | G45: 63.42 | H45: 48.74
A46: 45 | B46: 2021-03-26 | C46: 75.43 | D46: 146.32 | E46: 56.06 | F46: 79.2 | G46: 62.35 | H46: 48.16
A47: 46 | B47: 2021-03-25 | C47: 74.28 | D47: 145.21 | E47: 55.39 | F47: 78.84 | G47: 61.9 | H47: 47.91
A48: 47 | B48: 2021-03-24 | C48: 74.24 | D48: 144.91 | E48: 54.95 | F48: 77.67 | G48: 61.26 | H48: 48.16
A49: 48 | B49: 2021-03-23 | C49: 74.4 | D49: 144.15 | E49: 54.92 | F49: 77.76 | G49: 60.91 | H49: 47.84
A50: 49 | B50: 2021-03-22 | C50: 73.36 | D50: 140.05 | E50: 53.31 | F50: 77.88 | G50: 60.64 | H50: 48.19
A51: 50 | B51: 2021-03-19 | C51: 73.69 | D51: 138.36 | E51: 53.6 | F51: 79.09 | G51: 60.39 | H51: 51.28
A52: =A51+1 -> 51 | B52: 2021-03-18 | C52: 73.01 | D52: 139 | E52: 53.57 | F52: 77.38 | G52: 59.62 | H52: 48.83
A53: 52 | B53: 2021-03-17 | C53: 72.24 | D53: 139.38 | E53: 53.5 | F53: 76.86 | G53: 59.46 | H53: 49.2
A54: 53 | B54: 2021-03-16 | C54: 73.07 | D54: 141.16 | E54: 54.15 | F54: 78.03 | G54: 59.5 | H54: 49.08
A55: 54 | B55: 2021-03-15 | C55: 72.38 | D55: 140.31 | E55: 53.78 | F55: 77.72 | G55: 58.81 | H55: 48.72
A56: 55 | B56: 2021-03-12 | C56: 72.16 | D56: 139.13 | E56: 53.96 | F56: 78.01 | G56: 59.77 | H56: 47.9
A57: 56 | B57: 2021-03-11 | C57: 71.78 | D57: 137.04 | E57: 53.08 | F57: 76.55 | G57: 60.17 | H57: 46.68
A58: 57 | B58: 2021-03-10 | C58: 71.92 | D58: 136.38 | E58: 52.88 | F58: 75.61 | G58: 58.89 | H58: 47.36
A59: 58 | B59: 2021-03-09 | C59: 72.16 | D59: 136.83 | E59: 52.78 | F59: 74.83 | G59: 58.87 | H59: 45.66
A60: 59 | B60: 2021-03-08 | C60: 71.52 | D60: 133.87 | E60: 53.35 | F60: 71.6 | G60: 62.79 | H60: 43.8
A61: 60 | B61: 2021-03-05 | C61: 70.94 | D61: 136.01 | E61: 52.96 | F61: 70.68 | G61: 62.56 | H61: 42.77

Sheet Proxy Prices
A2: Date | B2: =Input!E2 -> 2021-05-28
A5: =IF('Proxy Price Data'!B1="","",'Proxy Price Data'!B1) -> PX_LAST | B5: =IF('Proxy Price Data'!C1="","",'Proxy Price Data'!C1) -> AWR US Equity | C5: =IF('Proxy Price Data'!D1="","",'Proxy Price Data'!D1) -> AWK US Equity | D5: =IF('Proxy Price Data'!E1="","",'Proxy Price Data'!E1) -> CWT US Equity | E5: =IF('Proxy Price Data'!F1="","",'Proxy Price Data'!F1) -> MSEX US Equity | F5: =IF('Proxy Price Data'!G1="","",'Proxy Price Data'!G1) -> SJW US Equity | G5: =IF('Proxy Price Data'!H1="","",'Proxy Price Data'!H1) -> YORW US Equity
A6: =IF('Proxy Price Data'!B2="","",'Proxy Price Data'!B2) -> 2021-05-28 | B6: =IF('Proxy Price Data'!C2="","",'Proxy Price Data'!C2) -> 79.37 | C6: =IF('Proxy Price Data'!D2="","",'Proxy Price Data'!D2) -> 155.02 | D6: =IF('Proxy Price Data'!E2="","",'Proxy Price Data'!E2) -> 56.84 | E6: =IF('Proxy Price Data'!F2="","",'Proxy Price Data'!F2) -> 85.96 | F6: =IF('Proxy Price Data'!G2="","",'Proxy Price Data'!G2) -> 64.45 | G6: =IF('Proxy Price Data'!H2="","",'Proxy Price Data'!H2) -> 50.33
A7: =IF('Proxy Price Data'!B3="","",'Proxy Price Data'!B3) -> 2021-05-27 | B7: =IF('Proxy Price Data'!C3="","",'Proxy Price Data'!C3) -> 79.3 | C7: =IF('Proxy Price Data'!D3="","",'Proxy Price Data'!D3) -> 153.42 | D7: =IF('Proxy Price Data'!E3="","",'Proxy Price Data'!E3) -> 56.72 | E7: =IF('Proxy Price Data'!F3="","",'Proxy Price Data'!F3) -> 84.9 | F7: =IF('Proxy Price Data'!G3="","",'Proxy Price Data'!G3) -> 64.45 | G7: =IF('Proxy Price Data'!H3="","",'Proxy Price Data'!H3) -> 50.25
A8: =IF('Proxy Price Data'!B4="","",'Proxy Price Data'!B4) -> 2021-05-26 | B8: =IF('Proxy Price Data'!C4="","",'Proxy Price Data'!C4) -> 80.37 | C8: =IF('Proxy Price Data'!D4="","",'Proxy Price Data'!D4) -> 154.97 | D8: =IF('Proxy Price Data'!E4="","",'Proxy Price Data'!E4) -> 57.68 | E8: =IF('Proxy Price Data'!F4="","",'Proxy Price Data'!F4) -> 84.89 | F8: =IF('Proxy Price Data'!G4="","",'Proxy Price Data'!G4) -> 65.32 | G8: =IF('Proxy Price Data'!H4="","",'Proxy Price Data'!H4) -> 50.62
A9: =IF('Proxy Price Data'!B5="","",'Proxy Price Data'!B5) -> 2021-05-25 | B9: =IF('Proxy Price Data'!C5="","",'Proxy Price Data'!C5) -> 78.99 | C9: =IF('Proxy Price Data'!D5="","",'Proxy Price Data'!D5) -> 154.92 | D9: =IF('Proxy Price Data'!E5="","",'Proxy Price Data'!E5) -> 56.68 | E9: =IF('Proxy Price Data'!F5="","",'Proxy Price Data'!F5) -> 84.8 | F9: =IF('Proxy Price Data'!G5="","",'Proxy Price Data'!G5) -> 63.4 | G9: =IF('Proxy Price Data'!H5="","",'Proxy Price Data'!H5) -> 49.44
A10: =IF('Proxy Price Data'!B6="","",'Proxy Price Data'!B6) -> 2021-05-24 | B10: =IF('Proxy Price Data'!C6="","",'Proxy Price Data'!C6) -> 79.17 | C10: =IF('Proxy Price Data'!D6="","",'Proxy Price Data'!D6) -> 154.84 | D10: =IF('Proxy Price Data'!E6="","",'Proxy Price Data'!E6) -> 56.94 | E10: =IF('Proxy Price Data'!F6="","",'Proxy Price Data'!F6) -> 80.86 | F10: =IF('Proxy Price Data'!G6="","",'Proxy Price Data'!G6) -> 64.38 | G10: =IF('Proxy Price Data'!H6="","",'Proxy Price Data'!H6) -> 49.53
A11: =IF('Proxy Price Data'!B7="","",'Proxy Price Data'!B7) -> 2021-05-21 | B11: =IF('Proxy Price Data'!C7="","",'Proxy Price Data'!C7) -> 78.64 | C11: =IF('Proxy Price Data'!D7="","",'Proxy Price Data'!D7) -> 155.12 | D11: =IF('Proxy Price Data'!E7="","",'Proxy Price Data'!E7) -> 56.45 | E11: =IF('Proxy Price Data'!F7="","",'Proxy Price Data'!F7) -> 80.52 | F11: =IF('Proxy Price Data'!G7="","",'Proxy Price Data'!G7) -> 64.18 | G11: =IF('Proxy Price Data'!H7="","",'Proxy Price Data'!H7) -> 49.19
A12: =IF('Proxy Price Data'!B8="","",'Proxy Price Data'!B8) -> 2021-05-20 | B12: =IF('Proxy Price Data'!C8="","",'Proxy Price Data'!C8) -> 78.31 | C12: =IF('Proxy Price Data'!D8="","",'Proxy Price Data'!D8) -> 154.42 | D12: =IF('Proxy Price Data'!E8="","",'Proxy Price Data'!E8) -> 56.01 | E12: =IF('Proxy Price Data'!F8="","",'Proxy Price Data'!F8) -> 80.67 | F12: =IF('Proxy Price Data'!G8="","",'Proxy Price Data'!G8) -> 63.46 | G12: =IF('Proxy Price Data'!H8="","",'Proxy Price Data'!H8) -> 48.53
A13: =IF('Proxy Price Data'!B9="","",'Proxy Price Data'!B9) -> 2021-05-19 | B13: =IF('Proxy Price Data'!C9="","",'Proxy Price Data'!C9) -> 76.91 | C13: =IF('Proxy Price Data'!D9="","",'Proxy Price Data'!D9) -> 152.07 | D13: =IF('Proxy Price Data'!E9="","",'Proxy Price Data'!E9) -> 55.6 | E13: =IF('Proxy Price Data'!F9="","",'Proxy Price Data'!F9) -> 80.82 | F13: =IF('Proxy Price Data'!G9="","",'Proxy Price Data'!G9) -> 62.91 | G13: =IF('Proxy Price Data'!H9="","",'Proxy Price Data'!H9) -> 48.04
A14: =IF('Proxy Price Data'!B10="","",'Proxy Price Data'!B10) -> 2021-05-18 | B14: =IF('Proxy Price Data'!C10="","",'Proxy Price Data'!C10) -> 76.66 | C14: =IF('Proxy Price Data'!D10="","",'Proxy Price Data'!D10) -> 151.09 | D14: =IF('Proxy Price Data'!E10="","",'Proxy Price Data'!E10) -> 55.67 | E14: =IF('Proxy Price Data'!F10="","",'Proxy Price Data'!F10) -> 80.65 | F14: =IF('Proxy Price Data'!G10="","",'Proxy Price Data'!G10) -> 63.32 | G14: =IF('Proxy Price Data'!H10="","",'Proxy Price Data'!H10) -> 48.1
A15: =IF('Proxy Price Data'!B11="","",'Proxy Price Data'!B11) -> 2021-05-17 | B15: =IF('Proxy Price Data'!C11="","",'Proxy Price Data'!C11) -> 77.48 | C15: =IF('Proxy Price Data'!D11="","",'Proxy Price Data'!D11) -> 150.85 | D15: =IF('Proxy Price Data'!E11="","",'Proxy Price Data'!E11) -> 56.29 | E15: =IF('Proxy Price Data'!F11="","",'Proxy Price Data'!F11) -> 80.62 | F15: =IF('Proxy Price Data'!G11="","",'Proxy Price Data'!G11) -> 63.16 | G15: =IF('Proxy Price Data'!H11="","",'Proxy Price Data'!H11) -> 48.07
A16: =IF('Proxy Price Data'!B12="","",'Proxy Price Data'!B12) -> 2021-05-14 | B16: =IF('Proxy Price Data'!C12="","",'Proxy Price Data'!C12) -> 78.47 | C16: =IF('Proxy Price Data'!D12="","",'Proxy Price Data'!D12) -> 152.83 | D16: =IF('Proxy Price Data'!E12="","",'Proxy Price Data'!E12) -> 56.64 | E16: =IF('Proxy Price Data'!F12="","",'Proxy Price Data'!F12) -> 79.73 | F16: =IF('Proxy Price Data'!G12="","",'Proxy Price Data'!G12) -> 62.93 | G16: =IF('Proxy Price Data'!H12="","",'Proxy Price Data'!H12) -> 48.59
A17: =IF('Proxy Price Data'!B13="","",'Proxy Price Data'!B13) -> 2021-05-13 | B17: =IF('Proxy Price Data'!C13="","",'Proxy Price Data'!C13) -> 78.81 | C17: =IF('Proxy Price Data'!D13="","",'Proxy Price Data'!D13) -> 152 | D17: =IF('Proxy Price Data'!E13="","",'Proxy Price Data'!E13) -> 56.7 | E17: =IF('Proxy Price Data'!F13="","",'Proxy Price Data'!F13) -> 79.03 | F17: =IF('Proxy Price Data'!G13="","",'Proxy Price Data'!G13) -> 62.85 | G17: =IF('Proxy Price Data'!H13="","",'Proxy Price Data'!H13) -> 48.48
A18: =IF('Proxy Price Data'!B14="","",'Proxy Price Data'!B14) -> 2021-05-12 | B18: =IF('Proxy Price Data'!C14="","",'Proxy Price Data'!C14) -> 76.97 | C18: =IF('Proxy Price Data'!D14="","",'Proxy Price Data'!D14) -> 149.59 | D18: =IF('Proxy Price Data'!E14="","",'Proxy Price Data'!E14) -> 55.26 | E18: =IF('Proxy Price Data'!F14="","",'Proxy Price Data'!F14) -> 77.58 | F18: =IF('Proxy Price Data'!G14="","",'Proxy Price Data'!G14) -> 61.08 | G18: =IF('Proxy Price Data'!H14="","",'Proxy Price Data'!H14) -> 46.74
A19: =IF('Proxy Price Data'!B15="","",'Proxy Price Data'!B15) -> 2021-05-11 | B19: =IF('Proxy Price Data'!C15="","",'Proxy Price Data'!C15) -> 78.65 | C19: =IF('Proxy Price Data'!D15="","",'Proxy Price Data'!D15) -> 153.7 | D19: =IF('Proxy Price Data'!E15="","",'Proxy Price Data'!E15) -> 57.16 | E19: =IF('Proxy Price Data'!F15="","",'Proxy Price Data'!F15) -> 80.59 | F19: =IF('Proxy Price Data'!G15="","",'Proxy Price Data'!G15) -> 63.48 | G19: =IF('Proxy Price Data'!H15="","",'Proxy Price Data'!H15) -> 48.54
A20: =IF('Proxy Price Data'!B16="","",'Proxy Price Data'!B16) -> 2021-05-10 | B20: =IF('Proxy Price Data'!C16="","",'Proxy Price Data'!C16) -> 78.93 | C20: =IF('Proxy Price Data'!D16="","",'Proxy Price Data'!D16) -> 156 | D20: =IF('Proxy Price Data'!E16="","",'Proxy Price Data'!E16) -> 57.67 | E20: =IF('Proxy Price Data'!F16="","",'Proxy Price Data'!F16) -> 81.07 | F20: =IF('Proxy Price Data'!G16="","",'Proxy Price Data'!G16) -> 62.63 | G20: =IF('Proxy Price Data'!H16="","",'Proxy Price Data'!H16) -> 48.55
A21: =IF('Proxy Price Data'!B17="","",'Proxy Price Data'!B17) -> 2021-05-07 | B21: =IF('Proxy Price Data'!C17="","",'Proxy Price Data'!C17) -> 79.5 | C21: =IF('Proxy Price Data'!D17="","",'Proxy Price Data'!D17) -> 152.77 | D21: =IF('Proxy Price Data'!E17="","",'Proxy Price Data'!E17) -> 57.83 | E21: =IF('Proxy Price Data'!F17="","",'Proxy Price Data'!F17) -> 80.67 | F21: =IF('Proxy Price Data'!G17="","",'Proxy Price Data'!G17) -> 63.71 | G21: =IF('Proxy Price Data'!H17="","",'Proxy Price Data'!H17) -> 49.01
A22: =IF('Proxy Price Data'!B18="","",'Proxy Price Data'!B18) -> 2021-05-06 | B22: =IF('Proxy Price Data'!C18="","",'Proxy Price Data'!C18) -> 79.9 | C22: =IF('Proxy Price Data'!D18="","",'Proxy Price Data'!D18) -> 153.2 | D22: =IF('Proxy Price Data'!E18="","",'Proxy Price Data'!E18) -> 57.92 | E22: =IF('Proxy Price Data'!F18="","",'Proxy Price Data'!F18) -> 79.93 | F22: =IF('Proxy Price Data'!G18="","",'Proxy Price Data'!G18) -> 64.3 | G22: =IF('Proxy Price Data'!H18="","",'Proxy Price Data'!H18) -> 48.8
A23: =IF('Proxy Price Data'!B19="","",'Proxy Price Data'!B19) -> 2021-05-05 | B23: =IF('Proxy Price Data'!C19="","",'Proxy Price Data'!C19) -> 78.97 | C23: =IF('Proxy Price Data'!D19="","",'Proxy Price Data'!D19) -> 153.06 | D23: =IF('Proxy Price Data'!E19="","",'Proxy Price Data'!E19) -> 57.78 | E23: =IF('Proxy Price Data'!F19="","",'Proxy Price Data'!F19) -> 79.84 | F23: =IF('Proxy Price Data'!G19="","",'Proxy Price Data'!G19) -> 63.35 | G23: =IF('Proxy Price Data'!H19="","",'Proxy Price Data'!H19) -> 48.86
A24: =IF('Proxy Price Data'!B20="","",'Proxy Price Data'!B20) -> 2021-05-04 | B24: =IF('Proxy Price Data'!C20="","",'Proxy Price Data'!C20) -> 79.97 | C24: =IF('Proxy Price Data'!D20="","",'Proxy Price Data'!D20) -> 155.29 | D24: =IF('Proxy Price Data'!E20="","",'Proxy Price Data'!E20) -> 58.89 | E24: =IF('Proxy Price Data'!F20="","",'Proxy Price Data'!F20) -> 80.72 | F24: =IF('Proxy Price Data'!G20="","",'Proxy Price Data'!G20) -> 64.66 | G24: =IF('Proxy Price Data'!H20="","",'Proxy Price Data'!H20) -> 49.81
A25: =IF('Proxy Price Data'!B21="","",'Proxy Price Data'!B21) -> 2021-05-03 | B25: =IF('Proxy Price Data'!C21="","",'Proxy Price Data'!C21) -> 79.28 | C25: =IF('Proxy Price Data'!D21="","",'Proxy Price Data'!D21) -> 155.5 | D25: =IF('Proxy Price Data'!E21="","",'Proxy Price Data'!E21) -> 59 | E25: =IF('Proxy Price Data'!F21="","",'Proxy Price Data'!F21) -> 82.14 | F25: =IF('Proxy Price Data'!G21="","",'Proxy Price Data'!G21) -> 65.57 | G25: =IF('Proxy Price Data'!H21="","",'Proxy Price Data'!H21) -> 51.4
A26: =IF('Proxy Price Data'!B22="","",'Proxy Price Data'!B22) -> 2021-04-30 | B26: =IF('Proxy Price Data'!C22="","",'Proxy Price Data'!C22) -> 79.19 | C26: =IF('Proxy Price Data'!D22="","",'Proxy Price Data'!D22) -> 155.99 | D26: =IF('Proxy Price Data'!E22="","",'Proxy Price Data'!E22) -> 58.75 | E26: =IF('Proxy Price Data'!F22="","",'Proxy Price Data'!F22) -> 82.02 | F26: =IF('Proxy Price Data'!G22="","",'Proxy Price Data'!G22) -> 65.55 | G26: =IF('Proxy Price Data'!H22="","",'Proxy Price Data'!H22) -> 51.64
A27: =IF('Proxy Price Data'!B23="","",'Proxy Price Data'!B23) -> 2021-04-29 | B27: =IF('Proxy Price Data'!C23="","",'Proxy Price Data'!C23) -> 78.93 | C27: =IF('Proxy Price Data'!D23="","",'Proxy Price Data'!D23) -> 154.44 | D27: =IF('Proxy Price Data'!E23="","",'Proxy Price Data'!E23) -> 58.47 | E27: =IF('Proxy Price Data'!F23="","",'Proxy Price Data'!F23) -> 81.64 | F27: =IF('Proxy Price Data'!G23="","",'Proxy Price Data'!G23) -> 64.88 | G27: =IF('Proxy Price Data'!H23="","",'Proxy Price Data'!H23) -> 50.84
A28: =IF('Proxy Price Data'!B24="","",'Proxy Price Data'!B24) -> 2021-04-28 | B28: =IF('Proxy Price Data'!C24="","",'Proxy Price Data'!C24) -> 78.48 | C28: =IF('Proxy Price Data'!D24="","",'Proxy Price Data'!D24) -> 154.34 | D28: =IF('Proxy Price Data'!E24="","",'Proxy Price Data'!E24) -> 59.32 | E28: =IF('Proxy Price Data'!F24="","",'Proxy Price Data'!F24) -> 81.18 | F28: =IF('Proxy Price Data'!G24="","",'Proxy Price Data'!G24) -> 65.79 | G28: =IF('Proxy Price Data'!H24="","",'Proxy Price Data'!H24) -> 49.77
A29: =IF('Proxy Price Data'!B25="","",'Proxy Price Data'!B25) -> 2021-04-27 | B29: =IF('Proxy Price Data'!C25="","",'Proxy Price Data'!C25) -> 78.74 | C29: =IF('Proxy Price Data'!D25="","",'Proxy Price Data'!D25) -> 155.1 | D29: =IF('Proxy Price Data'!E25="","",'Proxy Price Data'!E25) -> 58.89 | E29: =IF('Proxy Price Data'!F25="","",'Proxy Price Data'!F25) -> 81.7 | F29: =IF('Proxy Price Data'!G25="","",'Proxy Price Data'!G25) -> 65.9 | G29: =IF('Proxy Price Data'!H25="","",'Proxy Price Data'!H25) -> 49.79
A30: =IF('Proxy Price Data'!B26="","",'Proxy Price Data'!B26) -> 2021-04-26 | B30: =IF('Proxy Price Data'!C26="","",'Proxy Price Data'!C26) -> 80.42 | C30: =IF('Proxy Price Data'!D26="","",'Proxy Price Data'!D26) -> 157.71 | D30: =IF('Proxy Price Data'!E26="","",'Proxy Price Data'!E26) -> 60.36 | E30: =IF('Proxy Price Data'!F26="","",'Proxy Price Data'!F26) -> 83.17 | F30: =IF('Proxy Price Data'!G26="","",'Proxy Price Data'!G26) -> 67.36 | G30: =IF('Proxy Price Data'!H26="","",'Proxy Price Data'!H26) -> 50.57
A31: =IF('Proxy Price Data'!B27="","",'Proxy Price Data'!B27) -> 2021-04-23 | B31: =IF('Proxy Price Data'!C27="","",'Proxy Price Data'!C27) -> 82.38 | C31: =IF('Proxy Price Data'!D27="","",'Proxy Price Data'!D27) -> 159.36 | D31: =IF('Proxy Price Data'!E27="","",'Proxy Price Data'!E27) -> 61.18 | E31: =IF('Proxy Price Data'!F27="","",'Proxy Price Data'!F27) -> 84.37 | F31: =IF('Proxy Price Data'!G27="","",'Proxy Price Data'!G27) -> 68.34 | G31: =IF('Proxy Price Data'!H27="","",'Proxy Price Data'!H27) -> 51.58
A32: =IF('Proxy Price Data'!B28="","",'Proxy Price Data'!B28) -> 2021-04-22 | B32: =IF('Proxy Price Data'!C28="","",'Proxy Price Data'!C28) -> 81.62 | C32: =IF('Proxy Price Data'!D28="","",'Proxy Price Data'!D28) -> 161.43 | D32: =IF('Proxy Price Data'!E28="","",'Proxy Price Data'!E28) -> 61.35 | E32: =IF('Proxy Price Data'!F28="","",'Proxy Price Data'!F28) -> 84.17 | F32: =IF('Proxy Price Data'!G28="","",'Proxy Price Data'!G28) -> 68.64 | G32: =IF('Proxy Price Data'!H28="","",'Proxy Price Data'!H28) -> 51.4
A33: =IF('Proxy Price Data'!B29="","",'Proxy Price Data'!B29) -> 2021-04-21 | B33: =IF('Proxy Price Data'!C29="","",'Proxy Price Data'!C29) -> 81.82 | C33: =IF('Proxy Price Data'!D29="","",'Proxy Price Data'!D29) -> 161 | D33: =IF('Proxy Price Data'!E29="","",'Proxy Price Data'!E29) -> 61.22 | E33: =IF('Proxy Price Data'!F29="","",'Proxy Price Data'!F29) -> 83.77 | F33: =IF('Proxy Price Data'!G29="","",'Proxy Price Data'!G29) -> 67.93 | G33: =IF('Proxy Price Data'!H29="","",'Proxy Price Data'!H29) -> 51.33
A34: =IF('Proxy Price Data'!B30="","",'Proxy Price Data'!B30) -> 2021-04-20 | B34: =IF('Proxy Price Data'!C30="","",'Proxy Price Data'!C30) -> 81.08 | C34: =IF('Proxy Price Data'!D30="","",'Proxy Price Data'!D30) -> 161.31 | D34: =IF('Proxy Price Data'!E30="","",'Proxy Price Data'!E30) -> 60.44 | E34: =IF('Proxy Price Data'!F30="","",'Proxy Price Data'!F30) -> 83.4 | F34: =IF('Proxy Price Data'!G30="","",'Proxy Price Data'!G30) -> 68.6 | G34: =IF('Proxy Price Data'!H30="","",'Proxy Price Data'!H30) -> 51.29
A35: =IF('Proxy Price Data'!B31="","",'Proxy Price Data'!B31) -> 2021-04-19 | B35: =IF('Proxy Price Data'!C31="","",'Proxy Price Data'!C31) -> 80.11 | C35: =IF('Proxy Price Data'!D31="","",'Proxy Price Data'!D31) -> 158.72 | D35: =IF('Proxy Price Data'!E31="","",'Proxy Price Data'!E31) -> 59.33 | E35: =IF('Proxy Price Data'!F31="","",'Proxy Price Data'!F31) -> 82.37 | F35: =IF('Proxy Price Data'!G31="","",'Proxy Price Data'!G31) -> 67.66 | G35: =IF('Proxy Price Data'!H31="","",'Proxy Price Data'!H31) -> 50.92
A36: =IF('Proxy Price Data'!B32="","",'Proxy Price Data'!B32) -> 2021-04-16 | B36: =IF('Proxy Price Data'!C32="","",'Proxy Price Data'!C32) -> 80.71 | C36: =IF('Proxy Price Data'!D32="","",'Proxy Price Data'!D32) -> 160.12 | D36: =IF('Proxy Price Data'!E32="","",'Proxy Price Data'!E32) -> 60.31 | E36: =IF('Proxy Price Data'!F32="","",'Proxy Price Data'!F32) -> 82.93 | F36: =IF('Proxy Price Data'!G32="","",'Proxy Price Data'!G32) -> 67.82 | G36: =IF('Proxy Price Data'!H32="","",'Proxy Price Data'!H32) -> 51.97
A37: =IF('Proxy Price Data'!B33="","",'Proxy Price Data'!B33) -> 2021-04-15 | B37: =IF('Proxy Price Data'!C33="","",'Proxy Price Data'!C33) -> 80.59 | C37: =IF('Proxy Price Data'!D33="","",'Proxy Price Data'!D33) -> 159.16 | D37: =IF('Proxy Price Data'!E33="","",'Proxy Price Data'!E33) -> 60.55 | E37: =IF('Proxy Price Data'!F33="","",'Proxy Price Data'!F33) -> 82.18 | F37: =IF('Proxy Price Data'!G33="","",'Proxy Price Data'!G33) -> 67.7 | G37: =IF('Proxy Price Data'!H33="","",'Proxy Price Data'!H33) -> 51.48
A38: =IF('Proxy Price Data'!B34="","",'Proxy Price Data'!B34) -> 2021-04-14 | B38: =IF('Proxy Price Data'!C34="","",'Proxy Price Data'!C34) -> 79.28 | C38: =IF('Proxy Price Data'!D34="","",'Proxy Price Data'!D34) -> 157.13 | D38: =IF('Proxy Price Data'!E34="","",'Proxy Price Data'!E34) -> 59.3 | E38: =IF('Proxy Price Data'!F34="","",'Proxy Price Data'!F34) -> 81.39 | F38: =IF('Proxy Price Data'!G34="","",'Proxy Price Data'!G34) -> 66.81 | G38: =IF('Proxy Price Data'!H34="","",'Proxy Price Data'!H34) -> 50.71
A39: =IF('Proxy Price Data'!B35="","",'Proxy Price Data'!B35) -> 2021-04-13 | B39: =IF('Proxy Price Data'!C35="","",'Proxy Price Data'!C35) -> 78.68 | C39: =IF('Proxy Price Data'!D35="","",'Proxy Price Data'!D35) -> 155.41 | D39: =IF('Proxy Price Data'!E35="","",'Proxy Price Data'!E35) -> 58.83 | E39: =IF('Proxy Price Data'!F35="","",'Proxy Price Data'!F35) -> 81.87 | F39: =IF('Proxy Price Data'!G35="","",'Proxy Price Data'!G35) -> 65.35 | G39: =IF('Proxy Price Data'!H35="","",'Proxy Price Data'!H35) -> 50.11
A40: =IF('Proxy Price Data'!B36="","",'Proxy Price Data'!B36) -> 2021-04-12 | B40: =IF('Proxy Price Data'!C36="","",'Proxy Price Data'!C36) -> 78.18 | C40: =IF('Proxy Price Data'!D36="","",'Proxy Price Data'!D36) -> 152.25 | D40: =IF('Proxy Price Data'!E36="","",'Proxy Price Data'!E36) -> 58.32 | E40: =IF('Proxy Price Data'!F36="","",'Proxy Price Data'!F36) -> 81.27 | F40: =IF('Proxy Price Data'!G36="","",'Proxy Price Data'!G36) -> 65.09 | G40: =IF('Proxy Price Data'!H36="","",'Proxy Price Data'!H36) -> 49.99
A41: =IF('Proxy Price Data'!B37="","",'Proxy Price Data'!B37) -> 2021-04-09 | B41: =IF('Proxy Price Data'!C37="","",'Proxy Price Data'!C37) -> 77.1 | C41: =IF('Proxy Price Data'!D37="","",'Proxy Price Data'!D37) -> 151.68 | D41: =IF('Proxy Price Data'!E37="","",'Proxy Price Data'!E37) -> 57.5 | E41: =IF('Proxy Price Data'!F37="","",'Proxy Price Data'!F37) -> 79.72 | F41: =IF('Proxy Price Data'!G37="","",'Proxy Price Data'!G37) -> 63.97 | G41: =IF('Proxy Price Data'!H37="","",'Proxy Price Data'!H37) -> 48.57
A42: =IF('Proxy Price Data'!B38="","",'Proxy Price Data'!B38) -> 2021-04-08 | B42: =IF('Proxy Price Data'!C38="","",'Proxy Price Data'!C38) -> 77.05 | C42: =IF('Proxy Price Data'!D38="","",'Proxy Price Data'!D38) -> 151.69 | D42: =IF('Proxy Price Data'!E38="","",'Proxy Price Data'!E38) -> 57.3 | E42: =IF('Proxy Price Data'!F38="","",'Proxy Price Data'!F38) -> 79.23 | F42: =IF('Proxy Price Data'!G38="","",'Proxy Price Data'!G38) -> 64.32 | G42: =IF('Proxy Price Data'!H38="","",'Proxy Price Data'!H38) -> 48.64
A43: =IF('Proxy Price Data'!B39="","",'Proxy Price Data'!B39) -> 2021-04-07 | B43: =IF('Proxy Price Data'!C39="","",'Proxy Price Data'!C39) -> 76.85 | C43: =IF('Proxy Price Data'!D39="","",'Proxy Price Data'!D39) -> 152.93 | D43: =IF('Proxy Price Data'!E39="","",'Proxy Price Data'!E39) -> 57.49 | E43: =IF('Proxy Price Data'!F39="","",'Proxy Price Data'!F39) -> 78.64 | F43: =IF('Proxy Price Data'!G39="","",'Proxy Price Data'!G39) -> 63.73 | G43: =IF('Proxy Price Data'!H39="","",'Proxy Price Data'!H39) -> 48.59
A44: =IF('Proxy Price Data'!B40="","",'Proxy Price Data'!B40) -> 2021-04-06 | B44: =IF('Proxy Price Data'!C40="","",'Proxy Price Data'!C40) -> 77.25 | C44: =IF('Proxy Price Data'!D40="","",'Proxy Price Data'!D40) -> 152.8 | D44: =IF('Proxy Price Data'!E40="","",'Proxy Price Data'!E40) -> 57.86 | E44: =IF('Proxy Price Data'!F40="","",'Proxy Price Data'!F40) -> 79.79 | F44: =IF('Proxy Price Data'!G40="","",'Proxy Price Data'!G40) -> 64.31 | G44: =IF('Proxy Price Data'!H40="","",'Proxy Price Data'!H40) -> 49.38
A45: =IF('Proxy Price Data'!B41="","",'Proxy Price Data'!B41) -> 2021-04-05 | B45: =IF('Proxy Price Data'!C41="","",'Proxy Price Data'!C41) -> 76.25 | C45: =IF('Proxy Price Data'!D41="","",'Proxy Price Data'!D41) -> 152.03 | D45: =IF('Proxy Price Data'!E41="","",'Proxy Price Data'!E41) -> 57.17 | E45: =IF('Proxy Price Data'!F41="","",'Proxy Price Data'!F41) -> 79.79 | F45: =IF('Proxy Price Data'!G41="","",'Proxy Price Data'!G41) -> 64 | G45: =IF('Proxy Price Data'!H41="","",'Proxy Price Data'!H41) -> 49.95
A46: =IF('Proxy Price Data'!B42="","",'Proxy Price Data'!B42) -> 2021-04-01 | B46: =IF('Proxy Price Data'!C42="","",'Proxy Price Data'!C42) -> 75.89 | C46: =IF('Proxy Price Data'!D42="","",'Proxy Price Data'!D42) -> 150.59 | D46: =IF('Proxy Price Data'!E42="","",'Proxy Price Data'!E42) -> 56.21 | E46: =IF('Proxy Price Data'!F42="","",'Proxy Price Data'!F42) -> 79.14 | F46: =IF('Proxy Price Data'!G42="","",'Proxy Price Data'!G42) -> 62.6 | G46: =IF('Proxy Price Data'!H42="","",'Proxy Price Data'!H42) -> 48.91
A47: =IF('Proxy Price Data'!B43="","",'Proxy Price Data'!B43) -> 2021-03-31 | B47: =IF('Proxy Price Data'!C43="","",'Proxy Price Data'!C43) -> 75.62 | C47: =IF('Proxy Price Data'!D43="","",'Proxy Price Data'!D43) -> 149.92 | D47: =IF('Proxy Price Data'!E43="","",'Proxy Price Data'!E43) -> 56.34 | E47: =IF('Proxy Price Data'!F43="","",'Proxy Price Data'!F43) -> 79.02 | F47: =IF('Proxy Price Data'!G43="","",'Proxy Price Data'!G43) -> 62.99 | G47: =IF('Proxy Price Data'!H43="","",'Proxy Price Data'!H43) -> 48.97
A48: =IF('Proxy Price Data'!B44="","",'Proxy Price Data'!B44) -> 2021-03-30 | B48: =IF('Proxy Price Data'!C44="","",'Proxy Price Data'!C44) -> 75.23 | C48: =IF('Proxy Price Data'!D44="","",'Proxy Price Data'!D44) -> 146.85 | D48: =IF('Proxy Price Data'!E44="","",'Proxy Price Data'!E44) -> 55.73 | E48: =IF('Proxy Price Data'!F44="","",'Proxy Price Data'!F44) -> 78.24 | F48: =IF('Proxy Price Data'!G44="","",'Proxy Price Data'!G44) -> 62.5 | G48: =IF('Proxy Price Data'!H44="","",'Proxy Price Data'!H44) -> 48
A49: =IF('Proxy Price Data'!B45="","",'Proxy Price Data'!B45) -> 2021-03-29 | B49: =IF('Proxy Price Data'!C45="","",'Proxy Price Data'!C45) -> 75.91 | C49: =IF('Proxy Price Data'!D45="","",'Proxy Price Data'!D45) -> 147.91 | D49: =IF('Proxy Price Data'!E45="","",'Proxy Price Data'!E45) -> 56.17 | E49: =IF('Proxy Price Data'!F45="","",'Proxy Price Data'!F45) -> 80.66 | F49: =IF('Proxy Price Data'!G45="","",'Proxy Price Data'!G45) -> 63.42 | G49: =IF('Proxy Price Data'!H45="","",'Proxy Price Data'!H45) -> 48.74
A50: =IF('Proxy Price Data'!B46="","",'Proxy Price Data'!B46) -> 2021-03-26 | B50: =IF('Proxy Price Data'!C46="","",'Proxy Price Data'!C46) -> 75.43 | C50: =IF('Proxy Price Data'!D46="","",'Proxy Price Data'!D46) -> 146.32 | D50: =IF('Proxy Price Data'!E46="","",'Proxy Price Data'!E46) -> 56.06 | E50: =IF('Proxy Price Data'!F46="","",'Proxy Price Data'!F46) -> 79.2 | F50: =IF('Proxy Price Data'!G46="","",'Proxy Price Data'!G46) -> 62.35 | G50: =IF('Proxy Price Data'!H46="","",'Proxy Price Data'!H46) -> 48.16
A51: =IF('Proxy Price Data'!B47="","",'Proxy Price Data'!B47) -> 2021-03-25 | B51: =IF('Proxy Price Data'!C47="","",'Proxy Price Data'!C47) -> 74.28 | C51: =IF('Proxy Price Data'!D47="","",'Proxy Price Data'!D47) -> 145.21 | D51: =IF('Proxy Price Data'!E47="","",'Proxy Price Data'!E47) -> 55.39 | E51: =IF('Proxy Price Data'!F47="","",'Proxy Price Data'!F47) -> 78.84 | F51: =IF('Proxy Price Data'!G47="","",'Proxy Price Data'!G47) -> 61.9 | G51: =IF('Proxy Price Data'!H47="","",'Proxy Price Data'!H47) -> 47.91
A52: =IF('Proxy Price Data'!B48="","",'Proxy Price Data'!B48) -> 2021-03-24 | B52: =IF('Proxy Price Data'!C48="","",'Proxy Price Data'!C48) -> 74.24 | C52: =IF('Proxy Price Data'!D48="","",'Proxy Price Data'!D48) -> 144.91 | D52: =IF('Proxy Price Data'!E48="","",'Proxy Price Data'!E48) -> 54.95 | E52: =IF('Proxy Price Data'!F48="","",'Proxy Price Data'!F48) -> 77.67 | F52: =IF('Proxy Price Data'!G48="","",'Proxy Price Data'!G48) -> 61.26 | G52: =IF('Proxy Price Data'!H48="","",'Proxy Price Data'!H48) -> 48.16
A53: =IF('Proxy Price Data'!B49="","",'Proxy Price Data'!B49) -> 2021-03-23 | B53: =IF('Proxy Price Data'!C49="","",'Proxy Price Data'!C49) -> 74.4 | C53: =IF('Proxy Price Data'!D49="","",'Proxy Price Data'!D49) -> 144.15 | D53: =IF('Proxy Price Data'!E49="","",'Proxy Price Data'!E49) -> 54.92 | E53: =IF('Proxy Price Data'!F49="","",'Proxy Price Data'!F49) -> 77.76 | F53: =IF('Proxy Price Data'!G49="","",'Proxy Price Data'!G49) -> 60.91 | G53: =IF('Proxy Price Data'!H49="","",'Proxy Price Data'!H49) -> 47.84
A54: =IF('Proxy Price Data'!B50="","",'Proxy Price Data'!B50) -> 2021-03-22 | B54: =IF('Proxy Price Data'!C50="","",'Proxy Price Data'!C50) -> 73.36 | C54: =IF('Proxy Price Data'!D50="","",'Proxy Price Data'!D50) -> 140.05 | D54: =IF('Proxy Price Data'!E50="","",'Proxy Price Data'!E50) -> 53.31 | E54: =IF('Proxy Price Data'!F50="","",'Proxy Price Data'!F50) -> 77.88 | F54: =IF('Proxy Price Data'!G50="","",'Proxy Price Data'!G50) -> 60.64 | G54: =IF('Proxy Price Data'!H50="","",'Proxy Price Data'!H50) -> 48.19
A55: =IF('Proxy Price Data'!B51="","",'Proxy Price Data'!B51) -> 2021-03-19 | B55: =IF('Proxy Price Data'!C51="","",'Proxy Price Data'!C51) -> 73.69 | C55: =IF('Proxy Price Data'!D51="","",'Proxy Price Data'!D51) -> 138.36 | D55: =IF('Proxy Price Data'!E51="","",'Proxy Price Data'!E51) -> 53.6 | E55: =IF('Proxy Price Data'!F51="","",'Proxy Price Data'!F51) -> 79.09 | F55: =IF('Proxy Price Data'!G51="","",'Proxy Price Data'!G51) -> 60.39 | G55: =IF('Proxy Price Data'!H51="","",'Proxy Price Data'!H51) -> 51.28
A56: =IF('Proxy Price Data'!B52="","",'Proxy Price Data'!B52) -> 2021-03-18 | B56: =IF('Proxy Price Data'!C52="","",'Proxy Price Data'!C52) -> 73.01 | C56: =IF('Proxy Price Data'!D52="","",'Proxy Price Data'!D52) -> 139 | D56: =IF('Proxy Price Data'!E52="","",'Proxy Price Data'!E52) -> 53.57 | E56: =IF('Proxy Price Data'!F52="","",'Proxy Price Data'!F52) -> 77.38 | F56: =IF('Proxy Price Data'!G52="","",'Proxy Price Data'!G52) -> 59.62 | G56: =IF('Proxy Price Data'!H52="","",'Proxy Price Data'!H52) -> 48.83
A57: =IF('Proxy Price Data'!B53="","",'Proxy Price Data'!B53) -> 2021-03-17 | B57: =IF('Proxy Price Data'!C53="","",'Proxy Price Data'!C53) -> 72.24 | C57: =IF('Proxy Price Data'!D53="","",'Proxy Price Data'!D53) -> 139.38 | D57: =IF('Proxy Price Data'!E53="","",'Proxy Price Data'!E53) -> 53.5 | E57: =IF('Proxy Price Data'!F53="","",'Proxy Price Data'!F53) -> 76.86 | F57: =IF('Proxy Price Data'!G53="","",'Proxy Price Data'!G53) -> 59.46 | G57: =IF('Proxy Price Data'!H53="","",'Proxy Price Data'!H53) -> 49.2
A58: =IF('Proxy Price Data'!B54="","",'Proxy Price Data'!B54) -> 2021-03-16 | B58: =IF('Proxy Price Data'!C54="","",'Proxy Price Data'!C54) -> 73.07 | C58: =IF('Proxy Price Data'!D54="","",'Proxy Price Data'!D54) -> 141.16 | D58: =IF('Proxy Price Data'!E54="","",'Proxy Price Data'!E54) -> 54.15 | E58: =IF('Proxy Price Data'!F54="","",'Proxy Price Data'!F54) -> 78.03 | F58: =IF('Proxy Price Data'!G54="","",'Proxy Price Data'!G54) -> 59.5 | G58: =IF('Proxy Price Data'!H54="","",'Proxy Price Data'!H54) -> 49.08
A59: =IF('Proxy Price Data'!B55="","",'Proxy Price Data'!B55) -> 2021-03-15 | B59: =IF('Proxy Price Data'!C55="","",'Proxy Price Data'!C55) -> 72.38 | C59: =IF('Proxy Price Data'!D55="","",'Proxy Price Data'!D55) -> 140.31 | D59: =IF('Proxy Price Data'!E55="","",'Proxy Price Data'!E55) -> 53.78 | E59: =IF('Proxy Price Data'!F55="","",'Proxy Price Data'!F55) -> 77.72 | F59: =IF('Proxy Price Data'!G55="","",'Proxy Price Data'!G55) -> 58.81 | G59: =IF('Proxy Price Data'!H55="","",'Proxy Price Data'!H55) -> 48.72
A60: =IF('Proxy Price Data'!B56="","",'Proxy Price Data'!B56) -> 2021-03-12 | B60: =IF('Proxy Price Data'!C56="","",'Proxy Price Data'!C56) -> 72.16 | C60: =IF('Proxy Price Data'!D56="","",'Proxy Price Data'!D56) -> 139.13 | D60: =IF('Proxy Price Data'!E56="","",'Proxy Price Data'!E56) -> 53.96 | E60: =IF('Proxy Price Data'!F56="","",'Proxy Price Data'!F56) -> 78.01 | F60: =IF('Proxy Price Data'!G56="","",'Proxy Price Data'!G56) -> 59.77 | G60: =IF('Proxy Price Data'!H56="","",'Proxy Price Data'!H56) -> 47.9
A61: =IF('Proxy Price Data'!B57="","",'Proxy Price Data'!B57) -> 2021-03-11 | B61: =IF('Proxy Price Data'!C57="","",'Proxy Price Data'!C57) -> 71.78 | C61: =IF('Proxy Price Data'!D57="","",'Proxy Price Data'!D57) -> 137.04 | D61: =IF('Proxy Price Data'!E57="","",'Proxy Price Data'!E57) -> 53.08 | E61: =IF('Proxy Price Data'!F57="","",'Proxy Price Data'!F57) -> 76.55 | F61: =IF('Proxy Price Data'!G57="","",'Proxy Price Data'!G57) -> 60.17 | G61: =IF('Proxy Price Data'!H57="","",'Proxy Price Data'!H57) -> 46.68
A62: =IF('Proxy Price Data'!B58="","",'Proxy Price Data'!B58) -> 2021-03-10 | B62: =IF('Proxy Price Data'!C58="","",'Proxy Price Data'!C58) -> 71.92 | C62: =IF('Proxy Price Data'!D58="","",'Proxy Price Data'!D58) -> 136.38 | D62: =IF('Proxy Price Data'!E58="","",'Proxy Price Data'!E58) -> 52.88 | E62: =IF('Proxy Price Data'!F58="","",'Proxy Price Data'!F58) -> 75.61 | F62: =IF('Proxy Price Data'!G58="","",'Proxy Price Data'!G58) -> 58.89 | G62: =IF('Proxy Price Data'!H58="","",'Proxy Price Data'!H58) -> 47.36
A63: =IF('Proxy Price Data'!B59="","",'Proxy Price Data'!B59) -> 2021-03-09 | B63: =IF('Proxy Price Data'!C59="","",'Proxy Price Data'!C59) -> 72.16 | C63: =IF('Proxy Price Data'!D59="","",'Proxy Price Data'!D59) -> 136.83 | D63: =IF('Proxy Price Data'!E59="","",'Proxy Price Data'!E59) -> 52.78 | E63: =IF('Proxy Price Data'!F59="","",'Proxy Price Data'!F59) -> 74.83 | F63: =IF('Proxy Price Data'!G59="","",'Proxy Price Data'!G59) -> 58.87 | G63: =IF('Proxy Price Data'!H59="","",'Proxy Price Data'!H59) -> 45.66
A64: =IF('Proxy Price Data'!B60="","",'Proxy Price Data'!B60) -> 2021-03-08 | B64: =IF('Proxy Price Data'!C60="","",'Proxy Price Data'!C60) -> 71.52 | C64: =IF('Proxy Price Data'!D60="","",'Proxy Price Data'!D60) -> 133.87 | D64: =IF('Proxy Price Data'!E60="","",'Proxy Price Data'!E60) -> 53.35 | E64: =IF('Proxy Price Data'!F60="","",'Proxy Price Data'!F60) -> 71.6 | F64: =IF('Proxy Price Data'!G60="","",'Proxy Price Data'!G60) -> 62.79 | G64: =IF('Proxy Price Data'!H60="","",'Proxy Price Data'!H60) -> 43.8
A65: =IF('Proxy Price Data'!B61="","",'Proxy Price Data'!B61) -> 2021-03-05 | B65: =IF('Proxy Price Data'!C61="","",'Proxy Price Data'!C61) -> 70.94 | C65: =IF('Proxy Price Data'!D61="","",'Proxy Price Data'!D61) -> 136.01 | D65: =IF('Proxy Price Data'!E61="","",'Proxy Price Data'!E61) -> 52.96 | E65: =IF('Proxy Price Data'!F61="","",'Proxy Price Data'!F61) -> 70.68 | F65: =IF('Proxy Price Data'!G61="","",'Proxy Price Data'!G61) -> 62.56 | G65: =IF('Proxy Price Data'!H61="","",'Proxy Price Data'!H61) -> 42.77
A67: Average Price | B67: =IFERROR(ROUND(AVERAGE(B6:B65),2),0) -> 77.14 | C67: 150.48 | D67: 56.84 | E67: 80.09 | F67: 63.61 | G67: 49.09
A69: Indicated Dividend | B69: =IFERROR(ROUND(VLOOKUP(LEFT(B5,FIND(" ",B5)-1),'Proxy Data Lookup'!$A:$O,10,FALSE),10),0) -> 1.34 | C69: =IFERROR(ROUND(VLOOKUP(LEFT(C5,FIND(" ",C5)-1),'Proxy Data Lookup'!$A:$O,10,FALSE),10),0) -> 2.41 | D69: =IFERROR(ROUND(VLOOKUP(LEFT(D5,FIND(" ",D5)-1),'Proxy Data Lookup'!$A:$O,10,FALSE),10),0) -> 0.92 | E69: =IFERROR(ROUND(VLOOKUP(LEFT(E5,FIND(" ",E5)-1),'Proxy Data Lookup'!$A:$O,10,FALSE),10),0) -> 1.09 | F69: =IFERROR(ROUND(VLOOKUP(LEFT(F5,FIND(" ",F5)-1),'Proxy Data Lookup'!$A:$O,10,FALSE),10),0) -> 1.36 | G69: =IFERROR(ROUND(VLOOKUP(LEFT(G5,FIND(" ",G5)-1),'Proxy Data Lookup'!$A:$O,10,FALSE),10),0) -> 0.7496
A71: Indicated Dividend Yield | B71: =IFERROR(ROUND(B69/B67,4),0) -> 0.0174 | C71: 0.016 | D71: 0.0162 | E71: 0.0136 | F71: 0.0214 | G71: 0.0153

Sheet CEM Data Lookup
C1: EPS Growth Rates | G1: Beta | J1: Annual Div. | K1: Value Line Beta Calculation | O1: Bond Ratings
A2: Ticker | B2: Company Name | C2: Zacks | D2: Yahoo | E2: Value Line | F2: Bloomberg | G2: Value Line | H2: Bloomberg | I2: Unadjusted | K2: R Factor | L2: Std. Error | M2: Std. Dev Y | N2: Std. Dev Beta | O2: Moody's | P2: S&P
A3: =Input!C2 -> ADBE | B3: Adobe Inc. | C3: 0.183 | D3: 0.175 | E3: 0.145 | F3: 0.17897 | G3: 0.75 | H3: 0.867236197 | I3: 0.61 | J3: NA | K3: 0.4242 | L3: 3.2593 | M3: 3.5922 | N3: 0.0813 | O3: A2 | P3: A
A4: =Input!C3 -> BCPC | B4: Balchem Corp. | C4: NA | D4: 0.24 | E4: 0.165 | F4: 0.08267 | G4: 0.7 | H4: 0.7168008685 | I4: 0.54 | J4: 0.58 | K4: 0.3553 | L4: 3.5216 | M4: 3.7601 | N4: 0.0879 | O4: NA | P4: NA
A5: =Input!C4 -> BIO | B5: Bio-Rad Labs. 'A' | C5: NA | D5: 0.178 | E5: 0.115 | F5: 0.1145 | G5: 0.75 | H5: 0.6923027039 | I5: 0.58 | J5: NA | K5: 0.4118 | L5: 3.2201 | M5: 3.5267 | N5: 0.0804 | O5: Baa2 | P5: BBB
A6: =Input!C5 -> CHRW | B6: C.H. Robinson | C6: 0.09 | D6: 0.114 | E6: 0.08 | F6: 0.12575 | G6: 0.7 | H6: 0.6534754634 | I6: 0.49 | J6: 2.04 | K6: 0.3813 | L6: 2.982 | M6: 3.2195 | N6: 0.0744 | O6: Baa2 | P6: BBB+
A7: =Input!C6 -> CSGS | B7: CSG Systems Int'l | C7: NA | D7: -0.05 | E7: 0.11 | F7: 0.08 | G7: 0.75 | H7: 0.9166264534 | I7: 0.6 | J7: 1 | K7: 0.4257 | L7: 3.1995 | M7: 3.529 | N7: 0.0798 | O7: NA | P7: BB+
A8: =Input!C7 -> CTXS | B8: Citrix Sys. | C8: 0.129 | D8: 0.112 | E8: 0.09 | F8: 0.082 | G8: 0.7 | H8: 0.6123815179 | I8: 0.47 | J8: 1.48 | K8: 0.321 | L8: 3.484 | M8: 3.6716 | N8: 0.0869 | O8: Baa3 | P8: BBB
A9: =Input!C8 -> DG | B9: Dollar General | C9: 0.121 | D9: 0.083 | E9: 0.105 | F9: 0.10818 | G9: 0.65 | H9: 0.689235568 | I9: 0.46 | J9: 1.68 | K9: 0.341 | L9: 3.1921 | M9: 3.389 | N9: 0.0797 | O9: Baa2 | P9: BBB
A10: =Input!C9 -> EBF | B10: Ennis, Inc. | C10: NA | D10: 0.05 | E10: 0.03 | F10: NA | G10: 0.8 | H10: 0.8104057908 | I10: 0.66 | J10: 1 | K10: 0.4406 | L10: 3.341 | M10: 3.7145 | N10: 0.0834 | O10: NA | P10: NA
A11: =Input!C10 -> HTLD | B11: Heartland Express | C11: NA | D11: 0.133 | E11: 0.095 | F11: NA | G11: 0.7 | H11: 0.7562380433 | I11: 0.54 | J11: 0.08 | K11: 0.41 | L11: 3.0069 | M11: 3.2903 | N11: 0.075 | O11: NA | P11: NA
A12: =Input!C11 -> KEYS | B12: Keysight Technologie | C12: 0.11 | D12: 0.1326 | E12: 0.17 | F12: 0.1096 | G12: 0.85 | H12: 0.7807682157 | I12: 0.73 | J12: NA | K12: 0.4605 | L12: 3.5026 | M12: 3.9384 | N12: 0.0874 | O12: Baa2 | P12: BBB
A13: =Input!C12 -> LANC | B13: Lancaster Colony | C13: NA | D13: 0.03 | E13: 0.065 | F13: NA | G13: 0.7 | H13: 0.7138239145 | I13: 0.5 | J13: 3 | K13: 0.3861 | L13: 3.0103 | M13: 3.257 | N13: 0.0751 | O13: NA | P13: NA
A14: =Input!C13 -> LLY | B14: Lilly (Eli) | C14: 0.141 | D14: 0.1267 | E14: 0.09 | F14: 0.13628 | G14: 0.75 | H14: 0.7262842655 | I14: 0.59 | J14: 3.4 | K14: 0.4347 | L14: 3.0669 | M14: 3.3989 | N14: 0.0765 | O14: A2 | P14: A+
A15: =Input!C14 -> MNST | B15: Monster Beverage | C15: 0.133 | D15: 0.1486 | E15: 0.115 | F15: 0.1031 | G15: 0.85 | H15: 0.9928922057 | I15: 0.75 | J15: NA | K15: 0.491 | L15: 3.3101 | M15: 3.7923 | N15: 0.0826 | O15: NA | P15: NA
A16: =Input!C15 -> POOL | B16: Pool Corp. | C16: NA | D16: 0.17 | E16: 0.15 | F16: NA | G16: 0.85 | H16: 0.9463635087 | I16: 0.75 | J16: 3.2 | K16: 0.5034 | L16: 3.2001 | M16: 3.6964 | N16: 0.0799 | O16: NA | P16: NA
A17: =Input!C16 -> RLI | B17: RLI Corp. | C17: NA | D17: 0.098 | E17: 0.125 | F17: NA | G17: 0.8 | H17: 0.9000255466 | I17: 0.64 | J17: 1 | K17: 0.4717 | L17: 2.9883 | M17: 3.3825 | N17: 0.0746 | O17: Baa2 | P17: BBB
A18: =Input!C17 -> SJM | B18: Smucker (J.M.) | C18: 0.016 | D18: -0.0042 | E18: 0.04 | F18: 0.01275 | G18: 0.65 | H18: 0.5082988143 | I18: 0.45 | J18: 3.6 | K18: 0.3472 | L18: 3.0463 | M18: 3.2421 | N18: 0.076 | O18: Baa2 | P18: BBB
A19: =Input!C18 -> SNDR | B19: Schneider National | C19: 0.14 | D19: 0.1543 | E19: 0.1 | F19: 0.1848 | G19: 0.8 | H19: 0.7037460208 | I19: 0.65 | J19: 0.28 | K19: 0.4621 | L19: 3.4534 | M19: 3.8841 | N19: 0.0894 | O19: NA | P19: NA
A20: =Input!C19 -> TECH | B20: Bio-Techne Corp. | C20: 0.14 | D20: 0.15 | E20: 0.125 | F20: 0.19025 | G20: 0.8 | H20: 0.9288383126 | I20: 0.67 | J20: 1.28 | K20: 0.4592 | L20: 3.2475 | M20: 3.6485 | N20: 0.081 | O20: NA | P20: NA
A21: =Input!C20 -> TYL | B21: Tyler Technologies | C21: NA | D21: 0.1 | E21: 0.08 | F21: 0.2015 | G21: 0.75 | H21: 0.7495535016 | I21: 0.56 | J21: NA | K21: 0.3996 | L21: 3.235 | M21: 3.5221 | N21: 0.0807 | O21: NA | P21: NA
A22: =Input!C21 -> UPS | B22: United Parcel Serv. | C22: 0.087 | D22: 0.124 | E22: 0.105 | F22: 0.10274 | G22: 0.8 | H22: 0.8462782502 | I22: 0.63 | J22: 4.08 | K22: 0.4608 | L22: 3.0112 | M22: 3.3863 | N22: 0.0751 | O22: A2 | P22: A-
A23: =Input!C22 -> WBA | B23: Walgreens Boots | C23: 0.068 | D23: 0.0363 | E23: 0.06 | F23: 0.0474 | G23: 0.85 | H23: 0.7955988646 | I23: 0.71 | J23: 1.87 | K23: 0.4537 | L23: 3.4851 | M23: 3.9033 | N23: 0.087 | O23: Baa2 | P23: BBB
A24: =Input!C23 -> WERN | B24: Werner Enterprises | C24: 0.111 | D24: 0.1254 | E24: 0.095 | F24: 0.1306 | G24: 0.75 | H24: 0.7680497766 | I24: 0.58 | J24: 0.48 | K24: 0.3915 | L24: 3.3887 | M24: 3.6755 | N24: 0.0846 | O24: NA | P24: NA
A25: =Input!C24 -> WST | B25: West Pharmac. Svcs. | C25: 0.258 | D25: 0.258 | E25: 0.17 | F25: 0.18545 | G25: 0.85 | H25: 0.7505637407 | I25: 0.7 | J25: 0.68 | K25: 0.4811 | L25: 3.1887 | M25: 3.6301 | N25: 0.0796 | O25: NA | P25: NA

Sheet CEM Price Data
B1: PX_LAST | C1: ADBE US Equity | D1: BCPC US Equity | E1: BIO US Equity | F1: CHRW US Equity | G1: CSGS US Equity | H1: CTXS US Equity | I1: DG US Equity | J1: EBF US Equity | K1: HTLD US Equity | L1: KEYS US Equity | M1: LANC US Equity | N1: LLY US Equity | O1: MNST US Equity | P1: POOL US Equity | Q1: RLI US Equity | R1: SJM US Equity | S1: SNDR US Equity | T1: TECH US Equity | U1: TYL US Equity | V1: UPS US Equity | W1: WBA US Equity | X1: WERN US Equity | Y1: WST US Equity | AA1: =LEFT(C1,FIND(" ",C1)-1) -> ADBE | AB1: =LEFT(D1,FIND(" ",D1)-1) -> BCPC | AC1: BIO | AD1: CHRW | AE1: CSGS | AF1: CTXS | AG1: DG | AH1: EBF | AI1: HTLD | AJ1: KEYS | AK1: LANC | AL1: LLY | AM1: MNST | AN1: POOL | AO1: RLI | AP1: SJM | AQ1: SNDR | AR1: TECH | AS1: TYL | AT1: UPS | AU1: WBA | AV1: WERN | AW1: WST
A2: 1 | B2: 2021-05-28 | C2: 504.58 | D2: 131 | E2: 602.37 | F2: 97.02 | G2: 44.04 | H2: 114.96 | I2: 203.1 | J2: 20.96 | K2: 18.15 | L2: 142.44 | M2: 186.67 | N2: 199.86 | O2: 94.27 | P2: 436.55 | Q2: 105.48 | R2: 133.29 | S2: 24.49 | T2: 413.83 | U2: 403.16 | V2: 214.57 | W2: 52.66 | X2: 47.99 | Y2: 347.3 | AA2: 504.58 | AB2: 131 | AC2: 602.37 | AD2: 97.02 | AE2: 44.04 | AF2: 114.96 | AG2: 202.96 | AH2: 20.96 | AI2: 18.15 | AJ2: 142.38 | AK2: 186.67 | AL2: 199.74 | AM2: 94.27 | AN2: 436.55 | AO2: 105.48 | AP2: 133.29 | AQ2: 24.49 | AR2: 413.83 | AS2: 403.16 | AT2: 214.6 | AU2: 52.66 | AV2: 47.99 | AW2: 347.51
A3: =A2+1 -> 2 | B3: 2021-05-27 | C3: 498.28 | D3: 131.08 | E3: 598.57 | F3: 97.13 | G3: 44.48 | H3: 113.68 | I3: 204.39 | J3: 21 | K3: 18.04 | L3: 140.54 | M3: 186.05 | N3: 199.2 | O3: 93.31 | P3: 431.47 | Q3: 105.15 | R3: 132.52 | S3: 24.56 | T3: 409.69 | U3: 408.06 | V3: 212.8 | W3: 53.04 | X3: 48.09 | Y3: 344.7 | AA3: 498.28 | AB3: 131.08 | AC3: 598.57 | AD3: 97.13 | AE3: 44.48 | AF3: 113.68 | AG3: 204.39 | AH3: 21 | AI3: 18.04 | AJ3: 140.54 | AK3: 186.05 | AL3: 199.2 | AM3: 93.31 | AN3: 431.47 | AO3: 105.15 | AP3: 132.52 | AQ3: 24.56 | AR3: 409.69 | AS3: 408.06 | AT3: 212.8 | AU3: 53.04 | AV3: 48.09 | AW3: 344.7
A4: =A3+1 -> 3 | B4: 2021-05-26 | C4: 506.98 | D4: 130.35 | E4: 591.57 | F4: 97.34 | G4: 44.44 | H4: 114.83 | I4: 199.98 | J4: 20.87 | K4: 18.04 | L4: 141.35 | M4: 187.59 | N4: 200.99 | O4: 93.41 | P4: 429.63 | Q4: 104.36 | R4: 134.5 | S4: 24.46 | T4: 416.27 | U4: 405.07 | V4: 213.81 | W4: 52.01 | X4: 47.87 | Y4: 344.39 | AA4: 506.98 | AB4: 130.35 | AC4: 591.57 | AD4: 97.34 | AE4: 44.44 | AF4: 114.83 | AG4: 199.98 | AH4: 20.87 | AI4: 18.04 | AJ4: 141.35 | AK4: 187.59 | AL4: 200.99 | AM4: 93.41 | AN4: 429.63 | AO4: 104.36 | AP4: 134.5 | AQ4: 24.46 | AR4: 416.27 | AS4: 405.07 | AT4: 213.81 | AU4: 52.01 | AV4: 47.87 | AW4: 344.39
A5: 4 | B5: 2021-05-25 | C5: 505.08 | D5: 128.36 | E5: 592.93 | F5: 96.14 | G5: 44.36 | H5: 115.23 | I5: 198.87 | J5: 20.72 | K5: 18 | L5: 139.98 | M5: 187.06 | N5: 199.22 | O5: 93.03 | P5: 429.66 | Q5: 103.81 | R5: 135.29 | S5: 24.27 | T5: 420.15 | U5: 404.12 | V5: 211.49 | W5: 54.19 | X5: 47.41 | Y5: 345.36 | AA5: 505.08 | AB5: 128.36 | AC5: 592.93 | AD5: 96.14 | AE5: 44.36 | AF5: 115.23 | AG5: 198.87 | AH5: 20.72 | AI5: 18 | AJ5: 139.98 | AK5: 187.06 | AL5: 199.22 | AM5: 93.03 | AN5: 429.66 | AO5: 103.81 | AP5: 135.29 | AQ5: 24.27 | AR5: 420.15 | AS5: 404.12 | AT5: 211.49 | AU5: 54.19 | AV5: 47.41 | AW5: 345.36
A6: 5 | B6: 2021-05-24 | C6: 497.83 | D6: 129.35 | E6: 593.06 | F6: 97.72 | G6: 44.83 | H6: 115.84 | I6: 197.15 | J6: 21.23 | K6: 18.24 | L6: 140.8 | M6: 186.2 | N6: 201.02 | O6: 93.23 | P6: 430.74 | Q6: 106.12 | R6: 135.61 | S6: 24.86 | T6: 421 | U6: 403.83 | V6: 213.43 | W6: 54.83 | X6: 48.52 | Y6: 339.52 | AA6: 497.83 | AB6: 129.35 | AC6: 593.06 | AD6: 97.72 | AE6: 44.83 | AF6: 115.84 | AG6: 197.15 | AH6: 21.23 | AI6: 18.24 | AJ6: 140.8 | AK6: 186.2 | AL6: 201.02 | AM6: 93.23 | AN6: 430.74 | AO6: 106.12 | AP6: 135.61 | AQ6: 24.86 | AR6: 421 | AS6: 403.83 | AT6: 213.43 | AU6: 54.83 | AV6: 48.52 | AW6: 339.52
A7: 6 | B7: 2021-05-21 | C7: 488.07 | D7: 129.33 | E7: 594.74 | F7: 96.58 | G7: 44.56 | H7: 115.81 | I7: 205.04 | J7: 21.25 | K7: 18.19 | L7: 139.66 | M7: 186.99 | N7: 199.88 | O7: 92.01 | P7: 429.25 | Q7: 107.05 | R7: 135.51 | S7: 24.99 | T7: 409.35 | U7: 401.88 | V7: 211.87 | W7: 54.88 | X7: 48.52 | Y7: 333.45 | AA7: 488.07 | AB7: 129.33 | AC7: 594.74 | AD7: 96.58 | AE7: 44.56 | AF7: 115.81 | AG7: 205.04 | AH7: 21.25 | AI7: 18.19 | AJ7: 139.66 | AK7: 186.99 | AL7: 199.88 | AM7: 92.01 | AN7: 429.25 | AO7: 107.05 | AP7: 135.51 | AQ7: 24.99 | AR7: 409.35 | AS7: 401.88 | AT7: 211.87 | AU7: 54.88 | AV7: 48.52 | AW7: 333.45
A8: 7 | B8: 2021-05-20 | C8: 491.67 | D8: 129.48 | E8: 598.32 | F8: 96.51 | G8: 44.73 | H8: 115.78 | I8: 204.12 | J8: 21.01 | K8: 18.25 | L8: 141.03 | M8: 187.7 | N8: 199.53 | O8: 92.5 | P8: 429.73 | Q8: 106.93 | R8: 134.81 | S8: 24.9 | T8: 408.89 | U8: 403.52 | V8: 213.94 | W8: 54.6 | X8: 48.13 | Y8: 332.79 | AA8: 491.67 | AB8: 129.48 | AC8: 598.32 | AD8: 96.51 | AE8: 44.73 | AF8: 115.78 | AG8: 204.12 | AH8: 21.01 | AI8: 18.25 | AJ8: 141.03 | AK8: 187.7 | AL8: 199.53 | AM8: 92.5 | AN8: 429.73 | AO8: 106.93 | AP8: 134.81 | AQ8: 24.9 | AR8: 408.89 | AS8: 403.52 | AT8: 213.94 | AU8: 54.6 | AV8: 48.13 | AW8: 332.79
A9: 8 | B9: 2021-05-19 | C9: 480.47 | D9: 131.72 | E9: 588.63 | F9: 97.38 | G9: 44.68 | H9: 115.39 | I9: 203.73 | J9: 21.21 | K9: 18.46 | L9: 138.15 | M9: 187.3 | N9: 196.51 | O9: 90.73 | P9: 427.83 | Q9: 106.14 | R9: 134.3 | S9: 25.2 | T9: 397.57 | U9: 395.7 | V9: 214.35 | W9: 54.81 | X9: 48.57 | Y9: 325.87 | AA9: 480.47 | AB9: 131.72 | AC9: 588.63 | AD9: 97.38 | AE9: 44.68 | AF9: 115.39 | AG9: 203.73 | AH9: 21.21 | AI9: 18.46 | AJ9: 138.15 | AK9: 187.3 | AL9: 196.51 | AM9: 90.73 | AN9: 427.83 | AO9: 106.14 | AP9: 134.3 | AQ9: 25.2 | AR9: 397.57 | AS9: 395.7 | AT9: 214.35 | AU9: 54.81 | AV9: 48.57 | AW9: 325.87
A10: 9 | B10: 2021-05-18 | C10: 480.62 | D10: 131.56 | E10: 588.15 | F10: 97.49 | G10: 44.57 | H10: 115.8 | I10: 204.95 | J10: 21.34 | K10: 18.49 | L10: 138.39 | M10: 185.98 | N10: 194.63 | O10: 90.81 | P10: 427.1 | Q10: 106.33 | R10: 133.72 | S10: 25.42 | T10: 400 | U10: 396.59 | V10: 213.99 | W10: 55.26 | X10: 48.62 | Y10: 326.87 | AA10: 480.62 | AB10: 131.56 | AC10: 588.15 | AD10: 97.49 | AE10: 44.57 | AF10: 115.8 | AG10: 204.95 | AH10: 21.34 | AI10: 18.49 | AJ10: 138.39 | AK10: 185.98 | AL10: 194.63 | AM10: 90.81 | AN10: 427.1 | AO10: 106.33 | AP10: 133.72 | AQ10: 25.42 | AR10: 400 | AS10: 396.59 | AT10: 213.99 | AU10: 55.26 | AV10: 48.62 | AW10: 326.87
A11: 10 | B11: 2021-05-17 | C11: 482.74 | D11: 131.01 | E11: 589.74 | F11: 99.03 | G11: 44.91 | H11: 116.87 | I11: 204.2 | J11: 21.66 | K11: 18.71 | L11: 139.54 | M11: 189.3 | N11: 195.53 | O11: 91.35 | P11: 435.67 | Q11: 108.76 | R11: 133.51 | S11: 25.63 | T11: 387.35 | U11: 391.74 | V11: 216.29 | W11: 55.3 | X11: 48.58 | Y11: 326.7 | AA11: 482.74 | AB11: 131.01 | AC11: 589.74 | AD11: 99.03 | AE11: 44.91 | AF11: 116.87 | AG11: 204.2 | AH11: 21.66 | AI11: 18.71 | AJ11: 139.54 | AK11: 189.3 | AL11: 195.53 | AM11: 91.35 | AN11: 435.67 | AO11: 108.76 | AP11: 133.51 | AQ11: 25.63 | AR11: 387.35 | AS11: 391.74 | AT11: 216.29 | AU11: 55.3 | AV11: 48.58 | AW11: 326.7
A12: 11 | B12: 2021-05-14 | C12: 486.56 | D12: 133.25 | E12: 600.75 | F12: 99.78 | G12: 45.66 | H12: 117.71 | I12: 206.2 | J12: 21.53 | K12: 18.73 | L12: 139.85 | M12: 190.02 | N12: 196.21 | O12: 92.14 | P12: 437.87 | Q12: 109.46 | R12: 135.33 | S12: 25.73 | T12: 401.37 | U12: 398.95 | V12: 216.38 | W12: 54.71 | X12: 48.47 | Y12: 333.07 | AA12: 486.56 | AB12: 133.25 | AC12: 600.75 | AD12: 99.78 | AE12: 45.66 | AF12: 117.71 | AG12: 206.2 | AH12: 21.53 | AI12: 18.73 | AJ12: 139.85 | AK12: 190.02 | AL12: 196.21 | AM12: 92.14 | AN12: 437.87 | AO12: 109.46 | AP12: 135.33 | AQ12: 25.73 | AR12: 401.37 | AS12: 398.95 | AT12: 216.38 | AU12: 54.71 | AV12: 48.47 | AW12: 333.07
A13: 12 | B13: 2021-05-13 | C13: 474.16 | D13: 133.2 | E13: 590.97 | F13: 99.21 | G13: 45.47 | H13: 116.72 | I13: 205.76 | J13: 21.4 | K13: 18.665 | L13: 138.05 | M13: 188.25 | N13: 194.94 | O13: 89.47 | P13: 435.01 | Q13: 109.85 | R13: 136.19 | S13: 25.55 | T13: 396.66 | U13: 387.29 | V13: 215.67 | W13: 54.14 | X13: 48.43 | Y13: 328.3 | AA13: 474.16 | AB13: 133.2 | AC13: 590.97 | AD13: 99.21 | AE13: 45.47 | AF13: 116.72 | AG13: 205.76 | AH13: 21.4 | AI13: 18.665 | AJ13: 138.05 | AK13: 188.25 | AL13: 194.94 | AM13: 89.47 | AN13: 435.01 | AO13: 109.85 | AP13: 136.19 | AQ13: 25.55 | AR13: 396.66 | AS13: 387.29 | AT13: 215.67 | AU13: 54.14 | AV13: 48.43 | AW13: 328.3
A14: 13 | B14: 2021-05-12 | C14: 472.09 | D14: 128.27 | E14: 583.89 | F14: 97.15 | G14: 44.15 | H14: 116.8 | I14: 205.87 | J14: 20.66 | K14: 18.24 | L14: 135.42 | M14: 182.83 | N14: 193.2 | O14: 89.79 | P14: 419.76 | Q14: 105.58 | R14: 134.8 | S14: 25.2 | T14: 408.88 | U14: 388 | V14: 210.7 | W14: 53.04 | X14: 47.07 | Y14: 324.8 | AA14: 472.09 | AB14: 128.27 | AC14: 583.89 | AD14: 97.15 | AE14: 44.15 | AF14: 116.8 | AG14: 205.87 | AH14: 20.66 | AI14: 18.24 | AJ14: 135.42 | AK14: 182.83 | AL14: 193.2 | AM14: 89.79 | AN14: 419.76 | AO14: 105.58 | AP14: 134.8 | AQ14: 25.2 | AR14: 408.88 | AS14: 388 | AT14: 210.7 | AU14: 53.04 | AV14: 47.07 | AW14: 324.8
A15: 14 | B15: 2021-05-11 | C15: 485.19 | D15: 130.4 | E15: 596.38 | F15: 99.09 | G15: 44.84 | H15: 119.24 | I15: 213.9 | J15: 20.83 | K15: 18.53 | L15: 138.93 | M15: 188.5 | N15: 194.75 | O15: 91.54 | P15: 438.87 | Q15: 108.31 | R15: 136.82 | S15: 25.65 | T15: 415.54 | U15: 394.02 | V15: 214.33 | W15: 54.24 | X15: 47.75 | Y15: 335.22 | AA15: 485.19 | AB15: 130.4 | AC15: 596.38 | AD15: 99.09 | AE15: 44.84 | AF15: 119.24 | AG15: 213.9 | AH15: 20.83 | AI15: 18.53 | AJ15: 138.93 | AK15: 188.5 | AL15: 194.75 | AM15: 91.54 | AN15: 438.87 | AO15: 108.31 | AP15: 136.82 | AQ15: 25.65 | AR15: 415.54 | AS15: 394.02 | AT15: 214.33 | AU15: 54.24 | AV15: 47.75 | AW15: 335.22
A16: 15 | B16: 2021-05-10 | C16: 479.38 | D16: 129.46 | E16: 603.65 | F16: 101.73 | G16: 45.94 | H16: 119.29 | I16: 218.86 | J16: 21.21 | K16: 19.2 | L16: 139.9 | M16: 189 | N16: 194.76 | O16: 91.6 | P16: 444.96 | Q16: 110.92 | R16: 138.49 | S16: 26.43 | T16: 408.23 | U16: 392.22 | V16: 216.13 | W16: 55.11 | X16: 48.91 | Y16: 333.73 | AA16: 479.38 | AB16: 129.46 | AC16: 603.65 | AD16: 101.73 | AE16: 45.94 | AF16: 119.29 | AG16: 218.86 | AH16: 21.21 | AI16: 19.2 | AJ16: 139.9 | AK16: 189 | AL16: 194.76 | AM16: 91.6 | AN16: 444.96 | AO16: 110.92 | AP16: 138.49 | AQ16: 26.43 | AR16: 408.23 | AS16: 392.22 | AT16: 216.13 | AU16: 55.11 | AV16: 48.91 | AW16: 333.73
A17: 16 | B17: 2021-05-07 | C17: 488.73 | D17: 131.58 | E17: 608.01 | F17: 99.51 | G17: 45.49 | H17: 121.03 | I17: 220.2 | J17: 21.36 | K17: 19.18 | L17: 143.41 | M17: 189.02 | N17: 195.42 | O17: 91.25 | P17: 444.01 | Q17: 113.26 | R17: 136.6 | S17: 26.29 | T17: 423.05 | U17: 399.87 | V17: 217.5 | W17: 54.53 | X17: 48.22 | Y17: 333.68 | AA17: 488.73 | AB17: 131.58 | AC17: 608.01 | AD17: 99.51 | AE17: 45.49 | AF17: 121.03 | AG17: 220.2 | AH17: 21.36 | AI17: 19.18 | AJ17: 143.41 | AK17: 189.02 | AL17: 195.42 | AM17: 91.25 | AN17: 444.01 | AO17: 113.26 | AP17: 136.6 | AQ17: 26.29 | AR17: 423.05 | AS17: 399.87 | AT17: 217.5 | AU17: 54.53 | AV17: 48.22 | AW17: 333.68
A18: 17 | B18: 2021-05-06 | C18: 483.61 | D18: 132.91 | E18: 602.17 | F18: 98.02 | G18: 45.75 | H18: 121.69 | I18: 218.5 | J18: 21.29 | K18: 19.11 | L18: 142.81 | M18: 190.41 | N18: 193.89 | O18: 95.02 | P18: 434.85 | Q18: 113.02 | R18: 137.41 | S18: 25.93 | T18: 410.98 | U18: 403.02 | V18: 214.78 | W18: 54.46 | X18: 47.85 | Y18: 329.42 | AA18: 483.61 | AB18: 132.91 | AC18: 602.17 | AD18: 98.02 | AE18: 45.75 | AF18: 121.69 | AG18: 218.5 | AH18: 21.29 | AI18: 19.11 | AJ18: 142.81 | AK18: 190.41 | AL18: 193.89 | AM18: 95.02 | AN18: 434.85 | AO18: 113.02 | AP18: 137.41 | AQ18: 25.93 | AR18: 410.98 | AS18: 403.02 | AT18: 214.78 | AU18: 54.46 | AV18: 47.85 | AW18: 329.42
A19: 18 | B19: 2021-05-05 | C19: 486.69 | D19: 132.63 | E19: 601.37 | F19: 98.87 | G19: 45.94 | H19: 119.18 | I19: 215.88 | J19: 21.18 | K19: 19.11 | L19: 140.72 | M19: 186.14 | N19: 192.81 | O19: 94.45 | P19: 441.56 | Q19: 111.65 | R19: 134.84 | S19: 25.32 | T19: 416.8 | U19: 400.98 | V19: 214.52 | W19: 54.47 | X19: 47.82 | Y19: 328.6 | AA19: 486.69 | AB19: 132.63 | AC19: 601.37 | AD19: 98.87 | AE19: 45.94 | AF19: 119.18 | AG19: 215.88 | AH19: 21.18 | AI19: 19.11 | AJ19: 140.72 | AK19: 186.14 | AL19: 192.81 | AM19: 94.45 | AN19: 441.56 | AO19: 111.65 | AP19: 134.84 | AQ19: 25.32 | AR19: 416.8 | AS19: 400.98 | AT19: 214.52 | AU19: 54.47 | AV19: 47.82 | AW19: 328.6
A20: 19 | B20: 2021-05-04 | C20: 490.7 | D20: 133.6 | E20: 598.1 | F20: 99.3 | G20: 46.36 | H20: 119.2 | I20: 216.24 | J20: 21.2 | K20: 19.12 | L20: 140.32 | M20: 187.2 | N20: 188.2 | O20: 95.94 | P20: 431.15 | Q20: 113.04 | R20: 132.47 | S20: 25.33 | T20: 418.22 | U20: 415.03 | V20: 214.31 | W20: 54.12 | X20: 47.52 | Y20: 329.2 | AA20: 490.7 | AB20: 133.6 | AC20: 598.1 | AD20: 99.3 | AE20: 46.36 | AF20: 119.2 | AG20: 216.24 | AH20: 21.2 | AI20: 19.12 | AJ20: 140.32 | AK20: 187.2 | AL20: 188.2 | AM20: 95.94 | AN20: 431.15 | AO20: 113.04 | AP20: 132.47 | AQ20: 25.33 | AR20: 418.22 | AS20: 415.03 | AT20: 214.31 | AU20: 54.12 | AV20: 47.52 | AW20: 329.2
A21: 20 | B21: 2021-05-03 | C21: 503.46 | D21: 130.44 | E21: 610 | F21: 99.07 | G21: 46.33 | H21: 123.4 | I21: 216.57 | J21: 21.12 | K21: 19.055 | L21: 140.4 | M21: 188.18 | N21: 185.92 | O21: 97.61 | P21: 428.86 | Q21: 112.84 | R21: 132.08 | S21: 24.96 | T21: 426.41 | U21: 428.65 | V21: 212.2 | W21: 54.3 | X21: 47.16 | Y21: 329.88 | AA21: 503.46 | AB21: 130.44 | AC21: 610 | AD21: 99.07 | AE21: 46.33 | AF21: 123.4 | AG21: 216.57 | AH21: 21.12 | AI21: 19.055 | AJ21: 140.4 | AK21: 188.18 | AL21: 185.92 | AM21: 97.61 | AN21: 428.86 | AO21: 112.84 | AP21: 132.08 | AQ21: 24.96 | AR21: 426.41 | AS21: 428.65 | AT21: 212.2 | AU21: 54.3 | AV21: 47.16 | AW21: 329.88
A22: 21 | B22: 2021-04-30 | C22: 508.34 | D22: 127.19 | E22: 630.13 | F22: 97.08 | G22: 45.99 | H22: 123.85 | I22: 214.75 | J22: 20.73 | K22: 18.59 | L22: 144.35 | M22: 184.71 | N22: 182.77 | O22: 97.05 | P22: 422.52 | Q22: 111.46 | R22: 130.99 | S22: 24.23 | T22: 427.49 | U22: 424.86 | V22: 203.86 | W22: 53.1 | X22: 46.23 | Y22: 328.52 | AA22: 508.34 | AB22: 127.19 | AC22: 630.13 | AD22: 97.08 | AE22: 45.99 | AF22: 123.85 | AG22: 214.75 | AH22: 20.73 | AI22: 18.59 | AJ22: 144.35 | AK22: 184.71 | AL22: 182.77 | AM22: 97.05 | AN22: 422.52 | AO22: 111.46 | AP22: 130.99 | AQ22: 24.23 | AR22: 427.49 | AS22: 424.86 | AT22: 203.86 | AU22: 53.1 | AV22: 46.23 | AW22: 328.52
A23: 22 | B23: 2021-04-29 | C23: 516.09 | D23: 124.62 | E23: 640.73 | F23: 97.43 | G23: 46.21 | H23: 128.02 | I23: 214.87 | J23: 20.85 | K23: 18.84 | L23: 148.39 | M23: 185.76 | N23: 182.2 | O23: 97.94 | P23: 421.45 | Q23: 112.35 | R23: 131.94 | S23: 24.12 | T23: 433.75 | U23: 426.59 | V23: 203.72 | W23: 52.735 | X23: 46.64 | Y23: 324.55 | AA23: 516.09 | AB23: 124.62 | AC23: 640.73 | AD23: 97.43 | AE23: 46.21 | AF23: 128.02 | AG23: 214.87 | AH23: 20.85 | AI23: 18.84 | AJ23: 148.39 | AK23: 185.76 | AL23: 182.2 | AM23: 97.94 | AN23: 421.45 | AO23: 112.35 | AP23: 131.94 | AQ23: 24.12 | AR23: 433.75 | AS23: 426.59 | AT23: 203.72 | AU23: 52.735 | AV23: 46.64 | AW23: 324.55
A24: 23 | B24: 2021-04-28 | C24: 515.48 | D24: 124.97 | E24: 649.04 | F24: 93.63 | G24: 45.77 | H24: 138.51 | I24: 212.08 | J24: 20.6 | K24: 18.37 | L24: 146.61 | M24: 182.5 | N24: 180.55 | O24: 96.47 | P24: 415.29 | Q24: 111.46 | R24: 130.49 | S24: 23.73 | T24: 436.8 | U24: 440.8 | V24: 198.37 | W24: 52.4 | X24: 44.67 | Y24: 322.22 | AA24: 515.48 | AB24: 124.97 | AC24: 649.04 | AD24: 93.63 | AE24: 45.77 | AF24: 138.51 | AG24: 212.08 | AH24: 20.6 | AI24: 18.37 | AJ24: 146.61 | AK24: 182.5 | AL24: 180.55 | AM24: 96.47 | AN24: 415.29 | AO24: 111.46 | AP24: 130.49 | AQ24: 23.73 | AR24: 436.8 | AS24: 440.8 | AT24: 198.37 | AU24: 52.4 | AV24: 44.67 | AW24: 322.22
A25: 24 | B25: 2021-04-27 | C25: 517.32 | D25: 124.01 | E25: 648.72 | F25: 96.59 | G25: 45.96 | H25: 140.34 | I25: 212.4 | J25: 20.71 | K25: 18.43 | L25: 148.39 | M25: 183.51 | N25: 182.21 | O25: 97.02 | P25: 421.69 | Q25: 113.5 | R25: 131.04 | S25: 23.8 | T25: 441.4 | U25: 447.14 | V25: 194.13 | W25: 52.51 | X25: 44.55 | Y25: 320.35 | AA25: 517.32 | AB25: 124.01 | AC25: 648.72 | AD25: 96.59 | AE25: 45.96 | AF25: 140.34 | AG25: 212.4 | AH25: 20.71 | AI25: 18.43 | AJ25: 148.39 | AK25: 183.51 | AL25: 182.21 | AM25: 97.02 | AN25: 421.69 | AO25: 113.5 | AP25: 131.04 | AQ25: 23.8 | AR25: 441.4 | AS25: 447.14 | AT25: 194.13 | AU25: 52.51 | AV25: 44.55 | AW25: 320.35
A26: 25 | B26: 2021-04-26 | C26: 515.7 | D26: 124.21 | E26: 648.34 | F26: 98.14 | G26: 46.72 | H26: 140.6 | I26: 211.73 | J26: 20.6 | K26: 18.42 | L26: 148.74 | M26: 183.6 | N26: 187.22 | O26: 97.14 | P26: 413.25 | Q26: 113.77 | R26: 129.77 | S26: 23.73 | T26: 440.56 | U26: 454.88 | V26: 175.81 | W26: 52.73 | X26: 44.93 | Y26: 322.41 | AA26: 515.7 | AB26: 124.21 | AC26: 648.34 | AD26: 98.14 | AE26: 46.72 | AF26: 140.6 | AG26: 211.73 | AH26: 20.6 | AI26: 18.42 | AJ26: 148.74 | AK26: 183.6 | AL26: 187.22 | AM26: 97.14 | AN26: 413.25 | AO26: 113.77 | AP26: 129.77 | AQ26: 23.73 | AR26: 440.56 | AS26: 454.88 | AT26: 175.81 | AU26: 52.73 | AV26: 44.93 | AW26: 322.41
A27: 26 | B27: 2021-04-23 | C27: 515.84 | D27: 124.21 | E27: 640.42 | F27: 99.78 | G27: 46.6 | H27: 140.48 | I27: 213.31 | J27: 20.97 | K27: 18.87 | L27: 147.86 | M27: 185.77 | N27: 188.72 | O27: 98.68 | P27: 419.53 | Q27: 113.99 | R27: 129.77 | S27: 24.35 | T27: 432.47 | U27: 451.5 | V27: 178.96 | W27: 53.02 | X27: 45.41 | Y27: 323.68 | AA27: 515.84 | AB27: 124.21 | AC27: 640.42 | AD27: 99.78 | AE27: 46.6 | AF27: 140.48 | AG27: 213.31 | AH27: 20.97 | AI27: 18.87 | AJ27: 147.86 | AK27: 185.77 | AL27: 188.72 | AM27: 98.68 | AN27: 419.53 | AO27: 113.99 | AP27: 129.77 | AQ27: 24.35 | AR27: 432.47 | AS27: 451.5 | AT27: 178.96 | AU27: 53.02 | AV27: 45.41 | AW27: 323.68
A28: 27 | B28: 2021-04-22 | C28: 507.29 | D28: 119.87 | E28: 639.73 | F28: 99.17 | G28: 46.42 | H28: 140.3 | I28: 215.16 | J28: 20.41 | K28: 18.99 | L28: 145.6 | M28: 184.98 | N28: 187.05 | O28: 97.51 | P28: 410.46 | Q28: 113.43 | R28: 132.11 | S28: 24.36 | T28: 423.71 | U28: 451.35 | V28: 177.51 | W28: 52.58 | X28: 45.88 | Y28: 321.84 | AA28: 507.29 | AB28: 119.87 | AC28: 639.73 | AD28: 99.17 | AE28: 46.42 | AF28: 140.3 | AG28: 215.16 | AH28: 20.41 | AI28: 18.99 | AJ28: 145.6 | AK28: 184.98 | AL28: 187.05 | AM28: 97.51 | AN28: 410.46 | AO28: 113.43 | AP28: 132.11 | AQ28: 24.36 | AR28: 423.71 | AS28: 451.35 | AT28: 177.51 | AU28: 52.58 | AV28: 45.88 | AW28: 321.84
A29: 28 | B29: 2021-04-21 | C29: 512.34 | D29: 121.52 | E29: 634.31 | F29: 98.95 | G29: 46.71 | H29: 141.5 | I29: 216.84 | J29: 20.4 | K29: 19.1 | L29: 144.65 | M29: 185.13 | N29: 190.95 | O29: 97.99 | P29: 385.67 | Q29: 116.97 | R29: 133.66 | S29: 24.42 | T29: 423.84 | U29: 451.99 | V29: 178.57 | W29: 54.05 | X29: 46.12 | Y29: 323.83 | AA29: 512.34 | AB29: 121.52 | AC29: 634.31 | AD29: 98.95 | AE29: 46.71 | AF29: 141.5 | AG29: 216.84 | AH29: 20.4 | AI29: 19.1 | AJ29: 144.65 | AK29: 185.13 | AL29: 190.95 | AM29: 97.99 | AN29: 385.67 | AO29: 116.97 | AP29: 133.66 | AQ29: 24.42 | AR29: 423.84 | AS29: 451.99 | AT29: 178.57 | AU29: 54.05 | AV29: 46.12 | AW29: 323.83
A30: 29 | B30: 2021-04-20 | C30: 514.21 | D30: 121.04 | E30: 628.3 | F30: 99.48 | G30: 46.09 | H30: 138.12 | I30: 218.29 | J30: 20.21 | K30: 19.515 | L30: 143 | M30: 181.8 | N30: 190.61 | O30: 97.4 | P30: 386.06 | Q30: 114.32 | R30: 132.51 | S30: 25.15 | T30: 411.91 | U30: 446.14 | V30: 179.69 | W30: 53.34 | X30: 48.03 | Y30: 319.19 | AA30: 514.21 | AB30: 121.04 | AC30: 628.3 | AD30: 99.48 | AE30: 46.09 | AF30: 138.12 | AG30: 218.29 | AH30: 20.21 | AI30: 19.515 | AJ30: 143 | AK30: 181.8 | AL30: 190.61 | AM30: 97.4 | AN30: 386.06 | AO30: 114.32 | AP30: 132.51 | AQ30: 25.15 | AR30: 411.91 | AS30: 446.14 | AT30: 179.69 | AU30: 53.34 | AV30: 48.03 | AW30: 319.19
A31: 30 | B31: 2021-04-19 | C31: 516.17 | D31: 122.08 | E31: 629.59 | F31: 98.64 | G31: 46.82 | H31: 138.85 | I31: 216.73 | J31: 20.38 | K31: 19.595 | L31: 143.63 | M31: 182.16 | N31: 189.64 | O31: 97.86 | P31: 382.95 | Q31: 114.78 | R31: 132.15 | S31: 25.32 | T31: 414.51 | U31: 445.96 | V31: 178.06 | W31: 53.79 | X31: 48.09 | Y31: 316.79 | AA31: 516.17 | AB31: 122.08 | AC31: 629.59 | AD31: 98.64 | AE31: 46.82 | AF31: 138.85 | AG31: 216.73 | AH31: 20.38 | AI31: 19.595 | AJ31: 143.63 | AK31: 182.16 | AL31: 189.64 | AM31: 97.86 | AN31: 382.95 | AO31: 114.78 | AP31: 132.15 | AQ31: 25.32 | AR31: 414.51 | AS31: 445.96 | AT31: 178.06 | AU31: 53.79 | AV31: 48.09 | AW31: 316.79
A32: 31 | B32: 2021-04-16 | C32: 525.08 | D32: 122.84 | E32: 626.12 | F32: 100.76 | G32: 46.99 | H32: 140.5 | I32: 216.74 | J32: 20.64 | K32: 19.75 | L32: 145.4 | M32: 180.46 | N32: 189.25 | O32: 98.17 | P32: 382.21 | Q32: 115.08 | R32: 131.72 | S32: 25.56 | T32: 418.55 | U32: 448.2 | V32: 179.71 | W32: 53.3 | X32: 48.1 | Y32: 313.83 | AA32: 525.08 | AB32: 122.84 | AC32: 626.12 | AD32: 100.76 | AE32: 46.99 | AF32: 140.5 | AG32: 216.74 | AH32: 20.64 | AI32: 19.75 | AJ32: 145.4 | AK32: 180.46 | AL32: 189.25 | AM32: 98.17 | AN32: 382.21 | AO32: 115.08 | AP32: 131.72 | AQ32: 25.56 | AR32: 418.55 | AS32: 448.2 | AT32: 179.71 | AU32: 53.3 | AV32: 48.1 | AW32: 313.83
A33: 32 | B33: 2021-04-15 | C33: 523.25 | D33: 122.1 | E33: 624.79 | F33: 100.76 | G33: 46.91 | H33: 138.83 | I33: 215.75 | J33: 20.64 | K33: 19.71 | L33: 145.27 | M33: 180.26 | N33: 185.92 | O33: 95.95 | P33: 374.43 | Q33: 114.73 | R33: 130.79 | S33: 25.66 | T33: 415.18 | U33: 449.43 | V33: 179.64 | W33: 53.72 | X33: 48.27 | Y33: 310.95 | AA33: 523.25 | AB33: 122.1 | AC33: 624.79 | AD33: 100.76 | AE33: 46.91 | AF33: 138.83 | AG33: 215.75 | AH33: 20.64 | AI33: 19.71 | AJ33: 145.27 | AK33: 180.26 | AL33: 185.92 | AM33: 95.95 | AN33: 374.43 | AO33: 114.73 | AP33: 130.79 | AQ33: 25.66 | AR33: 415.18 | AS33: 449.43 | AT33: 179.64 | AU33: 53.72 | AV33: 48.27 | AW33: 310.95
A34: 33 | B34: 2021-04-14 | C34: 510.63 | D34: 121.78 | E34: 612.11 | F34: 98.52 | G34: 46.61 | H34: 137.76 | I34: 213.55 | J34: 20.83 | K34: 19.55 | L34: 143.42 | M34: 178.77 | N34: 183 | O34: 94.8 | P34: 367.7 | Q34: 114.56 | R34: 129.07 | S34: 25.25 | T34: 414.38 | U34: 443.26 | V34: 176.21 | W34: 54.47 | X34: 47.92 | Y34: 300.06 | AA34: 510.63 | AB34: 121.78 | AC34: 612.11 | AD34: 98.52 | AE34: 46.61 | AF34: 137.76 | AG34: 213.55 | AH34: 20.83 | AI34: 19.55 | AJ34: 143.42 | AK34: 178.77 | AL34: 183 | AM34: 94.8 | AN34: 367.7 | AO34: 114.56 | AP34: 129.07 | AQ34: 25.25 | AR34: 414.38 | AS34: 443.26 | AT34: 176.21 | AU34: 54.47 | AV34: 47.92 | AW34: 300.06
A35: 34 | B35: 2021-04-13 | C35: 514.86 | D35: 122.15 | E35: 614.85 | F35: 98.21 | G35: 46.72 | H35: 139 | I35: 212.04 | J35: 20.67 | K35: 19.7 | L35: 143.43 | M35: 179.86 | N35: 182.53 | O35: 95.89 | P35: 370.45 | Q35: 113.31 | R35: 129.81 | S35: 25.58 | T35: 419.45 | U35: 444.66 | V35: 179.42 | W35: 54.6 | X35: 48.23 | Y35: 306.45 | AA35: 514.86 | AB35: 122.15 | AC35: 614.85 | AD35: 98.21 | AE35: 46.72 | AF35: 139 | AG35: 212.04 | AH35: 20.67 | AI35: 19.7 | AJ35: 143.43 | AK35: 179.86 | AL35: 182.53 | AM35: 95.89 | AN35: 370.45 | AO35: 113.31 | AP35: 129.81 | AQ35: 25.58 | AR35: 419.45 | AS35: 444.66 | AT35: 179.42 | AU35: 54.6 | AV35: 48.23 | AW35: 306.45
A36: 35 | B36: 2021-04-12 | C36: 506.03 | D36: 121.19 | E36: 603.99 | F36: 99.04 | G36: 46.56 | H36: 142.06 | I36: 209.04 | J36: 20.85 | K36: 19.92 | L36: 145.03 | M36: 179.94 | N36: 181.82 | O36: 95.42 | P36: 371.18 | Q36: 115.2 | R36: 129.53 | S36: 25.69 | T36: 403.05 | U36: 437.11 | V36: 178.58 | W36: 54.7 | X36: 48.31 | Y36: 296.94 | AA36: 506.03 | AB36: 121.19 | AC36: 603.99 | AD36: 99.04 | AE36: 46.56 | AF36: 142.06 | AG36: 209.04 | AH36: 20.85 | AI36: 19.92 | AJ36: 145.03 | AK36: 179.94 | AL36: 181.82 | AM36: 95.42 | AN36: 371.18 | AO36: 115.2 | AP36: 129.53 | AQ36: 25.69 | AR36: 403.05 | AS36: 437.11 | AT36: 178.58 | AU36: 54.7 | AV36: 48.31 | AW36: 296.94
A37: 36 | B37: 2021-04-09 | C37: 504.04 | D37: 121.27 | E37: 602.57 | F37: 97.45 | G37: 46.67 | H37: 142.34 | I37: 206.66 | J37: 20.74 | K37: 19.78 | L37: 146.23 | M37: 178.85 | N37: 184.49 | O37: 95.29 | P37: 369.49 | Q37: 114.68 | R37: 128.21 | S37: 25.4 | T37: 408.72 | U37: 442.67 | V37: 175.94 | W37: 54.18 | X37: 48.15 | Y37: 296.52 | AA37: 504.04 | AB37: 121.27 | AC37: 602.57 | AD37: 97.45 | AE37: 46.67 | AF37: 142.34 | AG37: 206.66 | AH37: 20.74 | AI37: 19.78 | AJ37: 146.23 | AK37: 178.85 | AL37: 184.49 | AM37: 95.29 | AN37: 369.49 | AO37: 114.68 | AP37: 128.21 | AQ37: 25.4 | AR37: 408.72 | AS37: 442.67 | AT37: 175.94 | AU37: 54.18 | AV37: 48.15 | AW37: 296.52
A38: 37 | B38: 2021-04-08 | C38: 499.84 | D38: 120.6 | E38: 592.23 | F38: 96.51 | G38: 46.375 | H38: 142.77 | I38: 207.19 | J38: 21.4 | K38: 19.68 | L38: 144.65 | M38: 179.27 | N38: 182.61 | O38: 95.3 | P38: 360.76 | Q38: 113.79 | R38: 128.13 | S38: 25.3 | T38: 405.14 | U38: 437.01 | V38: 173.02 | W38: 54.79 | X38: 48.02 | Y38: 291.88 | AA38: 499.84 | AB38: 120.6 | AC38: 592.23 | AD38: 96.51 | AE38: 46.375 | AF38: 142.77 | AG38: 207.19 | AH38: 21.4 | AI38: 19.68 | AJ38: 144.65 | AK38: 179.27 | AL38: 182.61 | AM38: 95.3 | AN38: 360.76 | AO38: 113.79 | AP38: 128.13 | AQ38: 25.3 | AR38: 405.14 | AS38: 437.01 | AT38: 173.02 | AU38: 54.79 | AV38: 48.02 | AW38: 291.88
A39: 38 | B39: 2021-04-07 | C39: 493.41 | D39: 120.87 | E39: 576.64 | F39: 96.27 | G39: 45.96 | H39: 142.68 | I39: 205.73 | J39: 21.32 | K39: 19.73 | L39: 143.95 | M39: 178.34 | N39: 182.32 | O39: 94.23 | P39: 356.65 | Q39: 113.59 | R39: 127.85 | S39: 25.46 | T39: 396.99 | U39: 432.07 | V39: 171.95 | W39: 55.58 | X39: 48.18 | Y39: 289.18 | AA39: 493.41 | AB39: 120.87 | AC39: 576.64 | AD39: 96.27 | AE39: 45.96 | AF39: 142.68 | AG39: 205.73 | AH39: 21.32 | AI39: 19.73 | AJ39: 143.95 | AK39: 178.34 | AL39: 182.32 | AM39: 94.23 | AN39: 356.65 | AO39: 113.59 | AP39: 127.85 | AQ39: 25.46 | AR39: 396.99 | AS39: 432.07 | AT39: 171.95 | AU39: 55.58 | AV39: 48.18 | AW39: 289.18
A40: 39 | B40: 2021-04-06 | C40: 491.34 | D40: 125.41 | E40: 587.55 | F40: 97.56 | G40: 46.09 | H40: 141.98 | I40: 205.63 | J40: 21.77 | K40: 19.855 | L40: 145.95 | M40: 178.34 | N40: 182.8 | O40: 93.73 | P40: 357.72 | Q40: 115.11 | R40: 127.74 | S40: 25.25 | T40: 399.06 | U40: 435.26 | V40: 172.97 | W40: 55.7 | X40: 47.885 | Y40: 291.28 | AA40: 491.34 | AB40: 125.41 | AC40: 587.55 | AD40: 97.56 | AE40: 46.09 | AF40: 141.98 | AG40: 205.63 | AH40: 21.77 | AI40: 19.855 | AJ40: 145.95 | AK40: 178.34 | AL40: 182.8 | AM40: 93.73 | AN40: 357.72 | AO40: 115.11 | AP40: 127.74 | AQ40: 25.25 | AR40: 399.06 | AS40: 435.26 | AT40: 172.97 | AU40: 55.7 | AV40: 47.885 | AW40: 291.28
A41: 40 | B41: 2021-04-05 | C41: 491.62 | D41: 126.5 | E41: 582.8 | F41: 97.68 | G41: 45.91 | H41: 142.49 | I41: 207.78 | J41: 21.69 | K41: 19.95 | L41: 147.33 | M41: 178.09 | N41: 184.89 | O41: 93.44 | P41: 357 | Q41: 115.15 | R41: 127.09 | S41: 25.49 | T41: 396.79 | U41: 437.15 | V41: 171.95 | W41: 56.8 | X41: 48.32 | Y41: 289.56 | AA41: 491.62 | AB41: 126.5 | AC41: 582.8 | AD41: 97.68 | AE41: 45.91 | AF41: 142.49 | AG41: 207.78 | AH41: 21.69 | AI41: 19.95 | AJ41: 147.33 | AK41: 178.09 | AL41: 184.89 | AM41: 93.44 | AN41: 357 | AO41: 115.15 | AP41: 127.09 | AQ41: 25.49 | AR41: 396.79 | AS41: 437.15 | AT41: 171.95 | AU41: 56.8 | AV41: 48.32 | AW41: 289.56
A42: 41 | B42: 2021-04-01 | C42: 483.34 | D42: 126.37 | E42: 579.91 | F42: 97.15 | G42: 45.88 | H42: 140.32 | I42: 202.4 | J42: 21.43 | K42: 19.66 | L42: 143.79 | M42: 177.85 | N42: 185.24 | O42: 91.36 | P42: 351.57 | Q42: 113.4 | R42: 126.25 | S42: 25.14 | T42: 388.5 | U42: 431.82 | V42: 171.28 | W42: 54.75 | X42: 47.62 | Y42: 284.77 | AA42: 483.34 | AB42: 126.37 | AC42: 579.91 | AD42: 97.15 | AE42: 45.88 | AF42: 140.32 | AG42: 202.4 | AH42: 21.43 | AI42: 19.66 | AJ42: 143.79 | AK42: 177.85 | AL42: 185.24 | AM42: 91.36 | AN42: 351.57 | AO42: 113.4 | AP42: 126.25 | AQ42: 25.14 | AR42: 388.5 | AS42: 431.82 | AT42: 171.28 | AU42: 54.75 | AV42: 47.62 | AW42: 284.77
A43: 42 | B43: 2021-03-31 | C43: 475.37 | D43: 125.41 | E43: 571.17 | F43: 95.43 | G43: 44.89 | H43: 140.36 | I43: 202.62 | J43: 21.35 | K43: 19.58 | L43: 143.4 | M43: 175.36 | N43: 186.82 | O43: 91.09 | P43: 345.24 | Q43: 111.57 | R43: 126.53 | S43: 24.97 | T43: 381.93 | U43: 424.53 | V43: 169.99 | W43: 54.9 | X43: 47.17 | Y43: 281.78 | AA43: 475.37 | AB43: 125.41 | AC43: 571.17 | AD43: 95.43 | AE43: 44.89 | AF43: 140.36 | AG43: 202.62 | AH43: 21.35 | AI43: 19.58 | AJ43: 143.4 | AK43: 175.36 | AL43: 186.82 | AM43: 91.09 | AN43: 345.24 | AO43: 111.57 | AP43: 126.53 | AQ43: 24.97 | AR43: 381.93 | AS43: 424.53 | AT43: 169.99 | AU43: 54.9 | AV43: 47.17 | AW43: 281.78
A44: 43 | B44: 2021-03-30 | C44: 465.46 | D44: 126.58 | E44: 564.15 | F44: 97.81 | G44: 46.31 | H44: 138.39 | I44: 201.75 | J44: 21.26 | K44: 19.75 | L44: 141.54 | M44: 179.77 | N44: 185.5 | O44: 90.69 | P44: 342.37 | Q44: 112.4 | R44: 128.55 | S44: 25.33 | T44: 373.47 | U44: 414.21 | V44: 168.64 | W44: 52.98 | X44: 48.04 | Y44: 278.34 | AA44: 465.46 | AB44: 126.58 | AC44: 564.15 | AD44: 97.81 | AE44: 46.31 | AF44: 138.39 | AG44: 201.75 | AH44: 21.26 | AI44: 19.75 | AJ44: 141.54 | AK44: 179.77 | AL44: 185.5 | AM44: 90.69 | AN44: 342.37 | AO44: 112.4 | AP44: 128.55 | AQ44: 25.33 | AR44: 373.47 | AS44: 414.21 | AT44: 168.64 | AU44: 52.98 | AV44: 48.04 | AW44: 278.34
A45: 44 | B45: 2021-03-29 | C45: 469.32 | D45: 126.22 | E45: 570.04 | F45: 97.41 | G45: 48.16 | H45: 138.84 | I45: 203.39 | J45: 20.79 | K45: 19.65 | L45: 141.32 | M45: 181.36 | N45: 186.34 | O45: 91.92 | P45: 343.48 | Q45: 112.83 | R45: 131.05 | S45: 25.1 | T45: 366.99 | U45: 417.87 | V45: 168.14 | W45: 52.85 | X45: 47.03 | Y45: 280.51 | AA45: 469.32 | AB45: 126.22 | AC45: 570.04 | AD45: 97.41 | AE45: 48.16 | AF45: 138.84 | AG45: 203.39 | AH45: 20.79 | AI45: 19.65 | AJ45: 141.32 | AK45: 181.36 | AL45: 186.34 | AM45: 91.92 | AN45: 343.48 | AO45: 112.83 | AP45: 131.05 | AQ45: 25.1 | AR45: 366.99 | AS45: 417.87 | AT45: 168.14 | AU45: 52.85 | AV45: 47.03 | AW45: 280.51
A46: 45 | B46: 2021-03-26 | C46: 469.09 | D46: 128.28 | E46: 578.59 | F46: 97.7 | G46: 48.66 | H46: 136.64 | I46: 203.08 | J46: 21.19 | K46: 19.75 | L46: 142.19 | M46: 183.68 | N46: 185.31 | O46: 91.65 | P46: 341.86 | Q46: 113.81 | R46: 128.5 | S46: 25.3 | T46: 388.24 | U46: 419.48 | V46: 167.98 | W46: 52.03 | X46: 47.13 | Y46: 280.31 | AA46: 469.09 | AB46: 128.28 | AC46: 578.59 | AD46: 97.7 | AE46: 48.66 | AF46: 136.64 | AG46: 203.08 | AH46: 21.19 | AI46: 19.75 | AJ46: 142.19 | AK46: 183.68 | AL46: 185.31 | AM46: 91.65 | AN46: 341.86 | AO46: 113.81 | AP46: 128.5 | AQ46: 25.3 | AR46: 388.24 | AS46: 419.48 | AT46: 167.98 | AU46: 52.03 | AV46: 47.13 | AW46: 280.31
A47: 46 | B47: 2021-03-25 | C47: 450.99 | D47: 125.97 | E47: 559.06 | F47: 96.28 | G47: 47.77 | H47: 135.09 | I47: 197.78 | J47: 20.41 | K47: 19.09 | L47: 136.23 | M47: 180.74 | N47: 183.09 | O47: 88.79 | P47: 335.25 | Q47: 113.93 | R47: 126.64 | S47: 24.41 | T47: 377.22 | U47: 411.72 | V47: 163.25 | W47: 51.71 | X47: 45.4 | Y47: 275.45 | AA47: 450.99 | AB47: 125.97 | AC47: 559.06 | AD47: 96.28 | AE47: 47.77 | AF47: 135.09 | AG47: 197.78 | AH47: 20.41 | AI47: 19.09 | AJ47: 136.23 | AK47: 180.74 | AL47: 183.09 | AM47: 88.79 | AN47: 335.25 | AO47: 113.93 | AP47: 126.64 | AQ47: 24.41 | AR47: 377.22 | AS47: 411.72 | AT47: 163.25 | AU47: 51.71 | AV47: 45.4 | AW47: 275.45
A48: 47 | B48: 2021-03-24 | C48: 451.51 | D48: 124.92 | E48: 559.38 | F48: 95.07 | G48: 47.42 | H48: 135.03 | I48: 197.08 | J48: 20.41 | K48: 18.95 | L48: 135.26 | M48: 179.83 | N48: 180.17 | O48: 88.72 | P48: 340.1 | Q48: 110.02 | R48: 123.14 | S48: 24.29 | T48: 369.46 | U48: 411.33 | V48: 159.91 | W48: 51.78 | X48: 45 | Y48: 278.08 | AA48: 451.51 | AB48: 124.92 | AC48: 559.38 | AD48: 95.07 | AE48: 47.42 | AF48: 135.03 | AG48: 197.08 | AH48: 20.41 | AI48: 18.95 | AJ48: 135.26 | AK48: 179.83 | AL48: 180.17 | AM48: 88.72 | AN48: 340.1 | AO48: 110.02 | AP48: 123.14 | AQ48: 24.29 | AR48: 369.46 | AS48: 411.33 | AT48: 159.91 | AU48: 51.78 | AV48: 45 | AW48: 278.08
A49: 48 | B49: 2021-03-23 | C49: 460.2 | D49: 123.64 | E49: 571 | F49: 95.11 | G49: 47.67 | H49: 138.36 | I49: 197.09 | J49: 20.24 | K49: 18.61 | L49: 135.18 | M49: 180.67 | N49: 183.68 | O49: 89.62 | P49: 340.91 | Q49: 108.44 | R49: 126.46 | S49: 24.13 | T49: 376.47 | U49: 420.61 | V49: 159.86 | W49: 52.03 | X49: 45.05 | Y49: 283.25 | AA49: 460.2 | AB49: 123.64 | AC49: 571 | AD49: 95.11 | AE49: 47.67 | AF49: 138.36 | AG49: 197.09 | AH49: 20.24 | AI49: 18.61 | AJ49: 135.18 | AK49: 180.67 | AL49: 183.68 | AM49: 89.62 | AN49: 340.91 | AO49: 108.44 | AP49: 126.46 | AQ49: 24.13 | AR49: 376.47 | AS49: 420.61 | AT49: 159.86 | AU49: 52.03 | AV49: 45.05 | AW49: 283.25
A50: 49 | B50: 2021-03-22 | C50: 452.41 | D50: 126.57 | E50: 580 | F50: 95.59 | G50: 48.11 | H50: 137.74 | I50: 193.96 | J50: 20.88 | K50: 19.06 | L50: 137.43 | M50: 183.91 | N50: 185.84 | O50: 89.05 | P50: 336.22 | Q50: 108.28 | R50: 127.25 | S50: 24.65 | T50: 385.38 | U50: 420.7 | V50: 161.06 | W50: 53.11 | X50: 45.86 | Y50: 282.49 | AA50: 452.41 | AB50: 126.57 | AC50: 580 | AD50: 95.59 | AE50: 48.11 | AF50: 137.74 | AG50: 193.96 | AH50: 20.88 | AI50: 19.06 | AJ50: 137.43 | AK50: 183.91 | AL50: 185.84 | AM50: 89.05 | AN50: 336.22 | AO50: 108.28 | AP50: 127.25 | AQ50: 24.65 | AR50: 385.38 | AS50: 420.7 | AT50: 161.06 | AU50: 53.11 | AV50: 45.86 | AW50: 282.49
A51: 50 | B51: 2021-03-19 | C51: 441.5 | D51: 127.65 | E51: 568.93 | F51: 96.7 | G51: 48 | H51: 133.57 | I51: 187.78 | J51: 21.3 | K51: 19.18 | L51: 134.77 | M51: 184.78 | N51: 184.29 | O51: 87.92 | P51: 340.8 | Q51: 112.16 | R51: 126.39 | S51: 25.18 | T51: 375.24 | U51: 420.04 | V51: 159.29 | W51: 52.54 | X51: 46.67 | Y51: 277.15 | AA51: 441.5 | AB51: 127.65 | AC51: 568.93 | AD51: 96.7 | AE51: 48 | AF51: 133.57 | AG51: 187.78 | AH51: 21.3 | AI51: 19.18 | AJ51: 134.77 | AK51: 184.78 | AL51: 184.29 | AM51: 87.92 | AN51: 340.8 | AO51: 112.16 | AP51: 126.39 | AQ51: 25.18 | AR51: 375.24 | AS51: 420.04 | AT51: 159.29 | AU51: 52.54 | AV51: 46.67 | AW51: 277.15
A52: 51 | B52: 2021-03-18 | C52: 439.18 | D52: 128.18 | E52: 570.05 | F52: 95.61 | G52: 47.66 | H52: 131.5 | I52: 178.8 | J52: 21.76 | K52: 19.29 | L52: 136 | M52: 182.26 | N52: 183.93 | O52: 87.92 | P52: 336.87 | Q52: 115.3 | R52: 123.94 | S52: 25.38 | T52: 373.99 | U52: 417.98 | V52: 160.2 | W52: 52.7 | X52: 47.09 | Y52: 268.95 | AA52: 439.18 | AB52: 128.18 | AC52: 570.05 | AD52: 95.61 | AE52: 47.66 | AF52: 131.5 | AG52: 178.8 | AH52: 21.76 | AI52: 19.29 | AJ52: 136 | AK52: 182.26 | AL52: 183.93 | AM52: 87.92 | AN52: 336.87 | AO52: 115.3 | AP52: 123.94 | AQ52: 25.38 | AR52: 373.99 | AS52: 417.98 | AT52: 160.2 | AU52: 52.7 | AV52: 47.09 | AW52: 268.95
A53: 52 | B53: 2021-03-17 | C53: 451.01 | D53: 128.57 | E53: 566.44 | F53: 95.18 | G53: 47.86 | H53: 133.45 | I53: 187.51 | J53: 21.6 | K53: 18.995 | L53: 137.35 | M53: 183.4 | N53: 186.73 | O53: 88.6 | P53: 339.2 | Q53: 117.29 | R53: 124.12 | S53: 25.09 | T53: 381.82 | U53: 423.37 | V53: 160.65 | W53: 54.1 | X53: 46.09 | Y53: 274.59 | AA53: 451.01 | AB53: 128.57 | AC53: 566.44 | AD53: 95.18 | AE53: 47.86 | AF53: 133.45 | AG53: 187.51 | AH53: 21.6 | AI53: 18.995 | AJ53: 137.35 | AK53: 183.4 | AL53: 186.73 | AM53: 88.6 | AN53: 339.2 | AO53: 117.29 | AP53: 124.12 | AQ53: 25.09 | AR53: 381.82 | AS53: 423.37 | AT53: 160.65 | AU53: 54.1 | AV53: 46.09 | AW53: 274.59
A54: 53 | B54: 2021-03-16 | C54: 450.54 | D54: 128.81 | E54: 560.84 | F54: 96.18 | G54: 48.37 | H54: 136.17 | I54: 193.55 | J54: 21.16 | K54: 19.24 | L54: 137.48 | M54: 185.41 | N54: 190.9 | O54: 89.39 | P54: 343.97 | Q54: 116.75 | R54: 123.31 | S54: 24.99 | T54: 388.37 | U54: 424.72 | V54: 162.82 | W54: 54.71 | X54: 46.22 | Y54: 274.17 | AA54: 450.54 | AB54: 128.81 | AC54: 560.84 | AD54: 96.18 | AE54: 48.37 | AF54: 136.17 | AG54: 193.55 | AH54: 21.16 | AI54: 19.24 | AJ54: 137.48 | AK54: 185.41 | AL54: 190.9 | AM54: 89.39 | AN54: 343.97 | AO54: 116.75 | AP54: 123.31 | AQ54: 24.99 | AR54: 388.37 | AS54: 424.72 | AT54: 162.82 | AU54: 54.71 | AV54: 46.22 | AW54: 274.17
A55: 54 | B55: 2021-03-15 | C55: 447.59 | D55: 128.25 | E55: 569.55 | F55: 97.22 | G55: 48.02 | H55: 134.97 | I55: 194.1 | J55: 21.37 | K55: 19.44 | L55: 136.9 | M55: 185.3 | N55: 189.16 | O55: 89.31 | P55: 347.57 | Q55: 117.21 | R55: 122.12 | S55: 25.19 | T55: 397.01 | U55: 425.02 | V55: 162.64 | W55: 55.05 | X55: 46.52 | Y55: 276.02 | AA55: 447.59 | AB55: 128.25 | AC55: 569.55 | AD55: 97.22 | AE55: 48.02 | AF55: 134.97 | AG55: 194.1 | AH55: 21.37 | AI55: 19.44 | AJ55: 136.9 | AK55: 185.3 | AL55: 189.16 | AM55: 89.31 | AN55: 347.57 | AO55: 117.21 | AP55: 122.12 | AQ55: 25.19 | AR55: 397.01 | AS55: 425.02 | AT55: 162.64 | AU55: 55.05 | AV55: 46.52 | AW55: 276.02
A56: 55 | B56: 2021-03-12 | C56: 444.3 | D56: 130.7 | E56: 559.98 | F56: 95.92 | G56: 48.83 | H56: 133.48 | I56: 191.96 | J56: 21.5 | K56: 19.76 | L56: 136.01 | M56: 185.49 | N56: 208.08 | O56: 88.94 | P56: 342.44 | Q56: 117.25 | R56: 121.44 | S56: 25.28 | T56: 385.12 | U56: 411.82 | V56: 167.69 | W56: 53.21 | X56: 47.34 | Y56: 274.12 | AA56: 444.3 | AB56: 130.7 | AC56: 559.98 | AD56: 95.92 | AE56: 48.83 | AF56: 133.48 | AG56: 191.96 | AH56: 21.5 | AI56: 19.76 | AJ56: 136.01 | AK56: 185.49 | AL56: 208.08 | AM56: 88.94 | AN56: 342.44 | AO56: 117.25 | AP56: 121.44 | AQ56: 25.28 | AR56: 385.12 | AS56: 411.82 | AT56: 167.69 | AU56: 53.21 | AV56: 47.34 | AW56: 274.12
A57: 56 | B57: 2021-03-11 | C57: 451.06 | D57: 129.19 | E57: 568.9 | F57: 94.53 | G57: 48.72 | H57: 135.21 | I57: 189.67 | J57: 21.21 | K57: 19.39 | L57: 136.24 | M57: 183.91 | N57: 205.21 | O57: 89.35 | P57: 346.84 | Q57: 115.26 | R57: 120.25 | S57: 24.84 | T57: 388.01 | U57: 411.87 | V57: 167.24 | W57: 51.52 | X57: 46.855 | Y57: 272.89 | AA57: 451.06 | AB57: 129.19 | AC57: 568.9 | AD57: 94.53 | AE57: 48.72 | AF57: 135.21 | AG57: 189.67 | AH57: 21.21 | AI57: 19.39 | AJ57: 136.24 | AK57: 183.91 | AL57: 205.21 | AM57: 89.35 | AN57: 346.84 | AO57: 115.26 | AP57: 120.25 | AQ57: 24.84 | AR57: 388.01 | AS57: 411.87 | AT57: 167.24 | AU57: 51.52 | AV57: 46.855 | AW57: 272.89
A58: 57 | B58: 2021-03-10 | C58: 437.01 | D58: 131.25 | E58: 559.22 | F58: 94.52 | G58: 48.3 | H58: 131.78 | I58: 187.55 | J58: 21.31 | K58: 19.36 | L58: 135.28 | M58: 183.03 | N58: 205.45 | O58: 89.4 | P58: 343.2 | Q58: 114.04 | R58: 121.07 | S58: 24.64 | T58: 363.76 | U58: 400.82 | V58: 165.23 | W58: 50.52 | X58: 45.7 | Y58: 267.73 | AA58: 437.01 | AB58: 131.25 | AC58: 559.22 | AD58: 94.52 | AE58: 48.3 | AF58: 131.78 | AG58: 187.55 | AH58: 21.31 | AI58: 19.36 | AJ58: 135.28 | AK58: 183.03 | AL58: 205.45 | AM58: 89.4 | AN58: 343.2 | AO58: 114.04 | AP58: 121.07 | AQ58: 24.64 | AR58: 363.76 | AS58: 400.82 | AT58: 165.23 | AU58: 50.52 | AV58: 45.7 | AW58: 267.73
A59: 58 | B59: 2021-03-09 | C59: 439.18 | D59: 127.53 | E59: 561.94 | F59: 93.61 | G59: 47.35 | H59: 132.42 | I59: 186.7 | J59: 21.24 | K59: 19.32 | L59: 136.31 | M59: 180.55 | N59: 206.11 | O59: 88.44 | P59: 336.51 | Q59: 111.16 | R59: 118.99 | S59: 25.63 | T59: 364.11 | U59: 403.35 | V59: 163.27 | W59: 48.46 | X59: 46.06 | Y59: 267.42 | AA59: 439.18 | AB59: 127.53 | AC59: 561.94 | AD59: 93.61 | AE59: 47.35 | AF59: 132.42 | AG59: 186.7 | AH59: 21.24 | AI59: 19.32 | AJ59: 136.31 | AK59: 180.55 | AL59: 206.11 | AM59: 88.44 | AN59: 336.51 | AO59: 111.16 | AP59: 118.99 | AQ59: 25.63 | AR59: 364.11 | AS59: 403.35 | AT59: 163.27 | AU59: 48.46 | AV59: 46.06 | AW59: 267.42
A60: 59 | B60: 2021-03-08 | C60: 421.2 | D60: 125.46 | E60: 554.11 | F60: 91.81 | G60: 47.08 | H60: 131.36 | I60: 181.98 | J60: 21.85 | K60: 19.51 | L60: 132.23 | M60: 181.42 | N60: 207.03 | O60: 85.14 | P60: 328.34 | Q60: 112.33 | R60: 119.77 | S60: 25.8 | T60: 344.88 | U60: 398.28 | V60: 160.87 | W60: 48.48 | X60: 45.67 | Y60: 261.35 | AA60: 421.2 | AB60: 125.46 | AC60: 554.11 | AD60: 91.81 | AE60: 47.08 | AF60: 131.36 | AG60: 181.98 | AH60: 21.85 | AI60: 19.51 | AJ60: 132.23 | AK60: 181.42 | AL60: 207.03 | AM60: 85.14 | AN60: 328.34 | AO60: 112.33 | AP60: 119.77 | AQ60: 25.8 | AR60: 344.88 | AS60: 398.28 | AT60: 160.87 | AU60: 48.48 | AV60: 45.67 | AW60: 261.35
A61: 60 | B61: 2021-03-05 | C61: 440.83 | D61: 123.49 | E61: 567.92 | F61: 94.03 | G61: 46.23 | H61: 135.47 | I61: 178.71 | J61: 21.3 | K61: 19.39 | L61: 134.7 | M61: 180.38 | N61: 206.92 | O61: 86.42 | P61: 330.22 | Q61: 109.13 | R61: 118.34 | S61: 25 | T61: 356.21 | U61: 401.06 | V61: 164.4 | W61: 47.2 | X61: 45.93 | Y61: 262.4 | AA61: 440.83 | AB61: 123.49 | AC61: 567.92 | AD61: 94.03 | AE61: 46.23 | AF61: 135.47 | AG61: 178.71 | AH61: 21.3 | AI61: 19.39 | AJ61: 134.7 | AK61: 180.38 | AL61: 206.92 | AM61: 86.42 | AN61: 330.22 | AO61: 109.13 | AP61: 118.34 | AQ61: 25 | AR61: 356.21 | AS61: 401.06 | AT61: 164.4 | AU61: 47.2 | AV61: 45.93 | AW61: 262.4

Sheet CEM PricesDivs
A1: =IF('CEM Price Data'!B1="","",'CEM Price Data'!B1) -> PX_LAST | B1: ='CEM Price Data'!C1 -> ADBE US Equity | C1: ='CEM Price Data'!D1 -> BCPC US Equity | D1: ='CEM Price Data'!E1 -> BIO US Equity | E1: ='CEM Price Data'!F1 -> CHRW US Equity | F1: ='CEM Price Data'!G1 -> CSGS US Equity | G1: ='CEM Price Data'!H1 -> CTXS US Equity | H1: ='CEM Price Data'!I1 -> DG US Equity | I1: ='CEM Price Data'!J1 -> EBF US Equity | J1: ='CEM Price Data'!K1 -> HTLD US Equity | K1: ='CEM Price Data'!L1 -> KEYS US Equity | L1: ='CEM Price Data'!M1 -> LANC US Equity | M1: ='CEM Price Data'!N1 -> LLY US Equity | N1: ='CEM Price Data'!O1 -> MNST US Equity | O1: ='CEM Price Data'!P1 -> POOL US Equity | P1: ='CEM Price Data'!Q1 -> RLI US Equity | Q1: ='CEM Price Data'!R1 -> SJM US Equity | R1: ='CEM Price Data'!S1 -> SNDR US Equity | S1: ='CEM Price Data'!T1 -> TECH US Equity | T1: ='CEM Price Data'!U1 -> TYL US Equity | U1: ='CEM Price Data'!V1 -> UPS US Equity | V1: ='CEM Price Data'!W1 -> WBA US Equity | W1: ='CEM Price Data'!X1 -> WERN US Equity | X1: ='CEM Price Data'!Y1 -> WST US Equity
A2: ='CEM Price Data'!B2 -> 2021-05-28 | B2: ='CEM Price Data'!C2 -> 504.58 | C2: ='CEM Price Data'!D2 -> 131 | D2: ='CEM Price Data'!E2 -> 602.37 | E2: ='CEM Price Data'!F2 -> 97.02 | F2: ='CEM Price Data'!G2 -> 44.04 | G2: ='CEM Price Data'!H2 -> 114.96 | H2: ='CEM Price Data'!I2 -> 203.1 | I2: ='CEM Price Data'!J2 -> 20.96 | J2: ='CEM Price Data'!K2 -> 18.15 | K2: ='CEM Price Data'!L2 -> 142.44 | L2: ='CEM Price Data'!M2 -> 186.67 | M2: ='CEM Price Data'!N2 -> 199.86 | N2: ='CEM Price Data'!O2 -> 94.27 | O2: ='CEM Price Data'!P2 -> 436.55 | P2: ='CEM Price Data'!Q2 -> 105.48 | Q2: ='CEM Price Data'!R2 -> 133.29 | R2: ='CEM Price Data'!S2 -> 24.49 | S2: ='CEM Price Data'!T2 -> 413.83 | T2: ='CEM Price Data'!U2 -> 403.16 | U2: ='CEM Price Data'!V2 -> 214.57 | V2: ='CEM Price Data'!W2 -> 52.66 | W2: ='CEM Price Data'!X2 -> 47.99 | X2: ='CEM Price Data'!Y2 -> 347.3
A3: ='CEM Price Data'!B3 -> 2021-05-27 | B3: ='CEM Price Data'!C3 -> 498.28 | C3: ='CEM Price Data'!D3 -> 131.08 | D3: ='CEM Price Data'!E3 -> 598.57 | E3: ='CEM Price Data'!F3 -> 97.13 | F3: ='CEM Price Data'!G3 -> 44.48 | G3: ='CEM Price Data'!H3 -> 113.68 | H3: ='CEM Price Data'!I3 -> 204.39 | I3: ='CEM Price Data'!J3 -> 21 | J3: ='CEM Price Data'!K3 -> 18.04 | K3: ='CEM Price Data'!L3 -> 140.54 | L3: ='CEM Price Data'!M3 -> 186.05 | M3: ='CEM Price Data'!N3 -> 199.2 | N3: ='CEM Price Data'!O3 -> 93.31 | O3: ='CEM Price Data'!P3 -> 431.47 | P3: ='CEM Price Data'!Q3 -> 105.15 | Q3: ='CEM Price Data'!R3 -> 132.52 | R3: ='CEM Price Data'!S3 -> 24.56 | S3: ='CEM Price Data'!T3 -> 409.69 | T3: ='CEM Price Data'!U3 -> 408.06 | U3: ='CEM Price Data'!V3 -> 212.8 | V3: ='CEM Price Data'!W3 -> 53.04 | W3: ='CEM Price Data'!X3 -> 48.09 | X3: ='CEM Price Data'!Y3 -> 344.7
A4: ='CEM Price Data'!B4 -> 2021-05-26 | B4: ='CEM Price Data'!C4 -> 506.98 | C4: ='CEM Price Data'!D4 -> 130.35 | D4: ='CEM Price Data'!E4 -> 591.57 | E4: ='CEM Price Data'!F4 -> 97.34 | F4: ='CEM Price Data'!G4 -> 44.44 | G4: ='CEM Price Data'!H4 -> 114.83 | H4: ='CEM Price Data'!I4 -> 199.98 | I4: ='CEM Price Data'!J4 -> 20.87 | J4: ='CEM Price Data'!K4 -> 18.04 | K4: ='CEM Price Data'!L4 -> 141.35 | L4: ='CEM Price Data'!M4 -> 187.59 | M4: ='CEM Price Data'!N4 -> 200.99 | N4: ='CEM Price Data'!O4 -> 93.41 | O4: ='CEM Price Data'!P4 -> 429.63 | P4: ='CEM Price Data'!Q4 -> 104.36 | Q4: ='CEM Price Data'!R4 -> 134.5 | R4: ='CEM Price Data'!S4 -> 24.46 | S4: ='CEM Price Data'!T4 -> 416.27 | T4: ='CEM Price Data'!U4 -> 405.07 | U4: ='CEM Price Data'!V4 -> 213.81 | V4: ='CEM Price Data'!W4 -> 52.01 | W4: ='CEM Price Data'!X4 -> 47.87 | X4: ='CEM Price Data'!Y4 -> 344.39
A5: ='CEM Price Data'!B5 -> 2021-05-25 | B5: ='CEM Price Data'!C5 -> 505.08 | C5: ='CEM Price Data'!D5 -> 128.36 | D5: ='CEM Price Data'!E5 -> 592.93 | E5: ='CEM Price Data'!F5 -> 96.14 | F5: ='CEM Price Data'!G5 -> 44.36 | G5: ='CEM Price Data'!H5 -> 115.23 | H5: ='CEM Price Data'!I5 -> 198.87 | I5: ='CEM Price Data'!J5 -> 20.72 | J5: ='CEM Price Data'!K5 -> 18 | K5: ='CEM Price Data'!L5 -> 139.98 | L5: ='CEM Price Data'!M5 -> 187.06 | M5: ='CEM Price Data'!N5 -> 199.22 | N5: ='CEM Price Data'!O5 -> 93.03 | O5: ='CEM Price Data'!P5 -> 429.66 | P5: ='CEM Price Data'!Q5 -> 103.81 | Q5: ='CEM Price Data'!R5 -> 135.29 | R5: ='CEM Price Data'!S5 -> 24.27 | S5: ='CEM Price Data'!T5 -> 420.15 | T5: ='CEM Price Data'!U5 -> 404.12 | U5: ='CEM Price Data'!V5 -> 211.49 | V5: ='CEM Price Data'!W5 -> 54.19 | W5: ='CEM Price Data'!X5 -> 47.41 | X5: ='CEM Price Data'!Y5 -> 345.36
A6: ='CEM Price Data'!B6 -> 2021-05-24 | B6: ='CEM Price Data'!C6 -> 497.83 | C6: ='CEM Price Data'!D6 -> 129.35 | D6: ='CEM Price Data'!E6 -> 593.06 | E6: ='CEM Price Data'!F6 -> 97.72 | F6: ='CEM Price Data'!G6 -> 44.83 | G6: ='CEM Price Data'!H6 -> 115.84 | H6: ='CEM Price Data'!I6 -> 197.15 | I6: ='CEM Price Data'!J6 -> 21.23 | J6: ='CEM Price Data'!K6 -> 18.24 | K6: ='CEM Price Data'!L6 -> 140.8 | L6: ='CEM Price Data'!M6 -> 186.2 | M6: ='CEM Price Data'!N6 -> 201.02 | N6: ='CEM Price Data'!O6 -> 93.23 | O6: ='CEM Price Data'!P6 -> 430.74 | P6: ='CEM Price Data'!Q6 -> 106.12 | Q6: ='CEM Price Data'!R6 -> 135.61 | R6: ='CEM Price Data'!S6 -> 24.86 | S6: ='CEM Price Data'!T6 -> 421 | T6: ='CEM Price Data'!U6 -> 403.83 | U6: ='CEM Price Data'!V6 -> 213.43 | V6: ='CEM Price Data'!W6 -> 54.83 | W6: ='CEM Price Data'!X6 -> 48.52 | X6: ='CEM Price Data'!Y6 -> 339.52
A7: ='CEM Price Data'!B7 -> 2021-05-21 | B7: ='CEM Price Data'!C7 -> 488.07 | C7: ='CEM Price Data'!D7 -> 129.33 | D7: ='CEM Price Data'!E7 -> 594.74 | E7: ='CEM Price Data'!F7 -> 96.58 | F7: ='CEM Price Data'!G7 -> 44.56 | G7: ='CEM Price Data'!H7 -> 115.81 | H7: ='CEM Price Data'!I7 -> 205.04 | I7: ='CEM Price Data'!J7 -> 21.25 | J7: ='CEM Price Data'!K7 -> 18.19 | K7: ='CEM Price Data'!L7 -> 139.66 | L7: ='CEM Price Data'!M7 -> 186.99 | M7: ='CEM Price Data'!N7 -> 199.88 | N7: ='CEM Price Data'!O7 -> 92.01 | O7: ='CEM Price Data'!P7 -> 429.25 | P7: ='CEM Price Data'!Q7 -> 107.05 | Q7: ='CEM Price Data'!R7 -> 135.51 | R7: ='CEM Price Data'!S7 -> 24.99 | S7: ='CEM Price Data'!T7 -> 409.35 | T7: ='CEM Price Data'!U7 -> 401.88 | U7: ='CEM Price Data'!V7 -> 211.87 | V7: ='CEM Price Data'!W7 -> 54.88 | W7: ='CEM Price Data'!X7 -> 48.52 | X7: ='CEM Price Data'!Y7 -> 333.45
A8: ='CEM Price Data'!B8 -> 2021-05-20 | B8: ='CEM Price Data'!C8 -> 491.67 | C8: ='CEM Price Data'!D8 -> 129.48 | D8: ='CEM Price Data'!E8 -> 598.32 | E8: ='CEM Price Data'!F8 -> 96.51 | F8: ='CEM Price Data'!G8 -> 44.73 | G8: ='CEM Price Data'!H8 -> 115.78 | H8: ='CEM Price Data'!I8 -> 204.12 | I8: ='CEM Price Data'!J8 -> 21.01 | J8: ='CEM Price Data'!K8 -> 18.25 | K8: ='CEM Price Data'!L8 -> 141.03 | L8: ='CEM Price Data'!M8 -> 187.7 | M8: ='CEM Price Data'!N8 -> 199.53 | N8: ='CEM Price Data'!O8 -> 92.5 | O8: ='CEM Price Data'!P8 -> 429.73 | P8: ='CEM Price Data'!Q8 -> 106.93 | Q8: ='CEM Price Data'!R8 -> 134.81 | R8: ='CEM Price Data'!S8 -> 24.9 | S8: ='CEM Price Data'!T8 -> 408.89 | T8: ='CEM Price Data'!U8 -> 403.52 | U8: ='CEM Price Data'!V8 -> 213.94 | V8: ='CEM Price Data'!W8 -> 54.6 | W8: ='CEM Price Data'!X8 -> 48.13 | X8: ='CEM Price Data'!Y8 -> 332.79
A9: ='CEM Price Data'!B9 -> 2021-05-19 | B9: ='CEM Price Data'!C9 -> 480.47 | C9: ='CEM Price Data'!D9 -> 131.72 | D9: ='CEM Price Data'!E9 -> 588.63 | E9: ='CEM Price Data'!F9 -> 97.38 | F9: ='CEM Price Data'!G9 -> 44.68 | G9: ='CEM Price Data'!H9 -> 115.39 | H9: ='CEM Price Data'!I9 -> 203.73 | I9: ='CEM Price Data'!J9 -> 21.21 | J9: ='CEM Price Data'!K9 -> 18.46 | K9: ='CEM Price Data'!L9 -> 138.15 | L9: ='CEM Price Data'!M9 -> 187.3 | M9: ='CEM Price Data'!N9 -> 196.51 | N9: ='CEM Price Data'!O9 -> 90.73 | O9: ='CEM Price Data'!P9 -> 427.83 | P9: ='CEM Price Data'!Q9 -> 106.14 | Q9: ='CEM Price Data'!R9 -> 134.3 | R9: ='CEM Price Data'!S9 -> 25.2 | S9: ='CEM Price Data'!T9 -> 397.57 | T9: ='CEM Price Data'!U9 -> 395.7 | U9: ='CEM Price Data'!V9 -> 214.35 | V9: ='CEM Price Data'!W9 -> 54.81 | W9: ='CEM Price Data'!X9 -> 48.57 | X9: ='CEM Price Data'!Y9 -> 325.87
A10: ='CEM Price Data'!B10 -> 2021-05-18 | B10: ='CEM Price Data'!C10 -> 480.62 | C10: ='CEM Price Data'!D10 -> 131.56 | D10: ='CEM Price Data'!E10 -> 588.15 | E10: ='CEM Price Data'!F10 -> 97.49 | F10: ='CEM Price Data'!G10 -> 44.57 | G10: ='CEM Price Data'!H10 -> 115.8 | H10: ='CEM Price Data'!I10 -> 204.95 | I10: ='CEM Price Data'!J10 -> 21.34 | J10: ='CEM Price Data'!K10 -> 18.49 | K10: ='CEM Price Data'!L10 -> 138.39 | L10: ='CEM Price Data'!M10 -> 185.98 | M10: ='CEM Price Data'!N10 -> 194.63 | N10: ='CEM Price Data'!O10 -> 90.81 | O10: ='CEM Price Data'!P10 -> 427.1 | P10: ='CEM Price Data'!Q10 -> 106.33 | Q10: ='CEM Price Data'!R10 -> 133.72 | R10: ='CEM Price Data'!S10 -> 25.42 | S10: ='CEM Price Data'!T10 -> 400 | T10: ='CEM Price Data'!U10 -> 396.59 | U10: ='CEM Price Data'!V10 -> 213.99 | V10: ='CEM Price Data'!W10 -> 55.26 | W10: ='CEM Price Data'!X10 -> 48.62 | X10: ='CEM Price Data'!Y10 -> 326.87
A11: ='CEM Price Data'!B11 -> 2021-05-17 | B11: ='CEM Price Data'!C11 -> 482.74 | C11: ='CEM Price Data'!D11 -> 131.01 | D11: ='CEM Price Data'!E11 -> 589.74 | E11: ='CEM Price Data'!F11 -> 99.03 | F11: ='CEM Price Data'!G11 -> 44.91 | G11: ='CEM Price Data'!H11 -> 116.87 | H11: ='CEM Price Data'!I11 -> 204.2 | I11: ='CEM Price Data'!J11 -> 21.66 | J11: ='CEM Price Data'!K11 -> 18.71 | K11: ='CEM Price Data'!L11 -> 139.54 | L11: ='CEM Price Data'!M11 -> 189.3 | M11: ='CEM Price Data'!N11 -> 195.53 | N11: ='CEM Price Data'!O11 -> 91.35 | O11: ='CEM Price Data'!P11 -> 435.67 | P11: ='CEM Price Data'!Q11 -> 108.76 | Q11: ='CEM Price Data'!R11 -> 133.51 | R11: ='CEM Price Data'!S11 -> 25.63 | S11: ='CEM Price Data'!T11 -> 387.35 | T11: ='CEM Price Data'!U11 -> 391.74 | U11: ='CEM Price Data'!V11 -> 216.29 | V11: ='CEM Price Data'!W11 -> 55.3 | W11: ='CEM Price Data'!X11 -> 48.58 | X11: ='CEM Price Data'!Y11 -> 326.7
A12: ='CEM Price Data'!B12 -> 2021-05-14 | B12: ='CEM Price Data'!C12 -> 486.56 | C12: ='CEM Price Data'!D12 -> 133.25 | D12: ='CEM Price Data'!E12 -> 600.75 | E12: ='CEM Price Data'!F12 -> 99.78 | F12: ='CEM Price Data'!G12 -> 45.66 | G12: ='CEM Price Data'!H12 -> 117.71 | H12: ='CEM Price Data'!I12 -> 206.2 | I12: ='CEM Price Data'!J12 -> 21.53 | J12: ='CEM Price Data'!K12 -> 18.73 | K12: ='CEM Price Data'!L12 -> 139.85 | L12: ='CEM Price Data'!M12 -> 190.02 | M12: ='CEM Price Data'!N12 -> 196.21 | N12: ='CEM Price Data'!O12 -> 92.14 | O12: ='CEM Price Data'!P12 -> 437.87 | P12: ='CEM Price Data'!Q12 -> 109.46 | Q12: ='CEM Price Data'!R12 -> 135.33 | R12: ='CEM Price Data'!S12 -> 25.73 | S12: ='CEM Price Data'!T12 -> 401.37 | T12: ='CEM Price Data'!U12 -> 398.95 | U12: ='CEM Price Data'!V12 -> 216.38 | V12: ='CEM Price Data'!W12 -> 54.71 | W12: ='CEM Price Data'!X12 -> 48.47 | X12: ='CEM Price Data'!Y12 -> 333.07
A13: ='CEM Price Data'!B13 -> 2021-05-13 | B13: ='CEM Price Data'!C13 -> 474.16 | C13: ='CEM Price Data'!D13 -> 133.2 | D13: ='CEM Price Data'!E13 -> 590.97 | E13: ='CEM Price Data'!F13 -> 99.21 | F13: ='CEM Price Data'!G13 -> 45.47 | G13: ='CEM Price Data'!H13 -> 116.72 | H13: ='CEM Price Data'!I13 -> 205.76 | I13: ='CEM Price Data'!J13 -> 21.4 | J13: ='CEM Price Data'!K13 -> 18.665 | K13: ='CEM Price Data'!L13 -> 138.05 | L13: ='CEM Price Data'!M13 -> 188.25 | M13: ='CEM Price Data'!N13 -> 194.94 | N13: ='CEM Price Data'!O13 -> 89.47 | O13: ='CEM Price Data'!P13 -> 435.01 | P13: ='CEM Price Data'!Q13 -> 109.85 | Q13: ='CEM Price Data'!R13 -> 136.19 | R13: ='CEM Price Data'!S13 -> 25.55 | S13: ='CEM Price Data'!T13 -> 396.66 | T13: ='CEM Price Data'!U13 -> 387.29 | U13: ='CEM Price Data'!V13 -> 215.67 | V13: ='CEM Price Data'!W13 -> 54.14 | W13: ='CEM Price Data'!X13 -> 48.43 | X13: ='CEM Price Data'!Y13 -> 328.3
A14: ='CEM Price Data'!B14 -> 2021-05-12 | B14: ='CEM Price Data'!C14 -> 472.09 | C14: ='CEM Price Data'!D14 -> 128.27 | D14: ='CEM Price Data'!E14 -> 583.89 | E14: ='CEM Price Data'!F14 -> 97.15 | F14: ='CEM Price Data'!G14 -> 44.15 | G14: ='CEM Price Data'!H14 -> 116.8 | H14: ='CEM Price Data'!I14 -> 205.87 | I14: ='CEM Price Data'!J14 -> 20.66 | J14: ='CEM Price Data'!K14 -> 18.24 | K14: ='CEM Price Data'!L14 -> 135.42 | L14: ='CEM Price Data'!M14 -> 182.83 | M14: ='CEM Price Data'!N14 -> 193.2 | N14: ='CEM Price Data'!O14 -> 89.79 | O14: ='CEM Price Data'!P14 -> 419.76 | P14: ='CEM Price Data'!Q14 -> 105.58 | Q14: ='CEM Price Data'!R14 -> 134.8 | R14: ='CEM Price Data'!S14 -> 25.2 | S14: ='CEM Price Data'!T14 -> 408.88 | T14: ='CEM Price Data'!U14 -> 388 | U14: ='CEM Price Data'!V14 -> 210.7 | V14: ='CEM Price Data'!W14 -> 53.04 | W14: ='CEM Price Data'!X14 -> 47.07 | X14: ='CEM Price Data'!Y14 -> 324.8
A15: ='CEM Price Data'!B15 -> 2021-05-11 | B15: ='CEM Price Data'!C15 -> 485.19 | C15: ='CEM Price Data'!D15 -> 130.4 | D15: ='CEM Price Data'!E15 -> 596.38 | E15: ='CEM Price Data'!F15 -> 99.09 | F15: ='CEM Price Data'!G15 -> 44.84 | G15: ='CEM Price Data'!H15 -> 119.24 | H15: ='CEM Price Data'!I15 -> 213.9 | I15: ='CEM Price Data'!J15 -> 20.83 | J15: ='CEM Price Data'!K15 -> 18.53 | K15: ='CEM Price Data'!L15 -> 138.93 | L15: ='CEM Price Data'!M15 -> 188.5 | M15: ='CEM Price Data'!N15 -> 194.75 | N15: ='CEM Price Data'!O15 -> 91.54 | O15: ='CEM Price Data'!P15 -> 438.87 | P15: ='CEM Price Data'!Q15 -> 108.31 | Q15: ='CEM Price Data'!R15 -> 136.82 | R15: ='CEM Price Data'!S15 -> 25.65 | S15: ='CEM Price Data'!T15 -> 415.54 | T15: ='CEM Price Data'!U15 -> 394.02 | U15: ='CEM Price Data'!V15 -> 214.33 | V15: ='CEM Price Data'!W15 -> 54.24 | W15: ='CEM Price Data'!X15 -> 47.75 | X15: ='CEM Price Data'!Y15 -> 335.22
A16: ='CEM Price Data'!B16 -> 2021-05-10 | B16: ='CEM Price Data'!C16 -> 479.38 | C16: ='CEM Price Data'!D16 -> 129.46 | D16: ='CEM Price Data'!E16 -> 603.65 | E16: ='CEM Price Data'!F16 -> 101.73 | F16: ='CEM Price Data'!G16 -> 45.94 | G16: ='CEM Price Data'!H16 -> 119.29 | H16: ='CEM Price Data'!I16 -> 218.86 | I16: ='CEM Price Data'!J16 -> 21.21 | J16: ='CEM Price Data'!K16 -> 19.2 | K16: ='CEM Price Data'!L16 -> 139.9 | L16: ='CEM Price Data'!M16 -> 189 | M16: ='CEM Price Data'!N16 -> 194.76 | N16: ='CEM Price Data'!O16 -> 91.6 | O16: ='CEM Price Data'!P16 -> 444.96 | P16: ='CEM Price Data'!Q16 -> 110.92 | Q16: ='CEM Price Data'!R16 -> 138.49 | R16: ='CEM Price Data'!S16 -> 26.43 | S16: ='CEM Price Data'!T16 -> 408.23 | T16: ='CEM Price Data'!U16 -> 392.22 | U16: ='CEM Price Data'!V16 -> 216.13 | V16: ='CEM Price Data'!W16 -> 55.11 | W16: ='CEM Price Data'!X16 -> 48.91 | X16: ='CEM Price Data'!Y16 -> 333.73
A17: ='CEM Price Data'!B17 -> 2021-05-07 | B17: ='CEM Price Data'!C17 -> 488.73 | C17: ='CEM Price Data'!D17 -> 131.58 | D17: ='CEM Price Data'!E17 -> 608.01 | E17: ='CEM Price Data'!F17 -> 99.51 | F17: ='CEM Price Data'!G17 -> 45.49 | G17: ='CEM Price Data'!H17 -> 121.03 | H17: ='CEM Price Data'!I17 -> 220.2 | I17: ='CEM Price Data'!J17 -> 21.36 | J17: ='CEM Price Data'!K17 -> 19.18 | K17: ='CEM Price Data'!L17 -> 143.41 | L17: ='CEM Price Data'!M17 -> 189.02 | M17: ='CEM Price Data'!N17 -> 195.42 | N17: ='CEM Price Data'!O17 -> 91.25 | O17: ='CEM Price Data'!P17 -> 444.01 | P17: ='CEM Price Data'!Q17 -> 113.26 | Q17: ='CEM Price Data'!R17 -> 136.6 | R17: ='CEM Price Data'!S17 -> 26.29 | S17: ='CEM Price Data'!T17 -> 423.05 | T17: ='CEM Price Data'!U17 -> 399.87 | U17: ='CEM Price Data'!V17 -> 217.5 | V17: ='CEM Price Data'!W17 -> 54.53 | W17: ='CEM Price Data'!X17 -> 48.22 | X17: ='CEM Price Data'!Y17 -> 333.68
A18: ='CEM Price Data'!B18 -> 2021-05-06 | B18: ='CEM Price Data'!C18 -> 483.61 | C18: ='CEM Price Data'!D18 -> 132.91 | D18: ='CEM Price Data'!E18 -> 602.17 | E18: ='CEM Price Data'!F18 -> 98.02 | F18: ='CEM Price Data'!G18 -> 45.75 | G18: ='CEM Price Data'!H18 -> 121.69 | H18: ='CEM Price Data'!I18 -> 218.5 | I18: ='CEM Price Data'!J18 -> 21.29 | J18: ='CEM Price Data'!K18 -> 19.11 | K18: ='CEM Price Data'!L18 -> 142.81 | L18: ='CEM Price Data'!M18 -> 190.41 | M18: ='CEM Price Data'!N18 -> 193.89 | N18: ='CEM Price Data'!O18 -> 95.02 | O18: ='CEM Price Data'!P18 -> 434.85 | P18: ='CEM Price Data'!Q18 -> 113.02 | Q18: ='CEM Price Data'!R18 -> 137.41 | R18: ='CEM Price Data'!S18 -> 25.93 | S18: ='CEM Price Data'!T18 -> 410.98 | T18: ='CEM Price Data'!U18 -> 403.02 | U18: ='CEM Price Data'!V18 -> 214.78 | V18: ='CEM Price Data'!W18 -> 54.46 | W18: ='CEM Price Data'!X18 -> 47.85 | X18: ='CEM Price Data'!Y18 -> 329.42
A19: ='CEM Price Data'!B19 -> 2021-05-05 | B19: ='CEM Price Data'!C19 -> 486.69 | C19: ='CEM Price Data'!D19 -> 132.63 | D19: ='CEM Price Data'!E19 -> 601.37 | E19: ='CEM Price Data'!F19 -> 98.87 | F19: ='CEM Price Data'!G19 -> 45.94 | G19: ='CEM Price Data'!H19 -> 119.18 | H19: ='CEM Price Data'!I19 -> 215.88 | I19: ='CEM Price Data'!J19 -> 21.18 | J19: ='CEM Price Data'!K19 -> 19.11 | K19: ='CEM Price Data'!L19 -> 140.72 | L19: ='CEM Price Data'!M19 -> 186.14 | M19: ='CEM Price Data'!N19 -> 192.81 | N19: ='CEM Price Data'!O19 -> 94.45 | O19: ='CEM Price Data'!P19 -> 441.56 | P19: ='CEM Price Data'!Q19 -> 111.65 | Q19: ='CEM Price Data'!R19 -> 134.84 | R19: ='CEM Price Data'!S19 -> 25.32 | S19: ='CEM Price Data'!T19 -> 416.8 | T19: ='CEM Price Data'!U19 -> 400.98 | U19: ='CEM Price Data'!V19 -> 214.52 | V19: ='CEM Price Data'!W19 -> 54.47 | W19: ='CEM Price Data'!X19 -> 47.82 | X19: ='CEM Price Data'!Y19 -> 328.6
A20: ='CEM Price Data'!B20 -> 2021-05-04 | B20: ='CEM Price Data'!C20 -> 490.7 | C20: ='CEM Price Data'!D20 -> 133.6 | D20: ='CEM Price Data'!E20 -> 598.1 | E20: ='CEM Price Data'!F20 -> 99.3 | F20: ='CEM Price Data'!G20 -> 46.36 | G20: ='CEM Price Data'!H20 -> 119.2 | H20: ='CEM Price Data'!I20 -> 216.24 | I20: ='CEM Price Data'!J20 -> 21.2 | J20: ='CEM Price Data'!K20 -> 19.12 | K20: ='CEM Price Data'!L20 -> 140.32 | L20: ='CEM Price Data'!M20 -> 187.2 | M20: ='CEM Price Data'!N20 -> 188.2 | N20: ='CEM Price Data'!O20 -> 95.94 | O20: ='CEM Price Data'!P20 -> 431.15 | P20: ='CEM Price Data'!Q20 -> 113.04 | Q20: ='CEM Price Data'!R20 -> 132.47 | R20: ='CEM Price Data'!S20 -> 25.33 | S20: ='CEM Price Data'!T20 -> 418.22 | T20: ='CEM Price Data'!U20 -> 415.03 | U20: ='CEM Price Data'!V20 -> 214.31 | V20: ='CEM Price Data'!W20 -> 54.12 | W20: ='CEM Price Data'!X20 -> 47.52 | X20: ='CEM Price Data'!Y20 -> 329.2
A21: ='CEM Price Data'!B21 -> 2021-05-03 | B21: ='CEM Price Data'!C21 -> 503.46 | C21: ='CEM Price Data'!D21 -> 130.44 | D21: ='CEM Price Data'!E21 -> 610 | E21: ='CEM Price Data'!F21 -> 99.07 | F21: ='CEM Price Data'!G21 -> 46.33 | G21: ='CEM Price Data'!H21 -> 123.4 | H21: ='CEM Price Data'!I21 -> 216.57 | I21: ='CEM Price Data'!J21 -> 21.12 | J21: ='CEM Price Data'!K21 -> 19.055 | K21: ='CEM Price Data'!L21 -> 140.4 | L21: ='CEM Price Data'!M21 -> 188.18 | M21: ='CEM Price Data'!N21 -> 185.92 | N21: ='CEM Price Data'!O21 -> 97.61 | O21: ='CEM Price Data'!P21 -> 428.86 | P21: ='CEM Price Data'!Q21 -> 112.84 | Q21: ='CEM Price Data'!R21 -> 132.08 | R21: ='CEM Price Data'!S21 -> 24.96 | S21: ='CEM Price Data'!T21 -> 426.41 | T21: ='CEM Price Data'!U21 -> 428.65 | U21: ='CEM Price Data'!V21 -> 212.2 | V21: ='CEM Price Data'!W21 -> 54.3 | W21: ='CEM Price Data'!X21 -> 47.16 | X21: ='CEM Price Data'!Y21 -> 329.88
A22: ='CEM Price Data'!B22 -> 2021-04-30 | B22: ='CEM Price Data'!C22 -> 508.34 | C22: ='CEM Price Data'!D22 -> 127.19 | D22: ='CEM Price Data'!E22 -> 630.13 | E22: ='CEM Price Data'!F22 -> 97.08 | F22: ='CEM Price Data'!G22 -> 45.99 | G22: ='CEM Price Data'!H22 -> 123.85 | H22: ='CEM Price Data'!I22 -> 214.75 | I22: ='CEM Price Data'!J22 -> 20.73 | J22: ='CEM Price Data'!K22 -> 18.59 | K22: ='CEM Price Data'!L22 -> 144.35 | L22: ='CEM Price Data'!M22 -> 184.71 | M22: ='CEM Price Data'!N22 -> 182.77 | N22: ='CEM Price Data'!O22 -> 97.05 | O22: ='CEM Price Data'!P22 -> 422.52 | P22: ='CEM Price Data'!Q22 -> 111.46 | Q22: ='CEM Price Data'!R22 -> 130.99 | R22: ='CEM Price Data'!S22 -> 24.23 | S22: ='CEM Price Data'!T22 -> 427.49 | T22: ='CEM Price Data'!U22 -> 424.86 | U22: ='CEM Price Data'!V22 -> 203.86 | V22: ='CEM Price Data'!W22 -> 53.1 | W22: ='CEM Price Data'!X22 -> 46.23 | X22: ='CEM Price Data'!Y22 -> 328.52
A23: ='CEM Price Data'!B23 -> 2021-04-29 | B23: ='CEM Price Data'!C23 -> 516.09 | C23: ='CEM Price Data'!D23 -> 124.62 | D23: ='CEM Price Data'!E23 -> 640.73 | E23: ='CEM Price Data'!F23 -> 97.43 | F23: ='CEM Price Data'!G23 -> 46.21 | G23: ='CEM Price Data'!H23 -> 128.02 | H23: ='CEM Price Data'!I23 -> 214.87 | I23: ='CEM Price Data'!J23 -> 20.85 | J23: ='CEM Price Data'!K23 -> 18.84 | K23: ='CEM Price Data'!L23 -> 148.39 | L23: ='CEM Price Data'!M23 -> 185.76 | M23: ='CEM Price Data'!N23 -> 182.2 | N23: ='CEM Price Data'!O23 -> 97.94 | O23: ='CEM Price Data'!P23 -> 421.45 | P23: ='CEM Price Data'!Q23 -> 112.35 | Q23: ='CEM Price Data'!R23 -> 131.94 | R23: ='CEM Price Data'!S23 -> 24.12 | S23: ='CEM Price Data'!T23 -> 433.75 | T23: ='CEM Price Data'!U23 -> 426.59 | U23: ='CEM Price Data'!V23 -> 203.72 | V23: ='CEM Price Data'!W23 -> 52.735 | W23: ='CEM Price Data'!X23 -> 46.64 | X23: ='CEM Price Data'!Y23 -> 324.55
A24: ='CEM Price Data'!B24 -> 2021-04-28 | B24: ='CEM Price Data'!C24 -> 515.48 | C24: ='CEM Price Data'!D24 -> 124.97 | D24: ='CEM Price Data'!E24 -> 649.04 | E24: ='CEM Price Data'!F24 -> 93.63 | F24: ='CEM Price Data'!G24 -> 45.77 | G24: ='CEM Price Data'!H24 -> 138.51 | H24: ='CEM Price Data'!I24 -> 212.08 | I24: ='CEM Price Data'!J24 -> 20.6 | J24: ='CEM Price Data'!K24 -> 18.37 | K24: ='CEM Price Data'!L24 -> 146.61 | L24: ='CEM Price Data'!M24 -> 182.5 | M24: ='CEM Price Data'!N24 -> 180.55 | N24: ='CEM Price Data'!O24 -> 96.47 | O24: ='CEM Price Data'!P24 -> 415.29 | P24: ='CEM Price Data'!Q24 -> 111.46 | Q24: ='CEM Price Data'!R24 -> 130.49 | R24: ='CEM Price Data'!S24 -> 23.73 | S24: ='CEM Price Data'!T24 -> 436.8 | T24: ='CEM Price Data'!U24 -> 440.8 | U24: ='CEM Price Data'!V24 -> 198.37 | V24: ='CEM Price Data'!W24 -> 52.4 | W24: ='CEM Price Data'!X24 -> 44.67 | X24: ='CEM Price Data'!Y24 -> 322.22
A25: ='CEM Price Data'!B25 -> 2021-04-27 | B25: ='CEM Price Data'!C25 -> 517.32 | C25: ='CEM Price Data'!D25 -> 124.01 | D25: ='CEM Price Data'!E25 -> 648.72 | E25: ='CEM Price Data'!F25 -> 96.59 | F25: ='CEM Price Data'!G25 -> 45.96 | G25: ='CEM Price Data'!H25 -> 140.34 | H25: ='CEM Price Data'!I25 -> 212.4 | I25: ='CEM Price Data'!J25 -> 20.71 | J25: ='CEM Price Data'!K25 -> 18.43 | K25: ='CEM Price Data'!L25 -> 148.39 | L25: ='CEM Price Data'!M25 -> 183.51 | M25: ='CEM Price Data'!N25 -> 182.21 | N25: ='CEM Price Data'!O25 -> 97.02 | O25: ='CEM Price Data'!P25 -> 421.69 | P25: ='CEM Price Data'!Q25 -> 113.5 | Q25: ='CEM Price Data'!R25 -> 131.04 | R25: ='CEM Price Data'!S25 -> 23.8 | S25: ='CEM Price Data'!T25 -> 441.4 | T25: ='CEM Price Data'!U25 -> 447.14 | U25: ='CEM Price Data'!V25 -> 194.13 | V25: ='CEM Price Data'!W25 -> 52.51 | W25: ='CEM Price Data'!X25 -> 44.55 | X25: ='CEM Price Data'!Y25 -> 320.35
A26: ='CEM Price Data'!B26 -> 2021-04-26 | B26: ='CEM Price Data'!C26 -> 515.7 | C26: ='CEM Price Data'!D26 -> 124.21 | D26: ='CEM Price Data'!E26 -> 648.34 | E26: ='CEM Price Data'!F26 -> 98.14 | F26: ='CEM Price Data'!G26 -> 46.72 | G26: ='CEM Price Data'!H26 -> 140.6 | H26: ='CEM Price Data'!I26 -> 211.73 | I26: ='CEM Price Data'!J26 -> 20.6 | J26: ='CEM Price Data'!K26 -> 18.42 | K26: ='CEM Price Data'!L26 -> 148.74 | L26: ='CEM Price Data'!M26 -> 183.6 | M26: ='CEM Price Data'!N26 -> 187.22 | N26: ='CEM Price Data'!O26 -> 97.14 | O26: ='CEM Price Data'!P26 -> 413.25 | P26: ='CEM Price Data'!Q26 -> 113.77 | Q26: ='CEM Price Data'!R26 -> 129.77 | R26: ='CEM Price Data'!S26 -> 23.73 | S26: ='CEM Price Data'!T26 -> 440.56 | T26: ='CEM Price Data'!U26 -> 454.88 | U26: ='CEM Price Data'!V26 -> 175.81 | V26: ='CEM Price Data'!W26 -> 52.73 | W26: ='CEM Price Data'!X26 -> 44.93 | X26: ='CEM Price Data'!Y26 -> 322.41
A27: ='CEM Price Data'!B27 -> 2021-04-23 | B27: ='CEM Price Data'!C27 -> 515.84 | C27: ='CEM Price Data'!D27 -> 124.21 | D27: ='CEM Price Data'!E27 -> 640.42 | E27: ='CEM Price Data'!F27 -> 99.78 | F27: ='CEM Price Data'!G27 -> 46.6 | G27: ='CEM Price Data'!H27 -> 140.48 | H27: ='CEM Price Data'!I27 -> 213.31 | I27: ='CEM Price Data'!J27 -> 20.97 | J27: ='CEM Price Data'!K27 -> 18.87 | K27: ='CEM Price Data'!L27 -> 147.86 | L27: ='CEM Price Data'!M27 -> 185.77 | M27: ='CEM Price Data'!N27 -> 188.72 | N27: ='CEM Price Data'!O27 -> 98.68 | O27: ='CEM Price Data'!P27 -> 419.53 | P27: ='CEM Price Data'!Q27 -> 113.99 | Q27: ='CEM Price Data'!R27 -> 129.77 | R27: ='CEM Price Data'!S27 -> 24.35 | S27: ='CEM Price Data'!T27 -> 432.47 | T27: ='CEM Price Data'!U27 -> 451.5 | U27: ='CEM Price Data'!V27 -> 178.96 | V27: ='CEM Price Data'!W27 -> 53.02 | W27: ='CEM Price Data'!X27 -> 45.41 | X27: ='CEM Price Data'!Y27 -> 323.68
A28: ='CEM Price Data'!B28 -> 2021-04-22 | B28: ='CEM Price Data'!C28 -> 507.29 | C28: ='CEM Price Data'!D28 -> 119.87 | D28: ='CEM Price Data'!E28 -> 639.73 | E28: ='CEM Price Data'!F28 -> 99.17 | F28: ='CEM Price Data'!G28 -> 46.42 | G28: ='CEM Price Data'!H28 -> 140.3 | H28: ='CEM Price Data'!I28 -> 215.16 | I28: ='CEM Price Data'!J28 -> 20.41 | J28: ='CEM Price Data'!K28 -> 18.99 | K28: ='CEM Price Data'!L28 -> 145.6 | L28: ='CEM Price Data'!M28 -> 184.98 | M28: ='CEM Price Data'!N28 -> 187.05 | N28: ='CEM Price Data'!O28 -> 97.51 | O28: ='CEM Price Data'!P28 -> 410.46 | P28: ='CEM Price Data'!Q28 -> 113.43 | Q28: ='CEM Price Data'!R28 -> 132.11 | R28: ='CEM Price Data'!S28 -> 24.36 | S28: ='CEM Price Data'!T28 -> 423.71 | T28: ='CEM Price Data'!U28 -> 451.35 | U28: ='CEM Price Data'!V28 -> 177.51 | V28: ='CEM Price Data'!W28 -> 52.58 | W28: ='CEM Price Data'!X28 -> 45.88 | X28: ='CEM Price Data'!Y28 -> 321.84
A29: ='CEM Price Data'!B29 -> 2021-04-21 | B29: ='CEM Price Data'!C29 -> 512.34 | C29: ='CEM Price Data'!D29 -> 121.52 | D29: ='CEM Price Data'!E29 -> 634.31 | E29: ='CEM Price Data'!F29 -> 98.95 | F29: ='CEM Price Data'!G29 -> 46.71 | G29: ='CEM Price Data'!H29 -> 141.5 | H29: ='CEM Price Data'!I29 -> 216.84 | I29: ='CEM Price Data'!J29 -> 20.4 | J29: ='CEM Price Data'!K29 -> 19.1 | K29: ='CEM Price Data'!L29 -> 144.65 | L29: ='CEM Price Data'!M29 -> 185.13 | M29: ='CEM Price Data'!N29 -> 190.95 | N29: ='CEM Price Data'!O29 -> 97.99 | O29: ='CEM Price Data'!P29 -> 385.67 | P29: ='CEM Price Data'!Q29 -> 116.97 | Q29: ='CEM Price Data'!R29 -> 133.66 | R29: ='CEM Price Data'!S29 -> 24.42 | S29: ='CEM Price Data'!T29 -> 423.84 | T29: ='CEM Price Data'!U29 -> 451.99 | U29: ='CEM Price Data'!V29 -> 178.57 | V29: ='CEM Price Data'!W29 -> 54.05 | W29: ='CEM Price Data'!X29 -> 46.12 | X29: ='CEM Price Data'!Y29 -> 323.83
A30: ='CEM Price Data'!B30 -> 2021-04-20 | B30: ='CEM Price Data'!C30 -> 514.21 | C30: ='CEM Price Data'!D30 -> 121.04 | D30: ='CEM Price Data'!E30 -> 628.3 | E30: ='CEM Price Data'!F30 -> 99.48 | F30: ='CEM Price Data'!G30 -> 46.09 | G30: ='CEM Price Data'!H30 -> 138.12 | H30: ='CEM Price Data'!I30 -> 218.29 | I30: ='CEM Price Data'!J30 -> 20.21 | J30: ='CEM Price Data'!K30 -> 19.515 | K30: ='CEM Price Data'!L30 -> 143 | L30: ='CEM Price Data'!M30 -> 181.8 | M30: ='CEM Price Data'!N30 -> 190.61 | N30: ='CEM Price Data'!O30 -> 97.4 | O30: ='CEM Price Data'!P30 -> 386.06 | P30: ='CEM Price Data'!Q30 -> 114.32 | Q30: ='CEM Price Data'!R30 -> 132.51 | R30: ='CEM Price Data'!S30 -> 25.15 | S30: ='CEM Price Data'!T30 -> 411.91 | T30: ='CEM Price Data'!U30 -> 446.14 | U30: ='CEM Price Data'!V30 -> 179.69 | V30: ='CEM Price Data'!W30 -> 53.34 | W30: ='CEM Price Data'!X30 -> 48.03 | X30: ='CEM Price Data'!Y30 -> 319.19
A31: ='CEM Price Data'!B31 -> 2021-04-19 | B31: ='CEM Price Data'!C31 -> 516.17 | C31: ='CEM Price Data'!D31 -> 122.08 | D31: ='CEM Price Data'!E31 -> 629.59 | E31: ='CEM Price Data'!F31 -> 98.64 | F31: ='CEM Price Data'!G31 -> 46.82 | G31: ='CEM Price Data'!H31 -> 138.85 | H31: ='CEM Price Data'!I31 -> 216.73 | I31: ='CEM Price Data'!J31 -> 20.38 | J31: ='CEM Price Data'!K31 -> 19.595 | K31: ='CEM Price Data'!L31 -> 143.63 | L31: ='CEM Price Data'!M31 -> 182.16 | M31: ='CEM Price Data'!N31 -> 189.64 | N31: ='CEM Price Data'!O31 -> 97.86 | O31: ='CEM Price Data'!P31 -> 382.95 | P31: ='CEM Price Data'!Q31 -> 114.78 | Q31: ='CEM Price Data'!R31 -> 132.15 | R31: ='CEM Price Data'!S31 -> 25.32 | S31: ='CEM Price Data'!T31 -> 414.51 | T31: ='CEM Price Data'!U31 -> 445.96 | U31: ='CEM Price Data'!V31 -> 178.06 | V31: ='CEM Price Data'!W31 -> 53.79 | W31: ='CEM Price Data'!X31 -> 48.09 | X31: ='CEM Price Data'!Y31 -> 316.79
A32: ='CEM Price Data'!B32 -> 2021-04-16 | B32: ='CEM Price Data'!C32 -> 525.08 | C32: ='CEM Price Data'!D32 -> 122.84 | D32: ='CEM Price Data'!E32 -> 626.12 | E32: ='CEM Price Data'!F32 -> 100.76 | F32: ='CEM Price Data'!G32 -> 46.99 | G32: ='CEM Price Data'!H32 -> 140.5 | H32: ='CEM Price Data'!I32 -> 216.74 | I32: ='CEM Price Data'!J32 -> 20.64 | J32: ='CEM Price Data'!K32 -> 19.75 | K32: ='CEM Price Data'!L32 -> 145.4 | L32: ='CEM Price Data'!M32 -> 180.46 | M32: ='CEM Price Data'!N32 -> 189.25 | N32: ='CEM Price Data'!O32 -> 98.17 | O32: ='CEM Price Data'!P32 -> 382.21 | P32: ='CEM Price Data'!Q32 -> 115.08 | Q32: ='CEM Price Data'!R32 -> 131.72 | R32: ='CEM Price Data'!S32 -> 25.56 | S32: ='CEM Price Data'!T32 -> 418.55 | T32: ='CEM Price Data'!U32 -> 448.2 | U32: ='CEM Price Data'!V32 -> 179.71 | V32: ='CEM Price Data'!W32 -> 53.3 | W32: ='CEM Price Data'!X32 -> 48.1 | X32: ='CEM Price Data'!Y32 -> 313.83
A33: ='CEM Price Data'!B33 -> 2021-04-15 | B33: ='CEM Price Data'!C33 -> 523.25 | C33: ='CEM Price Data'!D33 -> 122.1 | D33: ='CEM Price Data'!E33 -> 624.79 | E33: ='CEM Price Data'!F33 -> 100.76 | F33: ='CEM Price Data'!G33 -> 46.91 | G33: ='CEM Price Data'!H33 -> 138.83 | H33: ='CEM Price Data'!I33 -> 215.75 | I33: ='CEM Price Data'!J33 -> 20.64 | J33: ='CEM Price Data'!K33 -> 19.71 | K33: ='CEM Price Data'!L33 -> 145.27 | L33: ='CEM Price Data'!M33 -> 180.26 | M33: ='CEM Price Data'!N33 -> 185.92 | N33: ='CEM Price Data'!O33 -> 95.95 | O33: ='CEM Price Data'!P33 -> 374.43 | P33: ='CEM Price Data'!Q33 -> 114.73 | Q33: ='CEM Price Data'!R33 -> 130.79 | R33: ='CEM Price Data'!S33 -> 25.66 | S33: ='CEM Price Data'!T33 -> 415.18 | T33: ='CEM Price Data'!U33 -> 449.43 | U33: ='CEM Price Data'!V33 -> 179.64 | V33: ='CEM Price Data'!W33 -> 53.72 | W33: ='CEM Price Data'!X33 -> 48.27 | X33: ='CEM Price Data'!Y33 -> 310.95
A34: ='CEM Price Data'!B34 -> 2021-04-14 | B34: ='CEM Price Data'!C34 -> 510.63 | C34: ='CEM Price Data'!D34 -> 121.78 | D34: ='CEM Price Data'!E34 -> 612.11 | E34: ='CEM Price Data'!F34 -> 98.52 | F34: ='CEM Price Data'!G34 -> 46.61 | G34: ='CEM Price Data'!H34 -> 137.76 | H34: ='CEM Price Data'!I34 -> 213.55 | I34: ='CEM Price Data'!J34 -> 20.83 | J34: ='CEM Price Data'!K34 -> 19.55 | K34: ='CEM Price Data'!L34 -> 143.42 | L34: ='CEM Price Data'!M34 -> 178.77 | M34: ='CEM Price Data'!N34 -> 183 | N34: ='CEM Price Data'!O34 -> 94.8 | O34: ='CEM Price Data'!P34 -> 367.7 | P34: ='CEM Price Data'!Q34 -> 114.56 | Q34: ='CEM Price Data'!R34 -> 129.07 | R34: ='CEM Price Data'!S34 -> 25.25 | S34: ='CEM Price Data'!T34 -> 414.38 | T34: ='CEM Price Data'!U34 -> 443.26 | U34: ='CEM Price Data'!V34 -> 176.21 | V34: ='CEM Price Data'!W34 -> 54.47 | W34: ='CEM Price Data'!X34 -> 47.92 | X34: ='CEM Price Data'!Y34 -> 300.06
A35: ='CEM Price Data'!B35 -> 2021-04-13 | B35: ='CEM Price Data'!C35 -> 514.86 | C35: ='CEM Price Data'!D35 -> 122.15 | D35: ='CEM Price Data'!E35 -> 614.85 | E35: ='CEM Price Data'!F35 -> 98.21 | F35: ='CEM Price Data'!G35 -> 46.72 | G35: ='CEM Price Data'!H35 -> 139 | H35: ='CEM Price Data'!I35 -> 212.04 | I35: ='CEM Price Data'!J35 -> 20.67 | J35: ='CEM Price Data'!K35 -> 19.7 | K35: ='CEM Price Data'!L35 -> 143.43 | L35: ='CEM Price Data'!M35 -> 179.86 | M35: ='CEM Price Data'!N35 -> 182.53 | N35: ='CEM Price Data'!O35 -> 95.89 | O35: ='CEM Price Data'!P35 -> 370.45 | P35: ='CEM Price Data'!Q35 -> 113.31 | Q35: ='CEM Price Data'!R35 -> 129.81 | R35: ='CEM Price Data'!S35 -> 25.58 | S35: ='CEM Price Data'!T35 -> 419.45 | T35: ='CEM Price Data'!U35 -> 444.66 | U35: ='CEM Price Data'!V35 -> 179.42 | V35: ='CEM Price Data'!W35 -> 54.6 | W35: ='CEM Price Data'!X35 -> 48.23 | X35: ='CEM Price Data'!Y35 -> 306.45
A36: ='CEM Price Data'!B36 -> 2021-04-12 | B36: ='CEM Price Data'!C36 -> 506.03 | C36: ='CEM Price Data'!D36 -> 121.19 | D36: ='CEM Price Data'!E36 -> 603.99 | E36: ='CEM Price Data'!F36 -> 99.04 | F36: ='CEM Price Data'!G36 -> 46.56 | G36: ='CEM Price Data'!H36 -> 142.06 | H36: ='CEM Price Data'!I36 -> 209.04 | I36: ='CEM Price Data'!J36 -> 20.85 | J36: ='CEM Price Data'!K36 -> 19.92 | K36: ='CEM Price Data'!L36 -> 145.03 | L36: ='CEM Price Data'!M36 -> 179.94 | M36: ='CEM Price Data'!N36 -> 181.82 | N36: ='CEM Price Data'!O36 -> 95.42 | O36: ='CEM Price Data'!P36 -> 371.18 | P36: ='CEM Price Data'!Q36 -> 115.2 | Q36: ='CEM Price Data'!R36 -> 129.53 | R36: ='CEM Price Data'!S36 -> 25.69 | S36: ='CEM Price Data'!T36 -> 403.05 | T36: ='CEM Price Data'!U36 -> 437.11 | U36: ='CEM Price Data'!V36 -> 178.58 | V36: ='CEM Price Data'!W36 -> 54.7 | W36: ='CEM Price Data'!X36 -> 48.31 | X36: ='CEM Price Data'!Y36 -> 296.94
A37: ='CEM Price Data'!B37 -> 2021-04-09 | B37: ='CEM Price Data'!C37 -> 504.04 | C37: ='CEM Price Data'!D37 -> 121.27 | D37: ='CEM Price Data'!E37 -> 602.57 | E37: ='CEM Price Data'!F37 -> 97.45 | F37: ='CEM Price Data'!G37 -> 46.67 | G37: ='CEM Price Data'!H37 -> 142.34 | H37: ='CEM Price Data'!I37 -> 206.66 | I37: ='CEM Price Data'!J37 -> 20.74 | J37: ='CEM Price Data'!K37 -> 19.78 | K37: ='CEM Price Data'!L37 -> 146.23 | L37: ='CEM Price Data'!M37 -> 178.85 | M37: ='CEM Price Data'!N37 -> 184.49 | N37: ='CEM Price Data'!O37 -> 95.29 | O37: ='CEM Price Data'!P37 -> 369.49 | P37: ='CEM Price Data'!Q37 -> 114.68 | Q37: ='CEM Price Data'!R37 -> 128.21 | R37: ='CEM Price Data'!S37 -> 25.4 | S37: ='CEM Price Data'!T37 -> 408.72 | T37: ='CEM Price Data'!U37 -> 442.67 | U37: ='CEM Price Data'!V37 -> 175.94 | V37: ='CEM Price Data'!W37 -> 54.18 | W37: ='CEM Price Data'!X37 -> 48.15 | X37: ='CEM Price Data'!Y37 -> 296.52
A38: ='CEM Price Data'!B38 -> 2021-04-08 | B38: ='CEM Price Data'!C38 -> 499.84 | C38: ='CEM Price Data'!D38 -> 120.6 | D38: ='CEM Price Data'!E38 -> 592.23 | E38: ='CEM Price Data'!F38 -> 96.51 | F38: ='CEM Price Data'!G38 -> 46.375 | G38: ='CEM Price Data'!H38 -> 142.77 | H38: ='CEM Price Data'!I38 -> 207.19 | I38: ='CEM Price Data'!J38 -> 21.4 | J38: ='CEM Price Data'!K38 -> 19.68 | K38: ='CEM Price Data'!L38 -> 144.65 | L38: ='CEM Price Data'!M38 -> 179.27 | M38: ='CEM Price Data'!N38 -> 182.61 | N38: ='CEM Price Data'!O38 -> 95.3 | O38: ='CEM Price Data'!P38 -> 360.76 | P38: ='CEM Price Data'!Q38 -> 113.79 | Q38: ='CEM Price Data'!R38 -> 128.13 | R38: ='CEM Price Data'!S38 -> 25.3 | S38: ='CEM Price Data'!T38 -> 405.14 | T38: ='CEM Price Data'!U38 -> 437.01 | U38: ='CEM Price Data'!V38 -> 173.02 | V38: ='CEM Price Data'!W38 -> 54.79 | W38: ='CEM Price Data'!X38 -> 48.02 | X38: ='CEM Price Data'!Y38 -> 291.88
A39: ='CEM Price Data'!B39 -> 2021-04-07 | B39: ='CEM Price Data'!C39 -> 493.41 | C39: ='CEM Price Data'!D39 -> 120.87 | D39: ='CEM Price Data'!E39 -> 576.64 | E39: ='CEM Price Data'!F39 -> 96.27 | F39: ='CEM Price Data'!G39 -> 45.96 | G39: ='CEM Price Data'!H39 -> 142.68 | H39: ='CEM Price Data'!I39 -> 205.73 | I39: ='CEM Price Data'!J39 -> 21.32 | J39: ='CEM Price Data'!K39 -> 19.73 | K39: ='CEM Price Data'!L39 -> 143.95 | L39: ='CEM Price Data'!M39 -> 178.34 | M39: ='CEM Price Data'!N39 -> 182.32 | N39: ='CEM Price Data'!O39 -> 94.23 | O39: ='CEM Price Data'!P39 -> 356.65 | P39: ='CEM Price Data'!Q39 -> 113.59 | Q39: ='CEM Price Data'!R39 -> 127.85 | R39: ='CEM Price Data'!S39 -> 25.46 | S39: ='CEM Price Data'!T39 -> 396.99 | T39: ='CEM Price Data'!U39 -> 432.07 | U39: ='CEM Price Data'!V39 -> 171.95 | V39: ='CEM Price Data'!W39 -> 55.58 | W39: ='CEM Price Data'!X39 -> 48.18 | X39: ='CEM Price Data'!Y39 -> 289.18
A40: ='CEM Price Data'!B40 -> 2021-04-06 | B40: ='CEM Price Data'!C40 -> 491.34 | C40: ='CEM Price Data'!D40 -> 125.41 | D40: ='CEM Price Data'!E40 -> 587.55 | E40: ='CEM Price Data'!F40 -> 97.56 | F40: ='CEM Price Data'!G40 -> 46.09 | G40: ='CEM Price Data'!H40 -> 141.98 | H40: ='CEM Price Data'!I40 -> 205.63 | I40: ='CEM Price Data'!J40 -> 21.77 | J40: ='CEM Price Data'!K40 -> 19.855 | K40: ='CEM Price Data'!L40 -> 145.95 | L40: ='CEM Price Data'!M40 -> 178.34 | M40: ='CEM Price Data'!N40 -> 182.8 | N40: ='CEM Price Data'!O40 -> 93.73 | O40: ='CEM Price Data'!P40 -> 357.72 | P40: ='CEM Price Data'!Q40 -> 115.11 | Q40: ='CEM Price Data'!R40 -> 127.74 | R40: ='CEM Price Data'!S40 -> 25.25 | S40: ='CEM Price Data'!T40 -> 399.06 | T40: ='CEM Price Data'!U40 -> 435.26 | U40: ='CEM Price Data'!V40 -> 172.97 | V40: ='CEM Price Data'!W40 -> 55.7 | W40: ='CEM Price Data'!X40 -> 47.885 | X40: ='CEM Price Data'!Y40 -> 291.28
A41: ='CEM Price Data'!B41 -> 2021-04-05 | B41: ='CEM Price Data'!C41 -> 491.62 | C41: ='CEM Price Data'!D41 -> 126.5 | D41: ='CEM Price Data'!E41 -> 582.8 | E41: ='CEM Price Data'!F41 -> 97.68 | F41: ='CEM Price Data'!G41 -> 45.91 | G41: ='CEM Price Data'!H41 -> 142.49 | H41: ='CEM Price Data'!I41 -> 207.78 | I41: ='CEM Price Data'!J41 -> 21.69 | J41: ='CEM Price Data'!K41 -> 19.95 | K41: ='CEM Price Data'!L41 -> 147.33 | L41: ='CEM Price Data'!M41 -> 178.09 | M41: ='CEM Price Data'!N41 -> 184.89 | N41: ='CEM Price Data'!O41 -> 93.44 | O41: ='CEM Price Data'!P41 -> 357 | P41: ='CEM Price Data'!Q41 -> 115.15 | Q41: ='CEM Price Data'!R41 -> 127.09 | R41: ='CEM Price Data'!S41 -> 25.49 | S41: ='CEM Price Data'!T41 -> 396.79 | T41: ='CEM Price Data'!U41 -> 437.15 | U41: ='CEM Price Data'!V41 -> 171.95 | V41: ='CEM Price Data'!W41 -> 56.8 | W41: ='CEM Price Data'!X41 -> 48.32 | X41: ='CEM Price Data'!Y41 -> 289.56
A42: ='CEM Price Data'!B42 -> 2021-04-01 | B42: ='CEM Price Data'!C42 -> 483.34 | C42: ='CEM Price Data'!D42 -> 126.37 | D42: ='CEM Price Data'!E42 -> 579.91 | E42: ='CEM Price Data'!F42 -> 97.15 | F42: ='CEM Price Data'!G42 -> 45.88 | G42: ='CEM Price Data'!H42 -> 140.32 | H42: ='CEM Price Data'!I42 -> 202.4 | I42: ='CEM Price Data'!J42 -> 21.43 | J42: ='CEM Price Data'!K42 -> 19.66 | K42: ='CEM Price Data'!L42 -> 143.79 | L42: ='CEM Price Data'!M42 -> 177.85 | M42: ='CEM Price Data'!N42 -> 185.24 | N42: ='CEM Price Data'!O42 -> 91.36 | O42: ='CEM Price Data'!P42 -> 351.57 | P42: ='CEM Price Data'!Q42 -> 113.4 | Q42: ='CEM Price Data'!R42 -> 126.25 | R42: ='CEM Price Data'!S42 -> 25.14 | S42: ='CEM Price Data'!T42 -> 388.5 | T42: ='CEM Price Data'!U42 -> 431.82 | U42: ='CEM Price Data'!V42 -> 171.28 | V42: ='CEM Price Data'!W42 -> 54.75 | W42: ='CEM Price Data'!X42 -> 47.62 | X42: ='CEM Price Data'!Y42 -> 284.77
A43: ='CEM Price Data'!B43 -> 2021-03-31 | B43: ='CEM Price Data'!C43 -> 475.37 | C43: ='CEM Price Data'!D43 -> 125.41 | D43: ='CEM Price Data'!E43 -> 571.17 | E43: ='CEM Price Data'!F43 -> 95.43 | F43: ='CEM Price Data'!G43 -> 44.89 | G43: ='CEM Price Data'!H43 -> 140.36 | H43: ='CEM Price Data'!I43 -> 202.62 | I43: ='CEM Price Data'!J43 -> 21.35 | J43: ='CEM Price Data'!K43 -> 19.58 | K43: ='CEM Price Data'!L43 -> 143.4 | L43: ='CEM Price Data'!M43 -> 175.36 | M43: ='CEM Price Data'!N43 -> 186.82 | N43: ='CEM Price Data'!O43 -> 91.09 | O43: ='CEM Price Data'!P43 -> 345.24 | P43: ='CEM Price Data'!Q43 -> 111.57 | Q43: ='CEM Price Data'!R43 -> 126.53 | R43: ='CEM Price Data'!S43 -> 24.97 | S43: ='CEM Price Data'!T43 -> 381.93 | T43: ='CEM Price Data'!U43 -> 424.53 | U43: ='CEM Price Data'!V43 -> 169.99 | V43: ='CEM Price Data'!W43 -> 54.9 | W43: ='CEM Price Data'!X43 -> 47.17 | X43: ='CEM Price Data'!Y43 -> 281.78
A44: ='CEM Price Data'!B44 -> 2021-03-30 | B44: ='CEM Price Data'!C44 -> 465.46 | C44: ='CEM Price Data'!D44 -> 126.58 | D44: ='CEM Price Data'!E44 -> 564.15 | E44: ='CEM Price Data'!F44 -> 97.81 | F44: ='CEM Price Data'!G44 -> 46.31 | G44: ='CEM Price Data'!H44 -> 138.39 | H44: ='CEM Price Data'!I44 -> 201.75 | I44: ='CEM Price Data'!J44 -> 21.26 | J44: ='CEM Price Data'!K44 -> 19.75 | K44: ='CEM Price Data'!L44 -> 141.54 | L44: ='CEM Price Data'!M44 -> 179.77 | M44: ='CEM Price Data'!N44 -> 185.5 | N44: ='CEM Price Data'!O44 -> 90.69 | O44: ='CEM Price Data'!P44 -> 342.37 | P44: ='CEM Price Data'!Q44 -> 112.4 | Q44: ='CEM Price Data'!R44 -> 128.55 | R44: ='CEM Price Data'!S44 -> 25.33 | S44: ='CEM Price Data'!T44 -> 373.47 | T44: ='CEM Price Data'!U44 -> 414.21 | U44: ='CEM Price Data'!V44 -> 168.64 | V44: ='CEM Price Data'!W44 -> 52.98 | W44: ='CEM Price Data'!X44 -> 48.04 | X44: ='CEM Price Data'!Y44 -> 278.34
A45: ='CEM Price Data'!B45 -> 2021-03-29 | B45: ='CEM Price Data'!C45 -> 469.32 | C45: ='CEM Price Data'!D45 -> 126.22 | D45: ='CEM Price Data'!E45 -> 570.04 | E45: ='CEM Price Data'!F45 -> 97.41 | F45: ='CEM Price Data'!G45 -> 48.16 | G45: ='CEM Price Data'!H45 -> 138.84 | H45: ='CEM Price Data'!I45 -> 203.39 | I45: ='CEM Price Data'!J45 -> 20.79 | J45: ='CEM Price Data'!K45 -> 19.65 | K45: ='CEM Price Data'!L45 -> 141.32 | L45: ='CEM Price Data'!M45 -> 181.36 | M45: ='CEM Price Data'!N45 -> 186.34 | N45: ='CEM Price Data'!O45 -> 91.92 | O45: ='CEM Price Data'!P45 -> 343.48 | P45: ='CEM Price Data'!Q45 -> 112.83 | Q45: ='CEM Price Data'!R45 -> 131.05 | R45: ='CEM Price Data'!S45 -> 25.1 | S45: ='CEM Price Data'!T45 -> 366.99 | T45: ='CEM Price Data'!U45 -> 417.87 | U45: ='CEM Price Data'!V45 -> 168.14 | V45: ='CEM Price Data'!W45 -> 52.85 | W45: ='CEM Price Data'!X45 -> 47.03 | X45: ='CEM Price Data'!Y45 -> 280.51
A46: ='CEM Price Data'!B46 -> 2021-03-26 | B46: ='CEM Price Data'!C46 -> 469.09 | C46: ='CEM Price Data'!D46 -> 128.28 | D46: ='CEM Price Data'!E46 -> 578.59 | E46: ='CEM Price Data'!F46 -> 97.7 | F46: ='CEM Price Data'!G46 -> 48.66 | G46: ='CEM Price Data'!H46 -> 136.64 | H46: ='CEM Price Data'!I46 -> 203.08 | I46: ='CEM Price Data'!J46 -> 21.19 | J46: ='CEM Price Data'!K46 -> 19.75 | K46: ='CEM Price Data'!L46 -> 142.19 | L46: ='CEM Price Data'!M46 -> 183.68 | M46: ='CEM Price Data'!N46 -> 185.31 | N46: ='CEM Price Data'!O46 -> 91.65 | O46: ='CEM Price Data'!P46 -> 341.86 | P46: ='CEM Price Data'!Q46 -> 113.81 | Q46: ='CEM Price Data'!R46 -> 128.5 | R46: ='CEM Price Data'!S46 -> 25.3 | S46: ='CEM Price Data'!T46 -> 388.24 | T46: ='CEM Price Data'!U46 -> 419.48 | U46: ='CEM Price Data'!V46 -> 167.98 | V46: ='CEM Price Data'!W46 -> 52.03 | W46: ='CEM Price Data'!X46 -> 47.13 | X46: ='CEM Price Data'!Y46 -> 280.31
A47: ='CEM Price Data'!B47 -> 2021-03-25 | B47: ='CEM Price Data'!C47 -> 450.99 | C47: ='CEM Price Data'!D47 -> 125.97 | D47: ='CEM Price Data'!E47 -> 559.06 | E47: ='CEM Price Data'!F47 -> 96.28 | F47: ='CEM Price Data'!G47 -> 47.77 | G47: ='CEM Price Data'!H47 -> 135.09 | H47: ='CEM Price Data'!I47 -> 197.78 | I47: ='CEM Price Data'!J47 -> 20.41 | J47: ='CEM Price Data'!K47 -> 19.09 | K47: ='CEM Price Data'!L47 -> 136.23 | L47: ='CEM Price Data'!M47 -> 180.74 | M47: ='CEM Price Data'!N47 -> 183.09 | N47: ='CEM Price Data'!O47 -> 88.79 | O47: ='CEM Price Data'!P47 -> 335.25 | P47: ='CEM Price Data'!Q47 -> 113.93 | Q47: ='CEM Price Data'!R47 -> 126.64 | R47: ='CEM Price Data'!S47 -> 24.41 | S47: ='CEM Price Data'!T47 -> 377.22 | T47: ='CEM Price Data'!U47 -> 411.72 | U47: ='CEM Price Data'!V47 -> 163.25 | V47: ='CEM Price Data'!W47 -> 51.71 | W47: ='CEM Price Data'!X47 -> 45.4 | X47: ='CEM Price Data'!Y47 -> 275.45
A48: ='CEM Price Data'!B48 -> 2021-03-24 | B48: ='CEM Price Data'!C48 -> 451.51 | C48: ='CEM Price Data'!D48 -> 124.92 | D48: ='CEM Price Data'!E48 -> 559.38 | E48: ='CEM Price Data'!F48 -> 95.07 | F48: ='CEM Price Data'!G48 -> 47.42 | G48: ='CEM Price Data'!H48 -> 135.03 | H48: ='CEM Price Data'!I48 -> 197.08 | I48: ='CEM Price Data'!J48 -> 20.41 | J48: ='CEM Price Data'!K48 -> 18.95 | K48: ='CEM Price Data'!L48 -> 135.26 | L48: ='CEM Price Data'!M48 -> 179.83 | M48: ='CEM Price Data'!N48 -> 180.17 | N48: ='CEM Price Data'!O48 -> 88.72 | O48: ='CEM Price Data'!P48 -> 340.1 | P48: ='CEM Price Data'!Q48 -> 110.02 | Q48: ='CEM Price Data'!R48 -> 123.14 | R48: ='CEM Price Data'!S48 -> 24.29 | S48: ='CEM Price Data'!T48 -> 369.46 | T48: ='CEM Price Data'!U48 -> 411.33 | U48: ='CEM Price Data'!V48 -> 159.91 | V48: ='CEM Price Data'!W48 -> 51.78 | W48: ='CEM Price Data'!X48 -> 45 | X48: ='CEM Price Data'!Y48 -> 278.08
A49: ='CEM Price Data'!B49 -> 2021-03-23 | B49: ='CEM Price Data'!C49 -> 460.2 | C49: ='CEM Price Data'!D49 -> 123.64 | D49: ='CEM Price Data'!E49 -> 571 | E49: ='CEM Price Data'!F49 -> 95.11 | F49: ='CEM Price Data'!G49 -> 47.67 | G49: ='CEM Price Data'!H49 -> 138.36 | H49: ='CEM Price Data'!I49 -> 197.09 | I49: ='CEM Price Data'!J49 -> 20.24 | J49: ='CEM Price Data'!K49 -> 18.61 | K49: ='CEM Price Data'!L49 -> 135.18 | L49: ='CEM Price Data'!M49 -> 180.67 | M49: ='CEM Price Data'!N49 -> 183.68 | N49: ='CEM Price Data'!O49 -> 89.62 | O49: ='CEM Price Data'!P49 -> 340.91 | P49: ='CEM Price Data'!Q49 -> 108.44 | Q49: ='CEM Price Data'!R49 -> 126.46 | R49: ='CEM Price Data'!S49 -> 24.13 | S49: ='CEM Price Data'!T49 -> 376.47 | T49: ='CEM Price Data'!U49 -> 420.61 | U49: ='CEM Price Data'!V49 -> 159.86 | V49: ='CEM Price Data'!W49 -> 52.03 | W49: ='CEM Price Data'!X49 -> 45.05 | X49: ='CEM Price Data'!Y49 -> 283.25
A50: ='CEM Price Data'!B50 -> 2021-03-22 | B50: ='CEM Price Data'!C50 -> 452.41 | C50: ='CEM Price Data'!D50 -> 126.57 | D50: ='CEM Price Data'!E50 -> 580 | E50: ='CEM Price Data'!F50 -> 95.59 | F50: ='CEM Price Data'!G50 -> 48.11 | G50: ='CEM Price Data'!H50 -> 137.74 | H50: ='CEM Price Data'!I50 -> 193.96 | I50: ='CEM Price Data'!J50 -> 20.88 | J50: ='CEM Price Data'!K50 -> 19.06 | K50: ='CEM Price Data'!L50 -> 137.43 | L50: ='CEM Price Data'!M50 -> 183.91 | M50: ='CEM Price Data'!N50 -> 185.84 | N50: ='CEM Price Data'!O50 -> 89.05 | O50: ='CEM Price Data'!P50 -> 336.22 | P50: ='CEM Price Data'!Q50 -> 108.28 | Q50: ='CEM Price Data'!R50 -> 127.25 | R50: ='CEM Price Data'!S50 -> 24.65 | S50: ='CEM Price Data'!T50 -> 385.38 | T50: ='CEM Price Data'!U50 -> 420.7 | U50: ='CEM Price Data'!V50 -> 161.06 | V50: ='CEM Price Data'!W50 -> 53.11 | W50: ='CEM Price Data'!X50 -> 45.86 | X50: ='CEM Price Data'!Y50 -> 282.49
A51: ='CEM Price Data'!B51 -> 2021-03-19 | B51: ='CEM Price Data'!C51 -> 441.5 | C51: ='CEM Price Data'!D51 -> 127.65 | D51: ='CEM Price Data'!E51 -> 568.93 | E51: ='CEM Price Data'!F51 -> 96.7 | F51: ='CEM Price Data'!G51 -> 48 | G51: ='CEM Price Data'!H51 -> 133.57 | H51: ='CEM Price Data'!I51 -> 187.78 | I51: ='CEM Price Data'!J51 -> 21.3 | J51: ='CEM Price Data'!K51 -> 19.18 | K51: ='CEM Price Data'!L51 -> 134.77 | L51: ='CEM Price Data'!M51 -> 184.78 | M51: ='CEM Price Data'!N51 -> 184.29 | N51: ='CEM Price Data'!O51 -> 87.92 | O51: ='CEM Price Data'!P51 -> 340.8 | P51: ='CEM Price Data'!Q51 -> 112.16 | Q51: ='CEM Price Data'!R51 -> 126.39 | R51: ='CEM Price Data'!S51 -> 25.18 | S51: ='CEM Price Data'!T51 -> 375.24 | T51: ='CEM Price Data'!U51 -> 420.04 | U51: ='CEM Price Data'!V51 -> 159.29 | V51: ='CEM Price Data'!W51 -> 52.54 | W51: ='CEM Price Data'!X51 -> 46.67 | X51: ='CEM Price Data'!Y51 -> 277.15
A52: ='CEM Price Data'!B52 -> 2021-03-18 | B52: ='CEM Price Data'!C52 -> 439.18 | C52: ='CEM Price Data'!D52 -> 128.18 | D52: ='CEM Price Data'!E52 -> 570.05 | E52: ='CEM Price Data'!F52 -> 95.61 | F52: ='CEM Price Data'!G52 -> 47.66 | G52: ='CEM Price Data'!H52 -> 131.5 | H52: ='CEM Price Data'!I52 -> 178.8 | I52: ='CEM Price Data'!J52 -> 21.76 | J52: ='CEM Price Data'!K52 -> 19.29 | K52: ='CEM Price Data'!L52 -> 136 | L52: ='CEM Price Data'!M52 -> 182.26 | M52: ='CEM Price Data'!N52 -> 183.93 | N52: ='CEM Price Data'!O52 -> 87.92 | O52: ='CEM Price Data'!P52 -> 336.87 | P52: ='CEM Price Data'!Q52 -> 115.3 | Q52: ='CEM Price Data'!R52 -> 123.94 | R52: ='CEM Price Data'!S52 -> 25.38 | S52: ='CEM Price Data'!T52 -> 373.99 | T52: ='CEM Price Data'!U52 -> 417.98 | U52: ='CEM Price Data'!V52 -> 160.2 | V52: ='CEM Price Data'!W52 -> 52.7 | W52: ='CEM Price Data'!X52 -> 47.09 | X52: ='CEM Price Data'!Y52 -> 268.95
A53: ='CEM Price Data'!B53 -> 2021-03-17 | B53: ='CEM Price Data'!C53 -> 451.01 | C53: ='CEM Price Data'!D53 -> 128.57 | D53: ='CEM Price Data'!E53 -> 566.44 | E53: ='CEM Price Data'!F53 -> 95.18 | F53: ='CEM Price Data'!G53 -> 47.86 | G53: ='CEM Price Data'!H53 -> 133.45 | H53: ='CEM Price Data'!I53 -> 187.51 | I53: ='CEM Price Data'!J53 -> 21.6 | J53: ='CEM Price Data'!K53 -> 18.995 | K53: ='CEM Price Data'!L53 -> 137.35 | L53: ='CEM Price Data'!M53 -> 183.4 | M53: ='CEM Price Data'!N53 -> 186.73 | N53: ='CEM Price Data'!O53 -> 88.6 | O53: ='CEM Price Data'!P53 -> 339.2 | P53: ='CEM Price Data'!Q53 -> 117.29 | Q53: ='CEM Price Data'!R53 -> 124.12 | R53: ='CEM Price Data'!S53 -> 25.09 | S53: ='CEM Price Data'!T53 -> 381.82 | T53: ='CEM Price Data'!U53 -> 423.37 | U53: ='CEM Price Data'!V53 -> 160.65 | V53: ='CEM Price Data'!W53 -> 54.1 | W53: ='CEM Price Data'!X53 -> 46.09 | X53: ='CEM Price Data'!Y53 -> 274.59
A54: ='CEM Price Data'!B54 -> 2021-03-16 | B54: ='CEM Price Data'!C54 -> 450.54 | C54: ='CEM Price Data'!D54 -> 128.81 | D54: ='CEM Price Data'!E54 -> 560.84 | E54: ='CEM Price Data'!F54 -> 96.18 | F54: ='CEM Price Data'!G54 -> 48.37 | G54: ='CEM Price Data'!H54 -> 136.17 | H54: ='CEM Price Data'!I54 -> 193.55 | I54: ='CEM Price Data'!J54 -> 21.16 | J54: ='CEM Price Data'!K54 -> 19.24 | K54: ='CEM Price Data'!L54 -> 137.48 | L54: ='CEM Price Data'!M54 -> 185.41 | M54: ='CEM Price Data'!N54 -> 190.9 | N54: ='CEM Price Data'!O54 -> 89.39 | O54: ='CEM Price Data'!P54 -> 343.97 | P54: ='CEM Price Data'!Q54 -> 116.75 | Q54: ='CEM Price Data'!R54 -> 123.31 | R54: ='CEM Price Data'!S54 -> 24.99 | S54: ='CEM Price Data'!T54 -> 388.37 | T54: ='CEM Price Data'!U54 -> 424.72 | U54: ='CEM Price Data'!V54 -> 162.82 | V54: ='CEM Price Data'!W54 -> 54.71 | W54: ='CEM Price Data'!X54 -> 46.22 | X54: ='CEM Price Data'!Y54 -> 274.17
A55: ='CEM Price Data'!B55 -> 2021-03-15 | B55: ='CEM Price Data'!C55 -> 447.59 | C55: ='CEM Price Data'!D55 -> 128.25 | D55: ='CEM Price Data'!E55 -> 569.55 | E55: ='CEM Price Data'!F55 -> 97.22 | F55: ='CEM Price Data'!G55 -> 48.02 | G55: ='CEM Price Data'!H55 -> 134.97 | H55: ='CEM Price Data'!I55 -> 194.1 | I55: ='CEM Price Data'!J55 -> 21.37 | J55: ='CEM Price Data'!K55 -> 19.44 | K55: ='CEM Price Data'!L55 -> 136.9 | L55: ='CEM Price Data'!M55 -> 185.3 | M55: ='CEM Price Data'!N55 -> 189.16 | N55: ='CEM Price Data'!O55 -> 89.31 | O55: ='CEM Price Data'!P55 -> 347.57 | P55: ='CEM Price Data'!Q55 -> 117.21 | Q55: ='CEM Price Data'!R55 -> 122.12 | R55: ='CEM Price Data'!S55 -> 25.19 | S55: ='CEM Price Data'!T55 -> 397.01 | T55: ='CEM Price Data'!U55 -> 425.02 | U55: ='CEM Price Data'!V55 -> 162.64 | V55: ='CEM Price Data'!W55 -> 55.05 | W55: ='CEM Price Data'!X55 -> 46.52 | X55: ='CEM Price Data'!Y55 -> 276.02
A56: ='CEM Price Data'!B56 -> 2021-03-12 | B56: ='CEM Price Data'!C56 -> 444.3 | C56: ='CEM Price Data'!D56 -> 130.7 | D56: ='CEM Price Data'!E56 -> 559.98 | E56: ='CEM Price Data'!F56 -> 95.92 | F56: ='CEM Price Data'!G56 -> 48.83 | G56: ='CEM Price Data'!H56 -> 133.48 | H56: ='CEM Price Data'!I56 -> 191.96 | I56: ='CEM Price Data'!J56 -> 21.5 | J56: ='CEM Price Data'!K56 -> 19.76 | K56: ='CEM Price Data'!L56 -> 136.01 | L56: ='CEM Price Data'!M56 -> 185.49 | M56: ='CEM Price Data'!N56 -> 208.08 | N56: ='CEM Price Data'!O56 -> 88.94 | O56: ='CEM Price Data'!P56 -> 342.44 | P56: ='CEM Price Data'!Q56 -> 117.25 | Q56: ='CEM Price Data'!R56 -> 121.44 | R56: ='CEM Price Data'!S56 -> 25.28 | S56: ='CEM Price Data'!T56 -> 385.12 | T56: ='CEM Price Data'!U56 -> 411.82 | U56: ='CEM Price Data'!V56 -> 167.69 | V56: ='CEM Price Data'!W56 -> 53.21 | W56: ='CEM Price Data'!X56 -> 47.34 | X56: ='CEM Price Data'!Y56 -> 274.12
A57: ='CEM Price Data'!B57 -> 2021-03-11 | B57: ='CEM Price Data'!C57 -> 451.06 | C57: ='CEM Price Data'!D57 -> 129.19 | D57: ='CEM Price Data'!E57 -> 568.9 | E57: ='CEM Price Data'!F57 -> 94.53 | F57: ='CEM Price Data'!G57 -> 48.72 | G57: ='CEM Price Data'!H57 -> 135.21 | H57: ='CEM Price Data'!I57 -> 189.67 | I57: ='CEM Price Data'!J57 -> 21.21 | J57: ='CEM Price Data'!K57 -> 19.39 | K57: ='CEM Price Data'!L57 -> 136.24 | L57: ='CEM Price Data'!M57 -> 183.91 | M57: ='CEM Price Data'!N57 -> 205.21 | N57: ='CEM Price Data'!O57 -> 89.35 | O57: ='CEM Price Data'!P57 -> 346.84 | P57: ='CEM Price Data'!Q57 -> 115.26 | Q57: ='CEM Price Data'!R57 -> 120.25 | R57: ='CEM Price Data'!S57 -> 24.84 | S57: ='CEM Price Data'!T57 -> 388.01 | T57: ='CEM Price Data'!U57 -> 411.87 | U57: ='CEM Price Data'!V57 -> 167.24 | V57: ='CEM Price Data'!W57 -> 51.52 | W57: ='CEM Price Data'!X57 -> 46.855 | X57: ='CEM Price Data'!Y57 -> 272.89
A58: ='CEM Price Data'!B58 -> 2021-03-10 | B58: ='CEM Price Data'!C58 -> 437.01 | C58: ='CEM Price Data'!D58 -> 131.25 | D58: ='CEM Price Data'!E58 -> 559.22 | E58: ='CEM Price Data'!F58 -> 94.52 | F58: ='CEM Price Data'!G58 -> 48.3 | G58: ='CEM Price Data'!H58 -> 131.78 | H58: ='CEM Price Data'!I58 -> 187.55 | I58: ='CEM Price Data'!J58 -> 21.31 | J58: ='CEM Price Data'!K58 -> 19.36 | K58: ='CEM Price Data'!L58 -> 135.28 | L58: ='CEM Price Data'!M58 -> 183.03 | M58: ='CEM Price Data'!N58 -> 205.45 | N58: ='CEM Price Data'!O58 -> 89.4 | O58: ='CEM Price Data'!P58 -> 343.2 | P58: ='CEM Price Data'!Q58 -> 114.04 | Q58: ='CEM Price Data'!R58 -> 121.07 | R58: ='CEM Price Data'!S58 -> 24.64 | S58: ='CEM Price Data'!T58 -> 363.76 | T58: ='CEM Price Data'!U58 -> 400.82 | U58: ='CEM Price Data'!V58 -> 165.23 | V58: ='CEM Price Data'!W58 -> 50.52 | W58: ='CEM Price Data'!X58 -> 45.7 | X58: ='CEM Price Data'!Y58 -> 267.73
A59: ='CEM Price Data'!B59 -> 2021-03-09 | B59: ='CEM Price Data'!C59 -> 439.18 | C59: ='CEM Price Data'!D59 -> 127.53 | D59: ='CEM Price Data'!E59 -> 561.94 | E59: ='CEM Price Data'!F59 -> 93.61 | F59: ='CEM Price Data'!G59 -> 47.35 | G59: ='CEM Price Data'!H59 -> 132.42 | H59: ='CEM Price Data'!I59 -> 186.7 | I59: ='CEM Price Data'!J59 -> 21.24 | J59: ='CEM Price Data'!K59 -> 19.32 | K59: ='CEM Price Data'!L59 -> 136.31 | L59: ='CEM Price Data'!M59 -> 180.55 | M59: ='CEM Price Data'!N59 -> 206.11 | N59: ='CEM Price Data'!O59 -> 88.44 | O59: ='CEM Price Data'!P59 -> 336.51 | P59: ='CEM Price Data'!Q59 -> 111.16 | Q59: ='CEM Price Data'!R59 -> 118.99 | R59: ='CEM Price Data'!S59 -> 25.63 | S59: ='CEM Price Data'!T59 -> 364.11 | T59: ='CEM Price Data'!U59 -> 403.35 | U59: ='CEM Price Data'!V59 -> 163.27 | V59: ='CEM Price Data'!W59 -> 48.46 | W59: ='CEM Price Data'!X59 -> 46.06 | X59: ='CEM Price Data'!Y59 -> 267.42
A60: ='CEM Price Data'!B60 -> 2021-03-08 | B60: ='CEM Price Data'!C60 -> 421.2 | C60: ='CEM Price Data'!D60 -> 125.46 | D60: ='CEM Price Data'!E60 -> 554.11 | E60: ='CEM Price Data'!F60 -> 91.81 | F60: ='CEM Price Data'!G60 -> 47.08 | G60: ='CEM Price Data'!H60 -> 131.36 | H60: ='CEM Price Data'!I60 -> 181.98 | I60: ='CEM Price Data'!J60 -> 21.85 | J60: ='CEM Price Data'!K60 -> 19.51 | K60: ='CEM Price Data'!L60 -> 132.23 | L60: ='CEM Price Data'!M60 -> 181.42 | M60: ='CEM Price Data'!N60 -> 207.03 | N60: ='CEM Price Data'!O60 -> 85.14 | O60: ='CEM Price Data'!P60 -> 328.34 | P60: ='CEM Price Data'!Q60 -> 112.33 | Q60: ='CEM Price Data'!R60 -> 119.77 | R60: ='CEM Price Data'!S60 -> 25.8 | S60: ='CEM Price Data'!T60 -> 344.88 | T60: ='CEM Price Data'!U60 -> 398.28 | U60: ='CEM Price Data'!V60 -> 160.87 | V60: ='CEM Price Data'!W60 -> 48.48 | W60: ='CEM Price Data'!X60 -> 45.67 | X60: ='CEM Price Data'!Y60 -> 261.35
A61: ='CEM Price Data'!B61 -> 2021-03-05 | B61: ='CEM Price Data'!C61 -> 440.83 | C61: ='CEM Price Data'!D61 -> 123.49 | D61: ='CEM Price Data'!E61 -> 567.92 | E61: ='CEM Price Data'!F61 -> 94.03 | F61: ='CEM Price Data'!G61 -> 46.23 | G61: ='CEM Price Data'!H61 -> 135.47 | H61: ='CEM Price Data'!I61 -> 178.71 | I61: ='CEM Price Data'!J61 -> 21.3 | J61: ='CEM Price Data'!K61 -> 19.39 | K61: ='CEM Price Data'!L61 -> 134.7 | L61: ='CEM Price Data'!M61 -> 180.38 | M61: ='CEM Price Data'!N61 -> 206.92 | N61: ='CEM Price Data'!O61 -> 86.42 | O61: ='CEM Price Data'!P61 -> 330.22 | P61: ='CEM Price Data'!Q61 -> 109.13 | Q61: ='CEM Price Data'!R61 -> 118.34 | R61: ='CEM Price Data'!S61 -> 25 | S61: ='CEM Price Data'!T61 -> 356.21 | T61: ='CEM Price Data'!U61 -> 401.06 | U61: ='CEM Price Data'!V61 -> 164.4 | V61: ='CEM Price Data'!W61 -> 47.2 | W61: ='CEM Price Data'!X61 -> 45.93 | X61: ='CEM Price Data'!Y61 -> 262.4
A65: Average Price | B65: =IFERROR(ROUND(AVERAGE(B2:B61),2),0) -> 483.78 | C65: =IFERROR(ROUND(AVERAGE(C2:C61),2),0) -> 127.01 | D65: =IFERROR(ROUND(AVERAGE(D2:D61),2),0) -> 594.79 | E65: =IFERROR(ROUND(AVERAGE(E2:E61),2),0) -> 97.31 | F65: =IFERROR(ROUND(AVERAGE(F2:F61),2),0) -> 46.35 | G65: =IFERROR(ROUND(AVERAGE(G2:G61),2),0) -> 130.66 | H65: 204.45 | I65: 21.05 | J65: 19.08 | K65: 141.05 | L65: 183.69 | M65: 190.9 | N65: 92.74 | O65: 387.07 | P65: 111.86 | Q65: 129.78 | R65: 25.06 | S65: 401.67 | T65: 419.67 | U65: 186.59 | V65: =IFERROR(ROUND(AVERAGE(V2:V61),2),0) -> 53.46 | W65: =IFERROR(ROUND(AVERAGE(W2:W61),2),0) -> 47.2 | X65: =IFERROR(ROUND(AVERAGE(X2:X61),2),0) -> 306.41
A67: Indicated Dividend | B67: ='CEM Data Lookup'!$J3 -> NA | C67: ='CEM Data Lookup'!$J4 -> 0.58 | D67: ='CEM Data Lookup'!$J5 -> NA | E67: ='CEM Data Lookup'!$J6 -> 2.04 | F67: ='CEM Data Lookup'!$J7 -> 1 | G67: ='CEM Data Lookup'!$J8 -> 1.48 | H67: ='CEM Data Lookup'!$J9 -> 1.68 | I67: ='CEM Data Lookup'!$J10 -> 1 | J67: ='CEM Data Lookup'!$J11 -> 0.08 | K67: ='CEM Data Lookup'!$J12 -> NA | L67: ='CEM Data Lookup'!$J13 -> 3 | M67: ='CEM Data Lookup'!$J14 -> 3.4 | N67: ='CEM Data Lookup'!$J15 -> NA | O67: ='CEM Data Lookup'!$J16 -> 3.2 | P67: ='CEM Data Lookup'!$J17 -> 1 | Q67: ='CEM Data Lookup'!$J18 -> 3.6 | R67: ='CEM Data Lookup'!$J19 -> 0.28 | S67: ='CEM Data Lookup'!$J20 -> 1.28 | T67: ='CEM Data Lookup'!$J21 -> NA | U67: ='CEM Data Lookup'!$J22 -> 4.08 | V67: ='CEM Data Lookup'!$J23 -> 1.87 | W67: ='CEM Data Lookup'!$J24 -> 0.48 | X67: ='CEM Data Lookup'!$J25 -> 0.68
A69: Indicated Dividend Yield | B69: =IFERROR(ROUND(100 * (B67/B65),2),0) -> 0 | C69: 0.46 | D69: 0 | E69: 2.1 | F69: 2.16 | G69: 1.13 | H69: =IFERROR(ROUND(100 * (H67/H65),2),0) -> 0.82 | I69: 4.75 | J69: 0.42 | K69: 0 | L69: 1.63 | M69: 1.78 | N69: 0 | O69: 0.83 | P69: 0.89 | Q69: 2.77 | R69: 1.12 | S69: 0.32 | T69: 0 | U69: =IFERROR(ROUND(100 * (U67/U65),2),0) -> 2.19 | V69: =IFERROR(ROUND(100 * (V67/V65),2),0) -> 3.5 | W69: =IFERROR(ROUND(100 * (W67/W65),2),0) -> 1.02 | X69: =IFERROR(ROUND(100 * (X67/X65),2),0) -> 0.22

Sheet MRP WP1
D3: Est. Median Appreciation Potential 3 - 5 Yrs. Hence | G3: Est. Median Annual Appreciation Potential
B4: Date of Value Line Summary & Index | J4: Est. Median Dividend Yield | M4: Est. Median Annual Total Return
B7: 2021-05-28 | D7: 0.3 | G7: =ROUND(((1+D7)^0.25)-1,4) -> 0.0678 | J7: 0.017 | M7: =J7+G7 -> 0.0848
B8: 2021-05-21 | D8: 0.3 | G8: 0.0678 | J8: 0.017 | M8: 0.0848
B9: 2021-05-14 | D9: 0.25 | G9: 0.0574 | J9: 0.017 | M9: 0.0744
B10: 2021-05-07 | D10: 0.25 | G10: 0.0574 | J10: 0.018 | M10: 0.0754
B11: 2021-04-30 | D11: 0.3 | G11: 0.0678 | J11: 0.018 | M11: 0.0858
B12: 2021-04-23 | D12: 0.25 | G12: 0.0574 | J12: 0.018 | M12: 0.0754
B13: 2021-04-16 | D13: 0.25 | G13: 0.0574 | J13: 0.018 | M13: 0.0754
B14: 2021-04-09 | D14: 0.3 | G14: 0.0678 | J14: 0.018 | M14: 0.0858
B15: 2021-04-02 | D15: 0.3 | G15: 0.0678 | J15: 0.018 | M15: 0.0858
B16: 2021-03-26 | D16: 0.25 | G16: 0.0574 | J16: 0.018 | M16: 0.0754
B17: 2021-03-19 | D17: 0.3 | G17: 0.0678 | J17: 0.018 | M17: 0.0858
B18: 2021-03-12 | D18: 0.3 | G18: 0.0678 | J18: 0.019 | M18: 0.0868
B19: 2021-03-05 | D19: 0.3 | G19: 0.0678 | J19: 0.019 | M19: 0.0868
B22: Average | D22: =ROUND(AVERAGE(D7:D19),2) -> 0.28 | G22: =ROUND(((1+D22)^0.25)-1,4) -> 0.0637 | J22: =ROUND(AVERAGE(J7:J19),4) -> 0.0179 | M22: =J22+G22 -> 0.0816
B25: Blue Chip Financial Forecasts
B26: Consensus Forecast Yield for 30-year Treasury Bonds
M27: Aaa Bonds | O27: Baa Bonds
B28: Second Quarter 2021 | F28: 2.4 | K28: Second Quarter 2021 | M28: 3 | O28: 3.8
B29: Third Quarter 2021 | F29: 2.5 | K29: Third Quarter 2021 | M29: 3.1 | O29: 4
B30: Fourth Quarter 2021 | F30: 2.6 | K30: Fourth Quarter 2021 | M30: 3.3 | O30: 4.1
B31: First Quarter 2022 | F31: 2.6 | K31: First Quarter 2022 | M31: 3.3 | O31: 4.2
B32: Second Quarter 2022 | F32: 2.7 | K32: Second Quarter 2022 | M32: 3.3 | O32: 4.2
B33: Third Quarter 2022 | F33: 2.8 | H33: Projected | K33: Third Quarter 2022 | M33: 3.4 | O33: 4.3
B34: 2023-2027 | F34: 3.5 | H34: Market | K34: 2023-2027 | M34: 4.3 | O34: 5.3
B35: 2028-2032 | F35: 3.9 | H35: Risk Premium | K35: 2028-2032 | M35: 4.8 | O35: 5.8
B37: Average | F37: =ROUND(AVERAGE(F28:F35),2) -> 2.88 | G37: % | H37: =($M$22*100)-$F$37 -> 5.28 | I37: % | M37: =ROUND(AVERAGE(M28:M35),2) -> 3.56 | O37: =ROUND(AVERAGE(O28:O35),2) -> 4.46
B39: Total Projected Return on S&P 500
B40: Based on Value Line | H40: =ROUND(('MRP WP3'!H504*100)-'MRP WP1'!F37,2) -> 11.44
B42: Average of Value Line MRPs: | H42: =AVERAGE(H37:H40) -> 8.36
B44: Ibbotson-Based MRPs:
B46: PRPM Results | H46: ='PRPM WP1'!H1161*100 -> 10.04067024
B48: SBBI Common Stocks Total Return -
B49: 1926 - 2020 | H49: =Input!F21 -> 12.2 | I49: %
B50: SBBI Long-Term Gov't Bonds Income
B51: Return 1926 - 2020 | H51: =Input!F22 -> 5.05
B53: Historical Market Risk Premium | H53: =H49-H51 -> 7.15 | I53: %
B55: Regression analysis on SBBI data 1926-2020 | H55: ='MRP ERP WP'!AA42*100 -> 9.391468339
B57: Average of Ibbotson-Based MRPs: | H57: =AVERAGE(H55,H53,H46) -> 8.860712861
B59: Total Projected Return on S&P 500
B60: Based on Bloomberg | H60: ='MRP WP2'!Q504*100-F37 -> 13.45579407
B63: Average of Hist'l & Proj'd Market
B64: Risk Premium | H64: =AVERAGE(H37,H40,H46,H53,H55,H60) -> 9.459655442 | I64: %
B66: Source of Information: | C66: Value Line Investment Survey
C67: Blue Chip Financial Forecasts June 1, 2021
C68: Stocks, Bonds, Bills, and Inflation - 2021 SBBI Yearbook, Appendix A Tables, John Wiley & Sons, Inc.
C69: Value Line Summary and Index
B70: Proxy Group | C70: VL Beta | D70: CEM Group | E70: VL Beta
B71: =Input!A2 -> AWR | C71: 0.65 | D71: =Input!C2 -> ADBE | E71: 0.75
B72: =Input!A3 -> AWK | C72: 0.85 | D72: =Input!C3 -> BCPC | E72: 0.75
B73: =Input!A4 -> CWT | C73: 0.65 | D73: =Input!C4 -> BIO | E73: 0.75
B74: =Input!A5 -> MSEX | C74: 0.7 | D74: =Input!C5 -> CHRW | E74: 0.7
B75: =Input!A6 -> SJW | C75: 0.85 | D75: =Input!C6 -> CSGS | E75: 0.75
B76: =Input!A7 -> YORW | C76: 0.8 | D76: =Input!C7 -> CTXS | E76: 0.7
D77: =Input!C8 -> DG | E77: 0.65
D78: =Input!C9 -> EBF | E78: 0.8
D79: =Input!C10 -> HTLD | E79: 0.75
D80: =Input!C11 -> KEYS | E80: 0.85
D81: =Input!C12 -> LANC | E81: 0.7
D82: =Input!C13 -> LLY | E82: 0.75
D83: =Input!C14 -> MNST | E83: 0.85
D84: =Input!C15 -> POOL | E84: 0.85
D85: =Input!C16 -> RLI | E85: 0.8
D86: =Input!C17 -> SJM | E86: 0.65
D87: =Input!C18 -> SNDR | E87: 0.8
D88: =Input!C19 -> TECH | E88: 0.8
D89: =Input!C20 -> TYL | E89: 0.75
D90: =Input!C21 -> UPS | E90: 0.8
D91: =Input!C22 -> WBA | E91: 0.85
D92: =Input!C23 -> WERN | E92: 0.75
D93: =Input!C24 -> WST | E93: 0.8

Sheet MRP WP2
A1: Date: | B1: =Input!E2 -> 2021-05-28
B2: NAME | C2: TICKER | D2: CUR_MKT_CAP | E2: EQY_DVD_YLD_EST | F2: BEST_EST_LONG_TERM_GROWTH | G2: EQY_SH_OUT | H2: PX_LAST | J2: Company | K2: Ticker | L2: Market Capitalization | M2: Estimated Dividend Yield | N2: Long-Term Growth Est. | O2: DCF Result | P2: Weight in Index | Q2: Weighted DCF Result
A3: A UN Equity | B3: Agilent Technologies Inc | C3: A | D3: 42267780000 | E3: 0.5733729096 | F3: 14.567 | G3: 306 | H3: 138.13 | J3: =B3 -> Agilent Technologies Inc | K3: =C3 -> A | L3: =D3/1000000 -> 42267.78 | M3: =IFERROR(E3/100,"0.00%") -> 0.005733729096 | N3: =IFERROR(F3/100,"N/A") -> 0.14567 | O3: =IFERROR(M3*(1+0.5*N3)+N3,"N/A") -> 0.1518213453 | P3: =IF(N3="N/A","N/A",L3/$L$504) -> 0.001133670328 | Q3: =IF(AND(ISNUMBER(L3),ISNUMBER(O3)),O3*P3,"N/A") -> 0.0001721153543
A4: AAL UW Equity | B4: American Airlines Group Inc | C4: AAL | D4: 1.55471269e+10 | E4: 0 | F4: -116.89 | G4: 641.3831 | H4: 24.24 | J4: =B4 -> American Airlines Group Inc | K4: =C4 -> AAL | L4: =D4/1000000 -> 15547.1269 | M4: =IFERROR(E4/100,"0.00%") -> 0 | N4: =IFERROR(F4/100,"N/A") -> -1.1689 | O4: =IFERROR(M4*(1+0.5*N4)+N4,"N/A") -> -1.1689 | P4: =IF(N4="N/A","N/A",L4/$L$504) -> 0.0004169917713 | Q4: =IF(AND(ISNUMBER(L4),ISNUMBER(O4)),O4*P4,"N/A") -> -0.0004874216815
A5: AAP UN Equity | B5: Advance Auto Parts Inc | C5: AAP | D5: 1.241438186e+10 | E5: 1.483687345 | F5: 14.438 | G5: 65.43183 | H5: 189.73 | J5: Advance Auto Parts Inc | K5: AAP | L5: 12414.38186 | M5: 0.01483687345 | N5: 0.14438 | O5: 0.1602879473 | P5: 0.0003329679571 | Q5: 5.337075038e-05
A6: AAPL UW Equity | B6: Apple Inc | C6: AAPL | D6: 2079445698910 | E6: 0.6893507744 | F6: 12.1 | G6: 16687.63 | H6: 124.61 | J6: Apple Inc | K6: AAPL | L6: 2079445.699 | M6: 0.006893507744 | N6: 0.121 | O6: 0.128310565 | P6: 0.05577311814 | Q6: 0.007156280298
A7: ABBV UN Equity | B7: AbbVie Inc | C7: ABBV | D7: 1.999363684e+11 | E7: 4.510600707 | F7: 1.918 | G7: 1766.222 | H7: 113.2 | J7: AbbVie Inc | K7: ABBV | L7: 199936.3684 | M7: 0.04510600707 | N7: 0.01918 | O7: 0.06471857367 | P7: 0.005362522668 | Q7: 0.0003470548184
A8: ABC UN Equity | B8: AmerisourceBergen Corp | C8: ABC | D8: 2.356882567e+10 | E8: 1.543489629 | F8: 10.13 | G8: 205.4107 | H8: 114.74 | J8: AmerisourceBergen Corp | K8: ABC | L8: 23568.82567 | M8: 0.01543489629 | N8: 0.1013 | O8: 0.1175166738 | P8: 0.0006321429307 | Q8: 7.428733457e-05
A9: ABMD UW Equity | B9: ABIOMED Inc | C9: ABMD | D9: 1.28903297e+10 | E9: #N/A N/A | F9: 16 | G9: 45.29598 | H9: 284.58 | J9: ABIOMED Inc | K9: ABMD | L9: 12890.3297 | M9: 0.00% | N9: 0.16 | O9: 0.16 | P9: 0.0003457334239 | Q9: 5.531734783e-05
A10: ABT UN Equity | B10: Abbott Laboratories | C10: ABT | D10: 2.072660703e+11 | E10: 1.411058723 | F10: 13.63 | G10: 1776.82 | H10: 116.65 | J10: Abbott Laboratories | K10: ABT | L10: 207266.0703 | M10: 0.01411058723 | N10: 0.1363 | O10: 0.1513722237 | P10: 0.005559113676 | Q10: 0.0008414953991
A11: ACN UN Equity | B11: Accenture PLC | C11: ACN | D11: 1.796249826e+11 | E11: 1.247164729 | F11: 10.467 | G11: 635.6472 | H11: 282.16 | J11: Accenture PLC | K11: ACN | L11: 179624.9826 | M11: 0.01247164729 | N11: 0.10467 | O11: 0.117794351 | P11: 0.004817748008 | Q11: 0.0005675034997
A12: ADBE UW Equity | B12: Adobe Inc | C12: ADBE | D12: 241189240000 | E12: 0 | F12: 17.897 | G12: 478 | H12: 504.58 | J12: Adobe Inc | K12: ADBE | L12: 241189.24 | M12: 0 | N12: 0.17897 | O12: 0.17897 | P12: 0.006468971988 | Q12: 0.001157751917
A13: ADI UW Equity | B13: Analog Devices Inc | C13: ADI | D13: 6.07089107e+10 | E13: 1.613001215 | F13: 11.133 | G13: 368.8269 | H13: 164.6 | J13: Analog Devices Inc | K13: ADI | L13: 60708.9107 | M13: 0.01613001215 | N13: 0.11133 | O13: 0.1283578893 | P13: 0.0016282826 | Q13: 0.0002090029176
A14: ADM UN Equity | B14: Archer-Daniels-Midland Co | C14: ADM | D14: 3.717045138e+10 | E14: 2.215541861 | F14: 4.5 | G14: 558.7021 | H14: 66.53 | J14: Archer-Daniels-Midland Co | K14: ADM | L14: 37170.45138 | M14: 0.02215541861 | N14: 0.045 | O14: 0.06765391553 | P14: 0.0009969541292 | Q14: 6.744785044e-05
A15: ADP UW Equity | B15: Automatic Data Processing Inc | C15: ADP | D15: 8.341010109e+10 | E15: 1.893174166 | F15: 11.533 | G15: 425.5183 | H15: 196.02 | J15: Automatic Data Processing Inc | K15: ADP | L15: 83410.10109 | M15: 0.01893174166 | N15: 0.11533 | O15: 0.1353534405 | P15: 0.002237154557 | Q15: 0.0003028065663
A16: ADSK UW Equity | B16: Autodesk Inc | C16: ADSK | D16: 6.29071946e+10 | E16: 0 | F16: 27.133 | G16: 220.0629 | H16: 285.86 | J16: Autodesk Inc | K16: ADSK | L16: 62907.1946 | M16: 0 | N16: 0.27133 | O16: 0.27133 | P16: 0.001687243095 | Q16: 0.0004577996689
A17: AEE UN Equity | B17: Ameren Corp | C17: AEE | D17: 2.150552175e+10 | E17: 2.583135392 | F17: 7.697 | G17: 255.41 | H17: 84.2 | J17: Ameren Corp | K17: AEE | L17: 21505.52175 | M17: 0.02583135392 | N17: 0.07697 | O17: 0.1037954736 | P17: 0.0005768027536 | Q17: 5.986951497e-05
A18: AEP UW Equity | B18: American Electric Power Co Inc | C18: AEP | D18: 4.29785344e+10 | E18: 3.474418605 | F18: 5.635 | G18: 499.7504 | H18: 86 | J18: American Electric Power Co Inc | K18: AEP | L18: 42978.5344 | M18: 0.03474418605 | N18: 0.05635 | O18: 0.09207310349 | P18: 0.001152733576 | Q18: 0.0001061357578
A19: AES UN Equity | B19: AES Corp/The | C19: AES | D19: 1.692959886e+10 | E19: 2.404565132 | F19: 8.325 | G19: 666.2573 | H19: 25.41 | J19: AES Corp/The | K19: AES | L19: 16929.59886 | M19: 0.02404565132 | N19: 0.08325 | O19: 0.1082965516 | P19: 0.0004540712544 | Q19: 4.917435102e-05
A20: AFL UN Equity | B20: Aflac Inc | C20: AFL | D20: 3.852353882e+10 | E20: 2.332392378 | F20: #N/A N/A | G20: 679.6672 | H20: 56.68 | J20: Aflac Inc | K20: AFL | L20: 38523.53882 | M20: 0.02332392378 | N20: N/A | O20: N/A | P20: N/A | Q20: N/A
A21: AIG UN Equity | B21: American International Group Inc | C21: AIG | D21: 4.534415179e+10 | E21: 2.490537472 | F21: 20.1 | G21: 858.1406 | H21: 52.84 | J21: American International Group Inc | K21: AIG | L21: 45344.15179 | M21: 0.02490537472 | N21: 0.201 | O21: 0.2284083649 | P21: 0.001216182147 | Q21: 0.0002777861756
A22: AIZ UN Equity | B22: Assurant Inc | C22: AIZ | D22: 9760312908 | E22: 1.658703072 | F22: 17.5 | G22: 60.56663 | H22: 161.15 | J22: Assurant Inc | K22: AIZ | L22: 9760.312908 | M22: 0.01658703072 | N22: 0.175 | O22: 0.1930383959 | P22: 0.0002617827843 | Q22: 5.053412876e-05
A23: AJG UN Equity | B23: Arthur J Gallagher & Co | C23: AJG | D23: 3.023640364e+10 | E23: 1.275492804 | F23: 10.465 | G23: 206.237 | H23: 146.61 | J23: Arthur J Gallagher & Co | K23: AJG | L23: 30236.40364 | M23: 0.01275492804 | N23: 0.10465 | O23: 0.1180723297 | P23: 0.0008109750175 | Q23: 9.575370961e-05
A24: AKAM UW Equity | B24: Akamai Technologies Inc | C24: AKAM | D24: 1.861528034e+10 | E24: #N/A N/A | F24: 11.5 | G24: 162.9917 | H24: 114.21 | J24: Akamai Technologies Inc | K24: AKAM | L24: 18615.28034 | M24: 0.00% | N24: 0.115 | O24: 0.115 | P24: 0.0004992831649 | Q24: 5.741756396e-05
A25: ALB UN Equity | B25: Albemarle Corp | C25: ALB | D25: 1.950188269e+10 | E25: 0.9169260235 | F25: 18.596 | G25: 116.7218 | H25: 167.08 | J25: Albemarle Corp | K25: ALB | L25: 19501.88269 | M25: 0.009169260235 | N25: 0.18596 | O25: 0.1959818181 | P25: 0.0005230628564 | Q25: 0.0001025108096
A26: ALGN UW Equity | B26: Align Technology Inc | C26: ALGN | D26: 4.670244974e+10 | E26: #N/A N/A | F26: 7.25 | G26: 79.13657 | H26: 590.15 | J26: Align Technology Inc | K26: ALGN | L26: 46702.44974 | M26: 0.00% | N26: 0.0725 | O26: 0.0725 | P26: 0.001252613255 | Q26: 9.081446102e-05
A27: ALK UN Equity | B27: Alaska Air Group Inc | C27: ALK | D27: 8614140076 | E27: 0.1098265896 | F27: #N/A N/A | G27: 124.4818 | H27: 69.2 | J27: Alaska Air Group Inc | K27: ALK | L27: 8614.140076 | M27: 0.001098265896 | N27: N/A | O27: N/A | P27: N/A | Q27: N/A
A28: ALL UN Equity | B28: Allstate Corp/The | C28: ALL | D28: 4.089265762e+10 | E28: 2.178464241 | F28: 1.007 | G28: 299.3387 | H28: 136.61 | J28: Allstate Corp/The | K28: ALL | L28: 40892.65762 | M28: 0.02178464241 | N28: 0.01007 | O28: 0.03196432809 | P28: 0.001096787969 | Q28: 3.505809048e-05
A29: ALLE UN Equity | B29: Allegion plc | C29: ALLE | D29: 1.264012307e+10 | E29: 1.025768793 | F29: 5.67 | G29: 89.9781 | H29: 140.48 | J29: Allegion plc | K29: ALLE | L29: 12640.12307 | M29: 0.01025768793 | N29: 0.0567 | O29: 0.06724849338 | P29: 0.000339022595 | Q29: 2.279875874e-05
A30: ALXN UW Equity | B30: Alexion Pharmaceuticals Inc | C30: ALXN | D30: 3.902094506e+10 | E30: 0 | F30: 13.233 | G30: 221.0192 | H30: 176.55 | J30: Alexion Pharmaceuticals Inc | K30: ALXN | L30: 39020.94506 | M30: 0 | N30: 0.13233 | O30: 0.13233 | P30: 0.001046586492 | Q30: 0.0001384947904
A31: AMAT UW Equity | B31: Applied Materials Inc | C31: AMAT | D31: 1.262481618e+11 | E31: 0.655179903 | F31: 15.626 | G31: 913.9808 | H31: 138.13 | J31: Applied Materials Inc | K31: AMAT | L31: 126248.1618 | M31: 0.00655179903 | N31: 0.15626 | O31: 0.1633236911 | P31: 0.003386120468 | Q31: 0.0005530336934
A32: AMCR UN Equity | B32: Amcor PLC | C32: AMCR | D32: 1.819315679e+10 | E32: 4 | F32: 9.225 | G32: 1541.793 | H32: 11.8 | J32: Amcor PLC | K32: AMCR | L32: 18193.15679 | M32: 0.04 | N32: 0.09225 | O32: 0.134095 | P32: 0.000487961327 | Q32: 6.543317415e-05
A33: AMD UW Equity | B33: Advanced Micro Devices Inc | C33: AMD | D33: 9.729887976e+10 | E33: 0.1560939061 | F33: 29.5 | G33: 1215.021 | H33: 80.08 | J33: Advanced Micro Devices Inc | K33: AMD | L33: 97298.87976 | M33: 0.001560939061 | N33: 0.295 | O33: 0.2967911776 | P33: 0.002609667527 | Q33: 0.0007745262985
A34: AME UN Equity | B34: AMETEK Inc | C34: AME | D34: 3.119718068e+10 | E34: 0.5603256847 | F34: 11.63 | G34: 230.9192 | H34: 135.1 | J34: AMETEK Inc | K34: AME | L34: 31197.18068 | M34: 0.005603256847 | N34: 0.1163 | O34: 0.1222290862 | P34: 0.0008367441595 | Q34: 0.000102274474
A35: AMGN UW Equity | B35: Amgen Inc | C35: AMGN | D35: 1.367093754e+11 | E35: 2.930150458 | F35: #N/A N/A | G35: 574.554 | H35: 237.94 | J35: Amgen Inc | K35: AMGN | L35: 136709.3754 | M35: 0.02930150458 | N35: N/A | O35: N/A | P35: N/A | Q35: N/A
A36: AMP UN Equity | B36: Ameriprise Financial Inc | C36: AMP | D36: 3.011672376e+10 | E36: 1.717210591 | F36: 13.2 | G36: 115.9049 | H36: 259.84 | J36: Ameriprise Financial Inc | K36: AMP | L36: 30116.72376 | M36: 0.01717210591 | N36: 0.132 | O36: 0.1503054649 | P36: 0.000807765066 | Q36: 0.0001214115038
A37: AMT UN Equity | B37: American Tower Corp | C37: AMT | D37: 1.159267474e+11 | E37: 2.033195021 | F37: 14.15 | G37: 453.7961 | H37: 255.46 | J37: American Tower Corp | K37: AMT | L37: 115926.7474 | M37: 0.02033195021 | N37: 0.1415 | O37: 0.1632704357 | P37: 0.003109288297 | Q37: 0.0005076548549
A38: AMZN UW Equity | B38: Amazon.com Inc | C38: AMZN | D38: 1.625470704e+12 | E38: 0 | F38: 35.627 | G38: 504.3237 | H38: 3223.07 | J38: Amazon.com Inc | K38: AMZN | L38: 1625470.704 | M38: 0 | N38: 0.35627 | O38: 0.35627 | P38: 0.0435969882 | Q38: 0.01553229898
A39: ANET UN Equity | B39: Arista Networks Inc | C39: ANET | D39: 2.590209757e+10 | E39: 0 | F39: 11.193 | G39: 76.32182 | H39: 339.38 | J39: Arista Networks Inc | K39: ANET | L39: 25902.09757 | M39: 0 | N39: 0.11193 | O39: 0.11193 | P39: 0.0006947239588 | Q39: 7.776045271e-05
A40: ANSS UW Equity | B40: ANSYS Inc | C40: ANSS | D40: 2.945200258e+10 | E40: 0 | F40: 12.577 | G40: 87.15157 | H40: 337.94 | J40: ANSYS Inc | K40: ANSS | L40: 29452.00258 | M40: 0 | N40: 0.12577 | O40: 0.12577 | P40: 0.0007899364817 | Q40: 9.93503113e-05
A41: ANTM UN Equity | B41: Anthem Inc | C41: ANTM | D41: 9.750044524e+10 | E41: 1.070011551 | F41: 13.443 | G41: 244.8407 | H41: 398.22 | J41: Anthem Inc | K41: ANTM | L41: 97500.44524 | M41: 0.01070011551 | N41: 0.13443 | O41: 0.1458493238 | P41: 0.002615073745 | Q41: 0.0003814067373
A42: AON UN Equity | B42: Aon PLC | C42: AON | D42: 5.717223486e+10 | E42: 0.7648892923 | F42: 13.15 | G42: 225.6472 | H42: 253.37 | J42: Aon PLC | K42: AON | L42: 57172.23486 | M42: 0.007648892923 | N42: 0.1315 | O42: 0.1396518076 | P42: 0.001533424898 | Q42: 0.0002141455589
A43: AOS UN Equity | B43: A O Smith Corp | C43: AOS | D43: 1.140362505e+10 | E43: 1.53369917 | F43: 10 | G43: 134.4669 | H43: 71.07 | J43: A O Smith Corp | K43: AOS | L43: 11403.62505 | M43: 0.0153369917 | N43: 0.1 | O43: 0.1161038413 | P43: 0.0003058583003 | Q43: 3.551132355e-05
A44: APA UW Equity | B44: APA Corp | C44: APA | D44: 7861834968 | E44: 0.4807692308 | F44: 18.255 | G44: 377.9728 | H44: 20.8 | J44: APA Corp | K44: APA | L44: 7861.834968 | M44: 0.004807692308 | N44: 0.18255 | O44: 0.1877965144 | P44: 0.000210863429 | Q44: 3.959941698e-05
A45: APD UN Equity | B45: Air Products and Chemicals Inc | C45: APD | D45: 6.631903055e+10 | E45: 1.941533738 | F45: 14.058 | G45: 221.3143 | H45: 299.66 | J45: Air Products and Chemicals Inc | K45: APD | L45: 66319.03055 | M45: 0.01941533738 | N45: 0.14058 | O45: 0.1613600414 | P45: 0.001778752447 | Q45: 0.0002870195686
A46: APH UN Equity | B46: Amphenol Corp | C46: APH | D46: 4.019563333e+10 | E46: 0.9322033898 | F46: 12.97 | G46: 597.6157 | H46: 67.26 | J46: Amphenol Corp | K46: APH | L46: 40195.63333 | M46: 0.009322033898 | N46: 0.1297 | O46: 0.1396265678 | P46: 0.001078092978 | Q46: 0.0001505304223
A47: APTV UN Equity | B47: Aptiv PLC | C47: APTV | D47: 4.06830067e+10 | E47: 0.1369498737 | F47: 18.02 | G47: 270.4627 | H47: 150.42 | J47: Aptiv PLC | K47: APTV | L47: 40683.0067 | M47: 0.001369498737 | N47: 0.1802 | O47: 0.1816928906 | P47: 0.001091164891 | Q47: 0.0001982569031
A48: ARE UN Equity | B48: Alexandria Real Estate Equities Inc | C48: ARE | D48: 2.629393612e+10 | E48: 2.490182879 | F48: 6.28 | G48: 147.5033 | H48: 178.26 | J48: Alexandria Real Estate Equities Inc | K48: ARE | L48: 26293.93612 | M48: 0.02490182879 | N48: 0.0628 | O48: 0.08848374621 | P48: 0.0007052335179 | Q48: 6.240170362e-05
A49: ATO UN Equity | B49: Atmos Energy Corp | C49: ATO | D49: 1.295873669e+10 | E49: 2.503781385 | F49: 7.098 | G49: 130.6719 | H49: 99.17 | J49: Atmos Energy Corp | K49: ATO | L49: 12958.73669 | M49: 0.02503781385 | N49: 0.07098 | O49: 0.09690640587 | P49: 0.0003475681777 | Q49: 3.368158289e-05
A50: ATVI UW Equity | B50: Activision Blizzard Inc | C50: ATVI | D50: 7.556487981e+10 | E50: 0.4329048843 | F50: 17.237 | G50: 777.0168 | H50: 97.25 | J50: Activision Blizzard Inc | K50: ATVI | L50: 75564.87981 | M50: 0.004329048843 | N50: 0.17237 | O50: 0.1770721479 | P50: 0.002026736727 | Q50: 0.0003588786254
A51: AVB UN Equity | B51: AvalonBay Communities Inc | C51: AVB | D51: 2.888978358e+10 | E51: 3.075287523 | F51: 3.563 | G51: 139.6046 | H51: 206.94 | J51: AvalonBay Communities Inc | K51: AVB | L51: 28889.78358 | M51: 0.03075287523 | N51: 0.03563 | O51: 0.0669307377 | P51: 0.0007748571234 | Q51: 5.186175889e-05
A52: AVGO UW Equity | B52: Broadcom Inc | C52: AVGO | D52: 1.928534376e+11 | E52: 3.034742659 | F52: 17.035 | G52: 408.3023 | H52: 472.33 | J52: Broadcom Inc | K52: AVGO | L52: 192853.4376 | M52: 0.03034742659 | N52: 0.17035 | O52: 0.2032822686 | P52: 0.005172550342 | Q52: 0.001051487768
A53: AVY UN Equity | B53: Avery Dennison Corp | C53: AVY | D53: 1.830569448e+10 | E53: 1.170815762 | F53: 6.6 | G53: 83.00773 | H53: 220.53 | J53: Avery Dennison Corp | K53: AVY | L53: 18305.69448 | M53: 0.01170815762 | N53: 0.066 | O53: 0.07809452682 | P53: 0.0004909797169 | Q53: 3.834282867e-05
A54: AWK UN Equity | B54: American Water Works Co Inc | C54: AWK | D54: 2.813135476e+10 | E54: 1.511417882 | F54: 8.515 | G54: 181.4692 | H54: 155.02 | J54: American Water Works Co Inc | K54: AWK | L54: 28131.35476 | M54: 0.01511417882 | N54: 0.08515 | O54: 0.100907665 | P54: 0.0007545151929 | Q54: 7.61363663e-05
A55: AXP UN Equity | B55: American Express Co | C55: AXP | D55: 1.286328868e+11 | E55: 1.105976394 | F55: 35.01 | G55: 803.3029 | H55: 160.13 | J55: American Express Co | K55: AXP | L55: 128632.8868 | M55: 0.01105976394 | N55: 0.3501 | O55: 0.3630957756 | P55: 0.003450081527 | Q55: 0.001252710028
A56: AZO UN Equity | B56: AutoZone Inc | C56: AZO | D56: 30996934748 | E56: 0 | F56: 11.933 | G56: 22.03678 | H56: 1406.6 | J56: AutoZone Inc | K56: AZO | L56: 30996.93475 | M56: 0 | N56: 0.11933 | O56: 0.11933 | P56: 0.000831373334 | Q56: 9.920777995e-05
A57: BA UN Equity | B57: Boeing Co/The | C57: BA | D57: 1.44459783e+11 | E57: 0.001214476561 | F57: 13 | G57: 584.8101 | H57: 247.02 | J57: Boeing Co/The | K57: BA | L57: 144459.783 | M57: 1.214476561e-05 | N57: 0.13 | O57: 0.1300129342 | P57: 0.003874577031 | Q57: 0.0005037451285
A58: BAC UN Equity | B58: Bank of America Corp | C58: BAC | D58: 3.632533732e+11 | E58: 1.799952819 | F58: 6.9 | G58: 8569.318 | H58: 42.39 | J58: Bank of America Corp | K58: BAC | L58: 363253.3732 | M58: 0.01799952819 | N58: 0.069 | O58: 0.08762051191 | P58: 0.00974287201 | Q58: 0.000853675433
A59: BAX UN Equity | B59: Baxter International Inc | C59: BAX | D59: 4.129420567e+10 | E59: 1.271310278 | F59: 10.075 | G59: 502.852 | H59: 82.12 | J59: Baxter International Inc | K59: BAX | L59: 41294.20567 | M59: 0.01271310278 | N59: 0.10075 | O59: 0.1141035253 | P59: 0.001107557948 | Q59: 0.0001263762664
A60: BBY UN Equity | B60: Best Buy Co Inc | C60: BBY | D60: 2.910632885e+10 | E60: 2.416551961 | F60: 0.7 | G60: 250.3986 | H60: 116.24 | J60: Best Buy Co Inc | K60: BBY | L60: 29106.32885 | M60: 0.02416551961 | N60: 0.007 | O60: 0.03125009893 | P60: 0.0007806651158 | Q60: 2.43958621e-05
A61: BDX UN Equity | B61: Becton Dickinson and Co | C61: BDX | D61: 7.034608793e+10 | E61: 1.572615652 | F61: 8.295 | G61: 290.8185 | H61: 241.89 | J61: Becton Dickinson and Co | K61: BDX | L61: 70346.08793 | M61: 0.01572615652 | N61: 0.08295 | O61: 0.09932839886 | P61: 0.001886762744 | Q61: 0.0001874091224
A62: BEN UN Equity | B62: Franklin Resources Inc | C62: BEN | D62: 1.725287909e+10 | E62: 3.276819643 | F62: 13 | G62: 504.3227 | H62: 34.21 | J62: Franklin Resources Inc | K62: BEN | L62: 17252.87909 | M62: 0.03276819643 | N62: 0.13 | O62: 0.1648981292 | P62: 0.000462742001 | Q62: 7.630529026e-05
A63: BF/B UN Equity | B63: Brown-Forman Corp | C63: BF/B | D63: 3.756153271e+10 | E63: 0.8785465406 | F63: 5.39 | G63: 309.5854 | H63: 80.36 | J63: Brown-Forman Corp | K63: BF/B | L63: 37561.53271 | M63: 0.008785465406 | N63: 0.0539 | O63: 0.0629222337 | P63: 0.001007443379 | Q63: 6.339058772e-05
A64: BIIB UW Equity | B64: Biogen Inc | C64: BIIB | D64: 40270384530 | E64: 0 | F64: -6.45 | G64: 150.5548 | H64: 267.48 | J64: Biogen Inc | K64: BIIB | L64: 40270.38453 | M64: 0 | N64: -0.0645 | O64: -0.0645 | P64: 0.001080097891 | Q64: -6.966631397e-05
A65: BIO UN Equity | B65: Bio-Rad Laboratories Inc | C65: BIO | D65: 1.789995525e+10 | E65: 0 | F65: 11.45 | G65: 24.69255 | H65: 602.37 | J65: Bio-Rad Laboratories Inc | K65: BIO | L65: 17899.95525 | M65: 0 | N65: 0.1145 | O65: 0.1145 | P65: 0.0004800973257 | Q65: 5.49711438e-05
A66: BK UN Equity | B66: Bank of New York Mellon Corp/The | C66: BK | D66: 4.559504251e+10 | E66: 2.484639017 | F66: 9.1 | G66: 875.4808 | H66: 52.08 | J66: Bank of New York Mellon Corp/The | K66: BK | L66: 45595.04251 | M66: 0.02484639017 | N66: 0.091 | O66: 0.1169769009 | P66: 0.001222911324 | Q66: 0.0001430523768
A67: BKNG UW Equity | B67: Booking Holdings Inc | C67: BKNG | D67: 9.694827054e+10 | E67: 0 | F67: 32.125 | G67: 41.05281 | H67: 2361.55 | J67: Booking Holdings Inc | K67: BKNG | L67: 96948.27054 | M67: 0 | N67: 0.32125 | O67: 0.32125 | P67: 0.002600263786 | Q67: 0.0008353347413
A68: BKR UN Equity | B68: Baker Hughes Co | C68: BKR | D68: 2.541480888e+10 | E68: 2.946721311 | F68: 60.9 | G68: 773.8436 | H68: 24.4 | J68: =B68 -> Baker Hughes Co | K68: =C68 -> BKR | L68: =D68/1000000 -> 25414.80888 | M68: =IFERROR(E68/100,"0.00%") -> 0.02946721311 | N68: =IFERROR(F68/100,"N/A") -> 0.609 | O68: =IFERROR(M68*(1+0.5*N68)+N68,"N/A") -> 0.6474399795 | P68: =IF(N68="N/A","N/A",L68/$L$504) -> 0.0006816543173 | Q68: =IF(AND(ISNUMBER(L68),ISNUMBER(O68)),O68*P68,"N/A") -> 0.0004413302572
A69: BLK UN Equity | B69: BlackRock Inc | C69: BLK | D69: 1.346195419e+11 | E69: 1.850656755 | F69: 10.023 | G69: 152.5264 | H69: 877.04 | J69: BlackRock Inc | K69: BLK | L69: 134619.5419 | M69: 0.01850656755 | N69: 0.10023 | O69: 0.1196640242 | P69: 0.003610650483 | Q69: 0.0004320649666
A70: BLL UN Equity | B70: Ball Corp | C70: BLL | D70: 2.69695045e+10 | E70: 0.7217624148 | F70: 8.167 | G70: 328.2545 | H70: 82.16 | J70: Ball Corp | K70: BLL | L70: 26969.5045 | M70: 0.007217624148 | N70: 0.08167 | O70: 0.08918235583 | P70: 0.0007233530364 | Q70: 6.451032789e-05
A71: BMY UN Equity | B71: Bristol-Myers Squibb Co | C71: BMY | D71: 1.467424916e+11 | E71: 2.938222763 | F71: 4.944 | G71: 2232.844 | H71: 65.72 | J71: Bristol-Myers Squibb Co | K71: BMY | L71: 146742.4916 | M71: 0.02938222763 | N71: 0.04944 | O71: 0.0795485563 | P71: 0.003935801893 | Q71: 0.0003130873585
A72: BR UN Equity | B72: Broadridge Financial Solutions Inc | C72: BR | D72: 1.851972472e+10 | E72: 1.423375972 | F72: 12.3 | G72: 116.1257 | H72: 159.48 | J72: Broadridge Financial Solutions Inc | K72: BR | L72: 18519.72472 | M72: 0.01423375972 | N72: 0.123 | O72: 0.1381091359 | P72: 0.0004967202535 | Q72: 6.860160502e-05
A73: BRK/B UN Equity | B73: Berkshire Hathaway Inc | C73: BRK/B | D73: 6.621266767e+11 | E73: 0 | F73: -0.7 | G73: 1326.572 | H73: 289.44 | J73: Berkshire Hathaway Inc | K73: BRK/B | L73: 662126.6767 | M73: 0 | N73: -0.007 | O73: -0.007 | P73: 0.01775899673 | Q73: -0.0001243129771
A74: BSX UN Equity | B74: Boston Scientific Corp | C74: BSX | D74: 6.045976669e+10 | E74: 0 | F74: 14.52 | G74: 1420.911 | H74: 42.55 | J74: Boston Scientific Corp | K74: BSX | L74: 60459.76669 | M74: 0 | N74: 0.1452 | O74: 0.1452 | P74: 0.001621600272 | Q74: 0.0002354563594
A75: BWA UN Equity | B75: BorgWarner Inc | C75: BWA | D75: 1.230179151e+10 | E75: 1.347241178 | F75: 22.907 | G75: 239.8478 | H75: 51.29 | J75: BorgWarner Inc | K75: BWA | L75: 12301.79151 | M75: 0.01347241178 | N75: 0.22907 | O75: 0.2440854745 | P75: 0.0003299481547 | Q75: 8.053555188e-05
A76: BXP UN Equity | B76: Boston Properties Inc | C76: BXP | D76: 1.834808907e+10 | E76: 3.365090167 | F76: 1.203 | G76: 156.0743 | H76: 117.56 | J76: Boston Properties Inc | K76: BXP | L76: 18348.08907 | M76: 0.03365090167 | N76: 0.01203 | O76: 0.04588331184 | P76: 0.0004921167884 | Q76: 2.257994806e-05
A77: C UN Equity | B77: Citigroup Inc | C77: C | D77: 1.626973102e+11 | E77: 2.659128446 | F77: 17.818 | G77: 2067.048 | H77: 78.71 | J77: Citigroup Inc | K77: C | L77: 162697.3102 | M77: 0.02659128446 | N77: 0.17818 | O77: 0.207140302 | P77: 0.004363728424 | Q77: 0.0009039040237
A78: CAG UN Equity | B78: Conagra Brands Inc | C78: CAG | D78: 1.828597556e+10 | E78: 2.658792651 | F78: 7.8 | G78: 479.9469 | H78: 38.1 | J78: Conagra Brands Inc | K78: CAG | L78: 18285.97556 | M78: 0.02658792651 | N78: 0.078 | O78: 0.1056248556 | P78: 0.0004904508329 | Q78: 5.180379842e-05
A79: CAH UN Equity | B79: Cardinal Health Inc | C79: CAH | D79: 1.626859427e+10 | E79: 3.492063492 | F79: 4.785 | G79: 290.1479 | H79: 56.07 | J79: Cardinal Health Inc | K79: CAH | L79: 16268.59427 | M79: 0.03492063492 | N79: 0.04785 | O79: 0.08360611111 | P79: 0.0004363423534 | Q79: 3.648088728e-05
A80: CARR UN Equity | B80: Carrier Global Corp | C80: CARR | D80: 39913101105 | E80: 1.047245809 | F80: 15.235 | G80: 868.9985 | H80: 45.93 | J80: Carrier Global Corp | K80: CARR | L80: 39913.10111 | M80: 0.01047245809 | N80: 0.15235 | O80: 0.1636201976 | P80: 0.00107051514 | Q80: 0.0001751578987
A81: CAT UN Equity | B81: Caterpillar Inc | C81: CAT | D81: 1.320605266e+11 | E81: 1.833416293 | F81: 14.75 | G81: 547.7872 | H81: 241.08 | J81: Caterpillar Inc | K81: CAT | L81: 132060.5266 | M81: 0.01833416293 | N81: 0.1475 | O81: 0.1671863074 | P81: 0.003542014757 | Q81: 0.0005921763681
A82: CB UN Equity | B82: Chubb Ltd | C82: CB | D82: 7.644290084e+10 | E82: 1.885993294 | F82: 16.733 | G82: 449.6906 | H82: 169.99 | J82: Chubb Ltd | K82: CB | L82: 76442.90084 | M82: 0.01885993294 | N82: 0.16733 | O82: 0.1877678492 | P82: 0.002050286257 | Q82: 0.0003849778409
A83: CBOE UF Equity | B83: Cboe Global Markets Inc | C83: CBOE | D83: 1.187412787e+10 | E83: 1.550763702 | F83: 2.845 | G83: 106.6858 | H83: 111.3 | J83: Cboe Global Markets Inc | K83: CBOE | L83: 11874.12787 | M83: 0.01550763702 | N83: 0.02845 | O83: 0.04417823315 | P83: 0.0003184777255 | Q83: 1.406978321e-05
A84: CBRE UN Equity | B84: CBRE Group Inc | C84: CBRE | D84: 2.946400569e+10 | E84: 0.005696058328 | F84: 14.85 | G84: 335.6574 | H84: 87.78 | J84: CBRE Group Inc | K84: CBRE | L84: 29464.00569 | M84: 5.696058328e-05 | N84: 0.1485 | O84: 0.1485611899 | P84: 0.000790258419 | Q84: 0.0001174017311
A85: CCI UN Equity | B85: Crown Castle International Corp | C85: CCI | D85: 81899937917 | E85: 2.843799472 | F85: 20.85 | G85: 432.1896 | H85: 189.5 | J85: Crown Castle International Corp | K85: CCI | L85: 81899.93792 | M85: 0.02843799472 | N85: 0.2085 | O85: 0.2399026557 | P85: 0.002196650249 | Q85: 0.0005269822284
A86: CCL UN Equity | B86: Carnival Corp | C86: CCL | D86: 3.274414904e+10 | E86: 0 | F86: -115.66 | G86: 973.5405 | H86: 29.56 | J86: Carnival Corp | K86: CCL | L86: 32744.14904 | M86: 0 | N86: -1.1566 | O86: -1.1566 | P86: 0.0008782356249 | Q86: -0.001015767324
A87: CDNS UW Equity | B87: Cadence Design Systems Inc | C87: CDNS | D87: 35336872350 | E87: 0.2622253721 | F87: 11.603 | G87: 278.265 | H87: 126.99 | J87: Cadence Design Systems Inc | K87: CDNS | L87: 35336.87235 | M87: 0.002622253721 | N87: 0.11603 | O87: 0.1188043838 | P87: 0.0009477754371 | Q87: 0.0001125998768
A88: CDW UW Equity | B88: CDW Corp/DE | C88: CDW | D88: 2.319246975e+10 | E88: 1.002297183 | F88: 13.1 | G88: 140.2035 | H88: 165.42 | J88: CDW Corp/DE | K88: CDW | L88: 23192.46975 | M88: 0.01002297183 | N88: 0.131 | O88: 0.1416794765 | P88: 0.0006220486335 | Q88: 8.813152474e-05
A89: CE UN Equity | B89: Celanese Corp | C89: CE | D89: 18635057052 | E89: 1.646418858 | F89: 13.55 | G89: 112.6326 | H89: 165.45 | J89: Celanese Corp | K89: CE | L89: 18635.05705 | M89: 0.01646418858 | N89: 0.1355 | O89: 0.1530796374 | P89: 0.0004998135989 | Q89: 7.651128446e-05
A90: CERN UW Equity | B90: Cerner Corp | C90: CERN | D90: 23578060571 | E90: 0.6900958466 | F90: 10.46 | G90: 301.3171 | H90: 78.25 | J90: Cerner Corp | K90: CERN | L90: 23578.06057 | M90: 0.006900958466 | N90: 0.1046 | O90: 0.1118618786 | P90: 0.0006323906214 | Q90: 7.074040291e-05
A91: CF UN Equity | B91: CF Industries Holdings Inc | C91: CF | D91: 1.140575745e+10 | E91: 2.256911792 | F91: 7.6 | G91: 214.5149 | H91: 53.17 | J91: CF Industries Holdings Inc | K91: CF | L91: 11405.75745 | M91: 0.02256911792 | N91: 0.076 | O91: 0.0994267444 | P91: 0.0003059154936 | Q91: 3.041618159e-05
A92: CFG UN Equity | B92: Citizens Financial Group Inc | C92: CFG | D92: 2.125391493e+10 | E92: 3.162324649 | F92: 20.97 | G92: 425.9302 | H92: 49.9 | J92: Citizens Financial Group Inc | K92: CFG | L92: 21253.91493 | M92: 0.03162324649 | N92: 0.2097 | O92: 0.2446389439 | P92: 0.0005700543703 | Q92: 0.0001394574991
A93: CHD UN Equity | B93: Church & Dwight Co Inc | C93: CHD | D93: 2.102493118e+10 | E93: 1.187448968 | F93: 7.333 | G93: 245.2459 | H93: 85.73 | J93: Church & Dwight Co Inc | K93: CHD | L93: 21024.93118 | M93: 0.01187448968 | N93: 0.07333 | O93: 0.08563986784 | P93: 0.0005639127634 | Q93: 4.829341453e-05
A94: CHRW UW Equity | B94: CH Robinson Worldwide Inc | C94: CHRW | D94: 1.290256076e+10 | E94: 2.184085756 | F94: 12.575 | G94: 132.9887 | H94: 97.02 | J94: CH Robinson Worldwide Inc | K94: CHRW | L94: 12902.56076 | M94: 0.02184085756 | N94: 0.12575 | O94: 0.1489641015 | P94: 0.000346061475 | Q94: 5.155073668e-05
A95: CHTR UW Equity | B95: Charter Communications Inc | C95: CHTR | D95: 1.481352286e+11 | E95: 0.01209450996 | F95: 35.66 | G95: 188.6662 | H95: 694.53 | J95: Charter Communications Inc | K95: CHTR | L95: 148135.2286 | M95: 0.0001209450996 | N95: 0.3566 | O95: 0.3567425096 | P95: 0.003973156696 | Q95: 0.001417393891
A96: CI UN Equity | B96: Cigna Corp | C96: CI | D96: 8.882322536e+10 | E96: 1.298049063 | F96: 9.965 | G96: 343.1455 | H96: 258.85 | J96: Cigna Corp | K96: CI | L96: 88823.22536 | M96: 0.01298049063 | N96: 0.09965 | O96: 0.1132772436 | P96: 0.002382340757 | Q96: 0.0002698649943
A97: CINF UW Equity | B97: Cincinnati Financial Corp | C97: CINF | D97: 1.960707108e+10 | E97: 1.985868047 | F97: #N/A N/A | G97: 161.0966 | H97: 121.71 | J97: Cincinnati Financial Corp | K97: CINF | L97: 19607.07108 | M97: 0.01985868047 | N97: N/A | O97: N/A | P97: N/A | Q97: N/A
A98: CL UN Equity | B98: Colgate-Palmolive Co | C98: CL | D98: 7.087526439e+10 | E98: 2.191453808 | F98: 6.1 | G98: 845.9688 | H98: 83.78 | J98: Colgate-Palmolive Co | K98: CL | L98: 70875.26439 | M98: 0.02191453808 | N98: 0.061 | O98: 0.08358293149 | P98: 0.001900955863 | Q98: 0.0001588874637
A99: CLX UN Equity | B99: Clorox Co/The | C99: CLX | D99: 2.198026975e+10 | E99: 2.524189442 | F99: 3.9 | G99: 124.372 | H99: 176.73 | J99: Clorox Co/The | K99: CLX | L99: 21980.26975 | M99: 0.02524189442 | N99: 0.039 | O99: 0.06473411136 | P99: 0.0005895360393 | Q99: 3.816309161e-05
A100: CMA UN Equity | B100: Comerica Inc | C100: CMA | D100: 1.095820702e+10 | E100: 3.473053892 | F100: 19.36 | G100: 139.6128 | H100: 78.49 | J100: Comerica Inc | K100: CMA | L100: 10958.20702 | M100: 0.03473053892 | N100: 0.1936 | O100: 0.2316924551 | P100: 0.0002939116781 | Q100: 6.809711828e-05
A101: CMCSA UW Equity | B101: Comcast Corp | C101: CMCSA | D101: 2.634365424e+11 | E101: 1.731775375 | F101: 12.955 | G101: 4584.845 | H101: 57.34 | J101: Comcast Corp | K101: CMCSA | L101: 263436.5424 | M101: 0.01731775375 | N101: 0.12955 | O101: 0.1479895112 | P101: 0.00706567015 | Q101: 0.001045645072
A102: CME UW Equity | B102: CME Group Inc | C102: CME | D102: 7.85560991e+10 | E102: 2.974492595 | F102: 5.987 | G102: 359.094 | H102: 218.76 | J102: CME Group Inc | K102: CME | L102: 78556.0991 | M102: 0.02974492595 | N102: 0.05987 | O102: 0.0905053403 | P102: 0.002106964658 | Q102: 0.0001906915534
A103: CMG UN Equity | B103: Chipotle Mexican Grill Inc | C103: CMG | D103: 3.862189418e+10 | E103: 0 | F103: 22.65 | G103: 28.15048 | H103: 1371.98 | J103: Chipotle Mexican Grill Inc | K103: CMG | L103: 38621.89418 | M103: 0 | N103: 0.2265 | O103: 0.2265 | P103: 0.001035883489 | Q103: 0.0002346276104
A104: CMI UN Equity | B104: Cummins Inc | C104: CMI | D104: 3.761499927e+10 | E104: 2.144745025 | F104: 12.23 | G104: 146.2026 | H104: 257.28 | J104: Cummins Inc | K104: CMI | L104: 37614.99927 | M104: 0.02144745025 | N104: 0.1223 | O104: 0.1450589618 | P104: 0.001008877413 | Q104: 0.0001463467102
A105: CMS UN Equity | B105: CMS Energy Corp | C105: CMS | D105: 1.816069279e+10 | E105: 2.779725853 | F105: 6.68 | G105: 289.4596 | H105: 62.74 | J105: CMS Energy Corp | K105: CMS | L105: 18160.69279 | M105: 0.02779725853 | N105: 0.0668 | O105: 0.09552568696 | P105: 0.0004870906055 | Q105: 4.652966471e-05
A106: CNC UN Equity | B106: Centene Corp | C106: CNC | D106: 4.288927959e+10 | E106: 0 | F106: 9.263 | G106: 582.7348 | H106: 73.6 | J106: Centene Corp | K106: CNC | L106: 42889.27959 | M106: 0 | N106: 0.09263 | O106: 0.09263 | P106: 0.001150339659 | Q106: 0.0001065559627
A107: CNP UN Equity | B107: CenterPoint Energy Inc | C107: CNP | D107: 1.468654508e+10 | E107: 2.4743083 | F107: 3.68 | G107: 580.4959 | H107: 25.3 | J107: CenterPoint Energy Inc | K107: CNP | L107: 14686.54508 | M107: 0.024743083 | N107: 0.0368 | O107: 0.06199835573 | P107: 0.0003939099801 | Q107: 2.442177107e-05
A108: COF UN Equity | B108: Capital One Financial Corp | C108: COF | D108: 7.259045657e+10 | E108: 0.9864410996 | F108: 40.5 | G108: 451.4893 | H108: 160.78 | J108: Capital One Financial Corp | K108: COF | L108: 72590.45657 | M108: 0.009864410996 | N108: 0.405 | O108: 0.4168619542 | P108: 0.001946959284 | Q108: 0.0008116132521
A109: COG UN Equity | B109: Cabot Oil & Gas Corp | C109: COG | D109: 6554492568 | E109: 2.963414634 | F109: 29.48 | G109: 399.6642 | H109: 16.4 | J109: Cabot Oil & Gas Corp | K109: COG | L109: 6554.492568 | M109: 0.02963414634 | N109: 0.2948 | O109: 0.3288022195 | P109: 0.0001757990067 | Q109: 5.780310359e-05
A110: COO UN Equity | B110: Cooper Cos Inc/The | C110: COO | D110: 1.93384877e+10 | E110: 0.01524971407 | F110: 10.5 | G110: 49.15107 | H110: 393.45 | J110: Cooper Cos Inc/The | K110: COO | L110: 19338.4877 | M110: 0.0001524971407 | N110: 0.105 | O110: 0.1051605032 | P110: 0.0005186804156 | Q110: 5.454469353e-05
A111: COP UN Equity | B111: ConocoPhillips | C111: COP | D111: 7.521658463e+10 | E111: 3.119842124 | F111: 42.25 | G111: 1349.418 | H111: 55.74 | J111: ConocoPhillips | K111: COP | L111: 75216.58463 | M111: 0.03119842124 | N111: 0.4225 | O111: 0.4602890877 | P111: 0.00201739505 | Q111: 0.0009285849273
A112: COST UW Equity | B112: Costco Wholesale Corp | C112: COST | D112: 167248676070 | E112: 1.25836043 | F112: 10.498 | G112: 442.141 | H112: 378.27 | J112: Costco Wholesale Corp | K112: COST | L112: 167248.6761 | M112: 0.0125836043 | N112: 0.10498 | O112: 0.1182241177 | P112: 0.004485801276 | Q112: 0.000530329898
A113: CPB UN Equity | B113: Campbell Soup Co | C113: CPB | D113: 1.474746506e+10 | E113: 2.997739881 | F113: 8.965 | G113: 303.0094 | H113: 48.67 | J113: Campbell Soup Co | K113: CPB | L113: 14747.46506 | M113: 0.02997739881 | N113: 0.08965 | O113: 0.1209711357 | P113: 0.0003955439239 | Q113: 4.78493977e-05
A114: CPRT UW Equity | B114: Copart Inc | C114: CPRT | D114: 3.052099203e+10 | E114: #N/A N/A | F114: #N/A N/A | G114: 236.5785 | H114: 129.01 | J114: Copart Inc | K114: CPRT | L114: 30520.99203 | M114: 0.00% | N114: N/A | O114: N/A | P114: N/A | Q114: N/A
A115: CRL UN Equity | B115: Charles River Laboratories International | C115: CRL | D115: 1.69849486e+10 | E115: 0.2112488535 | F115: 14.233 | G115: 50.25281 | H115: 337.99 | J115: Charles River Laboratories International | K115: CRL | L115: 16984.9486 | M115: 0.002112488535 | N115: 0.14233 | O115: 0.1445928238 | P115: 0.0004555557981 | Q115: 6.587009924e-05
A116: CRM UN Equity | B116: salesforce.com Inc | C116: CRM | D116: 2.195836161e+11 | E116: 0 | F116: 16.175 | G116: 922.2327 | H116: 238.1 | J116: salesforce.com Inc | K116: CRM | L116: 219583.6161 | M116: 0 | N116: 0.16175 | O116: 0.16175 | P116: 0.00588948438 | Q116: 0.0009526240984
A117: CSCO UW Equity | B117: Cisco Systems Inc/Delaware | C117: CSCO | D117: 2.229314255e+11 | E117: 2.763705104 | F117: 5.65 | G117: 4214.205 | H117: 52.9 | J117: Cisco Systems Inc/Delaware | K117: CSCO | L117: 222931.4255 | M117: 0.02763705104 | N117: 0.0565 | O117: 0.08491779773 | P117: 0.005979276467 | Q117: 0.0005077469896
A118: CSX UW Equity | B118: CSX Corp | C118: CSX | D118: 7.583090963e+10 | E118: 1.117658809 | F118: 12.113 | G118: 757.4002 | H118: 100.12 | J118: CSX Corp | K118: CSX | L118: 75830.90963 | M118: 0.01117658809 | N118: 0.12113 | O118: 0.1329834982 | P118: 0.002033871951 | Q118: 0.0002704714069
A119: CTAS UW Equity | B119: Cintas Corp | C119: CTAS | D119: 3.714050727e+10 | E119: 1.199581377 | F119: 10.353 | G119: 105.0532 | H119: 353.54 | J119: Cintas Corp | K119: CTAS | L119: 37140.50727 | M119: 0.01199581377 | N119: 0.10353 | O119: 0.1161467771 | P119: 0.0009961509938 | Q119: 0.0001156997274
A120: CTLT UN Equity | B120: Catalent Inc | C120: CTLT | D120: 1.7856905e+10 | E120: #N/A N/A | F120: 16.46 | G120: 170.3416 | H120: 104.83 | J120: Catalent Inc | K120: CTLT | L120: 17856.905 | M120: 0.00% | N120: 0.1646 | O120: 0.1646 | P120: 0.0004789426686 | Q120: 7.883396325e-05
A121: CTSH UW Equity | B121: Cognizant Technology Solutions Corp | C121: CTSH | D121: 3.774159442e+10 | E121: 1.326159866 | F121: 10.967 | G121: 527.4119 | H121: 71.56 | J121: Cognizant Technology Solutions Corp | K121: CTSH | L121: 37741.59442 | M121: 0.01326159866 | N121: 0.10967 | O121: 0.1236587984 | P121: 0.00101227284 | Q121: 0.0001251764431
A122: CTVA UN Equity | B122: Corteva Inc | C122: CTVA | D122: 3.35936055e+10 | E122: 1.184615385 | F122: 16.075 | G122: 738.321 | H122: 45.5 | J122: Corteva Inc | K122: CTVA | L122: 33593.6055 | M122: 0.01184615385 | N122: 0.16075 | O122: 0.1735482885 | P122: 0.0009010190212 | Q122: 0.000156370309
A123: CTXS UW Equity | B123: Citrix Systems Inc | C123: CTXS | D123: 1.427424349e+10 | E123: 1.156924148 | F123: 8.2 | G123: 124.167 | H123: 114.96 | J123: Citrix Systems Inc | K123: CTXS | L123: 14274.24349 | M123: 0.01156924148 | N123: 0.082 | O123: 0.09404358038 | P123: 0.0003828515787 | Q123: 3.600473321e-05
A124: CVS UN Equity | B124: CVS Health Corp | C124: CVS | D124: 1.138041268e+11 | E124: 2.311429894 | F124: 6.85 | G124: 1316.568 | H124: 86.44 | J124: CVS Health Corp | K124: CVS | L124: 113804.1268 | M124: 0.02311429894 | N124: 0.0685 | O124: 0.09240596367 | P124: 0.003052357179 | Q124: 0.0002820560066
A125: CVX UN Equity | B125: Chevron Corp | C125: CVX | D125: 2.006010752e+11 | E125: 5.110318913 | F125: 22.04 | G125: 1932.759 | H125: 103.79 | J125: Chevron Corp | K125: CVX | L125: 200601.0752 | M125: 0.05110318913 | N125: 0.2204 | O125: 0.2771347606 | P125: 0.005380350865 | Q125: 0.001491082249
A126: CZR UW Equity | B126: Caesars Entertainment Inc | C126: CZR | D126: 2.242466704e+10 | E126: 0 | F126: 132.11 | G126: 208.6986 | H126: 107.45 | J126: Caesars Entertainment Inc | K126: CZR | L126: 22424.66704 | M126: 0 | N126: 1.3211 | O126: 1.3211 | P126: 0.0006014552843 | Q126: 0.0007945825761
A127: D UN Equity | B127: Dominion Energy Inc | C127: D | D127: 6.140876302e+10 | E127: 3.304439191 | F127: 7.02 | G127: 806.5243 | H127: 76.14 | J127: Dominion Energy Inc | K127: D | L127: 61408.76302 | M127: 0.03304439191 | N127: 0.0702 | O127: 0.1044042501 | P127: 0.001647053441 | Q127: 0.0001719593794
A128: DAL UN Equity | B128: Delta Air Lines Inc | C128: DAL | D128: 3.04983629e+10 | E128: 0 | F128: #N/A N/A | G128: 639.6469 | H128: 47.68 | J128: Delta Air Lines Inc | K128: DAL | L128: 30498.3629 | M128: 0 | N128: N/A | O128: N/A | P128: N/A | Q128: N/A
A129: DD UN Equity | B129: DuPont de Nemours Inc | C129: DD | D129: 4.50139202e+10 | E129: 1.445797376 | F129: 8.843 | G129: 532.1423 | H129: 84.59 | J129: DuPont de Nemours Inc | K129: DD | L129: 45013.9202 | M129: 0.01445797376 | N129: 0.08843 | O129: 0.1035272331 | P129: 0.001207324957 | Q129: 0.0001249910122
A130: DE UN Equity | B130: Deere & Co | C130: DE | D130: 1.126422894e+11 | E130: 1.086956522 | F130: 25.725 | G130: 311.9421 | H130: 361.1 | J130: Deere & Co | K130: DE | L130: 112642.2894 | M130: 0.01086956522 | N130: 0.25725 | O130: 0.269517663 | P130: 0.003021195369 | Q130: 0.0008142655154
A131: DFS UN Equity | B131: Discover Financial Services | C131: DFS | D131: 3.575111142e+10 | E131: 1.54613679 | F131: 54.517 | G131: 304.8875 | H131: 117.26 | J131: Discover Financial Services | K131: DFS | L131: 35751.11142 | M131: 0.0154613679 | N131: 0.54517 | O131: 0.5648459049 | P131: 0.0009588858038 | Q131: 0.0005416227195
A132: DG UN Equity | B132: Dollar General Corp | C132: DG | D132: 4.794026625e+10 | E132: 0.8040993299 | F132: 10.818 | G132: 236.2055 | H132: 202.96 | J132: =B132 -> Dollar General Corp | K132: =C132 -> DG | L132: =D132/1000000 -> 47940.26625 | M132: =IFERROR(E132/100,"0.00%") -> 0.008040993299 | N132: =IFERROR(F132/100,"N/A") -> 0.10818 | O132: =IFERROR(M132*(1+0.5*N132)+N132,"N/A") -> 0.1166559306 | P132: =IF(N132="N/A","N/A",L132/$L$504) -> 0.001285812914 | Q132: =IF(AND(ISNUMBER(L132),ISNUMBER(O132)),O132*P132,"N/A") -> 0.0001499977021
A133: DGX UN Equity | B133: Quest Diagnostics Inc | C133: DGX | D133: 1.720111981e+10 | E133: 1.806030227 | F133: -5.4 | G133: 130.6381 | H133: 131.67 | J133: Quest Diagnostics Inc | K133: DGX | L133: 17201.11981 | M133: 0.01806030227 | N133: -0.054 | O133: -0.03642732589 | P133: 0.0004613537578 | Q133: -1.680588369e-05
A134: DHI UN Equity | B134: DR Horton Inc | C134: DHI | D134: 3.435047529e+10 | E134: 0.8384930213 | F134: 15.1 | G134: 360.4835 | H134: 95.29 | J134: DR Horton Inc | K134: DHI | L134: 34350.47529 | M134: 0.008384930213 | N134: 0.151 | O134: 0.1600179924 | P134: 0.0009213191368 | Q134: 0.0001474276387
A135: DHR UN Equity | B135: Danaher Corp | C135: DHR | D135: 1.826992487e+11 | E135: 0.3275552432 | F135: 15.797 | G135: 713.2789 | H135: 256.14 | J135: Danaher Corp | K135: DHR | L135: 182699.2487 | M135: 0.003275552432 | N135: 0.15797 | O135: 0.1615042719 | P135: 0.004900203352 | Q135: 0.0007914037747
A136: DIS UN Equity | B136: Walt Disney Co/The | C136: DIS | D136: 3.245949122e+11 | E136: 0.1550517772 | F136: 53.143 | G136: 1816.932 | H136: 178.65 | J136: Walt Disney Co/The | K136: DIS | L136: 324594.9122 | M136: 0.001550517772 | N136: 0.53143 | O136: 0.5333925136 | P136: 0.008706007756 | Q136: 0.00464371936
A137: DISCA UW Equity | B137: Discovery Inc | C137: DISCA | D137: 2.257949152e+10 | E137: 0 | F137: 11.2 | G137: 168.654 | H137: 32.11 | J137: Discovery Inc | K137: DISCA | L137: 22579.49152 | M137: 0 | N137: 0.112 | O137: 0.112 | P137: 0.0006056078543 | Q137: 6.782807968e-05
A138: DISH UW Equity | B138: DISH Network Corp | C138: DISH | D138: 2.295005553e+10 | E138: 0 | F138: 6.335 | G138: 288.9098 | H138: 43.52 | J138: DISH Network Corp | K138: DISH | L138: 22950.05553 | M138: 0 | N138: 0.06335 | O138: 0.06335 | P138: 0.0006155468061 | Q138: 3.899489017e-05
A139: DLR UN Equity | B139: Digital Realty Trust Inc | C139: DLR | D139: 4.385069763e+10 | E139: 3.064792821 | F139: 21.697 | G139: 281.5877 | H139: 151.56 | J139: Digital Realty Trust Inc | K139: DLR | L139: 43850.69763 | M139: 0.03064792821 | N139: 0.21697 | O139: 0.2509427687 | P139: 0.001176125994 | Q139: 0.0002951403133
A140: DLTR UW Equity | B140: Dollar Tree Inc | C140: DLTR | D140: 22615502520 | E140: 0 | F140: 10.293 | G140: 231.9539 | H140: 97.5 | J140: Dollar Tree Inc | K140: DLTR | L140: 22615.50252 | M140: 0 | N140: 0.10293 | O140: 0.10293 | P140: 0.0006065737107 | Q140: 6.243463204e-05
A141: DOV UN Equity | B141: Dover Corp | C141: DOV | D141: 21661054436 | E141: 1.336212625 | F141: 12.033 | G141: 143.9273 | H141: 150.5 | J141: Dover Corp | K141: DOV | L141: 21661.05444 | M141: 0.01336212625 | N141: 0.12033 | O141: 0.1344960586 | P141: 0.0005809743186 | Q141: 7.813875599e-05
A142: DOW UN Equity | B142: Dow Inc | C142: DOW | D142: 5.098828478e+10 | E142: 4.092370652 | F142: 27.71 | G142: 745.2249 | H142: 68.42 | J142: Dow Inc | K142: DOW | L142: 50988.28478 | M142: 0.04092370652 | N142: 0.2771 | O142: 0.3236936861 | P142: 0.001367564266 | Q142: 0.0004426719182
A143: DPZ UN Equity | B143: Domino's Pizza Inc | C143: DPZ | D143: 1.657467612e+10 | E143: 0.8827043362 | F143: 13.95 | G143: 38.82839 | H143: 426.87 | J143: Domino's Pizza Inc | K143: DPZ | L143: 16574.67612 | M143: 0.008827043362 | N143: 0.1395 | O143: 0.1489427296 | P143: 0.0004445518197 | Q143: 6.621276148e-05
A144: DRE UN Equity | B144: Duke Realty Corp | C144: DRE | D144: 1.742181564e+10 | E144: 2.229875161 | F144: 6.71 | G144: 374.9853 | H144: 46.46 | J144: Duke Realty Corp | K144: DRE | L144: 17421.81564 | M144: 0.02229875161 | N144: 0.0671 | O144: 0.09014687473 | P144: 0.0004672730731 | Q144: 4.212320719e-05
A145: DRI UN Equity | B145: Darden Restaurants Inc | C145: DRI | D145: 1.87405962e+10 | E145: 1.150596942 | F145: 10.667 | G145: 130.8427 | H145: 143.23 | J145: Darden Restaurants Inc | K145: DRI | L145: 18740.5962 | M145: 0.01150596942 | N145: 0.10667 | O145: 0.1187896403 | P145: 0.0005026442798 | Q145: 5.970893319e-05
A146: DTE UN Equity | B146: DTE Energy Co | C146: DTE | D146: 2.673241785e+10 | E146: 3.152402348 | F146: 4.033 | G146: 193.7272 | H146: 137.99 | J146: DTE Energy Co | K146: DTE | L146: 26732.41785 | M146: 0.03152402348 | N146: 0.04033 | O146: 0.07248970541 | P146: 0.0007169941006 | Q146: 5.197469113e-05
